Workbook

Sheet Auswertung
A1: Leistungsvergleich der Niedersächsischen Feuerwehren | H1: =IF(N3="ohne","",IF(Bedienung!Y5="ohne","","Start Nummer:")) -> Start Nummer: | I1: =IF(N3="ohne","",IF(Bedienung!Y5="ohne","",IF(AI1=0,"(keine)",AI1))) -> (keine) | L1: Leistungsvergleich der Niedersächsischen Feuerwehren | AA1: Auswahlbereich für mit/ohne Teilnehmerliste | AB1: Auswahlbereich für Teilnehmer | AC1: Kennung Mit/Ohne Abfragen | AD1: Makroabdeckung aktiv? | AE1: Archivzeile | AF1: Zeitstempel für | AG1: Zeitstempel aus "Archiv" | AH1: "Disqualifiziert" im Archiv? | AI1: 0 | AK1: Aktueller Dateiname | AM1: Application.UserName: | AN1: LFVCL18 | AQ1: Aufbereitung Name der Einheit für Speichern | AS1: Einheit Name | AU1: Modul Nr. / Ordnungszahl | AV1: Modul | AW1: Max. Modulzeit [Sek] | AX1: (Standard = [Sek]) | AY1: Toleranzzeit (Sek)
H2: =IF(COUNTA(Siegerliste!B4:B203)=0,"",IF(INDEX(Siegerliste!A:A,MATCH(B7,Siegerliste!B:B,0))=0,"",INDEX(Siegerliste!A:A,MATCH(B7,Siegerliste!B:B,0)))) ->  | Y2: Auswertung der | AA2: mit | AB2: (=Kopie aus Tabelle "Teilnehmer") | AC2: 0 | AD2: 1 | AE2: =VLOOKUP(B7,Einheiten!B:G,6,FALSE) -> 100 | AF2: Modul 1 Saugleitung | AG2: =IF(N3="mit",INDIRECT("Archiv!AC"&AE2),IF(Saugleitung!O17>0,1,0)) -> 0 | AH2: =INDIRECT("Archiv!AJ"&$AE$2+1) -> 0 | AI2: 0 | AK2: =CELL("filename") -> H:\Facharbeit - Einladungen - Protokolle\AK-LV\AK-LV 2025\Bestimmungen Leistungsvergleiche Version 1.6\[Bewertung Leistungsvergleich Vers 2025-04-05.xlsm]Auswertung | AQ2: Verbotenes Zeichen | AR2: Austauschzeichen | AS2: =B7 -> Musterort | AU2: A / 5.3 | AV2: Löschangriff | AW2: 270 | AX2: 270 | AY2: 30
A3: am: | B3: 2024-09-08 | G3: Platz: | K3: =IF(CELL("breite",K3)<100,"","Hinweis: Die Spaltenbreite für diese Spalte 'K' ") -> Hinweis: Die Spaltenbreite für diese Spalte 'K' | M3: Voreinstellung mit / ohne "Einheiten" (Makros): | N3: mit | Y3: ausgewählten Module: | AA3: ohne | AF3: Modul 2 Fahrübung | AG3: =IF(N3="mit",INDIRECT("Archiv!BC"&AE2),IF(Fahrübung!O14>0,1,0)) -> 0 | AH3: =INDIRECT("Archiv!BJ"&$AE$2+1) -> 0 | AI3: 0 | AK3: Datum/Urzeit für Speichern unter | AQ3: < | AR3: - | AS3: =SUBSTITUTE(AS2,AQ3,AR3) -> Musterort | AU3: B / 5.1 | AV3: Kuppeln einer Saugleitung | AW3: 180 | AX3: 180 | AY3: 30
A4: in: | B4: Musterstadt | K4: =IF(CELL("breite",K4)<100,"","kann in der Tabelle 'Bedienung' mit einem Button ") -> kann in der Tabelle 'Bedienung' mit einem Button | N4: =IF(OR(Löschangriff!J1=1,Saugleitung!J1=1,Fahrübung!J1=1,Atemschutz!J1=1,Funkübung!J1=1,Leitereinsatz!J1=1,Modul_7!J1=1,Modul_8!J1=1,Modul_9!J1=1,Modul_10!J1=1,SUM(AH2:AH11)>0),1,"") ->  | X4: Anzahl "aktiver" Module: | Y4: =COUNTIF(Y6:Y41,"ja") -> 3 | AB4: =IF(Einheiten!B4<>"",Einheiten!B4,"") -> Musterort | AF4: Modul 3 Löschangriff | AG4: =IF(N3="mit",INDIRECT("Archiv!CC"&AE2),IF(Löschangriff!O45>0,1,0)) -> 0 | AH4: =INDIRECT("Archiv!CJ"&$AE$2+1) -> 0 | AI4: 0 | AK4: =TEXT(NOW(),"JJJJ MM TT") & " - " & TEXT(NOW(),"hh mm ss") -> 2025 04 08 - 15 52 41 | AQ4: > | AR4: - | AS4: =SUBSTITUTE(AS3,AQ4,AR4) -> Musterort | AU4: C / 5.2 | AV4: Maschinistenprüfung | AW4: 180 | AX4: 180 | AY4: 30
A5: Art: | B5: Musterentscheid | G5: ZE-Grad: | H5: =IF(N4=1,0,G55) -> 0 | K5: =IF(CELL("breite",K5)<100,"","im Bereich Zelle W13 eingestellt werden.") -> im Bereich Zelle W13 eingestellt werden. | M5: =HYPERLINK("#"&ADDRESS(MATCH("*"&RIGHT(CELL("dateiname",$A$1),LEN(CELL("dateiname",$A$1))-FIND("]",CELL("dateiname",$A$1)))&"*",Beschreibung100!B:B,0)+15,1,,1,"Beschreibung100"),"Hilfe beim Ausfüllen der Tabelle? Klick mich an!") -> Hilfe beim Ausfüllen der Tabelle? Klick mich an! | AA5: Merker für mit/ohne Druckvorschau | AB5: =IF(Einheiten!B5<>"",Einheiten!B5,"") ->  | AF5: Modul 4 Atemschutz | AG5: =IF(N3="mit",INDIRECT("Archiv!DC"&AE2),IF(Atemschutz!O17>0,1,0)) -> 0 | AH5: =INDIRECT("Archiv!DJ"&$AE$2+1) -> 0 | AK5: Speichern unter Dateiname (mit Einheit und Datum/Uhrzeit) | AQ5: ? | AR5: - | AS5: =SUBSTITUTE(AS4,AQ5,AR5) -> Musterort | AU5: D / 5.4 | AV5: Atemschutz | AW5: 220 | AX5: 220 | AY5: 30
K6: =IF(CELL("breite",K6)<100,"","Dafür ist das Arbeiten 'mit Makros' erforderlich!") -> Dafür ist das Arbeiten 'mit Makros' erforderlich! | X6: Modul "Saugleitung" aktiv? | Y6: =IF(ISERROR(VLOOKUP(AC34,$M$16:$M$24,1,FALSE)),"nein","ja") -> ja | AA6: ohne | AB6: =IF(Einheiten!B6<>"",Einheiten!B6,"") ->  | AF6: Modul 5 Funkübung | AG6: =IF(N3="mit",INDIRECT("Archiv!EC"&AE2),IF(Funkübung!O14>0,1,0)) -> 0 | AH6: =INDIRECT("Archiv!EJ"&$AE$2+1) -> 0 | AK6: =IF(ISERROR(FIND("#",CELL("Filename",$A$1))),AK9&(MID(CELL("Filename",$A$1),FIND("[",CELL("Filename",$A$1))+1,FIND("]",CELL("Filename",$A$1))-FIND("[",CELL("Filename",$A$1))-6) & " # " & AS20 & " " & AK4 & ".xlsm"),AK9&(MID(CELL("Filename",$A$1),FIND("[",CELL("Filename",$A$1))+1,FIND("#",CELL("Filename",$A$1))-FIND("[",CELL("Filename",$A$1))-2) & " # " & AS20 & " " & AK4 & ".xlsm")) -> H:\Facharbeit - Einladungen - Protokolle\AK-LV\AK-LV 2025\Bestimmungen Leistungsvergleiche Version 1.6\Bewertung Leistungsvergleich Vers 2025-04-05 # Musterort 2025 04 08 - 15 52 41.xlsm | AQ6: [ | AR6: - | AS6: Musterort | AU6: E / 5.5 | AV6: Sprechfunk | AW6: 420 | AX6: 420 | AY6: 30
A7: Einheit: | B7: Musterort | G7: Zeittakte: | H7: =I55 -> 0 | I7: Sek. | AB7: =IF(Einheiten!B7<>"",Einheiten!B7,"") ->  | AF7: Modul 6 Reserve | AG7: =IF(N3="mit",INDIRECT("Archiv!FC"&AE2),IF(#REF!>0,1,0)) -> 0 | AH7: =INDIRECT("Archiv!FJ"&$AE$2+1) -> 0 | AK7: Speichern unter Dateiname, aktueller Pfad | AQ7: ] | AR7: - | AS7: Musterort | AU7: F / 5.6 | AV7: Leitereinsatz | AW7: 270 | AX7: 270 | AY7: 30
AA8: Merker für "Ausdruck aktiv" (Ausblenden Farben) | AB8: =IF(Einheiten!B8<>"",Einheiten!B8,"") ->  | AF8: Modul 7 Reserve | AG8: =IF(N3="mit",INDIRECT("Archiv!GC"&AE2),IF(Modul_7!O14>0,1,0)) -> 0 | AH8: =INDIRECT("Archiv!GJ"&$AE$2+1) -> 0 | AK8: =CELL("Filename",$A$1) -> H:\Facharbeit - Einladungen - Protokolle\AK-LV\AK-LV 2025\Bestimmungen Leistungsvergleiche Version 1.6\[Bewertung Leistungsvergleich Vers 2025-04-05.xlsm]Auswertung | AQ8: : | AR8: - | AS8: Musterort | AU8: X / 5.7 | AV8: Modul 7 | AW8: 7 | AY8: 7
A9: Gruppe / Staffel: | B9: Staffel: | C9: =IF(VLOOKUP(Auswertung!B7,Einheiten!B:C,2,)= "Staffel","x","") ->  | D9: Gruppe: | E9: =IF(VLOOKUP(Auswertung!B7,Einheiten!B:C,2,)= "Gruppe","x","") -> x | F9: =IF(AND(C9<>"",E9<>""),"Eins geht nur, entweder Staffel oder Gruppe!",IF(AND(B7<>"",C9="",E9="")," 'Staffel' oder 'Gruppe' wählen!","")) ->  | X9: Modul "Fahrübung" aktiv? | Y9: =IF(ISERROR(VLOOKUP(AC35,$M$16:$M$24,1,FALSE)),"nein","ja") -> nein | AA9: 0 | AB9: =IF(Einheiten!B9<>"",Einheiten!B9,"") ->  | AF9: Modul 8 Reserve | AG9: =IF(N3="mit",INDIRECT("Archiv!HC"&AE2),IF(Modul_8!O14>0,1,0)) -> 0 | AH9: =INDIRECT("Archiv!HJ"&$AE$2+1) -> 0 | AK9: =MID(AK8,1,FIND("[",AK8,1)-1) -> H:\Facharbeit - Einladungen - Protokolle\AK-LV\AK-LV 2025\Bestimmungen Leistungsvergleiche Version 1.6\ | AQ9: | | AR9: - | AS9: Musterort | AV9: Modul 8 | AW9: 8 | AY9: 8
AA10: Merker für Einheit Name bei Aufruf Tabelle | AB10: =IF(Einheiten!B10<>"",Einheiten!B10,"") ->  | AC10: Gemeinde/Stadt: | AD10: Landkreis/Stadt/Region: | AF10: Modul 9 Reserve | AG10: =IF(N3="mit",INDIRECT("Archiv!IC"&AE2),IF(Modul_9!O14>0,1,0)) -> 0 | AH10: =INDIRECT("Archiv!IJ"&$AE$2+1) -> 0 | AK10: Speichern unter Dateiname (o h n e Einheit, nur Datum/Uhrzeit) | AQ10: * | AR10: - | AS10: Musterort | AV10: Modul 9 | AW10: 9 | AY10: 9
A11: =IF((AND(N3="mit",AC11<>"")),"Gemeinde/Stadt:","") -> Gemeinde/Stadt: | B11: =IF((AND(N3="mit",AC11<>"")),AC11,"") -> Musterstadt | F11: =IF((AND(N3="mit",AD11<>"")),"Kreis/Stadt/Region:","") -> Kreis/Stadt/Region: | G11: =IF((AND(N3="mit",AD11<>"")),AD11,"") -> Musterkreis | AA11: Musterort | AB11: =IF(Einheiten!B11<>"",Einheiten!B11,"") ->  | AC11: =IF(N3<>"mit","",IF(VLOOKUP(B7,Einheiten!B:D,3,FALSE)="","",VLOOKUP(B7,Einheiten!B:D,3,FALSE))) -> Musterstadt | AD11: =IF(N3<>"mit","",IF(VLOOKUP(B7,Einheiten!B:AX,49,FALSE)="","",VLOOKUP(B7,Einheiten!B:AX,49,FALSE))) -> Musterkreis | AF11: Modul 10 Reserve | AG11: =IF(N3="mit",INDIRECT("Archiv!JC"&AE2),IF(Modul_10!O14>0,1,0)) -> 0 | AH11: =INDIRECT("Archiv!KJ"&$AE$2+1) -> 0 | AK11: =IF(ISERROR(FIND("#",CELL("Filename",$A$1))),AK9&(MID(CELL("Filename",$A$1),FIND("[",CELL("Filename",$A$1))+1,FIND("]",CELL("Filename",$A$1))-FIND("[",CELL("Filename",$A$1))-6) & " # " & AK4 & ".xlsm"),AK9&(MID(CELL("Filename",$A$1),FIND("[",CELL("Filename",$A$1))+1,FIND("#",CELL("Filename",$A$1))-FIND("[",CELL("Filename",$A$1))-2) & " # " & AK4 & ".xlsm")) -> H:\Facharbeit - Einladungen - Protokolle\AK-LV\AK-LV 2025\Bestimmungen Leistungsvergleiche Version 1.6\Bewertung Leistungsvergleich Vers 2025-04-05 # 2025 04 08 - 15 52 41.xlsm | AQ11: / | AR11: - | AS11: =SUBSTITUTE(AS10,AQ11,AR11) -> Musterort | AV11: Modul 10 | AW11: 10 | AY11: 10
AB12: =IF(Einheiten!B12<>"",Einheiten!B12,"") ->  | AF12: Teilnehmer | AG12: =IF(N3="mit",INDIRECT("Archiv!KC"&AE2),IF(Teilnehmer!B14<>"",1,0)) -> 0 | AK12: Dateiname, wenn darin "Leistungsvergleich Vers" erscheint: | AQ12: \ | AR12: - | AS12: Musterort
C13: =IF(AND(Teilnehmer!Q1>0,Bedienung!Y4="mit"),"Achtung, Die Tabelle 'Teilnehmer' wurde noch nicht gespeichert!!",IF(N4=1,"Die Einheit wurde disqualifiziert","")) ->  | X13: Modul "Löschangriff" aktiv? | Y13: =IF(ISERROR(VLOOKUP(AC36,$M$16:$M$24,1,FALSE)),"nein","ja") -> ja | AA13: Infozelle für "Es sind Daten vorhanden" | AB13: =IF(Einheiten!B13<>"",Einheiten!B13,"") ->  | AK13: Bewertung Leistungsvergleich Vers 2025-04-05 | AQ13: ! | AR13: - | AS13: Musterort
A14: Ergebnisse der Module: | D14: ZE-Grad: | F14: Modulzeit: | H14: Zeittakte: | L14: Modul: | M14: Status und Festlegung der Module: | N14: Modulgewichtung: | AA14: =COUNTIF(Einheiten!S4:S203,">0") -> 0 | AB14: =IF(Einheiten!B14<>"",Einheiten!B14,"") ->  | AC14: Darzustellende Module im Bereich Spalten A-J: | AE14: Anzeige in A16-24 | AF14: Status A16-24 | AG14: Anzeige in C16-24 | AH14: Anzeige in D16-24 | AI14: Anzeige E16-24 | AJ14: Anzeige F16-24 | AK14: Anzeige G16-24 | AL14: Anzeige H16-24 | AM14: Anzeige I16-24 | AN14: Anzeige J16-24 | AQ14: § | AR14: - | AS14: Musterort
AB15: =IF(Einheiten!B15<>"",Einheiten!B15,"") ->  | AC15: Zeile 15 = Zeiger auf Spalte aus der Matrix AC31..AW43: | AE15: 2 | AF15: 3 | AG15: 4 | AH15: 5 | AI15: 6 | AJ15: 7 | AK15: 8 | AL15: 9 | AM15: 10 | AN15: 11 | AQ15: % | AR15: - | AS15: Musterort
A16: =IF(M16="","",HYPERLINK("#"&M16&"!A1",AE16)) -> Löschangriff: | D16: =AH16 -> 0 | E16: (Gruppe) | F16: 0 | G16: Sek. | H16: 0 | I16: Sek. | L16: A | M16: Löschangriff | N16: 0.4 | X16: Modul "Atemschutz" aktiv? | Y16: =IF(ISERROR(VLOOKUP(AC37,$M$16:$M$24,1,FALSE)),"nein","ja") -> nein | AB16: =IF(Einheiten!B16<>"",Einheiten!B16,"") ->  | AC16: 1. Modul (Zeile 16): | AD16: =IF(M16="","",M16) -> Löschangriff | AE16: =IF($AD16="","",IF(VLOOKUP($AD16,$AC$34:$AW$43,AE$15,FALSE)="","",VLOOKUP($AD16,$AC$34:$AW$43,AE$15,FALSE))) -> Löschangriff: | AF16: =IF($AD16="","",IF(VLOOKUP($AD16,$AC$34:$AW$43,AF$15,FALSE)="","",VLOOKUP($AD16,$AC$34:$AW$43,AF$15,FALSE))) -> 0 | AH16: 0 | AI16: (Gruppe) | AJ16: 0 | AK16: Sek. | AL16: 0 | AM16: Sek. | AQ16: ; | AR16: - | AS16: Musterort
AB17: =IF(Einheiten!B17<>"",Einheiten!B17,"") ->  | AQ17: = | AR17: - | AS17: Musterort
A18: =IF(M18="","",HYPERLINK("#"&M18&"!A1",AE18)) -> Kuppeln einer Saugleitung: | D18: =AH18 -> 0 | H18: 0 | I18: Sek. | L18: B | M18: Saugleitung | N18: 0.3 | AB18: =IF(Einheiten!B18<>"",Einheiten!B18,"") ->  | AC18: 2. Modul: (Zeile 18): | AD18: =IF(M18="","",M18) -> Saugleitung | AE18: =IF($AD18="","",IF(VLOOKUP($AD18,$AC$34:$AM$43,AE$15,FALSE)="","",VLOOKUP($AD18,$AC$34:$AM$43,AE$15,FALSE))) -> Kuppeln einer Saugleitung: | AF18: 2 | AH18: 0 | AL18: 0 | AM18: Sek. | AQ18: = | AR18: - | AS18: Musterort
AB19: =IF(Einheiten!B19<>"",Einheiten!B19,"") ->  | AQ19: = | AR19: - | AS19: Musterort
A20: =IF(M20="","",HYPERLINK("#"&M20&"!A1",AE20)) -> Funkübung: | D20: =AH20 -> 0 | F20: 0 | G20: Sek. | L20: C | M20: Funkübung | N20: 0.3 | X20: Modul "Funkübung" aktiv? | Y20: =IF(ISERROR(VLOOKUP(AC38,$M$16:$M$24,1,FALSE)),"nein","ja") -> ja | AB20: =IF(Einheiten!B20<>"",Einheiten!B20,"") ->  | AC20: 3. Modul: (Zeile 20): | AD20: =IF(M20="","",M20) -> Funkübung | AE20: =IF($AD20="","",IF(VLOOKUP($AD20,$AC$34:$AM$43,AE$15,FALSE)="","",VLOOKUP($AD20,$AC$34:$AM$43,AE$15,FALSE))) -> Funkübung: | AF20: 0 | AH20: 0 | AJ20: 0 | AK20: Sek. | AQ20: = | AR20: - | AS20: Musterort
AB21: =IF(Einheiten!B21<>"",Einheiten!B21,"") -> 
A22: =IF(M22="","",HYPERLINK("#"&M22&"!A1",AE22)) ->  | D22: =AH22 ->  | L22: D | AB22: =IF(Einheiten!B22<>"",Einheiten!B22,"") ->  | AC22: 4. Modul: (Zeile 22): | AD22: =IF(M22="","",M22) ->  | AE22: =IF($AD22="","",IF(VLOOKUP($AD22,$AC$34:$AM$43,AE$15,FALSE)="","",VLOOKUP($AD22,$AC$34:$AM$43,AE$15,FALSE))) -> 
AB23: =IF(Einheiten!B23<>"",Einheiten!B23,"") -> 
A24: =IF(M24="","",HYPERLINK("#"&M24&"!A1",AE24)) ->  | D24: =AH24 ->  | L24: E | X24: Modul "Leitereinsatz" aktiv ? | Y24: =IF(ISERROR(VLOOKUP(AC39,$M$16:$M$24,1,FALSE)),"nein","ja") -> nein | AB24: =IF(Einheiten!B24<>"",Einheiten!B24,"") ->  | AC24: 5. Modul: (Zeile 24): | AD24: =IF(M24="","",M24) ->  | AE24: =IF($AD24="","",IF(VLOOKUP($AD24,$AC$34:$AM$43,AE$15,FALSE)="","",VLOOKUP($AD24,$AC$34:$AM$43,AE$15,FALSE))) -> 
AB25: =IF(Einheiten!B25<>"",Einheiten!B25,"") -> 
AB26: =IF(Einheiten!B26<>"",Einheiten!B26,"") -> 
AB27: =IF(Einheiten!B27<>"",Einheiten!B27,"") -> 
A28: Berechnung Modul Löschangriff: | M28: =IF(AA14>0,"Die Umschaltung der aktiven Module und der Gewichtung ist gesperrt!","") ->  | X28: Modul "Reserve 7" aktiv? | Y28: =IF(ISERROR(VLOOKUP(AC40,$M$16:$M$24,1,FALSE)),"nein","ja") -> nein | AB28: =IF(Einheiten!B28<>"",Einheiten!B28,"") ->  | AC28: Hinweis: Die Auswahl der anzuzeigenden Module erfolgt in der Tabelle "Auswertung", Zellen M 16…M24!
AB29: =IF(Einheiten!B29<>"",Einheiten!B29,"") -> 
B30: Ergebnis aus dem Modul: | D30: --->>> | E30: Gewichtung für Modulergebnis: | G30: --->>> | H30: Modulergebnis für Endergebnis: | AB30: =IF(Einheiten!B30<>"",Einheiten!B30,"") -> 
AB31: =IF(Einheiten!B31<>"",Einheiten!B31,"") ->  | AC31: Werte für die darzustellenden Module im Bereich Spalten A-J: Hier stehen statische Werte der Module!
B32: ZE-Grad im Modul: | C32: Zeittakt: [Sek] | E32: Staffel | F32: Gruppe | H32: Staffel | I32: Gruppe | M32: Gewichtung für Modul "Löschangriff" für: | N32: Staffel | O32: Gruppe | X32: Modul "Reserve 8" aktiv? | Y32: =IF(ISERROR(VLOOKUP(AC41,$M$16:$M$24,1,FALSE)),"nein","ja") -> nein | AB32: =IF(Einheiten!B32<>"",Einheiten!B32,"") ->  | AC32: Modulbezeichnungen + Tabelle (auch Liste für Auswahl): | AD32: Anzeige in A16-A24 für Formel "Hyperlink" | AE32: Status Modul geändert / Daten vorh. | AF32: Anzeige in C16-24 (Leere Spalte) | AG32: Anzeige in D 16-24 ZE-Grad Wert | AH32: Anzeige in E 16-24 (Format Gruppe/Staffel) | AI32: Anzeige in F 16-24 (Modulzeit Wert) | AJ32: Anzeige in G 16-24 (Modulzeit Beschr.) | AK32: Anzeige in H 16-24 (Zeittakt Wert) | AL32: Anzeige in I 16-24 (Zeittakt Beschreibung) | AM32: Anzeige in J 16-24 (Leere Spalte) | AN32: Kurzbezeichnung für Tabelle "Teilnehmer"
AB33: =IF(Einheiten!B33<>"",Einheiten!B33,"") -> 
A34: Einheitsführerin/Einheitsführer: | B34: =IF(OR(Löschangriff!O45="",C41=0),0,Löschangriff!M10) -> 0 | E34: =N34 -> 0.25 | F34: 0.25 | H34: =ROUND((B34*E34),4) -> 0 | I34: =ROUND((B34*F34),4) -> 0 | M34: Einheitsführer: | N34: 0.25 | O34: 0.25 | AB34: =IF(Einheiten!B34<>"",Einheiten!B34,"") ->  | AC34: Saugleitung | AD34: Kuppeln einer Saugleitung: | AE34: =IF(Saugleitung!$Q$1>0,2,IF($AG$2>0,1,0)) -> 2 | AG34: =IF(Saugleitung!O13="",0,Saugleitung!M12) -> 0 | AK34: =Saugleitung!O17 -> 0 | AL34: Sek. | AN34: Saugl
A35: Maschinistin/Maschinist: | B35: =IF(OR(Löschangriff!O45="",C41=0),0,Löschangriff!M16) -> 0 | E35: 0.25 | F35: 0.25 | H35: =ROUND((B35*E35),4) -> 0 | I35: 0 | M35: Maschinistin / Maschinist: | N35: 0.25 | O35: 0.25 | AB35: =IF(Einheiten!B35<>"",Einheiten!B35,"") ->  | AC35: Fahrübung | AD35: Maschinistenprüfung (Fahrübung): | AE35: =IF(Fahrübung!$Q$1>0,2,IF($AG$3>0,1,0)) -> 0 | AG35: =IF(Fahrübung!O14="",0,Fahrübung!M13) -> 0 | AI35: =Fahrübung!O14 -> 0 | AJ35: Sek. | AN35: MaPrüf
A36: Angriffstrupp: | B36: =IF(OR(Löschangriff!O45="",C41=0),0,Löschangriff!M25) -> 0 | C36: =Löschangriff!B25 -> 0 | E36: 0.25 | F36: 0.15 | H36: =ROUND((B36*E36),4) -> 0 | I36: 0 | M36: Angriffstrupp: | N36: 0.25 | O36: 0.15 | X36: Modul "Reserve 9" aktiv? | Y36: =IF(ISERROR(VLOOKUP(AC42,$M$16:$M$24,1,FALSE)),"nein","ja") -> nein | AB36: =IF(Einheiten!B36<>"",Einheiten!B36,"") ->  | AC36: Löschangriff | AD36: Löschangriff: | AE36: =IF(Löschangriff!$Q$1>0,2,IF($AG$4>0,1,0)) -> 0 | AG36: =IF(C9<>"",H41,IF(E9<>"",I41,IF(B7="","##",-9999))) -> 0 | AH36: =IF(C9<>"","(Staffel)",IF(E9<>"","(Gruppe)",IF(B7="","(Gruppe)","###"))) -> (Gruppe) | AI36: =Löschangriff!O45 -> 0 | AJ36: Sek. | AK36: =C41 -> 0 | AL36: Sek. | AN36: Lösch
A37: Wassertrupp: | B37: =IF(OR(Löschangriff!O45="",C41=0),0,Löschangriff!M33) -> 0 | C37: =Löschangriff!B33 -> 0 | E37: 0.25 | F37: 0.2 | H37: =ROUND((B37*E37),4) -> 0 | I37: 0 | M37: Wassertrupp: | N37: 0.25 | O37: 0.2 | AB37: =IF(Einheiten!B37<>"",Einheiten!B37,"") ->  | AC37: Atemschutz | AD37: Atemschutz: | AE37: =IF(Atemschutz!$Q$1>0,2,IF($AG$5>0,1,0)) -> 0 | AG37: =IF(OR(Atemschutz!O17="",Atemschutz!C15=""),0,Atemschutz!M12) -> 0 | AI37: =Atemschutz!O17 -> 0 | AJ37: Sek. | AK37: =Atemschutz!C19 -> 0 | AL37: Sek. | AN37: Atemsch
A38: Schlauchtrupp: | B38: =IF(OR(Löschangriff!O45="",C41=0),0,Löschangriff!M40) -> 0 | C38: =Löschangriff!B40 -> 0 | F38: =O38 -> 0.1 | I38: 0 | M38: Schlauchtrupp: | O38: 0.1 | AB38: =IF(Einheiten!B38<>"",Einheiten!B38,"") ->  | AC38: Funkübung | AD38: Funkübung: | AE38: =IF(Funkübung!$Q$1>0,2,IF($AG$6>0,1,0)) -> 0 | AG38: =IF(Funkübung!O14="",0,Funkübung!M13) -> 0 | AI38: =Funkübung!O14 -> 0 | AJ38: Sek. | AN38: Funk
A39: Melderin/Melder: | B39: =IF(OR(Löschangriff!O45="",C41=0),0,Löschangriff!M44) -> 0 | F39: =O39 -> 0.05 | I39: 0 | M39: Melderin / Melder: | O39: 0.05 | AB39: =IF(Einheiten!B39<>"",Einheiten!B39,"") ->  | AC39: Leitereinsatz | AD39: Leitereinsatz: | AE39: =IF(Leitereinsatz!$Q$1>0,2,IF($AG$7>0,1,0)) -> 0 | AG39: =IF(Leitereinsatz!O14="",0,Leitereinsatz!M13) -> 0 | AI39: =Leitereinsatz!O14 -> 0 | AJ39: Sek. | AN39: Leiter
X40: Modul "Reserve 10" aktiv? | Y40: =IF(ISERROR(VLOOKUP(AC43,$M$16:$M$24,1,FALSE)),"nein","ja") -> nein | AB40: =IF(Einheiten!B40<>"",Einheiten!B40,"") ->  | AC40: Modul_7 | AD40: Modul 7 | AE40: =IF(Modul_7!$Q$1>0,2,IF($AG$8>0,1,0)) -> 0 | AN40: Modul 7
B41: Zeittakt Schlauchwechsel: | C41: =SUM(C34:C39) -> 0 | D41: Sek. | E41: Modulzeit: | F41: =Löschangriff!O45 -> 0 | G41: Sek. | H41: =SUM(H34:H37) -> 0 | I41: =SUM(I34:I39) -> 0 | AB41: =IF(Einheiten!B41<>"",Einheiten!B41,"") ->  | AC41: Modul_8 | AD41: Modul 8 | AE41: =IF(Modul_8!$Q$1>0,2,IF($AG$9>0,1,0)) -> 0 | AN41: Modul 8
AB42: =IF(Einheiten!B42<>"",Einheiten!B42,"") ->  | AC42: Modul_9 | AD42: Modul 9 | AE42: =IF(Modul_9!$Q$1>0,2,IF($AG$10>0,1,0)) -> 0 | AN42: Modul 9
AB43: =IF(Einheiten!B43<>"",Einheiten!B43,"") ->  | AC43: Modul_10 | AD43: Mosul 10 | AE43: =IF(Modul_10!$Q$1>0,2,IF($AG$11>0,1,0)) -> 0 | AN43: Mosul 10
AB44: =IF(Einheiten!B44<>"",Einheiten!B44,"") -> 
A45: Auswertung Leistungsvergleich: | AB45: =IF(Einheiten!B45<>"",Einheiten!B45,"") -> 
AB46: =IF(Einheiten!B46<>"",Einheiten!B46,"") -> 
A47: Bewertung der Module: | C47: ZE-Grad im Modul: | D47: --->>> | E47: Modul- Gewich-tung | F47: --->>> | G47: ZE-Grad Gesamt- Ergebnis: | I47: Zeittakte: [Sek.] | AB47: =IF(Einheiten!B47<>"",Einheiten!B47,"") -> 
AB48: =IF(Einheiten!B48<>"",Einheiten!B48,"") -> 
A49: =IF(A16="","",A16) -> Löschangriff: | C49: =D16 -> 0 | D49: =E16 -> (Gruppe) | E49: =IF(N16="","",N16) -> 0.4 | G49: =IF(A49="","",ROUND((C49*E49),4)) -> 0 | I49: =IF(H16="","",H16) -> 0 | AB49: =IF(Einheiten!B49<>"",Einheiten!B49,"") -> 
A50: =IF(A18="","",A18) -> Kuppeln einer Saugleitung: | C50: =D18 -> 0 | D50: =E18 ->  | E50: =IF(N18="","",N18) -> 0.3 | G50: =IF(A50="","",ROUND((C50*E50),4)) -> 0 | I50: =IF(H18="","",H18) -> 0 | AB50: =IF(Einheiten!B50<>"",Einheiten!B50,"") -> 
A51: =IF(A20="","",A20) -> Funkübung: | C51: =D20 -> 0 | D51: =E20 ->  | E51: =IF(N20="","",N20) -> 0.3 | G51: =IF(A51="","",ROUND((C51*E51),4)) -> 0 | I51: =IF(H20="","",H20) ->  | AB51: =IF(Einheiten!B51<>"",Einheiten!B51,"") -> 
A52: =IF(A22="","",A22) ->  | C52: =D22 ->  | D52: =E22 ->  | E52: =IF(N22="","",N22) ->  | G52: =IF(A52="","",ROUND((C52*E52),4)) ->  | I52: =IF(H22="","",H22) ->  | AB52: =IF(Einheiten!B52<>"",Einheiten!B52,"") -> 
A53: =IF(A24="","",A24) ->  | C53: =D24 ->  | D53: =E24 ->  | E53: =IF(N24="","",N24) ->  | G53: =IF(A53="","",ROUND((C53*E53),4)) ->  | I53: =IF(H24="","",H24) ->  | AB53: =IF(Einheiten!B53<>"",Einheiten!B53,"") -> 
AB54: =IF(Einheiten!B54<>"",Einheiten!B54,"") -> 
A55: Gesamtergebnis Leistungsvergleich: | E55: =IF(SUM(E49:E53)<>1,"Summe <> 100%","") ->  | F55: Summe: | G55: =SUM(G49:G53) -> 0 | H55: Summe: | I55: =SUM(I49:I53) -> 0 | AB55: =IF(Einheiten!B55<>"",Einheiten!B55,"") -> 
M56: =HYPERLINK("#"&ADDRESS(MATCH("*"&RIGHT(CELL("dateiname",$A$1),LEN(CELL("dateiname",$A$1))-FIND("]",CELL("dateiname",$A$1)))&"*",Beschreibung100!B:B,0)+15,1,,1,"Beschreibung100"),"Hilfe beim Ausfüllen der Tabelle? Klick mich an!") -> Hilfe beim Ausfüllen der Tabelle? Klick mich an! | AB56: =IF(Einheiten!B56<>"",Einheiten!B56,"") -> 
AB57: =IF(Einheiten!B57<>"",Einheiten!B57,"") -> 
A58: ="Version: " & AK13 -> Version: Bewertung Leistungsvergleich Vers 2025-04-05 | F58: Druck Auswertung: | H58: Druck Module: | AB58: =IF(Einheiten!B58<>"",Einheiten!B58,"") -> 
AB59: =IF(Einheiten!B59<>"",Einheiten!B59,"") -> 
A60: =HYPERLINK("#"&ADDRESS(MATCH("*"&RIGHT(CELL("dateiname",$A$1),LEN(CELL("dateiname",$A$1))-FIND("]",CELL("dateiname",$A$1)))&"*",Beschreibung100!B:B,0)+15,1,,1,"Beschreibung100"),"Hilfe beim Ausfüllen der Tabelle? Klick mich an!") -> Hilfe beim Ausfüllen der Tabelle? Klick mich an! | AB60: =IF(Einheiten!B60<>"",Einheiten!B60,"") -> 
AB61: =IF(Einheiten!B61<>"",Einheiten!B61,"") -> 
AB62: =IF(Einheiten!B62<>"",Einheiten!B62,"") -> 
A63: Kopiervorlage für eine manuelle Siegerliste: | AB63: =IF(Einheiten!B63<>"",Einheiten!B63,"") -> 
A64: Einheit | B64: Format | C64: ZE-Grad [%] | D64: Taktzeit [Sek] | AB64: =IF(Einheiten!B64<>"",Einheiten!B64,"") -> 
AB65: =IF(Einheiten!B65<>"",Einheiten!B65,"") -> 
A66: =B7 -> Musterort | B66: =IF(E9<>"","Gruppe",IF(C9<>"","Staffel","")) -> Gruppe | C66: =H5 -> 0 | D66: =H7 -> 0 | AB66: =IF(Einheiten!B66<>"",Einheiten!B66,"") -> 
AB67: =IF(Einheiten!B67<>"",Einheiten!B67,"") -> 
AB68: =IF(Einheiten!B68<>"",Einheiten!B68,"") -> 
A69: Um Übertragungsfehler zu vermeiden, kann das Ergebnis des Leistungsvergleichs | AB69: =IF(Einheiten!B69<>"",Einheiten!B69,"") -> 
A70: einer Einheit in eine manuelle (selbst erstellte) Siegerliste kopiert werden: | AB70: =IF(Einheiten!B70<>"",Einheiten!B70,"") -> 
AB71: =IF(Einheiten!B71<>"",Einheiten!B71,"") -> 
A72: Zellen A66 - D66 markieren, Rechte Maustaste, im Kontex-Menüe "Kopieren" wählen. | AB72: =IF(Einheiten!B72<>"",Einheiten!B72,"") -> 
A73: Manuelle Siegerliste aufrufen, Leere Zelle in der Spalte "Einheit" anklicken, | AB73: =IF(Einheiten!B73<>"",Einheiten!B73,"") -> 
A74: Rechte Maustaste, Inhalte Einfügen / Werte einfügen (ohne Zahlenformate!) | AB74: =IF(Einheiten!B74<>"",Einheiten!B74,"") -> 
AB75: =IF(Einheiten!B75<>"",Einheiten!B75,"") -> 
AB76: =IF(Einheiten!B76<>"",Einheiten!B76,"") -> 
AB77: =IF(Einheiten!B77<>"",Einheiten!B77,"") -> 
AB78: =IF(Einheiten!B78<>"",Einheiten!B78,"") -> 
AB79: =IF(Einheiten!B79<>"",Einheiten!B79,"") -> 
AB80: =IF(Einheiten!B80<>"",Einheiten!B80,"") -> 
AB81: =IF(Einheiten!B81<>"",Einheiten!B81,"") -> 
AB82: =IF(Einheiten!B82<>"",Einheiten!B82,"") -> 
AB83: =IF(Einheiten!B83<>"",Einheiten!B83,"") -> 
AB84: =IF(Einheiten!B84<>"",Einheiten!B84,"") -> 
AB85: =IF(Einheiten!B85<>"",Einheiten!B85,"") -> 
AB86: =IF(Einheiten!B86<>"",Einheiten!B86,"") -> 
AB87: =IF(Einheiten!B87<>"",Einheiten!B87,"") -> 
AB88: =IF(Einheiten!B88<>"",Einheiten!B88,"") -> 
AB89: =IF(Einheiten!B89<>"",Einheiten!B89,"") -> 
AB90: =IF(Einheiten!B90<>"",Einheiten!B90,"") -> 
AB91: =IF(Einheiten!B91<>"",Einheiten!B91,"") -> 
AB92: =IF(Einheiten!B92<>"",Einheiten!B92,"") -> 
AB93: =IF(Einheiten!B93<>"",Einheiten!B93,"") -> 
AB94: =IF(Einheiten!B94<>"",Einheiten!B94,"") -> 
AB95: =IF(Einheiten!B95<>"",Einheiten!B95,"") -> 
AB96: =IF(Einheiten!B96<>"",Einheiten!B96,"") -> 
AB97: =IF(Einheiten!B97<>"",Einheiten!B97,"") -> 
AB98: =IF(Einheiten!B98<>"",Einheiten!B98,"") -> 
AB99: =IF(Einheiten!B99<>"",Einheiten!B99,"") -> 
AB100: =IF(Einheiten!B100<>"",Einheiten!B100,"") -> 
AB101: =IF(Einheiten!B101<>"",Einheiten!B101,"") -> 
AB102: =IF(Einheiten!B102<>"",Einheiten!B102,"") -> 
AB103: =IF(Einheiten!B103<>"",Einheiten!B103,"") -> 
AB104: =IF(Einheiten!B104<>"",Einheiten!B104,"") -> 
AB105: =IF(Einheiten!B105<>"",Einheiten!B105,"") -> 
AB106: =IF(Einheiten!B106<>"",Einheiten!B106,"") -> 
AB107: =IF(Einheiten!B107<>"",Einheiten!B107,"") -> 
AB108: =IF(Einheiten!B108<>"",Einheiten!B108,"") -> 
AB109: =IF(Einheiten!B109<>"",Einheiten!B109,"") -> 
AB110: =IF(Einheiten!B110<>"",Einheiten!B110,"") -> 
AB111: =IF(Einheiten!B111<>"",Einheiten!B111,"") -> 
AB112: =IF(Einheiten!B112<>"",Einheiten!B112,"") -> 
AB113: =IF(Einheiten!B113<>"",Einheiten!B113,"") -> 
AB114: =IF(Einheiten!B114<>"",Einheiten!B114,"") -> 
AB115: =IF(Einheiten!B115<>"",Einheiten!B115,"") -> 
AB116: =IF(Einheiten!B116<>"",Einheiten!B116,"") -> 
AB117: =IF(Einheiten!B117<>"",Einheiten!B117,"") -> 
AB118: =IF(Einheiten!B118<>"",Einheiten!B118,"") -> 
AB119: =IF(Einheiten!B119<>"",Einheiten!B119,"") -> 
AB120: =IF(Einheiten!B120<>"",Einheiten!B120,"") -> 
AB121: =IF(Einheiten!B121<>"",Einheiten!B121,"") -> 
AB122: =IF(Einheiten!B122<>"",Einheiten!B122,"") -> 
AB123: =IF(Einheiten!B123<>"",Einheiten!B123,"") -> 
AB124: =IF(Einheiten!B124<>"",Einheiten!B124,"") -> 
AB125: =IF(Einheiten!B125<>"",Einheiten!B125,"") -> 
AB126: =IF(Einheiten!B126<>"",Einheiten!B126,"") -> 
AB127: =IF(Einheiten!B127<>"",Einheiten!B127,"") -> 
AB128: =IF(Einheiten!B128<>"",Einheiten!B128,"") -> 
AB129: =IF(Einheiten!B129<>"",Einheiten!B129,"") -> 
AB130: =IF(Einheiten!B130<>"",Einheiten!B130,"") -> 
AB131: =IF(Einheiten!B131<>"",Einheiten!B131,"") -> 
AB132: =IF(Einheiten!B132<>"",Einheiten!B132,"") -> 
AB133: =IF(Einheiten!B133<>"",Einheiten!B133,"") -> 
AB134: =IF(Einheiten!B134<>"",Einheiten!B134,"") -> 
AB135: =IF(Einheiten!B135<>"",Einheiten!B135,"") -> 
AB136: =IF(Einheiten!B136<>"",Einheiten!B136,"") -> 
AB137: =IF(Einheiten!B137<>"",Einheiten!B137,"") -> 
AB138: =IF(Einheiten!B138<>"",Einheiten!B138,"") -> 
AB139: =IF(Einheiten!B139<>"",Einheiten!B139,"") -> 
AB140: =IF(Einheiten!B140<>"",Einheiten!B140,"") -> 
AB141: =IF(Einheiten!B141<>"",Einheiten!B141,"") -> 
AB142: =IF(Einheiten!B142<>"",Einheiten!B142,"") -> 
AB143: =IF(Einheiten!B143<>"",Einheiten!B143,"") -> 
AB144: =IF(Einheiten!B144<>"",Einheiten!B144,"") -> 
AB145: =IF(Einheiten!B145<>"",Einheiten!B145,"") -> 
AB146: =IF(Einheiten!B146<>"",Einheiten!B146,"") -> 
AB147: =IF(Einheiten!B147<>"",Einheiten!B147,"") -> 
AB148: =IF(Einheiten!B148<>"",Einheiten!B148,"") -> 
AB149: =IF(Einheiten!B149<>"",Einheiten!B149,"") -> 
AB150: =IF(Einheiten!B150<>"",Einheiten!B150,"") -> 
AB151: =IF(Einheiten!B151<>"",Einheiten!B151,"") -> 
AB152: =IF(Einheiten!B152<>"",Einheiten!B152,"") -> 
AB153: =IF(Einheiten!B153<>"",Einheiten!B153,"") -> 
AB154: =IF(Einheiten!B154<>"",Einheiten!B154,"") -> 
AB155: =IF(Einheiten!B155<>"",Einheiten!B155,"") -> 
AB156: =IF(Einheiten!B156<>"",Einheiten!B156,"") -> 
AB157: =IF(Einheiten!B157<>"",Einheiten!B157,"") -> 
AB158: =IF(Einheiten!B158<>"",Einheiten!B158,"") -> 
AB159: =IF(Einheiten!B159<>"",Einheiten!B159,"") -> 
AB160: =IF(Einheiten!B160<>"",Einheiten!B160,"") -> 
AB161: =IF(Einheiten!B161<>"",Einheiten!B161,"") -> 
AB162: =IF(Einheiten!B162<>"",Einheiten!B162,"") -> 
AB163: =IF(Einheiten!B163<>"",Einheiten!B163,"") -> 
AB164: =IF(Einheiten!B164<>"",Einheiten!B164,"") -> 
AB165: =IF(Einheiten!B165<>"",Einheiten!B165,"") -> 
AB166: =IF(Einheiten!B166<>"",Einheiten!B166,"") -> 
AB167: =IF(Einheiten!B167<>"",Einheiten!B167,"") -> 
AB168: =IF(Einheiten!B168<>"",Einheiten!B168,"") -> 
AB169: =IF(Einheiten!B169<>"",Einheiten!B169,"") -> 
AB170: =IF(Einheiten!B170<>"",Einheiten!B170,"") -> 
AB171: =IF(Einheiten!B171<>"",Einheiten!B171,"") -> 
AB172: =IF(Einheiten!B172<>"",Einheiten!B172,"") -> 
AB173: =IF(Einheiten!B173<>"",Einheiten!B173,"") -> 
AB174: =IF(Einheiten!B174<>"",Einheiten!B174,"") -> 
AB175: =IF(Einheiten!B175<>"",Einheiten!B175,"") -> 
AB176: =IF(Einheiten!B176<>"",Einheiten!B176,"") -> 
AB177: =IF(Einheiten!B177<>"",Einheiten!B177,"") -> 
AB178: =IF(Einheiten!B178<>"",Einheiten!B178,"") -> 
AB179: =IF(Einheiten!B179<>"",Einheiten!B179,"") -> 
AB180: =IF(Einheiten!B180<>"",Einheiten!B180,"") -> 
AB181: =IF(Einheiten!B181<>"",Einheiten!B181,"") -> 
AB182: =IF(Einheiten!B182<>"",Einheiten!B182,"") -> 
AB183: =IF(Einheiten!B183<>"",Einheiten!B183,"") -> 
AB184: =IF(Einheiten!B184<>"",Einheiten!B184,"") -> 
AB185: =IF(Einheiten!B185<>"",Einheiten!B185,"") -> 
AB186: =IF(Einheiten!B186<>"",Einheiten!B186,"") -> 
AB187: =IF(Einheiten!B187<>"",Einheiten!B187,"") -> 
AB188: =IF(Einheiten!B188<>"",Einheiten!B188,"") -> 
AB189: =IF(Einheiten!B189<>"",Einheiten!B189,"") -> 
AB190: =IF(Einheiten!B190<>"",Einheiten!B190,"") -> 
AB191: =IF(Einheiten!B191<>"",Einheiten!B191,"") -> 
AB192: =IF(Einheiten!B192<>"",Einheiten!B192,"") -> 
AB193: =IF(Einheiten!B193<>"",Einheiten!B193,"") -> 
AB194: =IF(Einheiten!B194<>"",Einheiten!B194,"") -> 
AB195: =IF(Einheiten!B195<>"",Einheiten!B195,"") -> 
AB196: =IF(Einheiten!B196<>"",Einheiten!B196,"") -> 
AB197: =IF(Einheiten!B197<>"",Einheiten!B197,"") -> 
AB198: =IF(Einheiten!B198<>"",Einheiten!B198,"") -> 
AB199: =IF(Einheiten!B199<>"",Einheiten!B199,"") -> 
AB200: =IF(Einheiten!B200<>"",Einheiten!B200,"") -> 
... 4 more rows

Sheet Bedienung
C1: Steuerung der Auswertung zum Leistungsvergleich (nur, wenn Auswertung MIT Teilnehmerliste)
C3: Aktuelle ("Aktive") Einheit: | D3: =IF(Auswertung!E9<>"",Auswertung!B7&" (Gruppe)",Auswertung!B7&" (Staffel)") -> Musterort (Gruppe) | X3: Ausdrucke per Makro: mit/ohne Vorschau? | Y3: mit
X4: Mit/Ohne Speichern und Laden Tabelle Teilnehmer? | Y4: mit
X5: Mit/Ohne Anzeigen der Startnummer in der Tabelle Auswertung? | Y5: mit | AA5: Merker für mit/ohne Druckvorschau
AA6: mit
E87: https://support.office.com/de-de/article/digitales-signieren-eines-makroprojekts-956e9cc8-bbf6-4365-8bfa-98505ecd1c01
E88: Office 2016 / 365: Entwicklertools / Visual Basic / Extras / Digitale Signatur / Wählen
E89: … in Excel 2010, 2016, 365, ...: Datei / Optionen / Trust Center / Einstellungen für das Trust Center / Makroeinstellungen
F90: "alle Makros aktivieren (nicht empfohlen)" wählen!

Sheet Löschangriff
A1: =IF(AND(Auswertung!C9="",Auswertung!E9=""),"Noch kein Format (Gruppe/Staffel) gewählt!",IF(Auswertung!Y13="ja","Bewertungsmatrix Löschangriff","Bewertungsmatrix ist deaktiviert!")) -> Bewertungsmatrix Löschangriff | B1: Einheit: | C1: =IF(R1=1,"",IF(Auswertung!B7="","",Auswertung!B7)) -> Musterort | M1: =IF(R1=1,"Gruppe ( ) Staffel ( )",IF(Auswertung!C9<>"","Gruppe ( ) Staffel ( X )",IF(Auswertung!E9<>"","Gruppe ( X ) Staffel ( )","Gruppe ( ) Staffel ( )"))) -> Gruppe ( X ) Staffel ( ) | O1: 00:00 | Q1: 0 | R1: 0 | S1: =IF(ISERROR(Auswertung!C9),0,IF(Auswertung!C9<>"",1,0)) -> 0 | T1: 0 | U1: 0
A3: Einheitsführerin/Einheitsführer: | C3: 0.02 | D3: 0.04 | E3: 0.08 | F3: 0.12 | G3: 0.12 | H3: 0.12 | I3: UVV (50%) | J3: In Abzug % | K3: [Reserve] | L3: Grad % | M3: ZE-Grad % | N3: falsche oder fehlende Tätigkeiten
A4: Lage erkannt | B4: 0.1 | J4: =IF(C4<>"",C$3,0)+IF(D4<>"",D$3,0)+IF(E4<>"",E$3,0)+IF(F4<>"",F$3,0)+IF(G4<>"",G$3,0)+IF(H4<>"",H$3,0)+IF(I4<>"",VALUE(MID(I$3,6,3)),0)+IF(OR(AND(C4="",D4<>""),AND(D4="",E4<>""),AND(E4="",F4<>""),AND(F4="",G4<>""),AND(G4="",H4<>"")),9999,0) -> 0 | L4: =1-J4 -> 1 | M4: =SUM(L4*B4) -> 0.1
A5: Lage der Einheit korrekt mitgeteilt | B5: 0.2 | J5: =IF(C5<>"",C$3,0)+IF(D5<>"",D$3,0)+IF(E5<>"",E$3,0)+IF(F5<>"",F$3,0)+IF(G5<>"",G$3,0)+IF(H5<>"",H$3,0)+IF(I5<>"",VALUE(MID(I$3,6,3)),0)+IF(OR(AND(C5="",D5<>""),AND(D5="",E5<>""),AND(E5="",F5<>""),AND(F5="",G5<>""),AND(G5="",H5<>"")),9999,0) -> 0 | L5: 1 | M5: 0.2
A6: Einsatzbefehl "Angriffstrupp" | B6: 0.3 | J6: =IF(C6<>"",C$3,0)+IF(D6<>"",D$3,0)+IF(E6<>"",E$3,0)+IF(F6<>"",F$3,0)+IF(G6<>"",G$3,0)+IF(H6<>"",H$3,0)+IF(I6<>"",VALUE(MID(I$3,6,3)),0)+IF(OR(AND(C6="",D6<>""),AND(D6="",E6<>""),AND(E6="",F6<>""),AND(F6="",G6<>""),AND(G6="",H6<>"")),-9999,0) -> 0 | L6: 1 | M6: 0.3
A7: Einsatzbefehl "Schlauchwechsel" | B7: 0.2 | J7: =IF(C7<>"",C$3,0)+IF(D7<>"",D$3,0)+IF(E7<>"",E$3,0)+IF(F7<>"",F$3,0)+IF(G7<>"",G$3,0)+IF(H7<>"",H$3,0)+IF(I7<>"",VALUE(MID(I$3,6,3)),0)+IF(OR(AND(C7="",D7<>""),AND(D7="",E7<>""),AND(E7="",F7<>""),AND(F7="",G7<>""),AND(G7="",H7<>"")),-9999,0) -> 0 | L7: 1 | M7: 0.2
A8: Einsatzbefehl "Wiederaufnahme Brandbekämpfung" | B8: 0.15 | J8: =IF(C8<>"",C$3,0)+IF(D8<>"",D$3,0)+IF(E8<>"",E$3,0)+IF(F8<>"",F$3,0)+IF(G8<>"",G$3,0)+IF(H8<>"",H$3,0)+IF(I8<>"",VALUE(MID(I$3,6,3)),0)+IF(OR(AND(C8="",D8<>""),AND(D8="",E8<>""),AND(E8="",F8<>""),AND(F8="",G8<>""),AND(G8="",H8<>"")),-9999,0) -> 0 | L8: 1 | M8: 0.15
A9: Einsatzende ("Zum Abmarsch fertig") | B9: 0.05 | J9: =IF(C9<>"",C$3,0)+IF(D9<>"",D$3,0)+IF(E9<>"",E$3,0)+IF(F9<>"",F$3,0)+IF(G9<>"",G$3,0)+IF(H9<>"",H$3,0)+IF(I9<>"",VALUE(MID(I$3,6,3)),0)+IF(OR(AND(C9="",D9<>""),AND(D9="",E9<>""),AND(E9="",F9<>""),AND(F9="",G9<>""),AND(G9="",H9<>"")),-9999,0) -> 0 | L9: 1 | M9: 0.05
I10: Zielerreichungsgrad: | M10: =IF(O45<=K45,SUM(M4:M9),0) -> 1 | N10: =IF($O$45>K45," Gesamt-Modulzeit überschritten!","") -> 
A12: Maschinistin/Maschinist: | C12: 0.02 | D12: 0.04 | E12: 0.08 | F12: 0.12 | G12: 0.12 | H12: 0.12 | I12: UVV (50%)
A13: Absicherung der Einsatzstelle | B13: 0.4 | J13: =IF(C13<>"",C$12,0)+IF(D13<>"",D$12,0)+IF(E13<>"",E$12,0)+IF(F13<>"",F$12,0)+IF(G13<>"",G$12,0)+IF(H13<>"",H$12,0)+IF(I13<>"",VALUE(MID(I$12,6,3)),0)+IF(OR(AND(C13="",D13<>""),AND(D13="",E13<>""),AND(E13="",F13<>""),AND(F13="",G13<>""),AND(G13="",H13<>"")),9999,0) -> 0 | L13: =1-J13 -> 1 | M13: =SUM(L13*B13) -> 0.4
A14: Unterstützung der Trupps am Fahrzeug | B14: 0.2 | J14: =IF(C14<>"",C$12,0)+IF(D14<>"",D$12,0)+IF(E14<>"",E$12,0)+IF(F14<>"",F$12,0)+IF(G14<>"",G$12,0)+IF(H14<>"",H$12,0)+IF(I14<>"",VALUE(MID(I$12,6,3)),0)+IF(OR(AND(C14="",D14<>""),AND(D14="",E14<>""),AND(E14="",F14<>""),AND(F14="",G14<>""),AND(G14="",H14<>"")),9999,0) -> 0 | L14: =1-J14 -> 1 | M14: =SUM(L14*B14) -> 0.2
A15: Bedienung der Feuerlöschkreiselpumpe | B15: 0.4 | J15: =IF(C15<>"",C$12,0)+IF(D15<>"",D$12,0)+IF(E15<>"",E$12,0)+IF(F15<>"",F$12,0)+IF(G15<>"",G$12,0)+IF(H15<>"",H$12,0)+IF(I15<>"",VALUE(MID(I$12,6,3)),0)+IF(OR(AND(C15="",D15<>""),AND(D15="",E15<>""),AND(E15="",F15<>""),AND(F15="",G15<>""),AND(G15="",H15<>"")),9999,0) -> 0 | L15: =1-J15 -> 1 | M15: =SUM(L15*B15) -> 0.4
I16: Zielerreichungsgrad: | M16: =IF(O45<=K45,SUM(M13:M15),0) -> 1 | N16: =IF($O$45>K45," Gesamt-Modulzeit überschritten!","") -> 
A18: Angriffstrupp: | C18: 0.02 | D18: 0.04 | E18: 0.08 | F18: 0.12 | G18: 0.12 | H18: 0.12 | I18: UVV (50%)
A19: Korrekte Befehlswiedergabe | B19: 0.2 | J19: =IF(C19<>"",C$18,0)+IF(D19<>"",D$18,0)+IF(E19<>"",E$18,0)+IF(F19<>"",F$18,0)+IF(G19<>"",G$18,0)+IF(H19<>"",H$18,0)+IF(I19<>"",VALUE(MID(I$18,6,3)),0)+IF(OR(AND(C19="",D19<>""),AND(D19="",E19<>""),AND(E19="",F19<>""),AND(F19="",G19<>""),AND(G19="",H19<>"")),9999,0) -> 0 | L19: =1-J19 -> 1 | M19: =SUM(L19*B19) -> 0.2
A20: Vornahme des Verteilers | B20: 0.2 | J20: 0 | L20: 1 | M20: 0.2
A21: Verlegen der Schlauchleitung | B21: 0.2 | J21: 0 | L21: 1 | M21: 0.2
A22: Vornahme des 1. Strahlrohres | B22: 0.15 | J22: 0 | L22: 1 | M22: 0.15
A23: Tätigkeiten Schlauchwechsel | B23: 0.15 | J23: =IF(C23<>"",C$18,0)+IF(D23<>"",D$18,0)+IF(E23<>"",E$18,0)+IF(F23<>"",F$18,0)+IF(G23<>"",G$18,0)+IF(H23<>"",H$18,0)+IF(I23<>"",VALUE(MID(I$18,6,3)),0)+IF(OR(AND(C23="",D23<>""),AND(D23="",E23<>""),AND(E23="",F23<>""),AND(F23="",G23<>""),AND(G23="",H23<>"")),9999,0) -> 0 | L23: =1-J23 -> 1 | M23: =SUM(L23*B23) -> 0.15
A24: Wiederaufnahme Brandbekämpfung | B24: 0.1 | J24: 0 | L24: 1 | M24: 0.1
A25: Schlauchwechselzeittakt: | C25: Sek. | I25: Zielerreichungsgrad: | M25: =IF(O45<=K45,SUM(M19:M24),0) -> 1 | N25: =IF($O$45>K45," Gesamt-Modulzeit überschritten!","") -> 
A27: Wassertrupp: | C27: 0.02 | D27: 0.04 | E27: 0.08 | F27: 0.12 | G27: 0.12 | H27: 0.12 | I27: UVV (50%)
A28: Herrichten der Wasserentnahmestelle | B28: 0.4 | J28: =IF(C28<>"",C$27,0)+IF(D28<>"",D$27,0)+IF(E28<>"",E$27,0)+IF(F28<>"",F$27,0)+IF(G28<>"",G$27,0)+IF(H28<>"",H$27,0)+IF(I28<>"",VALUE(MID(I$27,6,3)),0)+IF(OR(AND(C28="",D28<>""),AND(D28="",E28<>""),AND(E28="",F28<>""),AND(F28="",G28<>""),AND(G28="",H28<>"")),9999,0) -> 0 | L28: =1-J28 -> 1 | M28: =SUM(L28*B28) -> 0.4
A29: Verlegen der Schlauchleitung | B29: 0.2 | J29: =IF(C29<>"",C$27,0)+IF(D29<>"",D$27,0)+IF(E29<>"",E$27,0)+IF(F29<>"",F$27,0)+IF(G29<>"",G$27,0)+IF(H29<>"",H$27,0)+IF(I29<>"",VALUE(MID(I$27,6,3)),0)+IF(OR(AND(C29="",D29<>""),AND(D29="",E29<>""),AND(E29="",F29<>""),AND(F29="",G29<>""),AND(G29="",H29<>"")),9999,0) -> 0 | L29: =1-J29 -> 1 | M29: =SUM(L29*B29) -> 0.2
A30: Verkehrssicherung im Bereich der WE | B30: 0.2 | J30: =IF(C30<>"",C$27,0)+IF(D30<>"",D$27,0)+IF(E30<>"",E$27,0)+IF(F30<>"",F$27,0)+IF(G30<>"",G$27,0)+IF(H30<>"",H$27,0)+IF(I30<>"",VALUE(MID(I$27,6,3)),0)+IF(OR(AND(C30="",D30<>""),AND(D30="",E30<>""),AND(E30="",F30<>""),AND(F30="",G30<>""),AND(G30="",H30<>"")),9999,0) -> 0 | L30: =1-J30 -> 1 | M30: =SUM(L30*B30) -> 0.2
A31: Meldung Einsatzbereitschaft bei der Einheitsführung | B31: 0.05 | J31: =IF(C31<>"",C$27,0)+IF(D31<>"",D$27,0)+IF(E31<>"",E$27,0)+IF(F31<>"",F$27,0)+IF(G31<>"",G$27,0)+IF(H31<>"",H$27,0)+IF(I31<>"",VALUE(MID(I$27,6,3)),0)+IF(OR(AND(C31="",D31<>""),AND(D31="",E31<>""),AND(E31="",F31<>""),AND(F31="",G31<>""),AND(G31="",H31<>"")),9999,0) -> 0 | L31: =1-J31 -> 1 | M31: =SUM(L31*B31) -> 0.05
A32: Tätigkeiten Schlauchwechsel | B32: 0.15 | J32: =IF(C32<>"",C$27,0)+IF(D32<>"",D$27,0)+IF(E32<>"",E$27,0)+IF(F32<>"",F$27,0)+IF(G32<>"",G$27,0)+IF(H32<>"",H$27,0)+IF(I32<>"",VALUE(MID(I$27,6,3)),0)+IF(OR(AND(C32="",D32<>""),AND(D32="",E32<>""),AND(E32="",F32<>""),AND(F32="",G32<>""),AND(G32="",H32<>"")),9999,0) -> 0 | L32: =1-J32 -> 1 | M32: =SUM(L32*B32) -> 0.15
A33: Schlauchwechselzeittakt: | C33: Sek. | I33: Zielerreichungsgrad: | M33: =IF(O45<=K45,SUM(M28:M32),0) -> 1 | N33: =IF($O$45>K45," Gesamt-Modulzeit überschritten!","") -> 
A35: Schlauchtrupp: | C35: 0.02 | D35: 0.04 | E35: 0.08 | F35: 0.12 | G35: 0.12 | H35: 0.12 | I35: UVV (50%)
A36: Legt ausreichend Schlauchmaterial am Verteiler bereit | B36: 0.35 | J36: =IF(C36<>"",C$35,0)+IF(D36<>"",D$35,0)+IF(E36<>"",E$35,0)+IF(F36<>"",F$35,0)+IF(G36<>"",G$35,0)+IF(H36<>"",H$35,0)+IF(I36<>"",VALUE(MID(I$35,6,3)),0)+IF(OR(AND(C36="",D36<>""),AND(D36="",E36<>""),AND(E36="",F36<>""),AND(F36="",G36<>""),AND(G36="",H36<>""),AND((S1=1),(OR(C36<>"",D36<>"",E36<>"",F36<>"",G36<>"",H36<>"",I36<>"")))),9999,0) -> 0 | L36: =1-J36 -> 1 | M36: =SUM(L36*B36) -> 0.35
A37: Bedienung Verteiler | B37: 0.1 | J37: =IF(C37<>"",C$35,0)+IF(D37<>"",D$35,0)+IF(E37<>"",E$35,0)+IF(F37<>"",F$35,0)+IF(G37<>"",G$35,0)+IF(H37<>"",H$35,0)+IF(I37<>"",VALUE(MID(I$35,6,3)),0)+IF(OR(AND(C37="",D37<>""),AND(D37="",E37<>""),AND(E37="",F37<>""),AND(F37="",G37<>""),AND(G37="",H37<>""),AND((S1=1),(OR(C37<>"",D37<>"",E37<>"",F37<>"",G37<>"",H37<>"",I37<>"")))),9999,0) -> 0 | L37: =1-J37 -> 1 | M37: =SUM(L37*B37) -> 0.1
A38: Unterstützt die Trupps beim Verlegen der Schlauchleitungen | B38: 0.4 | J38: =IF(C38<>"",C$35,0)+IF(D38<>"",D$35,0)+IF(E38<>"",E$35,0)+IF(F38<>"",F$35,0)+IF(G38<>"",G$35,0)+IF(H38<>"",H$35,0)+IF(I38<>"",VALUE(MID(I$35,6,3)),0)+IF(OR(AND(C38="",D38<>""),AND(D38="",E38<>""),AND(E38="",F38<>""),AND(F38="",G38<>""),AND(G38="",H38<>""),AND((S1=1),(OR(C38<>"",D38<>"",E38<>"",F38<>"",G38<>"",H38<>"",I38<>"")))),9999,0) -> 0 | L38: =1-J38 -> 1 | M38: =SUM(L38*B38) -> 0.4
A39: Tätigkeiten Schlauchwechsel | B39: 0.15 | J39: =IF(C39<>"",C$35,0)+IF(D39<>"",D$35,0)+IF(E39<>"",E$35,0)+IF(F39<>"",F$35,0)+IF(G39<>"",G$35,0)+IF(H39<>"",H$35,0)+IF(I39<>"",VALUE(MID(I$35,6,3)),0)+IF(OR(AND(C39="",D39<>""),AND(D39="",E39<>""),AND(E39="",F39<>""),AND(F39="",G39<>""),AND(G39="",H39<>""),AND((S1=1),(OR(C39<>"",D39<>"",E39<>"",F39<>"",G39<>"",H39<>"",I39<>"")))),9999,0) -> 0 | L39: =1-J39 -> 1 | M39: =SUM(L39*B39) -> 0.15
A40: Schlauchwechselzeittakt: | C40: Sek. | I40: Zielerreichungsgrad: | M40: =IF(AND(S1=1,B40<>""),-9999,IF(O45<=K45,SUM(M36:M39),0)) -> 1 | N40: =IF(AND( R1=0,S1=1),"Einheit = Staffel, kein Schlauchtrupp",IF($O$45>K45," Gesamt-Modulzeit überschritten!","")) -> 
A42: Melderin/Melder: | C42: 0.02 | D42: 0.04 | E42: 0.08 | F42: 0.12 | G42: 0.12 | H42: 0.12 | I42: UVV (50%)
A43: Korrekte Befehlswiedergabe/Tätigkeiten | B43: 1 | J43: =IF(C43<>"",C$3,0)+IF(D43<>"",D$3,0)+IF(E43<>"",E$3,0)+IF(F43<>"",F$3,0)+IF(G43<>"",G$3,0)+IF(H43<>"",H$3,0)+IF(I43<>"",VALUE(MID(I$3,6,3)),0)+IF(OR(AND(C43="",D43<>""),AND(D43="",E43<>""),AND(E43="",F43<>""),AND(F43="",G43<>""),AND(G43="",H43<>""),AND((S1=1),(OR(C43<>"",D43<>"",E43<>"",F43<>"",G43<>"",H43<>"",I43<>"")))),9999,0) -> 0 | L43: =1-J43 -> 1 | M43: =SUM(L43*B43) -> 1
I44: Zielerreichungsgrad: | M44: =IF(O45<=K45,SUM(M43),0) -> 1 | N44: =IF(AND(R1=0,S1=1),"Einheit = Staffel, kein Melder",IF($O$45>K45," Gesamt-Modulzeit überschritten!","")) -> 
A45: Gesamtübung nicht erfüllt! Zeitüberschreitung | B45: 1 | C45: =" (max. Modulzeit = " & K45 & " Sek.)" -> (max. Modulzeit = 270 Sek.) | I45: =IF(O45>K45,"x","") ->  | J45: max: | K45: =Auswertung!AW2 -> 270 | N45: Gesamtzeit [Sek.]:
A47: =IF(Auswertung!Y13="ja","","Dieses Modul ist deaktiviert. ") ->  | H47: 0 | I47: =TEXT(O45,"000,00") -> 000,00
A48: =IF(AND(Auswertung!C9="",Auswertung!E9=""),"Format (Gruppe/Staffel) noch nicht gewählt!",IF(Auswertung!Y13="ja","","Siehe Tabelle 'Auswertung' Zellen M16 - M24!")) -> 
A49: =IF(Auswertung!Y13="ja","","Die Tabelle kann ausgefüllt werden, das Ergebnis wird aber in der Auswertung nicht berücksichtigt!") -> 
A54: =HYPERLINK("#"&ADDRESS(MATCH("*"&RIGHT(CELL("dateiname",$A$1),LEN(CELL("dateiname",$A$1))-FIND("]",CELL("dateiname",$A$1)))&"*",Beschreibung100!B:B,0)+15,1,,1,"Beschreibung100"),"Hilfe beim Ausfüllen der Tabelle? Klick mich an!") -> Hilfe beim Ausfüllen der Tabelle? Klick mich an!

Sheet Saugleitung
A1: =IF(Auswertung!Y6="ja","Bewertungsmatrix"&CHAR(10)&"Kuppeln einer Saugleitung","Bewertungsmatrix"&CHAR(10)&"ist deaktiviert!") -> Bewertungsmatrix Kuppeln einer Saugleitung | B1: Einheit: | C1: =IF(R1=1,"",IF(Auswertung!B7="","",Auswertung!B7)) -> Musterort | M1: =IF(R1=1,"Gruppe ( ) Staffel ( )",IF(Auswertung!C9<>"","Gruppe ( ) Staffel ( X )",IF(Auswertung!E9<>"","Gruppe ( X ) Staffel ( )","Gruppe ( ) Staffel ( )"))) -> Gruppe ( X ) Staffel ( ) | O1: 00:00 | Q1: 1 | R1: 0 | U1: 0
C3: 0.02 | D3: 0.04 | E3: 0.08 | F3: 0.12 | G3: 0.12 | H3: 0.12 | I3: UVV (50%) | J3: In Abzug % | K3: [Reserve] | L3: Grad % | M3: ZE-Grad % | N3: falsche oder fehlende Tätigkeiten
A4: Transport der Saugschläuche | B4: 0.1 | J4: =IF(C4<>"",C$3,0)+IF(D4<>"",D$3,0)+IF(E4<>"",E$3,0)+IF(F4<>"",F$3,0)+IF(G4<>"",G$3,0)+IF(H4<>"",H$3,0)+IF(I4<>"",VALUE(MID(I$3,6,3)),0)+IF(OR(AND(C4="",D4<>""),AND(D4="",E4<>""),AND(E4="",F4<>""),AND(F4="",G4<>""),AND(G4="",H4<>"")),9999,0) -> 0 | L4: =1-J4 -> 1 | M4: =L4*B4 -> 0.1
A5: Kuppeln der Saugschläuche | B5: 0.15 | J5: 0 | L5: 1 | M5: 0.15
A6: Beleinung der Saugschläuche | B6: 0.15 | J6: 0 | L6: 1 | M6: 0.15
A7: Kommandos | B7: 0.1 | J7: 0 | L7: 1 | M7: 0.1
A8: Zeittakte: 50/60/70/80/90 | B8: 0.3 | C8: =IF($O$17>50,"x","") ->  | D8: =IF($O$17>60,"x","") ->  | E8: =IF($O$17>70,"x","") ->  | F8: =IF($O$17>80,"x","") ->  | G8: =IF($O$17>90,"x","") ->  | J8: 0 | L8: 1 | M8: 0.3
A9: Zeitnahmeeinrichtung zu spät / zu früh | B9: 0.2 | J9: 0 | L9: 1 | M9: 0.2
A10: (der Modulzeit werden je 20 Strafsekunden hinzugerechnet)
I12: Zielerreichungsgrad: | M12: =IF(I15<>"",0,IF(O17<=K13,SUM(M4:M9),0)) -> 1 | N12: =IF($O$17>K13," Gesamt-Modulzeit überschritten!",IF(I15<>""," Saugleitung nicht funktionsfähig!","")) -> 
A13: Gesamtübung nicht erfüllt: Zeitüberschreitung | B13: 1 | C13: =" (max. Modulzeit = " & K13 & " Sek.)" -> (max. Modulzeit = 180 Sek.) | I13: =IF(O17>K13,"x","") ->  | J13: max: | K13: =Auswertung!AW3 -> 180 | L13: Sek. | N13: Modulzeit [Sek.]:
A15: Gesamtübung nicht erfüllt: Saugleitung nicht funktionsfähig | N15: Strafsekunden [Sek.]: | O15: =IF(C9<>"",20,0)+IF(D9<>"",20,0) -> 0
N17: Gesamtzeit [Sek.]: | O17: =O13+O15 -> 0
A22: =IF(Auswertung!Y6="ja","","Dieses Modul ist deaktiviert. ") -> 
A23: =IF(Auswertung!Y6="ja","","Siehe Tabelle 'Auswertung' Zellen M16 - M24!") ->  | H23: 0 | I23: =TEXT(O13,"000,00") -> 000,00
A24: =IF(Auswertung!Y6="ja","","Die Tabelle kann ausgefüllt werden, das Ergebnis wird aber in der Auswertung nicht berücksichtigt!") -> 
A27: =HYPERLINK("#"&ADDRESS(MATCH("*"&RIGHT(CELL("dateiname",$A$1),LEN(CELL("dateiname",$A$1))-FIND("]",CELL("dateiname",$A$1)))&"*",Beschreibung100!B:B,0)+15,1,,1,"Beschreibung100"),"Hilfe beim Ausfüllen der Tabelle? Klick mich an!") -> Hilfe beim Ausfüllen der Tabelle? Klick mich an!

Sheet Fahrübung
A1: =IF(Auswertung!Y9="ja","Bewertungsmatrix"&CHAR(10)&"Fahrübung","Bewertungsmatrix"&CHAR(10)&"ist deaktiviert!") -> Bewertungsmatrix ist deaktiviert! | B1: Einheit: | C1: =IF(R1=1,"",IF(Auswertung!B7="","",Auswertung!B7)) -> Musterort | M1: =IF(R1=1,"Gruppe ( ) Staffel ( )",IF(Auswertung!C9<>"","Gruppe ( ) Staffel ( X )",IF(Auswertung!E9<>"","Gruppe ( X ) Staffel ( )","Gruppe ( ) Staffel ( )"))) -> Gruppe ( X ) Staffel ( ) | O1: 00:00 | Q1: 0 | R1: 0 | U1: 0
C3: 0.02 | D3: 0.04 | E3: 0.08 | F3: 0.12 | G3: 0.12 | H3: 0.12 | I3: UVV (50%) | J3: In Abzug % | K3: [Reserve] | L3: Grad % | M3: ZE-Grad % | N3: falsche oder fehlende Tätigkeiten
A4: Fahrübung 1 (Schlauchbrücken) | B4: 0.2 | J4: =IF(C4<>"",C$3,0)+IF(D4<>"",D$3,0)+IF(E4<>"",E$3,0)+IF(F4<>"",F$3,0)+IF(G4<>"",G$3,0)+IF(H4<>"",H$3,0)+IF(I4<>"",VALUE(MID(I$3,6,3)),0)+IF(OR(AND(C4="",D4<>""),AND(D4="",E4<>""),AND(E4="",F4<>""),AND(F4="",G4<>""),AND(G4="",H4<>"")),9999,0) -> 0 | L4: =1-J4 -> 1 | M4: =L4*B4 -> 0.2
A5: Fahrübung 2 (Durchfahren Engstelle) | B5: 0.25 | J5: =IF(C5<>"",C$3,0)+IF(D5<>"",D$3,0)+IF(E5<>"",E$3,0)+IF(F5<>"",F$3,0)+IF(G5<>"",G$3,0)+IF(H5<>"",H$3,0)+IF(I5<>"",VALUE(MID(I$3,6,3)),0)+IF(OR(AND(C5="",D5<>""),AND(D5="",E5<>""),AND(E5="",F5<>""),AND(F5="",G5<>""),AND(G5="",H5<>"")),9999,0) -> 0 | L5: 1 | M5: 0.25
A6: Fahrübung 3 (Bremsübung) | B6: 0.2 | J6: =IF(C6<>"",C$3,0)+IF(D6<>"",D$3,0)+IF(E6<>"",E$3,0)+IF(F6<>"",F$3,0)+IF(G6<>"",G$3,0)+IF(H6<>"",H$3,0)+IF(I6<>"",VALUE(MID(I$3,6,3)),0)+IF(OR(AND(C6="",D6<>""),AND(D6="",E6<>""),AND(E6="",F6<>""),AND(F6="",G6<>""),AND(G6="",H6<>"")),9999,0) -> 0 | L6: 1 | M6: 0.2
A7: Fahrübung 4 (Rückwärts Einparken) | B7: 0.2 | J7: =IF(C7<>"",C$3,0)+IF(D7<>"",D$3,0)+IF(E7<>"",E$3,0)+IF(F7<>"",F$3,0)+IF(G7<>"",G$3,0)+IF(H7<>"",H$3,0)+IF(I7<>"",VALUE(MID(I$3,6,3)),0)+IF(OR(AND(C7="",D7<>""),AND(D7="",E7<>""),AND(E7="",F7<>""),AND(F7="",G7<>""),AND(G7="",H7<>"")),9999,0) -> 0 | L7: 1 | M7: 0.2
A8: Fahrübung 4 (Abstand: < 20= 12%, >30/40/50/…/90) | B8: 0.1 | C8: =IF(OR(D12<>"",E12<>"",F12<>"",G12<>"",H12<>"",I12<>"",M12<>""),"x","") ->  | D8: =IF(OR(E12<>"",F12<>"",G12<>"",H12<>"",I12<>"",M12<>""),"x","") ->  | E8: =IF(OR(F12<>"",G12<>"",H12<>"",I12<>"",M12<>""),"x","") ->  | F8: =IF(OR(G12<>"",H12<>"",I12<>"",M12<>""),"x","") ->  | G8: =IF(OR(H12<>"",I12<>"",M12<>""),"x","") ->  | H8: =IF(OR(I12<>"",M12<>"",B12<>""),"x","") ->  | I8: =IF(M12<>"","x","") ->  | J8: =IF(C8<>"",C$3,0)+IF(D8<>"",D$3,0)+IF(E8<>"",E$3,0)+IF(F8<>"",F$3,0)+IF(G8<>"",G$3,0)+IF(H8<>"",H$3,0)+IF(I8<>"",VALUE(MID(I$3,6,3)),0)+IF(OR(AND(C8="",D8<>""),AND(D8="",E8<>""),AND(E8="",F8<>""),AND(F8="",G8<>"")),9999,0)+IF(LEN(B12&C12&D12&E12&F12&G12&H12&I12&M12)>1,9999,0)+IF(AND(O14 <>"",LEN(B12&C12&D12&E12&F12&G12&H12&I12&M12)=0),9999,0) -> 0 | L8: 1 | M8: 0.1
A9: Sicherungsposten | B9: 0.05 | J9: =IF(C9<>"",C$3,0)+IF(D9<>"",D$3,0)+IF(E9<>"",E$3,0)+IF(F9<>"",F$3,0)+IF(G9<>"",G$3,0)+IF(H9<>"",H$3,0)+IF(I9<>"",VALUE(MID(I$3,6,3)),0)+IF(OR(AND(C9="",D9<>""),AND(D9="",E9<>""),AND(E9="",F9<>""),AND(F9="",G9<>""),AND(G9="",H9<>"")),9999,0) -> 0 | L9: 1 | M9: 0.05
A11: Abstand [cm] --> Abzug ZE-Grad | B11: <20 12% | C11: 20-30 0% | D11: >30 2% | E11: >40 6% | F11: >50 14% | G11: >60 26% | H11: >70 38% | I11: >80 50% | M11: >90 100%
A12: Abstand "Rückwärts Einparken": (nur 1 Kreuz!) | N12: =IF(LEN(B12&C12&D12&E12&F12&G12&H12&I12&M12)>0,"",IF($O$14="","","Abstand 'Rückwärts einparken' fehlt!")) -> 
I13: Zielerreichungsgrad: | M13: =IF(O14>K14,0,SUM(M4:M9)) -> 1 | N13: =IF($O$14>K14," Gesamt-Modulzeit überschritten!","") -> 
A14: Gesamtübung nicht erfüllt! Zeitüberschreitung | B14: 1 | C14: =" (max. Modulzeit = " & K14 & " Sek.)" -> (max. Modulzeit = 180 Sek.) | I14: =IF(O14>K14,"x","") ->  | J14: max: | K14: =Auswertung!AW4 -> 180 | L14: Sek. | N14: Gesamtzeit [Sek]:
A22: =IF(Auswertung!Y9="ja","","Dieses Modul ist deaktiviert. ") -> Dieses Modul ist deaktiviert.
A23: =IF(Auswertung!Y9="ja","","Siehe Tabelle 'Auswertung' Zellen M16 - M24!") -> Siehe Tabelle 'Auswertung' Zellen M16 - M24! | H23: 0 | I23: =TEXT(O14,"000,00") -> 000,00
A24: =IF(Auswertung!Y9="ja","","Die Tabelle kann ausgefüllt werden, das Ergebnis wird aber in der Auswertung nicht berücksichtigt!") -> Die Tabelle kann ausgefüllt werden, das Ergebnis wird aber in der Auswertung nicht berücksichtigt!
A27: =HYPERLINK("#"&ADDRESS(MATCH("*"&RIGHT(CELL("dateiname",$A$1),LEN(CELL("dateiname",$A$1))-FIND("]",CELL("dateiname",$A$1)))&"*",Beschreibung100!B:B,0)+15,1,,1,"Beschreibung100"),"Hilfe beim Ausfüllen der Tabelle? Klick mich an!") -> Hilfe beim Ausfüllen der Tabelle? Klick mich an!

Sheet Atemschutz
A1: =IF(Auswertung!Y16="ja","Bewertungsmatrix"&CHAR(10)&"Atemschutz","Bewertungsmatrix"&CHAR(10)&"ist deaktiviert!") -> Bewertungsmatrix ist deaktiviert! | B1: Einheit: | C1: =IF(R1=1,"",IF(Auswertung!B7="","",Auswertung!B7)) -> Musterort | M1: =IF(R1=1,"Gruppe ( ) Staffel ( )",IF(Auswertung!C9<>"","Gruppe ( ) Staffel ( X )",IF(Auswertung!E9<>"","Gruppe ( X ) Staffel ( )","Gruppe ( ) Staffel ( )"))) -> Gruppe ( X ) Staffel ( ) | O1: 00:00 | Q1: 0 | R1: 0 | U1: 0
C3: 0.02 | D3: 0.04 | E3: 0.08 | F3: 0.12 | G3: 0.12 | H3: 0.12 | I3: UVV (50%) | J3: In Abzug % | K3: [Reserve] | L3: Grad % | M3: ZE-Grad % | N3: falsche oder fehlende Tätigkeiten
A4: Atemschutz 1 (Kurzprüfung Atemschutzgeräte) | B4: 0.2 | J4: =IF(C4<>"",C$3,0)+IF(D4<>"",D$3,0)+IF(E4<>"",E$3,0)+IF(F4<>"",F$3,0)+IF(G4<>"",G$3,0)+IF(H4<>"",H$3,0)+IF(I4<>"",VALUE(MID(I$3,6,3)),0)+IF(OR(AND(C4="",D4<>""),AND(D4="",E4<>""),AND(E4="",F4<>""),AND(F4="",G4<>""),AND(G4="",H4<>"")),9999,0) -> 0 | L4: =1-J4 -> 1 | M4: =L4*B4 -> 0.2
A5: Atemschutz 2 (Anlegen AS-Gerät+Atemanschluss) | B5: 0.1 | J5: 0 | L5: 1 | M5: 0.1
A6: Atemschutz 3 (Anlegen der PSA) | B6: 0.1 | J6: 0 | L6: 1 | M6: 0.1
A7: Atemschutz 4 (Meldungen bei AS-Überwachung) | B7: 0.1 | J7: 0 | L7: 1 | M7: 0.1
A8: Atemschutz 5 (Belastungsübung) | B8: 0.2 | J8: 0 | L8: 1 | M8: 0.2
A9: Atemschutz 6 (Kraftkoordinationswerfen) | B9: 0.2 | J9: 0 | L9: 1 | M9: 0.2
A10: Zeitnahmeeinrichtung zu spät / zu früh | B10: 0.1 | J10: =IF(C10<>"",C$3,0)+IF(D10<>"",D$3,0)+IF(E10<>"",E$3,0)+IF(F10<>"",F$3,0)+IF(G10<>"",G$3,0)+IF(H10<>"",H$3,0)+IF(I10<>"",VALUE(MID(I$3,6,3)),0)+IF(OR(AND(C10="",D10<>""),AND(D10="",E10<>""),AND(E10="",F10<>""),AND(F10="",G10<>""),AND(G10="",H10<>"")),9999,0) -> 0 | L10: =1-J10 -> 1 | M10: 0.1
A11: (dem Zeittakt werden je 20 Strafsekunden hinzugerechnet)
I12: Zielerreichungsgrad: | M12: =IF(I15<>"",0,IF(O17<=K13,SUM(M4:M10),0)) -> 1 | N12: =IF(O17>K13," Gesamt-Modulzeit überschritten!","") -> 
A13: Gesamtübung nicht erfüllt: Zeitüberschreitung | B13: 1 | C13: =" (max. Modulzeit = " & K13 & " Sek.)" -> (max. Modulzeit = 220 Sek.) | I13: =IF(O17>K13,"x","") ->  | J13: max: | K13: =Auswertung!AW5 -> 220 | L13: Sek.
A15: Zeittakt "Belastungsübung" | B15: [Sek.]:
A17: Strafsekunden (Zeitnahme) | B17: [Sek.]: | C17: =IF(C10<>"",20,0)+IF(D10<>"",20,0) -> 0 | N17: Modulzeit [Sek.]:
A19: Zeittakt Modul: | B19: [Sek.]: | C19: =C15+C17 -> 0
A22: =IF(Auswertung!Y16="ja","","Dieses Modul ist deaktiviert. ") -> Dieses Modul ist deaktiviert. | H22: 0 | I22: =TEXT(C15,"000,00") -> 000,00
A23: =IF(Auswertung!Y16="ja","","Siehe Tabelle 'Auswertung' Zellen M16 - M24!") -> Siehe Tabelle 'Auswertung' Zellen M16 - M24! | H23: 0 | I23: =TEXT(O17,"000,00") -> 000,00
A24: =IF(Auswertung!Y16="ja","","Die Tabelle kann ausgefüllt werden, das Ergebnis wird aber in der Auswertung nicht berücksichtigt!") -> Die Tabelle kann ausgefüllt werden, das Ergebnis wird aber in der Auswertung nicht berücksichtigt!
A30: =HYPERLINK("#"&ADDRESS(MATCH("*"&RIGHT(CELL("dateiname",$A$1),LEN(CELL("dateiname",$A$1))-FIND("]",CELL("dateiname",$A$1)))&"*",Beschreibung100!B:B,0)+15,1,,1,"Beschreibung100"),"Hilfe beim Ausfüllen der Tabelle? Klick mich an!") -> Hilfe beim Ausfüllen der Tabelle? Klick mich an!

Sheet Funkübung
A1: =IF(Auswertung!Y20="ja","Bewertungsmatrix"&CHAR(10)&"Funkübung","Bewertungsmatrix"&CHAR(10)&"ist deaktiviert!") -> Bewertungsmatrix Funkübung | B1: Einheit: | C1: =IF(R1=1,"",IF(Auswertung!B7="","",Auswertung!B7)) -> Musterort | M1: =IF(R1=1,"Gruppe ( ) Staffel ( )",IF(Auswertung!C9<>"","Gruppe ( ) Staffel ( X )",IF(Auswertung!E9<>"","Gruppe ( X ) Staffel ( )","Gruppe ( ) Staffel ( )"))) -> Gruppe ( X ) Staffel ( ) | O1: 00:00 | Q1: 0 | R1: 0 | U1: 0
C3: 0.02 | D3: 0.04 | E3: 0.08 | F3: 0.12 | G3: 0.12 | H3: 0.12 | I3: UVV (50%) | J3: In Abzug % | K3: [Reserve] | L3: Grad % | M3: ZE-Grad % | N3: falsche oder fehlende Tätigkeiten
A4: Funkübung 1 (Entgegennahme Nachricht) | B4: 0.1 | J4: =IF(C4<>"",C$3,0)+IF(D4<>"",D$3,0)+IF(E4<>"",E$3,0)+IF(F4<>"",F$3,0)+IF(G4<>"",G$3,0)+IF(H4<>"",H$3,0)+IF(I4<>"",VALUE(MID(I$3,6,3)),0)+IF(OR(AND(C4="",D4<>""),AND(D4="",E4<>""),AND(E4="",F4<>""),AND(F4="",G4<>""),AND(G4="",H4<>"")),9999,0) -> 0 | L4: =1-J4 -> 1 | M4: =L4*B4 -> 0.1
A5: Funkübung 2 (Koordinatenbestimmung) | B5: 0.2 | J5: 0 | L5: 1 | M5: 0.2
A6: Funkübung 3 (Wechsel HRT in 2. Gruppe TMO) | B6: 0.25 | J6: 0 | L6: 1 | M6: 0.25
A7: Funkübung 4 (Absetzen Nachricht TMO) | B7: 0.1 | J7: 0 | L7: 1 | M7: 0.1
A8: Funkübung 5 (Wechsel HRT in DMO) | B8: 0.25 | J8: 0 | L8: 1 | M8: 0.25
A9: Funkübung 6 (Absetzen einer Meldung) | B9: 0.1 | J9: 0 | L9: 1 | M9: 0.1
I13: Zielerreichungsgrad: | M13: =IF(OR(O14>K14,N11<>""),0,SUM(M4:M9)) -> 1 | N13: =IF($O$14>K14," Gesamt-Modulzeit überschritten!","") -> 
A14: Gesamtübung nicht erfüllt! Zeitüberschreitung | B14: 1 | C14: =" (max. Modulzeit = " & K14 & " Sek.)" -> (max. Modulzeit = 420 Sek.) | I14: =IF(O14>K14,"x","") ->  | J14: max: | K14: =Auswertung!AW6 -> 420 | L14: Sek. | N14: Gesamtzeit [Sek]:
A22: =IF(Auswertung!Y20="ja","","Dieses Modul ist deaktiviert. ") -> 
A23: =IF(Auswertung!Y20="ja","","Siehe Tabelle 'Auswertung' Zellen M16 - M24!") ->  | H23: 0 | I23: =TEXT(O14,"000,00") -> 000,00
A24: =IF(Auswertung!Y20="ja","","Die Tabelle kann ausgefüllt werden, das Ergebnis wird aber in der Auswertung nicht berücksichtigt!") -> 
A27: =HYPERLINK("#"&ADDRESS(MATCH("*"&RIGHT(CELL("dateiname",$A$1),LEN(CELL("dateiname",$A$1))-FIND("]",CELL("dateiname",$A$1)))&"*",Beschreibung100!B:B,0)+15,1,,1,"Beschreibung100"),"Hilfe beim Ausfüllen der Tabelle? Klick mich an!") -> Hilfe beim Ausfüllen der Tabelle? Klick mich an!

Sheet Leitereinsatz
A1: =IF(Auswertung!Y20="ja","Bewertungsmatrix"&CHAR(10)&"Leitereinsatz","Bewertungsmatrix"&CHAR(10)&"ist deaktiviert!") -> Bewertungsmatrix Leitereinsatz | B1: Einheit: | C1: =IF(R1=1,"",IF(Auswertung!B7="","",Auswertung!B7)) -> Musterort | M1: =IF(R1=1,"Gruppe ( ) Staffel ( )",IF(Auswertung!C9<>"","Gruppe ( ) Staffel ( X )",IF(Auswertung!E9<>"","Gruppe ( X ) Staffel ( )","Gruppe ( ) Staffel ( )"))) -> Gruppe ( X ) Staffel ( ) | Q1: 0 | R1: 0 | U1: 0
C3: 0.02 | D3: 0.04 | E3: 0.08 | F3: 0.12 | G3: 0.12 | H3: 0.12 | I3: UVV (50%) | J3: In Abzug % | K3: [Reserve] | L3: Grad % | M3: ZE-Grad % | N3: falsche oder fehlende Tätigkeiten
A4: Befehl Einheitsführer zur Vornahme der Leiter | B4: 0.05 | J4: =IF(C4<>"",C$3,0)+IF(D4<>"",D$3,0)+IF(E4<>"",E$3,0)+IF(F4<>"",F$3,0)+IF(G4<>"",G$3,0)+IF(H4<>"",H$3,0)+IF(I4<>"",VALUE(MID(I$3,6,3)),0)+IF(OR(AND(C4="",D4<>""),AND(D4="",E4<>""),AND(E4="",F4<>""),AND(F4="",G4<>""),AND(G4="",H4<>"")),9999,0) -> 0 | L4: =1-J4 -> 1 | M4: =L4*B4 -> 0.05
A5: Tragen der Leiter zur Anleiterstelle | B5: 0.1 | J5: 0 | L5: 1 | M5: 0.1
A6: Aufstellen der Leiter | B6: 0.45 | J6: 0 | L6: 1 | M6: 0.45
A7: Aufstieg Leiter | B7: 0.1 | J7: 0 | L7: 1 | M7: 0.1
A8: Durchführung Auftrag | B8: 0.3 | J8: 0 | L8: 1 | M8: 0.3
I13: Zielerreichungsgrad: | M13: =IF(OR(O14>K14,N11<>""),0,SUM(M4:M9)) -> 1 | N13: =IF($O$14>K14," Gesamt-Modulzeit überschritten!","") -> 
A14: Gesamtübung nicht erfüllt! Zeitüberschreitung | B14: 1 | C14: =" (max. Modulzeit = " & K14 & " Sek.)" -> (max. Modulzeit = 270 Sek.) | I14: =IF(O14>K14,"x","") ->  | J14: max: | K14: =Auswertung!AW7 -> 270 | L14: Sek. | N14: Gesamtzeit [Sek]:
A22: =IF(Auswertung!Y20="ja","","Dieses Modul ist deaktiviert. ") -> 
A23: =IF(Auswertung!Y20="ja","","Siehe Tabelle 'Auswertung' Zellen M16 - M24!") ->  | H23: 0 | I23: =TEXT(O14,"000,00") -> 000,00
A24: =IF(Auswertung!Y20="ja","","Die Tabelle kann ausgefüllt werden, das Ergebnis wird aber in der Auswertung nicht berücksichtigt!") -> 
A27: =HYPERLINK("#"&ADDRESS(MATCH("*"&RIGHT(CELL("dateiname",$A$1),LEN(CELL("dateiname",$A$1))-FIND("]",CELL("dateiname",$A$1)))&"*",Beschreibung100!B:B,0)+15,1,,1,"Beschreibung100"),"Hilfe beim Ausfüllen der Tabelle? Klick mich an!") -> Hilfe beim Ausfüllen der Tabelle? Klick mich an!

Sheet Einheiten
A1: Einheiten | C1: ="Anzahl Gesamt (Einheit / Name): "&COUNTIF(B4:B203,"<>""")-COUNTIF(B4:B203,"") -> Anzahl Gesamt (Einheit / Name): 1 | H1: Anz. Staffeln + Gruppen: | I1: =COUNTIF(C4:C203,"Staffel")+(COUNTIF(C4:C203,"Gruppe")) -> 1 | J1: ="Staffeln: "&COUNTIF(C4:C203,"Staffel") -> Staffeln: 0 | K1: ="Gruppen: "&COUNTIF(C4:C203,"Gruppe") -> Gruppen: 1 | S1: 0 | T1: 0 | U1: =IF(SUM(S4:S203)>0,1,0) -> 0 | AX1: Einheit kommt aus: | AY1: Merker / Anzeige | AZ1: Merker / Anzeige | BA1: ==== Kopie der Daten aus Spalten A - D und Spalte AX =====
C2: Format | D2: Gemeinde/Stadt | E2: ZE-Grad | F2: Ges.Zeit | G2: Archiv | H2: Module fertig (mit Uhrzeit - Stempel): | T2: =Auswertung!$AC$34 -> Saugleitung | V2: =IF(ISERROR(MATCH(T2,Auswertung!$AD$16:$AD$24,0)),"",MATCH(T2,Auswertung!$AD$16:$AD$24,0)+15) -> 18 | W2: =Auswertung!$AC$35 -> Fahrübung | Y2: =IF(ISERROR(MATCH(W2,Auswertung!$AD$16:$AD$24,0)),"",MATCH(W2,Auswertung!$AD$16:$AD$24,0)+15) ->  | Z2: =Auswertung!$AC$36 -> Löschangriff | AB2: =IF(ISERROR(MATCH(Z2,Auswertung!$AD$16:$AD$24,0)),"",MATCH(Z2,Auswertung!$AD$16:$AD$24,0)+15) -> 16 | AC2: =Auswertung!$AC$37 -> Atemschutz | AE2: =IF(ISERROR(MATCH(AC2,Auswertung!$AD$16:$AD$24,0)),"",MATCH(AC2,Auswertung!$AD$16:$AD$24,0)+15) ->  | AF2: =Auswertung!$AC$38 -> Funkübung | AH2: =IF(ISERROR(MATCH(AF2,Auswertung!$AD$16:$AD$24,0)),"",MATCH(AF2,Auswertung!$AD$16:$AD$24,0)+15) -> 20 | AI2: =Auswertung!$AC$39 -> Leitereinsatz | AK2: =IF(ISERROR(MATCH(AI2,Auswertung!$AD$16:$AD$24,0)),"",MATCH(AI2,Auswertung!$AD$16:$AD$24,0)+15) ->  | AL2: =Auswertung!$AC$40 -> Modul_7 | AN2: =IF(ISERROR(MATCH(AL2,Auswertung!$AD$16:$AD$24,0)),"",MATCH(AL2,Auswertung!$AD$16:$AD$24,0)+15) ->  | AO2: =Auswertung!$AC$41 -> Modul_8 | AQ2: =IF(ISERROR(MATCH(AO2,Auswertung!$AD$16:$AD$24,0)),"",MATCH(AO2,Auswertung!$AD$16:$AD$24,0)+15) ->  | AR2: =Auswertung!$AC$42 -> Modul_9 | AT2: =IF(ISERROR(MATCH(AR2,Auswertung!$AD$16:$AD$24,0)),"",MATCH(AR2,Auswertung!$AD$16:$AD$24,0)+15) ->  | AU2: =Auswertung!$AC$43 -> Modul_10 | AW2: =IF(ISERROR(MATCH(AU2,Auswertung!$AD$16:$AD$24,0)),"",MATCH(AU2,Auswertung!$AD$16:$AD$24,0)+15) ->  | AY2: "wurde gedruckt" | AZ2: "wurde gedruckt" | BA2: A | BB2: B | BC2: C | BD2: D | BE2: AX
A3: Lfd Nr | B3: Einheit Name | C3: Gruppe Staffel | D3: Gemeinde / Stadt | E3: [%] | F3: [Sek.] | G3: [Zeile] | H3: ="Modul"&CHAR(10)&Auswertung!$AC$34 -> Modul Saugleitung | I3: ="Modul"&CHAR(10)&Auswertung!$AC$35 -> Modul Fahrübung | J3: ="Modul"&CHAR(10)&Auswertung!$AC$36 -> Modul Löschangriff | K3: ="Modul"&CHAR(10)&Auswertung!$AC$37 -> Modul Atemschutz | L3: ="Modul"&CHAR(10)&Auswertung!$AC$38 -> Modul Funkübung | M3: ="Modul"&CHAR(10)&Auswertung!$AC$39 -> Modul Leitereinsatz | N3: ="Modul"&CHAR(10)&Auswertung!$AC$40 -> Modul Modul_7 | O3: ="Modul"&CHAR(10)&Auswertung!$AC$41 -> Modul Modul_8 | P3: ="Modul"&CHAR(10)&Auswertung!$AC$42 -> Modul Modul_9 | Q3: ="Modul"&CHAR(10)&Auswertung!$AC$43 -> Modul Modul_10 | R3: Auswertung | S3: Fertige Module | T3: ZE-Grad (%) | U3: Kuppelzeit (Sek) | V3: Ges.Zeit (Sek) | W3: ZE-Grad (%) | X3: Taktzeit (Sek) | Y3: Ges.Zeit (Sek) | Z3: ZE-Grad (%) | AA3: Taktzeit (Sek) | AB3: Ges.Zeit (Sek) | AC3: ZE-Grad (%) | AD3: Taktzeit (Sek) | AE3: Ges.Zeit (Sek) | AF3: ZE-Grad (%) | AG3: Taktzeit (Sek) | AH3: Ges.Zeit (Sek) | AI3: ZE-Grad (%) | AJ3: Taktzeit (Sek) | AK3: Ges.Zeit (Sek) | AL3: ZE-Grad (%) | AM3: Taktzeit (Sek) | AN3: Ges.Zeit (Sek) | AO3: ZE-Grad (%) | AP3: Taktzeit (Sek) | AQ3: Ges.Zeit (Sek) | AR3: ZE-Grad (%) | AS3: Taktzeit (Sek) | AT3: Ges.Zeit (Sek) | AU3: ZE-Grad (%) | AV3: Taktzeit (Sek) | AW3: Ges.Zeit (Sek) | AX3: Landkreis / Stadt / Region | AY3: Auswertung | AZ3: Modul | BA3: Lfd Nr | BB3: Einheit Name | BC3: Gruppe Staffel | BD3: Gemeinde / Stadt | BE3: Landkreis / Stadt / Region
A4: 1 | B4: Musterort | C4: Gruppe | D4: Musterstadt | E4: =IF(G4="","",IF(INDIRECT("Archiv!C"&G4)>1,INDIRECT("Archiv!H"&G4+5),IF($S$1=1,0,""))) ->  | F4: =IF(G4="","",IF(INDIRECT("Archiv!C"&G4)>1,INDIRECT("Archiv!H"&G4+7),IF($S$1=1,999,""))) ->  | G4: 100 | H4: =IF($G4="","",IF(INDIRECT("Archiv!AC"&$G4)<1,"",IF(INDIRECT("Archiv!AO"&($G4+13))=0,"Modulzeit?",MID(INDIRECT("Archiv!AC"&$G4),15,5)))) ->  | I4: =IF($G4="","",IF(INDIRECT("Archiv!BC"&$G4)<1,"",IF(INDIRECT("Archiv!BO"&($G4+14))=0,"Modulzeit?",MID(INDIRECT("Archiv!BC"&$G4),15,5)))) ->  | J4: =IF($G4="","",IF(INDIRECT("Archiv!CC"&$G4)<1,"",IF(INDIRECT("Archiv!CO"&($G4+45))=0,"Modulzeit?",IF(AND(INDIRECT("Archiv!CB"&($G4+25))="",INDIRECT("Archiv!CB"&($G4+33))="",INDIRECT("Archiv!CB"&($G4+40))=""),"Taktzeit?",MID(INDIRECT("Archiv!CC"&$G4),15,5))))) ->  | K4: =IF($G4="","",IF(INDIRECT("Archiv!DC"&$G4)<1,"", IF(INDIRECT("Archiv!DO"&($G4+17))=0,"Modulzeit?",IF(INDIRECT("Archiv!DC"&($G4+15))="","Taktzeit?",MID(INDIRECT("Archiv!DC"&$G4),15,5))))) ->  | L4: =IF($G4="","",IF(INDIRECT("Archiv!EC"&$G4)<1,"",IF(INDIRECT("Archiv!EO"&($G4+14))=0,"Modulzeit?",MID(INDIRECT("Archiv!EC"&$G4),15,5)))) ->  | M4: =IF($G4="","",IF(INDIRECT("Archiv!FC"&$G4)<1,"",IF(INDIRECT("Archiv!FO"&($G4+14))=0,"Modulzeit?",MID(INDIRECT("Archiv!FC"&$G4),15,5)))) ->  | R4: =IF(G4="","",IF(INDIRECT("Archiv!C"&G4)<1,"",INDIRECT("Archiv!C"&G4))) ->  | S4: =10-COUNTBLANK(H4:Q4) -> 0 | T4: =IF($V$2="","",IF($G4="","",IF(INDIRECT("Archiv!C"&$G4)<1,"",INDIRECT("Archiv!D"&$G4+$V$2)))) ->  | U4: =IF($V$2="","",IF($G4="","",IF(INDIRECT("Archiv!C"&$G4)<1,"",INDIRECT("Archiv!AO"&$G4+13)))) ->  | V4: =IF($V$2="","",IF($G4="","",IF(INDIRECT("Archiv!C"&$G4)<1,"",INDIRECT("Archiv!H"&$G4+$V$2)))) ->  | W4: =IF($Y$2="","",IF($G4="","",IF(INDIRECT("Archiv!C"&$G4)<1,"",INDIRECT("Archiv!D"&$G4+$Y$2)))) ->  | Y4: =IF($Y$2="","",IF($G4="","",IF(INDIRECT("Archiv!C"&$G4)<1,"",INDIRECT("Archiv!F"&$G4+$Y$2)))) ->  | Z4: =IF($AB$2="","",IF($G4="","",IF(INDIRECT("Archiv!C"&$G4)<1,"",INDIRECT("Archiv!D"&$G4+$AB$2)))) ->  | AA4: =IF($AB$2="","",IF($G4="","",IF(INDIRECT("Archiv!C"&$G4)<1,"",INDIRECT("Archiv!H"&$G4+$AB$2)))) ->  | AB4: =IF($AB$2="","",IF($G4="","",IF(INDIRECT("Archiv!C"&$G4)<1,"",INDIRECT("Archiv!F"&$G4+$AB$2)))) ->  | AC4: =IF($AE$2="","",IF($G4="","",IF(INDIRECT("Archiv!C"&$G4)<1,"",INDIRECT("Archiv!D"&$G4+$AE$2)))) ->  | AD4: =IF($AE$2="","",IF($G4="","",IF(INDIRECT("Archiv!C"&$G4)<1,"",INDIRECT("Archiv!H"&$G4+$AE$2)))) ->  | AE4: =IF($AE$2="","",IF($G4="","",IF(INDIRECT("Archiv!C"&$G4)<1,"",INDIRECT("Archiv!F"&$G4+$AE$2)))) ->  | AF4: =IF($AH$2="","",IF($G4="","",IF(INDIRECT("Archiv!C"&$G4)<1,"",INDIRECT("Archiv!D"&$G4+$AH$2)))) ->  | AH4: =IF($AH$2="","",IF($G4="","",IF(INDIRECT("Archiv!C"&$G4)<1,"",INDIRECT("Archiv!F"&$G4+$AH$2)))) ->  | AI4: =IF($AK$2="","",IF($G4="","",IF(INDIRECT("Archiv!C"&$G4)<1,"",INDIRECT("Archiv!D"&$G4+$AK$2)))) ->  | AK4: =IF($AK$2="","",IF($G4="","",IF(INDIRECT("Archiv!C"&$G4)<1,"",INDIRECT("Archiv!F"&$G4+$AK$2)))) ->  | AX4: Musterkreis | AY4: =IF(G4="","",IF(INDIRECT("Archiv!G"&(G4+58))="","",INDIRECT("Archiv!G"&(G4+58)))) ->  | AZ4: =IF(G4="","",IF(INDIRECT("Archiv!I"&(G4+58))="","",INDIRECT("Archiv!I"&(G4+58)))) ->  | BA4: 1 | BB4: Musterort | BC4: Gruppe | BD4: Musterstadt | BE4: Musterkreis
S5: 0
S6: 0
S7: 0
S8: 0
S9: 0
S10: 0
S11: 0
S12: 0
S13: 0
S14: 0
S15: 0
S16: 0
S17: 0
S18: 0
S19: 0
S20: 0
S21: 0
S22: 0
S23: 0
S24: 0
S25: 0
S26: 0
S27: 0
S28: 0
S29: 0
S30: 0
S31: 0
S32: 0
S33: 0
S34: 0
S35: 0
S36: 0
S37: 0
S38: 0
S39: 0
S40: 0
S41: 0
S42: 0
S43: 0
E44: =IF(G44="","",IF(INDIRECT("Archiv!C"&G44)>1,INDIRECT("Archiv!H"&G44+5),IF($S$1=1,0,""))) ->  | F44: =IF(G44="","",IF(INDIRECT("Archiv!C"&G44)>1,INDIRECT("Archiv!H"&G44+7),IF($S$1=1,999,""))) ->  | H44: =IF($G44="","",IF(INDIRECT("Archiv!AC"&$G44)<1,"",IF(INDIRECT("Archiv!AO"&($G44+13))=0,"Modulzeit?",MID(INDIRECT("Archiv!AC"&$G44),15,5)))) ->  | I44: =IF($G44="","",IF(INDIRECT("Archiv!BC"&$G44)<1,"",IF(INDIRECT("Archiv!BO"&($G44+14))=0,"Modulzeit?",MID(INDIRECT("Archiv!BC"&$G44),15,5)))) ->  | J44: =IF($G44="","",IF(INDIRECT("Archiv!CC"&$G44)<1,"",IF(INDIRECT("Archiv!CO"&($G44+45))=0,"Modulzeit?",IF(AND(INDIRECT("Archiv!CB"&($G44+25))="",INDIRECT("Archiv!CB"&($G44+33))="",INDIRECT("Archiv!CB"&($G44+40))=""),"Taktzeit?",MID(INDIRECT("Archiv!CC"&$G44),15,5))))) ->  | K44: =IF($G44="","",IF(INDIRECT("Archiv!DC"&$G44)<1,"", IF(INDIRECT("Archiv!DO"&($G44+17))=0,"Modulzeit?",IF(INDIRECT("Archiv!DC"&($G44+15))="","Taktzeit?",MID(INDIRECT("Archiv!DC"&$G44),15,5))))) ->  | L44: =IF($G44="","",IF(INDIRECT("Archiv!EC"&$G44)<1,"",IF(INDIRECT("Archiv!EO"&($G44+14))=0,"Modulzeit?",MID(INDIRECT("Archiv!EC"&$G44),15,5)))) ->  | M44: =IF($G44="","",IF(INDIRECT("Archiv!FC"&$G44)<1,"",IF(INDIRECT("Archiv!FO"&($G44+14))=0,"Modulzeit?",MID(INDIRECT("Archiv!FC"&$G44),15,5)))) ->  | R44: =IF(G44="","",IF(INDIRECT("Archiv!C"&G44)<1,"",INDIRECT("Archiv!C"&G44))) ->  | S44: =10-COUNTBLANK(H44:Q44) -> 0 | T44: =IF($V$2="","",IF($G44="","",IF(INDIRECT("Archiv!C"&$G44)<1,"",INDIRECT("Archiv!D"&$G44+$V$2)))) ->  | U44: =IF($V$2="","",IF($G44="","",IF(INDIRECT("Archiv!C"&$G44)<1,"",INDIRECT("Archiv!AO"&$G44+13)))) ->  | V44: =IF($V$2="","",IF($G44="","",IF(INDIRECT("Archiv!C"&$G44)<1,"",INDIRECT("Archiv!H"&$G44+$V$2)))) ->  | W44: =IF($Y$2="","",IF($G44="","",IF(INDIRECT("Archiv!C"&$G44)<1,"",INDIRECT("Archiv!D"&$G44+$Y$2)))) ->  | Y44: =IF($Y$2="","",IF($G44="","",IF(INDIRECT("Archiv!C"&$G44)<1,"",INDIRECT("Archiv!F"&$G44+$Y$2)))) ->  | Z44: =IF($AB$2="","",IF($G44="","",IF(INDIRECT("Archiv!C"&$G44)<1,"",INDIRECT("Archiv!D"&$G44+$AB$2)))) ->  | AA44: =IF($AB$2="","",IF($G44="","",IF(INDIRECT("Archiv!C"&$G44)<1,"",INDIRECT("Archiv!H"&$G44+$AB$2)))) ->  | AB44: =IF($AB$2="","",IF($G44="","",IF(INDIRECT("Archiv!C"&$G44)<1,"",INDIRECT("Archiv!F"&$G44+$AB$2)))) ->  | AC44: =IF($AE$2="","",IF($G44="","",IF(INDIRECT("Archiv!C"&$G44)<1,"",INDIRECT("Archiv!D"&$G44+$AE$2)))) ->  | AD44: =IF($AE$2="","",IF($G44="","",IF(INDIRECT("Archiv!C"&$G44)<1,"",INDIRECT("Archiv!H"&$G44+$AE$2)))) ->  | AE44: =IF($AE$2="","",IF($G44="","",IF(INDIRECT("Archiv!C"&$G44)<1,"",INDIRECT("Archiv!F"&$G44+$AE$2)))) ->  | AF44: =IF($AH$2="","",IF($G44="","",IF(INDIRECT("Archiv!C"&$G44)<1,"",INDIRECT("Archiv!D"&$G44+$AH$2)))) ->  | AH44: =IF($AH$2="","",IF($G44="","",IF(INDIRECT("Archiv!C"&$G44)<1,"",INDIRECT("Archiv!F"&$G44+$AH$2)))) ->  | AI44: =IF($AK$2="","",IF($G44="","",IF(INDIRECT("Archiv!C"&$G44)<1,"",INDIRECT("Archiv!D"&$G44+$AK$2)))) ->  | AK44: =IF($AK$2="","",IF($G44="","",IF(INDIRECT("Archiv!C"&$G44)<1,"",INDIRECT("Archiv!F"&$G44+$AK$2)))) ->  | AY44: =IF(G44="","",IF(INDIRECT("Archiv!G"&(G44+58))="","",INDIRECT("Archiv!G"&(G44+58)))) ->  | AZ44: =IF(G44="","",IF(INDIRECT("Archiv!I"&(G44+58))="","",INDIRECT("Archiv!I"&(G44+58)))) -> 
S45: 0
S46: 0
S47: 0
S48: 0
S49: 0
S50: 0
S51: 0
S52: 0
S53: 0
S54: 0
S55: 0
S56: 0
S57: 0
S58: 0
S59: 0
S60: 0
S61: 0
S62: 0
S63: 0
S64: 0
S65: 0
S66: 0
S67: 0
E68: =IF(G68="","",IF(INDIRECT("Archiv!C"&G68)>1,INDIRECT("Archiv!H"&G68+5),IF($S$1=1,0,""))) ->  | F68: =IF(G68="","",IF(INDIRECT("Archiv!C"&G68)>1,INDIRECT("Archiv!H"&G68+7),IF($S$1=1,999,""))) ->  | H68: =IF($G68="","",IF(INDIRECT("Archiv!AC"&$G68)<1,"",IF(INDIRECT("Archiv!AO"&($G68+13))=0,"Modulzeit?",MID(INDIRECT("Archiv!AC"&$G68),15,5)))) ->  | I68: =IF($G68="","",IF(INDIRECT("Archiv!BC"&$G68)<1,"",IF(INDIRECT("Archiv!BO"&($G68+14))=0,"Modulzeit?",MID(INDIRECT("Archiv!BC"&$G68),15,5)))) ->  | J68: =IF($G68="","",IF(INDIRECT("Archiv!CC"&$G68)<1,"",IF(INDIRECT("Archiv!CO"&($G68+45))=0,"Modulzeit?",IF(AND(INDIRECT("Archiv!CB"&($G68+25))="",INDIRECT("Archiv!CB"&($G68+33))="",INDIRECT("Archiv!CB"&($G68+40))=""),"Taktzeit?",MID(INDIRECT("Archiv!CC"&$G68),15,5))))) ->  | K68: =IF($G68="","",IF(INDIRECT("Archiv!DC"&$G68)<1,"", IF(INDIRECT("Archiv!DO"&($G68+17))=0,"Modulzeit?",IF(INDIRECT("Archiv!DC"&($G68+15))="","Taktzeit?",MID(INDIRECT("Archiv!DC"&$G68),15,5))))) ->  | L68: =IF($G68="","",IF(INDIRECT("Archiv!EC"&$G68)<1,"",IF(INDIRECT("Archiv!EO"&($G68+14))=0,"Modulzeit?",MID(INDIRECT("Archiv!EC"&$G68),15,5)))) ->  | M68: =IF($G68="","",IF(INDIRECT("Archiv!FC"&$G68)<1,"",IF(INDIRECT("Archiv!FO"&($G68+14))=0,"Modulzeit?",MID(INDIRECT("Archiv!FC"&$G68),15,5)))) ->  | R68: =IF(G68="","",IF(INDIRECT("Archiv!C"&G68)<1,"",INDIRECT("Archiv!C"&G68))) ->  | S68: =10-COUNTBLANK(H68:Q68) -> 0 | T68: =IF($V$2="","",IF($G68="","",IF(INDIRECT("Archiv!C"&$G68)<1,"",INDIRECT("Archiv!D"&$G68+$V$2)))) ->  | U68: =IF($V$2="","",IF($G68="","",IF(INDIRECT("Archiv!C"&$G68)<1,"",INDIRECT("Archiv!AO"&$G68+13)))) ->  | V68: =IF($V$2="","",IF($G68="","",IF(INDIRECT("Archiv!C"&$G68)<1,"",INDIRECT("Archiv!H"&$G68+$V$2)))) ->  | W68: =IF($Y$2="","",IF($G68="","",IF(INDIRECT("Archiv!C"&$G68)<1,"",INDIRECT("Archiv!D"&$G68+$Y$2)))) ->  | Y68: =IF($Y$2="","",IF($G68="","",IF(INDIRECT("Archiv!C"&$G68)<1,"",INDIRECT("Archiv!F"&$G68+$Y$2)))) ->  | Z68: =IF($AB$2="","",IF($G68="","",IF(INDIRECT("Archiv!C"&$G68)<1,"",INDIRECT("Archiv!D"&$G68+$AB$2)))) ->  | AA68: =IF($AB$2="","",IF($G68="","",IF(INDIRECT("Archiv!C"&$G68)<1,"",INDIRECT("Archiv!H"&$G68+$AB$2)))) ->  | AB68: =IF($AB$2="","",IF($G68="","",IF(INDIRECT("Archiv!C"&$G68)<1,"",INDIRECT("Archiv!F"&$G68+$AB$2)))) ->  | AC68: =IF($AE$2="","",IF($G68="","",IF(INDIRECT("Archiv!C"&$G68)<1,"",INDIRECT("Archiv!D"&$G68+$AE$2)))) ->  | AD68: =IF($AE$2="","",IF($G68="","",IF(INDIRECT("Archiv!C"&$G68)<1,"",INDIRECT("Archiv!H"&$G68+$AE$2)))) ->  | AE68: =IF($AE$2="","",IF($G68="","",IF(INDIRECT("Archiv!C"&$G68)<1,"",INDIRECT("Archiv!F"&$G68+$AE$2)))) ->  | AF68: =IF($AH$2="","",IF($G68="","",IF(INDIRECT("Archiv!C"&$G68)<1,"",INDIRECT("Archiv!D"&$G68+$AH$2)))) ->  | AH68: =IF($AH$2="","",IF($G68="","",IF(INDIRECT("Archiv!C"&$G68)<1,"",INDIRECT("Archiv!F"&$G68+$AH$2)))) ->  | AI68: =IF($AK$2="","",IF($G68="","",IF(INDIRECT("Archiv!C"&$G68)<1,"",INDIRECT("Archiv!D"&$G68+$AK$2)))) ->  | AK68: =IF($AK$2="","",IF($G68="","",IF(INDIRECT("Archiv!C"&$G68)<1,"",INDIRECT("Archiv!F"&$G68+$AK$2)))) -> 
S69: 0 | AY69: =IF(G69="","",IF(INDIRECT("Archiv!G"&(G69+58))="","",INDIRECT("Archiv!G"&(G69+58)))) ->  | AZ69: =IF(G69="","",IF(INDIRECT("Archiv!I"&(G69+58))="","",INDIRECT("Archiv!I"&(G69+58)))) -> 
S70: 0
S71: 0
S72: 0
S73: 0
E74: =IF(G74="","",IF(INDIRECT("Archiv!C"&G74)>1,INDIRECT("Archiv!H"&G74+5),IF($S$1=1,0,""))) ->  | F74: =IF(G74="","",IF(INDIRECT("Archiv!C"&G74)>1,INDIRECT("Archiv!H"&G74+7),IF($S$1=1,999,""))) ->  | H74: =IF($G74="","",IF(INDIRECT("Archiv!AC"&$G74)<1,"",IF(INDIRECT("Archiv!AO"&($G74+13))=0,"Modulzeit?",MID(INDIRECT("Archiv!AC"&$G74),15,5)))) ->  | I74: =IF($G74="","",IF(INDIRECT("Archiv!BC"&$G74)<1,"",IF(INDIRECT("Archiv!BO"&($G74+14))=0,"Modulzeit?",MID(INDIRECT("Archiv!BC"&$G74),15,5)))) ->  | J74: =IF($G74="","",IF(INDIRECT("Archiv!CC"&$G74)<1,"",IF(INDIRECT("Archiv!CO"&($G74+45))=0,"Modulzeit?",IF(AND(INDIRECT("Archiv!CB"&($G74+25))="",INDIRECT("Archiv!CB"&($G74+33))="",INDIRECT("Archiv!CB"&($G74+40))=""),"Taktzeit?",MID(INDIRECT("Archiv!CC"&$G74),15,5))))) ->  | K74: =IF($G74="","",IF(INDIRECT("Archiv!DC"&$G74)<1,"", IF(INDIRECT("Archiv!DO"&($G74+17))=0,"Modulzeit?",IF(INDIRECT("Archiv!DC"&($G74+15))="","Taktzeit?",MID(INDIRECT("Archiv!DC"&$G74),15,5))))) ->  | L74: =IF($G74="","",IF(INDIRECT("Archiv!EC"&$G74)<1,"",IF(INDIRECT("Archiv!EO"&($G74+14))=0,"Modulzeit?",MID(INDIRECT("Archiv!EC"&$G74),15,5)))) ->  | M74: =IF($G74="","",IF(INDIRECT("Archiv!FC"&$G74)<1,"",IF(INDIRECT("Archiv!FO"&($G74+14))=0,"Modulzeit?",MID(INDIRECT("Archiv!FC"&$G74),15,5)))) ->  | R74: =IF(G74="","",IF(INDIRECT("Archiv!C"&G74)<1,"",INDIRECT("Archiv!C"&G74))) ->  | S74: =10-COUNTBLANK(H74:Q74) -> 0 | T74: =IF($V$2="","",IF($G74="","",IF(INDIRECT("Archiv!C"&$G74)<1,"",INDIRECT("Archiv!D"&$G74+$V$2)))) ->  | U74: =IF($V$2="","",IF($G74="","",IF(INDIRECT("Archiv!C"&$G74)<1,"",INDIRECT("Archiv!AO"&$G74+13)))) ->  | V74: =IF($V$2="","",IF($G74="","",IF(INDIRECT("Archiv!C"&$G74)<1,"",INDIRECT("Archiv!H"&$G74+$V$2)))) ->  | W74: =IF($Y$2="","",IF($G74="","",IF(INDIRECT("Archiv!C"&$G74)<1,"",INDIRECT("Archiv!D"&$G74+$Y$2)))) ->  | Y74: =IF($Y$2="","",IF($G74="","",IF(INDIRECT("Archiv!C"&$G74)<1,"",INDIRECT("Archiv!F"&$G74+$Y$2)))) ->  | Z74: =IF($AB$2="","",IF($G74="","",IF(INDIRECT("Archiv!C"&$G74)<1,"",INDIRECT("Archiv!D"&$G74+$AB$2)))) ->  | AA74: =IF($AB$2="","",IF($G74="","",IF(INDIRECT("Archiv!C"&$G74)<1,"",INDIRECT("Archiv!H"&$G74+$AB$2)))) ->  | AB74: =IF($AB$2="","",IF($G74="","",IF(INDIRECT("Archiv!C"&$G74)<1,"",INDIRECT("Archiv!F"&$G74+$AB$2)))) ->  | AC74: =IF($AE$2="","",IF($G74="","",IF(INDIRECT("Archiv!C"&$G74)<1,"",INDIRECT("Archiv!D"&$G74+$AE$2)))) ->  | AD74: =IF($AE$2="","",IF($G74="","",IF(INDIRECT("Archiv!C"&$G74)<1,"",INDIRECT("Archiv!H"&$G74+$AE$2)))) ->  | AE74: =IF($AE$2="","",IF($G74="","",IF(INDIRECT("Archiv!C"&$G74)<1,"",INDIRECT("Archiv!F"&$G74+$AE$2)))) ->  | AF74: =IF($AH$2="","",IF($G74="","",IF(INDIRECT("Archiv!C"&$G74)<1,"",INDIRECT("Archiv!D"&$G74+$AH$2)))) ->  | AH74: =IF($AH$2="","",IF($G74="","",IF(INDIRECT("Archiv!C"&$G74)<1,"",INDIRECT("Archiv!F"&$G74+$AH$2)))) ->  | AI74: =IF($AK$2="","",IF($G74="","",IF(INDIRECT("Archiv!C"&$G74)<1,"",INDIRECT("Archiv!D"&$G74+$AK$2)))) ->  | AK74: =IF($AK$2="","",IF($G74="","",IF(INDIRECT("Archiv!C"&$G74)<1,"",INDIRECT("Archiv!F"&$G74+$AK$2)))) -> 
S75: 0
S76: 0
S77: 0
S78: 0
S79: 0
E80: =IF(G80="","",IF(INDIRECT("Archiv!C"&G80)>1,INDIRECT("Archiv!H"&G80+5),IF($S$1=1,0,""))) ->  | F80: =IF(G80="","",IF(INDIRECT("Archiv!C"&G80)>1,INDIRECT("Archiv!H"&G80+7),IF($S$1=1,999,""))) ->  | R80: =IF(G80="","",IF(INDIRECT("Archiv!C"&G80)<1,"",INDIRECT("Archiv!C"&G80))) ->  | S80: =10-COUNTBLANK(H80:Q80) -> 0
S81: 0
S82: 0
S83: 0
S84: 0
S85: 0
S86: 0
S87: 0
S88: 0
S89: 0
S90: 0
S91: 0
S92: 0
S93: 0
S94: 0
S95: 0
S96: 0
S97: 0
S98: 0
S99: 0
E100: =IF(G100="","",IF(INDIRECT("Archiv!C"&G100)>1,INDIRECT("Archiv!H"&G100+5),IF($S$1=1,0,""))) ->  | F100: =IF(G100="","",IF(INDIRECT("Archiv!C"&G100)>1,INDIRECT("Archiv!H"&G100+7),IF($S$1=1,999,""))) ->  | R100: =IF(G100="","",IF(INDIRECT("Archiv!C"&G100)<1,"",INDIRECT("Archiv!C"&G100))) ->  | S100: =10-COUNTBLANK(H100:Q100) -> 0
S101: 0
S102: 0
S103: 0
S104: 0
S105: 0
S106: 0
S107: 0
S108: 0
S109: 0
S110: 0
E111: =IF(G111="","",IF(INDIRECT("Archiv!C"&G111)>1,INDIRECT("Archiv!H"&G111+5),IF($S$1=1,0,""))) ->  | F111: =IF(G111="","",IF(INDIRECT("Archiv!C"&G111)>1,INDIRECT("Archiv!H"&G111+7),IF($S$1=1,999,""))) ->  | R111: =IF(G111="","",IF(INDIRECT("Archiv!C"&G111)<1,"",INDIRECT("Archiv!C"&G111))) ->  | S111: =10-COUNTBLANK(H111:Q111) -> 0
S112: 0
S113: 0
S114: 0
S115: 0
S116: 0
S117: 0
S118: 0
S119: 0
S120: 0
S121: 0
S122: 0
S123: 0
S124: 0
S125: 0
S126: 0
S127: 0
S128: 0
S129: 0
S130: 0
S131: 0
R132: =IF(G132="","",IF(INDIRECT("Archiv!C"&G132)<1,"",INDIRECT("Archiv!C"&G132))) ->  | S132: =10-COUNTBLANK(H132:Q132) -> 0
E133: =IF(G133="","",IF(INDIRECT("Archiv!C"&G133)>1,INDIRECT("Archiv!H"&G133+5),IF($S$1=1,0,""))) ->  | F133: =IF(G133="","",IF(INDIRECT("Archiv!C"&G133)>1,INDIRECT("Archiv!H"&G133+7),IF($S$1=1,999,""))) ->  | H133: =IF($G133="","",IF(INDIRECT("Archiv!AC"&$G133)<1,"",IF(INDIRECT("Archiv!AO"&($G133+13))=0,"Modulzeit?",MID(INDIRECT("Archiv!AC"&$G133),15,5)))) ->  | I133: =IF($G133="","",IF(INDIRECT("Archiv!BC"&$G133)<1,"",IF(INDIRECT("Archiv!BO"&($G133+14))=0,"Modulzeit?",MID(INDIRECT("Archiv!BC"&$G133),15,5)))) ->  | J133: =IF($G133="","",IF(INDIRECT("Archiv!CC"&$G133)<1,"",IF(INDIRECT("Archiv!CO"&($G133+45))=0,"Modulzeit?",IF(AND(INDIRECT("Archiv!CB"&($G133+25))="",INDIRECT("Archiv!CB"&($G133+33))="",INDIRECT("Archiv!CB"&($G133+40))=""),"Taktzeit?",MID(INDIRECT("Archiv!CC"&$G133),15,5))))) ->  | K133: =IF($G133="","",IF(INDIRECT("Archiv!DC"&$G133)<1,"", IF(INDIRECT("Archiv!DO"&($G133+17))=0,"Modulzeit?",IF(INDIRECT("Archiv!DC"&($G133+15))="","Taktzeit?",MID(INDIRECT("Archiv!DC"&$G133),15,5))))) ->  | L133: =IF($G133="","",IF(INDIRECT("Archiv!EC"&$G133)<1,"",IF(INDIRECT("Archiv!EO"&($G133+14))=0,"Modulzeit?",MID(INDIRECT("Archiv!EC"&$G133),15,5)))) ->  | M133: =IF($G133="","",IF(INDIRECT("Archiv!FC"&$G133)<1,"",IF(INDIRECT("Archiv!FO"&($G133+14))=0,"Modulzeit?",MID(INDIRECT("Archiv!FC"&$G133),15,5)))) ->  | S133: 0 | T133: =IF($V$2="","",IF($G133="","",IF(INDIRECT("Archiv!C"&$G133)<1,"",INDIRECT("Archiv!D"&$G133+$V$2)))) ->  | U133: =IF($V$2="","",IF($G133="","",IF(INDIRECT("Archiv!C"&$G133)<1,"",INDIRECT("Archiv!AO"&$G133+13)))) ->  | V133: =IF($V$2="","",IF($G133="","",IF(INDIRECT("Archiv!C"&$G133)<1,"",INDIRECT("Archiv!H"&$G133+$V$2)))) ->  | W133: =IF($Y$2="","",IF($G133="","",IF(INDIRECT("Archiv!C"&$G133)<1,"",INDIRECT("Archiv!D"&$G133+$Y$2)))) ->  | Y133: =IF($Y$2="","",IF($G133="","",IF(INDIRECT("Archiv!C"&$G133)<1,"",INDIRECT("Archiv!F"&$G133+$Y$2)))) ->  | Z133: =IF($AB$2="","",IF($G133="","",IF(INDIRECT("Archiv!C"&$G133)<1,"",INDIRECT("Archiv!D"&$G133+$AB$2)))) ->  | AA133: =IF($AB$2="","",IF($G133="","",IF(INDIRECT("Archiv!C"&$G133)<1,"",INDIRECT("Archiv!H"&$G133+$AB$2)))) ->  | AB133: =IF($AB$2="","",IF($G133="","",IF(INDIRECT("Archiv!C"&$G133)<1,"",INDIRECT("Archiv!F"&$G133+$AB$2)))) ->  | AC133: =IF($AE$2="","",IF($G133="","",IF(INDIRECT("Archiv!C"&$G133)<1,"",INDIRECT("Archiv!D"&$G133+$AE$2)))) ->  | AD133: =IF($AE$2="","",IF($G133="","",IF(INDIRECT("Archiv!C"&$G133)<1,"",INDIRECT("Archiv!H"&$G133+$AE$2)))) ->  | AE133: =IF($AE$2="","",IF($G133="","",IF(INDIRECT("Archiv!C"&$G133)<1,"",INDIRECT("Archiv!F"&$G133+$AE$2)))) ->  | AF133: =IF($AH$2="","",IF($G133="","",IF(INDIRECT("Archiv!C"&$G133)<1,"",INDIRECT("Archiv!D"&$G133+$AH$2)))) ->  | AH133: =IF($AH$2="","",IF($G133="","",IF(INDIRECT("Archiv!C"&$G133)<1,"",INDIRECT("Archiv!F"&$G133+$AH$2)))) ->  | AI133: =IF($AK$2="","",IF($G133="","",IF(INDIRECT("Archiv!C"&$G133)<1,"",INDIRECT("Archiv!D"&$G133+$AK$2)))) ->  | AK133: =IF($AK$2="","",IF($G133="","",IF(INDIRECT("Archiv!C"&$G133)<1,"",INDIRECT("Archiv!F"&$G133+$AK$2)))) ->  | AY133: =IF(G133="","",IF(INDIRECT("Archiv!G"&(G133+58))="","",INDIRECT("Archiv!G"&(G133+58)))) ->  | AZ133: =IF(G133="","",IF(INDIRECT("Archiv!I"&(G133+58))="","",INDIRECT("Archiv!I"&(G133+58)))) -> 
S134: 0
S135: 0
S136: 0
S137: 0
S138: 0
S139: 0
S140: 0
S141: 0
S142: 0
S143: 0
S144: 0
S145: 0
S146: 0
S147: 0
S148: 0
S149: 0
S150: 0
S151: 0
S152: 0
S153: 0
S154: 0
S155: 0
S156: 0
S157: 0
S158: 0
S159: 0
S160: 0
S161: 0
S162: 0
S163: 0
R164: =IF(G164="","",IF(INDIRECT("Archiv!C"&G164)<1,"",INDIRECT("Archiv!C"&G164))) ->  | S164: =10-COUNTBLANK(H164:Q164) -> 0
S165: 0
S166: 0
S167: 0
S168: 0
S169: 0
S170: 0
S171: 0
S172: 0
S173: 0
S174: 0
S175: 0
S176: 0
S177: 0
S178: 0
S179: 0
S180: 0
S181: 0
S182: 0
S183: 0
S184: 0
S185: 0
S186: 0
S187: 0
S188: 0
S189: 0
S190: 0
S191: 0
S192: 0
S193: 0
S194: 0
S195: 0
R196: =IF(G196="","",IF(INDIRECT("Archiv!C"&G196)<1,"",INDIRECT("Archiv!C"&G196))) ->  | S196: =10-COUNTBLANK(H196:Q196) -> 0
E197: =IF(G197="","",IF(INDIRECT("Archiv!C"&G197)>1,INDIRECT("Archiv!H"&G197+5),IF($S$1=1,0,""))) ->  | F197: =IF(G197="","",IF(INDIRECT("Archiv!C"&G197)>1,INDIRECT("Archiv!H"&G197+7),IF($S$1=1,999,""))) ->  | H197: =IF($G197="","",IF(INDIRECT("Archiv!AC"&$G197)<1,"",IF(INDIRECT("Archiv!AO"&($G197+13))=0,"Modulzeit?",MID(INDIRECT("Archiv!AC"&$G197),15,5)))) ->  | I197: =IF($G197="","",IF(INDIRECT("Archiv!BC"&$G197)<1,"",IF(INDIRECT("Archiv!BO"&($G197+14))=0,"Modulzeit?",MID(INDIRECT("Archiv!BC"&$G197),15,5)))) ->  | J197: =IF($G197="","",IF(INDIRECT("Archiv!CC"&$G197)<1,"",IF(INDIRECT("Archiv!CO"&($G197+45))=0,"Modulzeit?",IF(AND(INDIRECT("Archiv!CB"&($G197+25))="",INDIRECT("Archiv!CB"&($G197+33))="",INDIRECT("Archiv!CB"&($G197+40))=""),"Taktzeit?",MID(INDIRECT("Archiv!CC"&$G197),15,5))))) ->  | K197: =IF($G197="","",IF(INDIRECT("Archiv!DC"&$G197)<1,"", IF(INDIRECT("Archiv!DO"&($G197+17))=0,"Modulzeit?",IF(INDIRECT("Archiv!DC"&($G197+15))="","Taktzeit?",MID(INDIRECT("Archiv!DC"&$G197),15,5))))) ->  | L197: =IF($G197="","",IF(INDIRECT("Archiv!EC"&$G197)<1,"",IF(INDIRECT("Archiv!EO"&($G197+14))=0,"Modulzeit?",MID(INDIRECT("Archiv!EC"&$G197),15,5)))) ->  | M197: =IF($G197="","",IF(INDIRECT("Archiv!FC"&$G197)<1,"",IF(INDIRECT("Archiv!FO"&($G197+14))=0,"Modulzeit?",MID(INDIRECT("Archiv!FC"&$G197),15,5)))) ->  | S197: 0 | T197: =IF($V$2="","",IF($G197="","",IF(INDIRECT("Archiv!C"&$G197)<1,"",INDIRECT("Archiv!D"&$G197+$V$2)))) ->  | U197: =IF($V$2="","",IF($G197="","",IF(INDIRECT("Archiv!C"&$G197)<1,"",INDIRECT("Archiv!AO"&$G197+13)))) ->  | V197: =IF($V$2="","",IF($G197="","",IF(INDIRECT("Archiv!C"&$G197)<1,"",INDIRECT("Archiv!H"&$G197+$V$2)))) ->  | W197: =IF($Y$2="","",IF($G197="","",IF(INDIRECT("Archiv!C"&$G197)<1,"",INDIRECT("Archiv!D"&$G197+$Y$2)))) ->  | Y197: =IF($Y$2="","",IF($G197="","",IF(INDIRECT("Archiv!C"&$G197)<1,"",INDIRECT("Archiv!F"&$G197+$Y$2)))) ->  | Z197: =IF($AB$2="","",IF($G197="","",IF(INDIRECT("Archiv!C"&$G197)<1,"",INDIRECT("Archiv!D"&$G197+$AB$2)))) ->  | AA197: =IF($AB$2="","",IF($G197="","",IF(INDIRECT("Archiv!C"&$G197)<1,"",INDIRECT("Archiv!H"&$G197+$AB$2)))) ->  | AB197: =IF($AB$2="","",IF($G197="","",IF(INDIRECT("Archiv!C"&$G197)<1,"",INDIRECT("Archiv!F"&$G197+$AB$2)))) ->  | AC197: =IF($AE$2="","",IF($G197="","",IF(INDIRECT("Archiv!C"&$G197)<1,"",INDIRECT("Archiv!D"&$G197+$AE$2)))) ->  | AD197: =IF($AE$2="","",IF($G197="","",IF(INDIRECT("Archiv!C"&$G197)<1,"",INDIRECT("Archiv!H"&$G197+$AE$2)))) ->  | AE197: =IF($AE$2="","",IF($G197="","",IF(INDIRECT("Archiv!C"&$G197)<1,"",INDIRECT("Archiv!F"&$G197+$AE$2)))) ->  | AF197: =IF($AH$2="","",IF($G197="","",IF(INDIRECT("Archiv!C"&$G197)<1,"",INDIRECT("Archiv!D"&$G197+$AH$2)))) ->  | AH197: =IF($AH$2="","",IF($G197="","",IF(INDIRECT("Archiv!C"&$G197)<1,"",INDIRECT("Archiv!F"&$G197+$AH$2)))) ->  | AI197: =IF($AK$2="","",IF($G197="","",IF(INDIRECT("Archiv!C"&$G197)<1,"",INDIRECT("Archiv!D"&$G197+$AK$2)))) ->  | AK197: =IF($AK$2="","",IF($G197="","",IF(INDIRECT("Archiv!C"&$G197)<1,"",INDIRECT("Archiv!F"&$G197+$AK$2)))) ->  | AY197: =IF(G197="","",IF(INDIRECT("Archiv!G"&(G197+58))="","",INDIRECT("Archiv!G"&(G197+58)))) ->  | AZ197: =IF(G197="","",IF(INDIRECT("Archiv!I"&(G197+58))="","",INDIRECT("Archiv!I"&(G197+58)))) -> 
S198: 0
S199: 0
S200: 0
... 4 more rows

Sheet Teilnehmer
A1: Teilnehmerliste für den Leistungsvergleich der niedersächsischen Feuerwehren | P1: Inhalt der Tabelle wurde geändert:
B3: Art des Leistungsvergleichs: | C3: =IF(N4="nein","",IF(Auswertung!B5="","",Auswertung!B5)) -> Musterentscheid | H3: Die Einheit tritt an als: | I3: Staffel: | J3: =IF(N5="nein","",IF(Auswertung!C9="","",Auswertung!C9)) ->  | L3: Daten gemäß Voreinstellung bzw. aktiver Einheit in "Auswertung" anzeigen?
B4: Austragungsort: | C4: =IF(N4="nein","",IF(Auswertung!B4="","",Auswertung!B4)) -> Musterstadt | I4: Gruppe: | J4: =IF(N5="nein","",IF(Auswertung!E9="","",Auswertung!E9)) -> x | M4: Art, Ort, Datum: | N4: ja
B5: Austragungsdatum: | C5: =IF(N4="nein","",IF(Auswertung!B3="","",TEXT(Auswertung!B3,"TT.MM.JJJJ"))) -> 08.09.2024 | M5: Einheit, Gemeinde, Format: | N5: ja
B7: Name der Einheit (Ortsfeuerwehr): | C7: =IF(N5="nein","",IF(Auswertung!B7="","",Auswertung!B7)) -> Musterort | G7: Fahrzeugtyp: | L7: Rückmelde - Text in der Tabelle "Teilnehmer", Zeile 30, anzeigen?
B8: Gemeinde / Stadt: | C8: =IF(Auswertung!N3="ohne","",IF(N5="nein","",IF(Auswertung!B7="","",VLOOKUP(C7,Einheiten!B4:D99,3,FALSE)))) -> Musterstadt | G8: Kennzeichen: | N8: ja
B9: Landkreis / Region: | C9: =IF(Auswertung!N3="ohne","",IF(N5="nein","",IF(Auswertung!B7="","",VLOOKUP(C7,Einheiten!B4:AZ204,49,FALSE)))) -> Musterkreis | G9: Achsbreite | J9: cm | M9: Anzeige: | N9: Ausgefüllt per E-Mail an: leistungsvergleich.harburg@web.de
G10: Aufbaubreite | J10: cm | M10: Beispiel: | N10: Ausgefüllt per E-Mail an: leistungsvergleich.harburg@web.de
F12: Teilnehmerin / Teilnehmer an folgenden Modulen:
A13: Nr. | B13: Name | C13: Vorname | D13: Geb. Datum | E13: Leistungs- spange | F13: ="A"&CHAR(10)&IF(ISERROR(VLOOKUP(Auswertung!$M$16,Auswertung!$AC$34:$AN$43,12,FALSE)),"------",VLOOKUP(Auswertung!$M$16,Auswertung!$AC$34:$AN$43,12,FALSE)) -> A Lösch | G13: ="B"&CHAR(10)&IF(ISERROR(VLOOKUP(Auswertung!$M$18,Auswertung!$AC$34:$AN$43,12,FALSE)),"------",VLOOKUP(Auswertung!$M$18,Auswertung!$AC$34:$AN$43,12,FALSE)) -> B Saugl | H13: ="C"&CHAR(10)&IF(ISERROR(VLOOKUP(Auswertung!$M$20,Auswertung!$AC$34:$AN$43,12,FALSE)),"------",VLOOKUP(Auswertung!$M$20,Auswertung!$AC$34:$AN$43,12,FALSE)) -> C Funk | I13: ="D"&CHAR(10)&IF(ISERROR(VLOOKUP(Auswertung!$M$22,Auswertung!$AC$34:$AN$43,12,FALSE)),"------",VLOOKUP(Auswertung!$M$22,Auswertung!$AC$34:$AN$43,12,FALSE)) -> D ------ | J13: ="E"&CHAR(10)&IF(ISERROR(VLOOKUP(Auswertung!$M$24,Auswertung!$AC$34:$AN$43,12,FALSE)),"------",VLOOKUP(Auswertung!$M$24,Auswertung!$AC$34:$AN$43,12,FALSE)) -> E ------
A14: 1
A15: 2
A16: 3
A17: 4
A18: 5
A19: 6
A20: 7
A21: 8
A22: 9
A23: 10
A24: 11 | M24: =HYPERLINK("#"&ADDRESS(MATCH("*"&RIGHT(CELL("dateiname",$A$1),LEN(CELL("dateiname",$A$1))-FIND("]",CELL("dateiname",$A$1)))&"*",Beschreibung100!B:B,0)+15,1,,1,"Beschreibung100"),"Hilfe beim Ausfüllen der Tabelle? Klick mich an!") -> Hilfe beim Ausfüllen der Tabelle? Klick mich an!
A25: 12
A28: Für die Richtigkeit (Name & Unterschrift Einheitsführer): | M28: Hilfe beim Import von Daten aus den ausfüllbaren PDF's: Siehe "Online - Hilfe"!!
A30: =IF(N8="ja",N9,"") -> Ausgefüllt per E-Mail an: leistungsvergleich.harburg@web.de | D30: Mit der Abgabe der Nennung akzeptiere ich, dass die Daten elektronisch erfasst werden.

Sheet Siegerliste
A1: Siegerliste Landesentscheid in Duderstadt | M1: 4
B2: am 08.09.2024 | C2: Format | D2: ZE-Grad | E2: Ges.Zeit | F2: Gemeinde / Stadt | G2: Landkreis/Stadt/Region
A3: Platz | B3: Einheit Name | C3: Gruppe Staffel | D3: [%] | E3: [Sek.]

Sheet Bestenliste
A1: Bestenliste Landesentscheid in Duderstadt | F1: ="Sortiert nach: "&BA2 -> Sortiert nach: Ohne | AZ1: Bereich für die Textaufbereitung für "Letzte Sortierung": | BA1: 0
B2: am 08.09.2024 | C2: Format | D2: Einheit aus | E2: ZE-Grad | F2: Ges.Zeit | BA2: =INDIRECT("BA"&BA1+3,TRUE) -> Ohne
A3: Platz | B3: Einheit Name | C3: Gruppe Staffel | D3: Gemeinde / Stadt | E3: [%] | F3: [Sek.] | G3: ZE-Grad (%) | H3: Taktzeit (Sek) | I3: Ges.Zeit (Sek) | J3: ZE-Grad (%) | K3: Kuppelzeit (Sek) | L3: Ges.Zeit (Sek) | M3: ZE-Grad (%) | N3: Taktzeit (Sek) | O3: Ges.Zeit (Sek) | P3: ZE-Grad (%) | Q3: Taktzeit (Sek) | R3: Ges.Zeit (Sek) | S3: ZE-Grad (%) | T3: Taktzeit (Sek) | U3: Ges.Zeit (Sek) | AZ3: Text ohne Sortierung für Zelle F1 | BA3: Ohne
AZ4: Text Sortierung 1 | BA4: ZE-Grad alle Module (Gesamtzeit Module, Name Einheit)
AZ5: Text Sortierung 2 | BA5: Gesamtzeit (=Sume Taktzeiten) alle Module (ZE-Grad, Name Einheit)
AZ6: Text Sortierung 3 | BA6: Einheit nach Name
AZ7: Text Sortierung 4 | BA7: Platz Nummer (Name Einheit, ZE-Grad)
AZ8: Text Sortierung 5 | BA8: Format (Gruppe / Staffel) (ZE-Grad, Gesamtzeit Modul)
AZ9: Text Sortierung 6 | BA9: Gemeinde / Stadt (ZE-Grad, Gesamtzeit Modul)
AZ10: Text Sortierung 7
AZ11: Text Sortierung 8
AZ12: Text Sortierung 9
AZ13: Text Sortierung 10 | BA13: === Bereich 11 - 13 = Texte für 1. Modul (G-I) =====
AZ14: Text Sortierung 11 | BA14: ="Modul 1, "&G2&", ZE-Grad (Zeit, Name Einheit)" -> Modul 1, , ZE-Grad (Zeit, Name Einheit)
AZ15: Text Sortierung 12 | BA15: ="Modul 1, "&G2&", Zeit, (ZE-Grad, Name Einheit)" -> Modul 1, , Zeit, (ZE-Grad, Name Einheit)
AZ16: Text Sortierung 13 | BA16: ="Modul 1, "&G2&", Zeit, (ZE-Grad, Name Einheit)" -> Modul 1, , Zeit, (ZE-Grad, Name Einheit)
AZ17: Text Sortierung 14
AZ18: Text Sortierung 15
AZ19: Text Sortierung 16
AZ20: Text Sortierung 17
AZ21: Text Sortierung 18
AZ22: Text Sortierung 19
AZ23: Text Sortierung 20 | BA23: === Bereich 21 - 23 = Texte für 2. Modul (J-L) =====
AZ24: Text Sortierung 21 | BA24: ="Modul 2, "&J2&", ZE-Grad (Zeit, Name Einheit)" -> Modul 2, , ZE-Grad (Zeit, Name Einheit)
AZ25: Text Sortierung 22 | BA25: ="Modul 2, "&J2 & ", Zeit, (ZE-Grad, Name Einheit)" -> Modul 2, , Zeit, (ZE-Grad, Name Einheit)
AZ26: Text Sortierung 23 | BA26: ="Modul 2, "&J2 & ", Zeit, (ZE-Grad, Name Einheit)" -> Modul 2, , Zeit, (ZE-Grad, Name Einheit)
AZ27: Text Sortierung 24
AZ28: Text Sortierung 25
AZ29: Text Sortierung 26
AZ30: Text Sortierung 27
AZ31: Text Sortierung 28
AZ32: Text Sortierung 29
AZ33: Text Sortierung 30 | BA33: === Bereich 31 - 33 = Texte für 3. Modul (M-O) =====
AZ34: Text Sortierung 31 | BA34: ="Modul 3, "&M2&", ZE-Grad (Zeit, Name Einheit)" -> Modul 3, , ZE-Grad (Zeit, Name Einheit)
AZ35: Text Sortierung 32 | BA35: ="Modul 3, "&M2 & ", Zeit, (ZE-Grad, Name Einheit)" -> Modul 3, , Zeit, (ZE-Grad, Name Einheit)
AZ36: Text Sortierung 33 | BA36: ="Modul 3, "&M2 & ", Zeit, (ZE-Grad, Name Einheit)" -> Modul 3, , Zeit, (ZE-Grad, Name Einheit)
AZ37: Text Sortierung 34
AZ38: Text Sortierung 35
AZ39: Text Sortierung 36
AZ40: Text Sortierung 37
AZ41: Text Sortierung 38
AZ42: Text Sortierung 39
AZ43: Text Sortierung 40 | BA43: === Bereich 41 - 43 = Texte für 4. Modul (P-R) =====
AZ44: Text Sortierung 41 | BA44: ="Modul 4, "&P2&", ZE-Grad (Zeit, Name Einheit)" -> Modul 4, , ZE-Grad (Zeit, Name Einheit)
AZ45: Text Sortierung 42 | BA45: ="Modul 4, "&P2 & ", Zeit, (ZE-Grad, Name Einheit)" -> Modul 4, , Zeit, (ZE-Grad, Name Einheit)
AZ46: Text Sortierung 43 | BA46: ="Modul 4, "&P2 & ", Zeit, (ZE-Grad, Name Einheit)" -> Modul 4, , Zeit, (ZE-Grad, Name Einheit)
AZ47: Text Sortierung 44
AZ48: Text Sortierung 45
AZ49: Text Sortierung 46
AZ50: Text Sortierung 47
AZ51: Text Sortierung 48
AZ52: Text Sortierung 49
AZ53: Text Sortierung 50 | BA53: === Bereich 51 - 53 = Texte für 5. Modul (S-U) =====
AZ54: Text Sortierung 51 | BA54: ="Modul 5, "&S2&", ZE-Grad (Zeit, Name Einheit)" -> Modul 5, , ZE-Grad (Zeit, Name Einheit)
AZ55: Text Sortierung 52 | BA55: ="Modul 5, "&S2 & ", Zeit, (ZE-Grad, Name Einheit)" -> Modul 5, , Zeit, (ZE-Grad, Name Einheit)
AZ56: Text Sortierung 53 | BA56: ="Modul 5, "&S2 & ", Zeit, (ZE-Grad, Name Einheit)" -> Modul 5, , Zeit, (ZE-Grad, Name Einheit)
AZ57: Text Sortierung 54
AZ58: Text Sortierung 55
AZ59: Text Sortierung 56
AZ60: Text Sortierung 57
AZ61: Text Sortierung 58
AZ62: Text Sortierung 59

Sheet NdsFeuerwehren
A1: LfdNr | B1: LfdNrLand | C1: Land | D1: LfdNrRegion | E1: Region | F1: LfdNrLK | G1: Landkreis | H1: LfdNrGem | I1: Abschnitt | J1: ="Gemeinde / Stadt" & CHAR(10) & CHAR(10) & "Anzahl: " & COUNTA(J2:J99850) & CHAR(10) & "gefiltert: " & SUBTOTAL(103,J2:J99850) -> Gemeinde / Stadt Anzahl: 3270 gefiltert: 3270 | K1: LfdNr Ortswehr | L1: ="Name Ortsfeuerwehr" & CHAR(10) & CHAR(10) & "Anzahl: " & COUNTA(L2:L99850) & CHAR(10) & "gefiltert: " & SUBTOTAL(103,L2:L99850) -> Name Ortsfeuerwehr Anzahl: 3270 gefiltert: 3270 | M1: ="Kennungen: " & CHAR(10) & CHAR(10) & "Anzahl: " & COUNTA(M2:M99850) & CHAR(10) & "gefiltert: " & SUBTOTAL(103,M2:M99850) -> Kennungen: Anzahl: 0 gefiltert: 0 | N1: =IF(SUBTOTAL(9,A:A)<SUM(A:A)," Achtung, Filter ist aktiv!","") -> 
A2: =IF(L2="","",B2+D2+F2+H2+K2) -> 9001001001001 | B2: 9000000000000 | C2: Niedersachsen | D2: 1000000000 | E2: Braunschweig | F2: 1000000 | G2: Stadt Braunschweig | H2: 1000 | J2: Braunschweig | K2: 1 | L2: Bevenrode | N2: ----->>
A3: =IF(L3="","",B3+D3+F3+H3+K3) -> 9001001001002 | B3: 9000000000000 | C3: Niedersachsen | D3: 1000000000 | E3: Braunschweig | F3: 1000000 | G3: Stadt Braunschweig | H3: 1000 | J3: Braunschweig | K3: 2 | L3: Bienrode | N3: ----->>
A4: 9001001001003 | B4: 9000000000000 | C4: Niedersachsen | D4: 1000000000 | E4: Braunschweig | F4: 1000000 | G4: Stadt Braunschweig | H4: 1000 | J4: Braunschweig | K4: 3 | L4: Broitzem | N4: ----->>
A5: 9001001001004 | B5: 9000000000000 | C5: Niedersachsen | D5: 1000000000 | E5: Braunschweig | F5: 1000000 | G5: Stadt Braunschweig | H5: 1000 | J5: Braunschweig | K5: 4 | L5: Dibbesdorf | N5: ----->>
A6: 9001001001005 | B6: 9000000000000 | C6: Niedersachsen | D6: 1000000000 | E6: Braunschweig | F6: 1000000 | G6: Stadt Braunschweig | H6: 1000 | J6: Braunschweig | K6: 5 | L6: Geitelde | N6: ----->>
A7: 9001001001006 | B7: 9000000000000 | C7: Niedersachsen | D7: 1000000000 | E7: Braunschweig | F7: 1000000 | G7: Stadt Braunschweig | H7: 1000 | J7: Braunschweig | K7: 6 | L7: Harxbüttel | N7: ----->>
A8: 9001001001007 | B8: 9000000000000 | C8: Niedersachsen | D8: 1000000000 | E8: Braunschweig | F8: 1000000 | G8: Stadt Braunschweig | H8: 1000 | J8: Braunschweig | K8: 7 | L8: Rautheim | N8: ----->>
A9: 9001001001008 | B9: 9000000000000 | C9: Niedersachsen | D9: 1000000000 | E9: Braunschweig | F9: 1000000 | G9: Stadt Braunschweig | H9: 1000 | J9: Braunschweig | K9: 8 | L9: Hondelage | N9: ----->>
A10: 9001001001009 | B10: 9000000000000 | C10: Niedersachsen | D10: 1000000000 | E10: Braunschweig | F10: 1000000 | G10: Stadt Braunschweig | H10: 1000 | J10: Braunschweig | K10: 9 | L10: Innenstadt | N10: ----->>
A11: 9001001001010 | B11: 9000000000000 | C11: Niedersachsen | D11: 1000000000 | E11: Braunschweig | F11: 1000000 | G11: Stadt Braunschweig | H11: 1000 | J11: Braunschweig | K11: 10 | L11: Lamme | N11: ----->>
A12: 9001001001011 | B12: 9000000000000 | C12: Niedersachsen | D12: 1000000000 | E12: Braunschweig | F12: 1000000 | G12: Stadt Braunschweig | H12: 1000 | J12: Braunschweig | K12: 11 | L12: Lehndorf | N12: ----->>
A13: 9001001001012 | B13: 9000000000000 | C13: Niedersachsen | D13: 1000000000 | E13: Braunschweig | F13: 1000000 | G13: Stadt Braunschweig | H13: 1000 | J13: Braunschweig | K13: 12 | L13: Leiferde | N13: ----->>
A14: 9001001001013 | B14: 9000000000000 | C14: Niedersachsen | D14: 1000000000 | E14: Braunschweig | F14: 1000000 | G14: Stadt Braunschweig | H14: 1000 | J14: Braunschweig | K14: 13 | L14: Mascherode | N14: ----->>
A15: 9001001001014 | B15: 9000000000000 | C15: Niedersachsen | D15: 1000000000 | E15: Braunschweig | F15: 1000000 | G15: Stadt Braunschweig | H15: 1000 | J15: Braunschweig | K15: 14 | L15: Melverode | N15: ----->>
A16: 9001001001015 | B16: 9000000000000 | C16: Niedersachsen | D16: 1000000000 | E16: Braunschweig | F16: 1000000 | G16: Stadt Braunschweig | H16: 1000 | J16: Braunschweig | K16: 15 | L16: Ölper | N16: ----->>
A17: 9001001001016 | B17: 9000000000000 | C17: Niedersachsen | D17: 1000000000 | E17: Braunschweig | F17: 1000000 | G17: Stadt Braunschweig | H17: 1000 | J17: Braunschweig | K17: 16 | L17: Riddagshausen | N17: ----->>
A18: 9001001001017 | B18: 9000000000000 | C18: Niedersachsen | D18: 1000000000 | E18: Braunschweig | F18: 1000000 | G18: Stadt Braunschweig | H18: 1000 | J18: Braunschweig | K18: 17 | L18: Rühme | N18: ----->>
A19: 9001001001018 | B19: 9000000000000 | C19: Niedersachsen | D19: 1000000000 | E19: Braunschweig | F19: 1000000 | G19: Stadt Braunschweig | H19: 1000 | J19: Braunschweig | K19: 18 | L19: Rüningen | N19: ----->>
A20: 9001001001019 | B20: 9000000000000 | C20: Niedersachsen | D20: 1000000000 | E20: Braunschweig | F20: 1000000 | G20: Stadt Braunschweig | H20: 1000 | J20: Braunschweig | K20: 19 | L20: Schapen | N20: ----->>
A21: 9001001001020 | B21: 9000000000000 | C21: Niedersachsen | D21: 1000000000 | E21: Braunschweig | F21: 1000000 | G21: Stadt Braunschweig | H21: 1000 | J21: Braunschweig | K21: 20 | L21: Stiddien | N21: ----->>
A22: 9001001001021 | B22: 9000000000000 | C22: Niedersachsen | D22: 1000000000 | E22: Braunschweig | F22: 1000000 | G22: Stadt Braunschweig | H22: 1000 | J22: Braunschweig | K22: 21 | L22: Stöckheim | N22: ----->>
A23: 9001001001022 | B23: 9000000000000 | C23: Niedersachsen | D23: 1000000000 | E23: Braunschweig | F23: 1000000 | G23: Stadt Braunschweig | H23: 1000 | J23: Braunschweig | K23: 22 | L23: Timmerlah | N23: ----->>
A24: 9001001001023 | B24: 9000000000000 | C24: Niedersachsen | D24: 1000000000 | E24: Braunschweig | F24: 1000000 | G24: Stadt Braunschweig | H24: 1000 | J24: Braunschweig | K24: 23 | L24: Thune | N24: ----->>
A25: 9001001001024 | B25: 9000000000000 | C25: Niedersachsen | D25: 1000000000 | E25: Braunschweig | F25: 1000000 | G25: Stadt Braunschweig | H25: 1000 | J25: Braunschweig | K25: 24 | L25: Veltenhof | N25: ----->>
A26: 9001001001025 | B26: 9000000000000 | C26: Niedersachsen | D26: 1000000000 | E26: Braunschweig | F26: 1000000 | G26: Stadt Braunschweig | H26: 1000 | J26: Braunschweig | K26: 25 | L26: Völkenrode | N26: ----->>
A27: 9001001001026 | B27: 9000000000000 | C27: Niedersachsen | D27: 1000000000 | E27: Braunschweig | F27: 1000000 | G27: Stadt Braunschweig | H27: 1000 | J27: Braunschweig | K27: 26 | L27: Volkmarode | N27: ----->>
A28: 9001001001027 | B28: 9000000000000 | C28: Niedersachsen | D28: 1000000000 | E28: Braunschweig | F28: 1000000 | G28: Stadt Braunschweig | H28: 1000 | J28: Braunschweig | K28: 27 | L28: Waggum | N28: ----->>
A29: 9001001001028 | B29: 9000000000000 | C29: Niedersachsen | D29: 1000000000 | E29: Braunschweig | F29: 1000000 | G29: Stadt Braunschweig | H29: 1000 | J29: Braunschweig | K29: 28 | L29: Watenbüttel | N29: ----->>
A30: 9001001001029 | B30: 9000000000000 | C30: Niedersachsen | D30: 1000000000 | E30: Braunschweig | F30: 1000000 | G30: Stadt Braunschweig | H30: 1000 | J30: Braunschweig | K30: 29 | L30: Wenden | N30: ----->>
A31: 9001001001030 | B31: 9000000000000 | C31: Niedersachsen | D31: 1000000000 | E31: Braunschweig | F31: 1000000 | G31: Stadt Braunschweig | H31: 1000 | J31: Braunschweig | K31: 30 | L31: Querum | N31: ----->>
A32: 9001002001001 | B32: 9000000000000 | C32: Niedersachsen | D32: 1000000000 | E32: Braunschweig | F32: 2000000 | G32: Stadt Salzgitter | H32: 1000 | J32: Salzgitter | K32: 1 | L32: Bad | N32: ----->>
A33: 9001002001002 | B33: 9000000000000 | C33: Niedersachsen | D33: 1000000000 | E33: Braunschweig | F33: 2000000 | G33: Stadt Salzgitter | H33: 1000 | J33: Salzgitter | K33: 2 | L33: Barum | N33: ----->>
A34: 9001002001003 | B34: 9000000000000 | C34: Niedersachsen | D34: 1000000000 | E34: Braunschweig | F34: 2000000 | G34: Stadt Salzgitter | H34: 1000 | J34: Salzgitter | K34: 3 | L34: Beddingen | N34: ----->>
A35: 9001002001004 | B35: 9000000000000 | C35: Niedersachsen | D35: 1000000000 | E35: Braunschweig | F35: 2000000 | G35: Stadt Salzgitter | H35: 1000 | J35: Salzgitter | K35: 4 | L35: Beinum | N35: ----->>
A36: 9001002001005 | B36: 9000000000000 | C36: Niedersachsen | D36: 1000000000 | E36: Braunschweig | F36: 2000000 | G36: Stadt Salzgitter | H36: 1000 | J36: Salzgitter | K36: 5 | L36: Bleckenstedt | N36: ----->>
A37: 9001002001006 | B37: 9000000000000 | C37: Niedersachsen | D37: 1000000000 | E37: Braunschweig | F37: 2000000 | G37: Stadt Salzgitter | H37: 1000 | J37: Salzgitter | K37: 6 | L37: Bruchmachtersen | N37: ----->>
A38: 9001002001007 | B38: 9000000000000 | C38: Niedersachsen | D38: 1000000000 | E38: Braunschweig | F38: 2000000 | G38: Stadt Salzgitter | H38: 1000 | J38: Salzgitter | K38: 7 | L38: Calbecht | N38: ----->>
A39: 9001002001008 | B39: 9000000000000 | C39: Niedersachsen | D39: 1000000000 | E39: Braunschweig | F39: 2000000 | G39: Stadt Salzgitter | H39: 1000 | J39: Salzgitter | K39: 8 | L39: Engelnstedt | N39: ----->>
A40: 9001002001009 | B40: 9000000000000 | C40: Niedersachsen | D40: 1000000000 | E40: Braunschweig | F40: 2000000 | G40: Stadt Salzgitter | H40: 1000 | J40: Salzgitter | K40: 9 | L40: Engerode | N40: ----->>
A41: 9001002001010 | B41: 9000000000000 | C41: Niedersachsen | D41: 1000000000 | E41: Braunschweig | F41: 2000000 | G41: Stadt Salzgitter | H41: 1000 | J41: Salzgitter | K41: 10 | L41: Flachstöckheim | N41: ----->>
A42: 9001002001011 | B42: 9000000000000 | C42: Niedersachsen | D42: 1000000000 | E42: Braunschweig | F42: 2000000 | G42: Stadt Salzgitter | H42: 1000 | J42: Salzgitter | K42: 11 | L42: Gebhardshagen | N42: ----->>
A43: 9001002001012 | B43: 9000000000000 | C43: Niedersachsen | D43: 1000000000 | E43: Braunschweig | F43: 2000000 | G43: Stadt Salzgitter | H43: 1000 | J43: Salzgitter | K43: 12 | L43: Gitter | N43: ----->>
A44: 9001002001013 | B44: 9000000000000 | C44: Niedersachsen | D44: 1000000000 | E44: Braunschweig | F44: 2000000 | G44: Stadt Salzgitter | H44: 1000 | J44: Salzgitter | K44: 13 | L44: Groß Mahner | N44: ----->>
A45: 9001002001014 | B45: 9000000000000 | C45: Niedersachsen | D45: 1000000000 | E45: Braunschweig | F45: 2000000 | G45: Stadt Salzgitter | H45: 1000 | J45: Salzgitter | K45: 14 | L45: Hallendorf | N45: ----->>
A46: 9001002001015 | B46: 9000000000000 | C46: Niedersachsen | D46: 1000000000 | E46: Braunschweig | F46: 2000000 | G46: Stadt Salzgitter | H46: 1000 | J46: Salzgitter | K46: 15 | L46: Heerte | N46: ----->>
A47: 9001002001016 | B47: 9000000000000 | C47: Niedersachsen | D47: 1000000000 | E47: Braunschweig | F47: 2000000 | G47: Stadt Salzgitter | H47: 1000 | J47: Salzgitter | K47: 16 | L47: Hohenrode | N47: ----->>
A48: 9001002001017 | B48: 9000000000000 | C48: Niedersachsen | D48: 1000000000 | E48: Braunschweig | F48: 2000000 | G48: Stadt Salzgitter | H48: 1000 | J48: Salzgitter | K48: 17 | L48: Immendorf | N48: ----->>
A49: 9001002001018 | B49: 9000000000000 | C49: Niedersachsen | D49: 1000000000 | E49: Braunschweig | F49: 2000000 | G49: Stadt Salzgitter | H49: 1000 | J49: Salzgitter | K49: 18 | L49: Lebenstedt | N49: ----->>
A50: 9001002001019 | B50: 9000000000000 | C50: Niedersachsen | D50: 1000000000 | E50: Braunschweig | F50: 2000000 | G50: Stadt Salzgitter | H50: 1000 | J50: Salzgitter | K50: 19 | L50: Lesse | N50: ----->>
A51: 9001002001020 | B51: 9000000000000 | C51: Niedersachsen | D51: 1000000000 | E51: Braunschweig | F51: 2000000 | G51: Stadt Salzgitter | H51: 1000 | J51: Salzgitter | K51: 20 | L51: Lichtenberg | N51: ----->>
A52: 9001002001021 | B52: 9000000000000 | C52: Niedersachsen | D52: 1000000000 | E52: Braunschweig | F52: 2000000 | G52: Stadt Salzgitter | H52: 1000 | J52: Salzgitter | K52: 21 | L52: Lobmachtersen | N52: ----->>
A53: 9001002001022 | B53: 9000000000000 | C53: Niedersachsen | D53: 1000000000 | E53: Braunschweig | F53: 2000000 | G53: Stadt Salzgitter | H53: 1000 | J53: Salzgitter | K53: 22 | L53: Ohlendorf | N53: ----->>
A54: 9001002001023 | B54: 9000000000000 | C54: Niedersachsen | D54: 1000000000 | E54: Braunschweig | F54: 2000000 | G54: Stadt Salzgitter | H54: 1000 | J54: Salzgitter | K54: 23 | L54: Osterlinde | N54: ----->>
A55: 9001002001024 | B55: 9000000000000 | C55: Niedersachsen | D55: 1000000000 | E55: Braunschweig | F55: 2000000 | G55: Stadt Salzgitter | H55: 1000 | J55: Salzgitter | K55: 24 | L55: Reppner | N55: ----->>
A56: 9001002001025 | B56: 9000000000000 | C56: Niedersachsen | D56: 1000000000 | E56: Braunschweig | F56: 2000000 | G56: Stadt Salzgitter | H56: 1000 | J56: Salzgitter | K56: 25 | L56: Ringelheim | N56: ----->>
A57: 9001002001026 | B57: 9000000000000 | C57: Niedersachsen | D57: 1000000000 | E57: Braunschweig | F57: 2000000 | G57: Stadt Salzgitter | H57: 1000 | J57: Salzgitter | K57: 26 | L57: Salder | N57: ----->>
A58: 9001002001027 | B58: 9000000000000 | C58: Niedersachsen | D58: 1000000000 | E58: Braunschweig | F58: 2000000 | G58: Stadt Salzgitter | H58: 1000 | J58: Salzgitter | K58: 27 | L58: Sauingen | N58: ----->>
A59: 9001002001028 | B59: 9000000000000 | C59: Niedersachsen | D59: 1000000000 | E59: Braunschweig | F59: 2000000 | G59: Stadt Salzgitter | H59: 1000 | J59: Salzgitter | K59: 28 | L59: Thiede | N59: ----->>
A60: 9001002001029 | B60: 9000000000000 | C60: Niedersachsen | D60: 1000000000 | E60: Braunschweig | F60: 2000000 | G60: Stadt Salzgitter | H60: 1000 | J60: Salzgitter | K60: 29 | L60: Üfingen | N60: ----->>
A61: 9001003001001 | B61: 9000000000000 | C61: Niedersachsen | D61: 1000000000 | E61: Braunschweig | F61: 3000000 | G61: Stadt Wolfsburg | H61: 1000 | J61: Wolfsburg | K61: 1 | L61: Kästorf | N61: ----->>
A62: 9001003001002 | B62: 9000000000000 | C62: Niedersachsen | D62: 1000000000 | E62: Braunschweig | F62: 3000000 | G62: Stadt Wolfsburg | H62: 1000 | J62: Wolfsburg | K62: 2 | L62: Almke | N62: ----->>
A63: 9001003001003 | B63: 9000000000000 | C63: Niedersachsen | D63: 1000000000 | E63: Braunschweig | F63: 3000000 | G63: Stadt Wolfsburg | H63: 1000 | J63: Wolfsburg | K63: 3 | L63: Barnstorf | N63: ----->>
A64: 9001003001004 | B64: 9000000000000 | C64: Niedersachsen | D64: 1000000000 | E64: Braunschweig | F64: 3000000 | G64: Stadt Wolfsburg | H64: 1000 | J64: Wolfsburg | K64: 4 | L64: Brackstedt | N64: ----->>
A65: 9001003001005 | B65: 9000000000000 | C65: Niedersachsen | D65: 1000000000 | E65: Braunschweig | F65: 3000000 | G65: Stadt Wolfsburg | H65: 1000 | J65: Wolfsburg | K65: 5 | L65: Ehmen | N65: ----->>
A66: 9001003001006 | B66: 9000000000000 | C66: Niedersachsen | D66: 1000000000 | E66: Braunschweig | F66: 3000000 | G66: Stadt Wolfsburg | H66: 1000 | J66: Wolfsburg | K66: 6 | L66: Fallersleben | N66: ----->>
A67: =IF(L67="","",B67+D67+F67+H67+K67) -> 9001003001007 | B67: 9000000000000 | C67: Niedersachsen | D67: 1000000000 | E67: Braunschweig | F67: 3000000 | G67: Stadt Wolfsburg | H67: 1000 | J67: Wolfsburg | K67: 7 | L67: Hattorf | N67: ----->>
A68: 9001003001008 | B68: 9000000000000 | C68: Niedersachsen | D68: 1000000000 | E68: Braunschweig | F68: 3000000 | G68: Stadt Wolfsburg | H68: 1000 | J68: Wolfsburg | K68: 8 | L68: Hehlingen | N68: ----->>
A69: 9001003001009 | B69: 9000000000000 | C69: Niedersachsen | D69: 1000000000 | E69: Braunschweig | F69: 3000000 | G69: Stadt Wolfsburg | H69: 1000 | J69: Wolfsburg | K69: 9 | L69: Heiligendorf | N69: ----->>
A70: 9001003001010 | B70: 9000000000000 | C70: Niedersachsen | D70: 1000000000 | E70: Braunschweig | F70: 3000000 | G70: Stadt Wolfsburg | H70: 1000 | J70: Wolfsburg | K70: 10 | L70: Kästorf | N70: ----->>
A71: 9001003001011 | B71: 9000000000000 | C71: Niedersachsen | D71: 1000000000 | E71: Braunschweig | F71: 3000000 | G71: Stadt Wolfsburg | H71: 1000 | J71: Wolfsburg | K71: 11 | L71: Mörse | N71: ----->>
A72: 9001003001012 | B72: 9000000000000 | C72: Niedersachsen | D72: 1000000000 | E72: Braunschweig | F72: 3000000 | G72: Stadt Wolfsburg | H72: 1000 | J72: Wolfsburg | K72: 12 | L72: Neindorf | N72: ----->>
A73: 9001003001013 | B73: 9000000000000 | C73: Niedersachsen | D73: 1000000000 | E73: Braunschweig | F73: 3000000 | G73: Stadt Wolfsburg | H73: 1000 | J73: Wolfsburg | K73: 13 | L73: Neuhaus | N73: ----->>
A74: 9001003001014 | B74: 9000000000000 | C74: Niedersachsen | D74: 1000000000 | E74: Braunschweig | F74: 3000000 | G74: Stadt Wolfsburg | H74: 1000 | J74: Wolfsburg | K74: 14 | L74: Nordsteimke | N74: ----->>
A75: 9001003001015 | B75: 9000000000000 | C75: Niedersachsen | D75: 1000000000 | E75: Braunschweig | F75: 3000000 | G75: Stadt Wolfsburg | H75: 1000 | J75: Wolfsburg | K75: 15 | L75: Reislingen | N75: ----->>
A76: 9001003001016 | B76: 9000000000000 | C76: Niedersachsen | D76: 1000000000 | E76: Braunschweig | F76: 3000000 | G76: Stadt Wolfsburg | H76: 1000 | J76: Wolfsburg | K76: 16 | L76: Stadtmitte | N76: ----->>
A77: 9001003001017 | B77: 9000000000000 | C77: Niedersachsen | D77: 1000000000 | E77: Braunschweig | F77: 3000000 | G77: Stadt Wolfsburg | H77: 1000 | J77: Wolfsburg | K77: 17 | L77: Sülfeld | N77: ----->>
A78: 9001003001018 | B78: 9000000000000 | C78: Niedersachsen | D78: 1000000000 | E78: Braunschweig | F78: 3000000 | G78: Stadt Wolfsburg | H78: 1000 | J78: Wolfsburg | K78: 18 | L78: Velstove | N78: ----->>
A79: 9001003001019 | B79: 9000000000000 | C79: Niedersachsen | D79: 1000000000 | E79: Braunschweig | F79: 3000000 | G79: Stadt Wolfsburg | H79: 1000 | J79: Wolfsburg | K79: 19 | L79: Vorsfelde | N79: ----->>
A80: 9001003001020 | B80: 9000000000000 | C80: Niedersachsen | D80: 1000000000 | E80: Braunschweig | F80: 3000000 | G80: Stadt Wolfsburg | H80: 1000 | J80: Wolfsburg | K80: 20 | L80: Warmenau | N80: ----->>
A81: 9001003001021 | B81: 9000000000000 | C81: Niedersachsen | D81: 1000000000 | E81: Braunschweig | F81: 3000000 | G81: Stadt Wolfsburg | H81: 1000 | J81: Wolfsburg | K81: 21 | L81: Wendschott | N81: ----->>
A82: 9001004001001 | B82: 9000000000000 | C82: Niedersachsen | D82: 1000000000 | E82: Braunschweig | F82: 4000000 | G82: Gifhorn | H82: 1000 | J82: Gifhorn | K82: 1 | L82: Gifhorn | N82: ----->>
A83: 9001004001002 | B83: 9000000000000 | C83: Niedersachsen | D83: 1000000000 | E83: Braunschweig | F83: 4000000 | G83: Gifhorn | H83: 1000 | J83: Gifhorn | K83: 2 | L83: Gamsen | N83: ----->>
A84: 9001004001003 | B84: 9000000000000 | C84: Niedersachsen | D84: 1000000000 | E84: Braunschweig | F84: 4000000 | G84: Gifhorn | H84: 1000 | J84: Gifhorn | K84: 3 | L84: Kästorf | N84: ----->>
A85: 9001004001004 | B85: 9000000000000 | C85: Niedersachsen | D85: 1000000000 | E85: Braunschweig | F85: 4000000 | G85: Gifhorn | H85: 1000 | J85: Gifhorn | K85: 4 | L85: Neubokel | N85: ----->>
A86: 9001004001005 | B86: 9000000000000 | C86: Niedersachsen | D86: 1000000000 | E86: Braunschweig | F86: 4000000 | G86: Gifhorn | H86: 1000 | J86: Gifhorn | K86: 5 | L86: Wilsche | N86: ----->>
A87: 9001004002001 | B87: 9000000000000 | C87: Niedersachsen | D87: 1000000000 | E87: Braunschweig | F87: 4000000 | G87: Gifhorn | H87: 2000 | J87: Sassenburg | K87: 1 | L87: Dannenbüttel | N87: ----->>
A88: 9001004002002 | B88: 9000000000000 | C88: Niedersachsen | D88: 1000000000 | E88: Braunschweig | F88: 4000000 | G88: Gifhorn | H88: 2000 | J88: Sassenburg | K88: 2 | L88: Grußendorf | N88: ----->>
A89: 9001004002003 | B89: 9000000000000 | C89: Niedersachsen | D89: 1000000000 | E89: Braunschweig | F89: 4000000 | G89: Gifhorn | H89: 2000 | J89: Sassenburg | K89: 3 | L89: Neudorf-Platendorf | N89: ----->>
A90: 9001004002004 | B90: 9000000000000 | C90: Niedersachsen | D90: 1000000000 | E90: Braunschweig | F90: 4000000 | G90: Gifhorn | H90: 2000 | J90: Sassenburg | K90: 4 | L90: Stüde | N90: ----->>
A91: 9001004002005 | B91: 9000000000000 | C91: Niedersachsen | D91: 1000000000 | E91: Braunschweig | F91: 4000000 | G91: Gifhorn | H91: 2000 | J91: Sassenburg | K91: 5 | L91: Triangel | N91: ----->>
A92: 9001004002006 | B92: 9000000000000 | C92: Niedersachsen | D92: 1000000000 | E92: Braunschweig | F92: 4000000 | G92: Gifhorn | H92: 2000 | J92: Sassenburg | K92: 6 | L92: Westerbeck | N92: ----->>
A93: 9001004003001 | B93: 9000000000000 | C93: Niedersachsen | D93: 1000000000 | E93: Braunschweig | F93: 4000000 | G93: Gifhorn | H93: 3000 | J93: Wittingen | K93: 1 | L93: Boitzenhagen | N93: ----->>
A94: 9001004003002 | B94: 9000000000000 | C94: Niedersachsen | D94: 1000000000 | E94: Braunschweig | F94: 4000000 | G94: Gifhorn | H94: 3000 | J94: Wittingen | K94: 2 | L94: Erpensen | N94: ----->>
A95: 9001004003003 | B95: 9000000000000 | C95: Niedersachsen | D95: 1000000000 | E95: Braunschweig | F95: 4000000 | G95: Gifhorn | H95: 3000 | J95: Wittingen | K95: 3 | L95: Gannerwinkel | N95: ----->>
A96: 9001004003004 | B96: 9000000000000 | C96: Niedersachsen | D96: 1000000000 | E96: Braunschweig | F96: 4000000 | G96: Gifhorn | H96: 3000 | J96: Wittingen | K96: 4 | L96: Glüsingen | N96: ----->>
A97: 9001004003005 | B97: 9000000000000 | C97: Niedersachsen | D97: 1000000000 | E97: Braunschweig | F97: 4000000 | G97: Gifhorn | H97: 3000 | J97: Wittingen | K97: 5 | L97: Knesebeck | N97: ----->>
A98: 9001004003006 | B98: 9000000000000 | C98: Niedersachsen | D98: 1000000000 | E98: Braunschweig | F98: 4000000 | G98: Gifhorn | H98: 3000 | J98: Wittingen | K98: 6 | L98: Lüben | N98: ----->>
A99: 9001004003007 | B99: 9000000000000 | C99: Niedersachsen | D99: 1000000000 | E99: Braunschweig | F99: 4000000 | G99: Gifhorn | H99: 3000 | J99: Wittingen | K99: 7 | L99: Hagen-Mahnburg | N99: ----->>
A100: 9001004003008 | B100: 9000000000000 | C100: Niedersachsen | D100: 1000000000 | E100: Braunschweig | F100: 4000000 | G100: Gifhorn | H100: 3000 | J100: Wittingen | K100: 8 | L100: Ohrdorf | N100: ----->>
A101: 9001004003009 | B101: 9000000000000 | C101: Niedersachsen | D101: 1000000000 | E101: Braunschweig | F101: 4000000 | G101: Gifhorn | H101: 3000 | J101: Wittingen | K101: 9 | L101: Rade | N101: ----->>
A102: 9001004003010 | B102: 9000000000000 | C102: Niedersachsen | D102: 1000000000 | E102: Braunschweig | F102: 4000000 | G102: Gifhorn | H102: 3000 | J102: Wittingen | K102: 10 | L102: Radenbeck | N102: ----->>
A103: 9001004003011 | B103: 9000000000000 | C103: Niedersachsen | D103: 1000000000 | E103: Braunschweig | F103: 4000000 | G103: Gifhorn | H103: 3000 | J103: Wittingen | K103: 11 | L103: Schneflingen | N103: ----->>
A104: 9001004003012 | B104: 9000000000000 | C104: Niedersachsen | D104: 1000000000 | E104: Braunschweig | F104: 4000000 | G104: Gifhorn | H104: 3000 | J104: Wittingen | K104: 12 | L104: Suderwittingen | N104: ----->>
A105: 9001004003013 | B105: 9000000000000 | C105: Niedersachsen | D105: 1000000000 | E105: Braunschweig | F105: 4000000 | G105: Gifhorn | H105: 3000 | J105: Wittingen | K105: 13 | L105: Vorhop | N105: ----->>
A106: 9001004003014 | B106: 9000000000000 | C106: Niedersachsen | D106: 1000000000 | E106: Braunschweig | F106: 4000000 | G106: Gifhorn | H106: 3000 | J106: Wittingen | K106: 14 | L106: Wittingen | N106: ----->>
A107: 9001004003015 | B107: 9000000000000 | C107: Niedersachsen | D107: 1000000000 | E107: Braunschweig | F107: 4000000 | G107: Gifhorn | H107: 3000 | J107: Wittingen | K107: 15 | L107: Zasenbeck | N107: ----->>
A108: 9001004004001 | B108: 9000000000000 | C108: Niedersachsen | D108: 1000000000 | E108: Braunschweig | F108: 4000000 | G108: Gifhorn | H108: 4000 | J108: Boldecker Land | K108: 1 | L108: Barwedel | N108: ----->>
A109: 9001004004002 | B109: 9000000000000 | C109: Niedersachsen | D109: 1000000000 | E109: Braunschweig | F109: 4000000 | G109: Gifhorn | H109: 4000 | J109: Boldecker Land | K109: 2 | L109: Bokensdorf | N109: ----->>
A110: 9001004004003 | B110: 9000000000000 | C110: Niedersachsen | D110: 1000000000 | E110: Braunschweig | F110: 4000000 | G110: Gifhorn | H110: 4000 | J110: Boldecker Land | K110: 3 | L110: Jembke | N110: ----->>
A111: 9001004004004 | B111: 9000000000000 | C111: Niedersachsen | D111: 1000000000 | E111: Braunschweig | F111: 4000000 | G111: Gifhorn | H111: 4000 | J111: Boldecker Land | K111: 4 | L111: Osloß | N111: ----->>
A112: 9001004004005 | B112: 9000000000000 | C112: Niedersachsen | D112: 1000000000 | E112: Braunschweig | F112: 4000000 | G112: Gifhorn | H112: 4000 | J112: Boldecker Land | K112: 5 | L112: Tappenbeck | N112: ----->>
A113: 9001004004006 | B113: 9000000000000 | C113: Niedersachsen | D113: 1000000000 | E113: Braunschweig | F113: 4000000 | G113: Gifhorn | H113: 4000 | J113: Boldecker Land | K113: 6 | L113: Weyhausen | N113: ----->>
A114: 9001004005001 | B114: 9000000000000 | C114: Niedersachsen | D114: 1000000000 | E114: Braunschweig | F114: 4000000 | G114: Gifhorn | H114: 5000 | J114: Brome | K114: 1 | L114: Altendorf | N114: ----->>
A115: 9001004005002 | B115: 9000000000000 | C115: Niedersachsen | D115: 1000000000 | E115: Braunschweig | F115: 4000000 | G115: Gifhorn | H115: 5000 | J115: Brome | K115: 2 | L115: Bergfeld | N115: ----->>
A116: 9001004005003 | B116: 9000000000000 | C116: Niedersachsen | D116: 1000000000 | E116: Braunschweig | F116: 4000000 | G116: Gifhorn | H116: 5000 | J116: Brome | K116: 3 | L116: Brechtorf | N116: ----->>
A117: 9001004005004 | B117: 9000000000000 | C117: Niedersachsen | D117: 1000000000 | E117: Braunschweig | F117: 4000000 | G117: Gifhorn | H117: 5000 | J117: Brome | K117: 4 | L117: Brome | N117: ----->>
A118: 9001004005005 | B118: 9000000000000 | C118: Niedersachsen | D118: 1000000000 | E118: Braunschweig | F118: 4000000 | G118: Gifhorn | H118: 5000 | J118: Brome | K118: 5 | L118: Croya | N118: ----->>
A119: 9001004005006 | B119: 9000000000000 | C119: Niedersachsen | D119: 1000000000 | E119: Braunschweig | F119: 4000000 | G119: Gifhorn | H119: 5000 | J119: Brome | K119: 6 | L119: Ehra-Lessien | N119: ----->>
A120: 9001004005007 | B120: 9000000000000 | C120: Niedersachsen | D120: 1000000000 | E120: Braunschweig | F120: 4000000 | G120: Gifhorn | H120: 5000 | J120: Brome | K120: 7 | L120: Eischott | N120: ----->>
A121: 9001004005008 | B121: 9000000000000 | C121: Niedersachsen | D121: 1000000000 | E121: Braunschweig | F121: 4000000 | G121: Gifhorn | H121: 5000 | J121: Brome | K121: 8 | L121: Hoitlingen | N121: ----->>
A122: 9001004005009 | B122: 9000000000000 | C122: Niedersachsen | D122: 1000000000 | E122: Braunschweig | F122: 4000000 | G122: Gifhorn | H122: 5000 | J122: Brome | K122: 9 | L122: Kaiserwinkel | N122: ----->>
A123: 9001004005010 | B123: 9000000000000 | C123: Niedersachsen | D123: 1000000000 | E123: Braunschweig | F123: 4000000 | G123: Gifhorn | H123: 5000 | J123: Brome | K123: 10 | L123: Parsau-Ahnebeck | N123: ----->>
A124: 9001004005011 | B124: 9000000000000 | C124: Niedersachsen | D124: 1000000000 | E124: Braunschweig | F124: 4000000 | G124: Gifhorn | H124: 5000 | J124: Brome | K124: 11 | L124: Rühen | N124: ----->>
A125: 9001004005012 | B125: 9000000000000 | C125: Niedersachsen | D125: 1000000000 | E125: Braunschweig | F125: 4000000 | G125: Gifhorn | H125: 5000 | J125: Brome | K125: 12 | L125: Tiddische | N125: ----->>
A126: 9001004005013 | B126: 9000000000000 | C126: Niedersachsen | D126: 1000000000 | E126: Braunschweig | F126: 4000000 | G126: Gifhorn | H126: 5000 | J126: Brome | K126: 13 | L126: Tülau | N126: ----->>
A127: 9001004005014 | B127: 9000000000000 | C127: Niedersachsen | D127: 1000000000 | E127: Braunschweig | F127: 4000000 | G127: Gifhorn | H127: 5000 | J127: Brome | K127: 14 | L127: Voitze | N127: ----->>
A128: 9001004005015 | B128: 9000000000000 | C128: Niedersachsen | D128: 1000000000 | E128: Braunschweig | F128: 4000000 | G128: Gifhorn | H128: 5000 | J128: Brome | K128: 15 | L128: Zicherie | N128: ----->>
A129: 9001004006001 | B129: 9000000000000 | C129: Niedersachsen | D129: 1000000000 | E129: Braunschweig | F129: 4000000 | G129: Gifhorn | H129: 6000 | J129: Hankensbüttel | K129: 1 | L129: Hankensbüttel | N129: ----->>
A130: 9001004006002 | B130: 9000000000000 | C130: Niedersachsen | D130: 1000000000 | E130: Braunschweig | F130: 4000000 | G130: Gifhorn | H130: 6000 | J130: Hankensbüttel | K130: 2 | L130: Sprakensehl | N130: ----->>
A131: =IF(L131="","",B131+D131+F131+H131+K131) -> 9001004006003 | B131: 9000000000000 | C131: Niedersachsen | D131: 1000000000 | E131: Braunschweig | F131: 4000000 | G131: Gifhorn | H131: 6000 | J131: Hankensbüttel | K131: 3 | L131: Steinhorst | N131: ----->>
A132: 9001004006004 | B132: 9000000000000 | C132: Niedersachsen | D132: 1000000000 | E132: Braunschweig | F132: 4000000 | G132: Gifhorn | H132: 6000 | J132: Hankensbüttel | K132: 4 | L132: Bokel | N132: ----->>
A133: 9001004006005 | B133: 9000000000000 | C133: Niedersachsen | D133: 1000000000 | E133: Braunschweig | F133: 4000000 | G133: Gifhorn | H133: 6000 | J133: Hankensbüttel | K133: 5 | L133: Emmen | N133: ----->>
A134: 9001004006006 | B134: 9000000000000 | C134: Niedersachsen | D134: 1000000000 | E134: Braunschweig | F134: 4000000 | G134: Gifhorn | H134: 6000 | J134: Hankensbüttel | K134: 6 | L134: Lingwedel | N134: ----->>
A135: 9001004006007 | B135: 9000000000000 | C135: Niedersachsen | D135: 1000000000 | E135: Braunschweig | F135: 4000000 | G135: Gifhorn | H135: 6000 | J135: Hankensbüttel | K135: 7 | L135: Oerrel | N135: ----->>
A136: 9001004006008 | B136: 9000000000000 | C136: Niedersachsen | D136: 1000000000 | E136: Braunschweig | F136: 4000000 | G136: Gifhorn | H136: 6000 | J136: Hankensbüttel | K136: 8 | L136: Repke | N136: ----->>
A137: 9001004006009 | B137: 9000000000000 | C137: Niedersachsen | D137: 1000000000 | E137: Braunschweig | F137: 4000000 | G137: Gifhorn | H137: 6000 | J137: Hankensbüttel | K137: 9 | L137: Schweimke | N137: ----->>
A138: 9001004006010 | B138: 9000000000000 | C138: Niedersachsen | D138: 1000000000 | E138: Braunschweig | F138: 4000000 | G138: Gifhorn | H138: 6000 | J138: Hankensbüttel | K138: 10 | L138: Wentorf | N138: ----->>
A139: 9001004006011 | B139: 9000000000000 | C139: Niedersachsen | D139: 1000000000 | E139: Braunschweig | F139: 4000000 | G139: Gifhorn | H139: 6000 | J139: Hankensbüttel | K139: 11 | L139: Wierstorf | N139: ----->>
A140: 9001004007001 | B140: 9000000000000 | C140: Niedersachsen | D140: 1000000000 | E140: Braunschweig | F140: 4000000 | G140: Gifhorn | H140: 7000 | J140: Isenbüttel | K140: 1 | L140: Allerbüttel | N140: ----->>
A141: 9001004007002 | B141: 9000000000000 | C141: Niedersachsen | D141: 1000000000 | E141: Braunschweig | F141: 4000000 | G141: Gifhorn | H141: 7000 | J141: Isenbüttel | K141: 2 | L141: Calberlah | N141: ----->>
A142: 9001004007003 | B142: 9000000000000 | C142: Niedersachsen | D142: 1000000000 | E142: Braunschweig | F142: 4000000 | G142: Gifhorn | H142: 7000 | J142: Isenbüttel | K142: 3 | L142: Allenbüttel | N142: ----->>
A143: 9001004007004 | B143: 9000000000000 | C143: Niedersachsen | D143: 1000000000 | E143: Braunschweig | F143: 4000000 | G143: Gifhorn | H143: 7000 | J143: Isenbüttel | K143: 4 | L143: Isenbüttel | N143: ----->>
A144: 9001004007005 | B144: 9000000000000 | C144: Niedersachsen | D144: 1000000000 | E144: Braunschweig | F144: 4000000 | G144: Gifhorn | H144: 7000 | J144: Isenbüttel | K144: 5 | L144: Ribbesbüttel | N144: ----->>
A145: 9001004007006 | B145: 9000000000000 | C145: Niedersachsen | D145: 1000000000 | E145: Braunschweig | F145: 4000000 | G145: Gifhorn | H145: 7000 | J145: Isenbüttel | K145: 6 | L145: Vollbüttel | N145: ----->>
A146: 9001004007007 | B146: 9000000000000 | C146: Niedersachsen | D146: 1000000000 | E146: Braunschweig | F146: 4000000 | G146: Gifhorn | H146: 7000 | J146: Isenbüttel | K146: 7 | L146: Wasbüttel | N146: ----->>
A147: 9001004007008 | B147: 9000000000000 | C147: Niedersachsen | D147: 1000000000 | E147: Braunschweig | F147: 4000000 | G147: Gifhorn | H147: 7000 | J147: Isenbüttel | K147: 8 | L147: Wettmershagen | N147: ----->>
A148: 9001004008001 | B148: 9000000000000 | C148: Niedersachsen | D148: 1000000000 | E148: Braunschweig | F148: 4000000 | G148: Gifhorn | H148: 8000 | J148: Meinersen | K148: 1 | L148: Ahnsen | N148: ----->>
A149: 9001004008002 | B149: 9000000000000 | C149: Niedersachsen | D149: 1000000000 | E149: Braunschweig | F149: 4000000 | G149: Gifhorn | H149: 8000 | J149: Meinersen | K149: 2 | L149: Böckelse | N149: ----->>
A150: 9001004008003 | B150: 9000000000000 | C150: Niedersachsen | D150: 1000000000 | E150: Braunschweig | F150: 4000000 | G150: Gifhorn | H150: 8000 | J150: Meinersen | K150: 3 | L150: Dalldorf | N150: ----->>
A151: 9001004008004 | B151: 9000000000000 | C151: Niedersachsen | D151: 1000000000 | E151: Braunschweig | F151: 4000000 | G151: Gifhorn | H151: 8000 | J151: Meinersen | K151: 4 | L151: Ettenbüttel | N151: ----->>
A152: 9001004008005 | B152: 9000000000000 | C152: Niedersachsen | D152: 1000000000 | E152: Braunschweig | F152: 4000000 | G152: Gifhorn | H152: 8000 | J152: Meinersen | K152: 5 | L152: Flettmar | N152: ----->>
A153: 9001004008006 | B153: 9000000000000 | C153: Niedersachsen | D153: 1000000000 | E153: Braunschweig | F153: 4000000 | G153: Gifhorn | H153: 8000 | J153: Meinersen | K153: 6 | L153: Hahnenhorn | N153: ----->>
A154: 9001004008007 | B154: 9000000000000 | C154: Niedersachsen | D154: 1000000000 | E154: Braunschweig | F154: 4000000 | G154: Gifhorn | H154: 8000 | J154: Meinersen | K154: 7 | L154: Hillerse | N154: ----->>
A155: 9001004008008 | B155: 9000000000000 | C155: Niedersachsen | D155: 1000000000 | E155: Braunschweig | F155: 4000000 | G155: Gifhorn | H155: 8000 | J155: Meinersen | K155: 8 | L155: Leiferde | N155: ----->>
A156: 9001004008009 | B156: 9000000000000 | C156: Niedersachsen | D156: 1000000000 | E156: Braunschweig | F156: 4000000 | G156: Gifhorn | H156: 8000 | J156: Meinersen | K156: 9 | L156: Meinersen | N156: ----->>
A157: 9001004008010 | B157: 9000000000000 | C157: Niedersachsen | D157: 1000000000 | E157: Braunschweig | F157: 4000000 | G157: Gifhorn | H157: 8000 | J157: Meinersen | K157: 10 | L157: Müden-Dieckhorst | N157: ----->>
A158: 9001004008011 | B158: 9000000000000 | C158: Niedersachsen | D158: 1000000000 | E158: Braunschweig | F158: 4000000 | G158: Gifhorn | H158: 8000 | J158: Meinersen | K158: 11 | L158: Ohof | N158: ----->>
A159: 9001004008012 | B159: 9000000000000 | C159: Niedersachsen | D159: 1000000000 | E159: Braunschweig | F159: 4000000 | G159: Gifhorn | H159: 8000 | J159: Meinersen | K159: 12 | L159: Päse | N159: ----->>
A160: 9001004008013 | B160: 9000000000000 | C160: Niedersachsen | D160: 1000000000 | E160: Braunschweig | F160: 4000000 | G160: Gifhorn | H160: 8000 | J160: Meinersen | K160: 13 | L160: Seershausen | N160: ----->>
A161: 9001004009001 | B161: 9000000000000 | C161: Niedersachsen | D161: 1000000000 | E161: Braunschweig | F161: 4000000 | G161: Gifhorn | H161: 9000 | J161: Papenteich | K161: 1 | L161: Abbesbüttel | N161: ----->>
A162: 9001004009002 | B162: 9000000000000 | C162: Niedersachsen | D162: 1000000000 | E162: Braunschweig | F162: 4000000 | G162: Gifhorn | H162: 9000 | J162: Papenteich | K162: 2 | L162: Adenbüttel | N162: ----->>
A163: 9001004009003 | B163: 9000000000000 | C163: Niedersachsen | D163: 1000000000 | E163: Braunschweig | F163: 4000000 | G163: Gifhorn | H163: 9000 | J163: Papenteich | K163: 3 | L163: Bechtsbüttel | N163: ----->>
A164: 9001004009004 | B164: 9000000000000 | C164: Niedersachsen | D164: 1000000000 | E164: Braunschweig | F164: 4000000 | G164: Gifhorn | H164: 9000 | J164: Papenteich | K164: 4 | L164: Didderse | N164: ----->>
A165: 9001004009005 | B165: 9000000000000 | C165: Niedersachsen | D165: 1000000000 | E165: Braunschweig | F165: 4000000 | G165: Gifhorn | H165: 9000 | J165: Papenteich | K165: 5 | L165: Grassel | N165: ----->>
A166: 9001004009006 | B166: 9000000000000 | C166: Niedersachsen | D166: 1000000000 | E166: Braunschweig | F166: 4000000 | G166: Gifhorn | H166: 9000 | J166: Papenteich | K166: 6 | L166: Groß Schwülper | N166: ----->>
A167: 9001004009007 | B167: 9000000000000 | C167: Niedersachsen | D167: 1000000000 | E167: Braunschweig | F167: 4000000 | G167: Gifhorn | H167: 9000 | J167: Papenteich | K167: 7 | L167: Lagesbüttel | N167: ----->>
A168: 9001004009008 | B168: 9000000000000 | C168: Niedersachsen | D168: 1000000000 | E168: Braunschweig | F168: 4000000 | G168: Gifhorn | H168: 9000 | J168: Papenteich | K168: 8 | L168: Meine | N168: ----->>
A169: 9001004009009 | B169: 9000000000000 | C169: Niedersachsen | D169: 1000000000 | E169: Braunschweig | F169: 4000000 | G169: Gifhorn | H169: 9000 | J169: Papenteich | K169: 9 | L169: Ohnhorst-Gravenhorst | N169: ----->>
A170: 9001004009010 | B170: 9000000000000 | C170: Niedersachsen | D170: 1000000000 | E170: Braunschweig | F170: 4000000 | G170: Gifhorn | H170: 9000 | J170: Papenteich | K170: 10 | L170: Rethen | N170: ----->>
A171: 9001004009011 | B171: 9000000000000 | C171: Niedersachsen | D171: 1000000000 | E171: Braunschweig | F171: 4000000 | G171: Gifhorn | H171: 9000 | J171: Papenteich | K171: 11 | L171: Rötgesbüttel | N171: ----->>
A172: 9001004009012 | B172: 9000000000000 | C172: Niedersachsen | D172: 1000000000 | E172: Braunschweig | F172: 4000000 | G172: Gifhorn | H172: 9000 | J172: Papenteich | K172: 12 | L172: Rolfsbüttel | N172: ----->>
A173: 9001004009013 | B173: 9000000000000 | C173: Niedersachsen | D173: 1000000000 | E173: Braunschweig | F173: 4000000 | G173: Gifhorn | H173: 9000 | J173: Papenteich | K173: 13 | L173: Rothemühle-Walle | N173: ----->>
A174: 9001004009014 | B174: 9000000000000 | C174: Niedersachsen | D174: 1000000000 | E174: Braunschweig | F174: 4000000 | G174: Gifhorn | H174: 9000 | J174: Papenteich | K174: 14 | L174: Vordorf | N174: ----->>
A175: 9001004009015 | B175: 9000000000000 | C175: Niedersachsen | D175: 1000000000 | E175: Braunschweig | F175: 4000000 | G175: Gifhorn | H175: 9000 | J175: Papenteich | K175: 15 | L175: Wedesbüttel-Wedelheine | N175: ----->>
A176: 9001004010001 | B176: 9000000000000 | C176: Niedersachsen | D176: 1000000000 | E176: Braunschweig | F176: 4000000 | G176: Gifhorn | H176: 10000 | J176: Wesendorf | K176: 1 | L176: Wesendorf | N176: ----->>
A177: 9001004010002 | B177: 9000000000000 | C177: Niedersachsen | D177: 1000000000 | E177: Braunschweig | F177: 4000000 | G177: Gifhorn | H177: 10000 | J177: Wesendorf | K177: 2 | L177: Westerholz | N177: ----->>
A178: 9001004010003 | B178: 9000000000000 | C178: Niedersachsen | D178: 1000000000 | E178: Braunschweig | F178: 4000000 | G178: Gifhorn | H178: 10000 | J178: Wesendorf | K178: 3 | L178: Wahrenholz | N178: ----->>
A179: 9001004010004 | B179: 9000000000000 | C179: Niedersachsen | D179: 1000000000 | E179: Braunschweig | F179: 4000000 | G179: Gifhorn | H179: 10000 | J179: Wesendorf | K179: 4 | L179: Betzhorn | N179: ----->>
A180: 9001004010005 | B180: 9000000000000 | C180: Niedersachsen | D180: 1000000000 | E180: Braunschweig | F180: 4000000 | G180: Gifhorn | H180: 10000 | J180: Wesendorf | K180: 5 | L180: Schönewörde | N180: ----->>
A181: 9001004010006 | B181: 9000000000000 | C181: Niedersachsen | D181: 1000000000 | E181: Braunschweig | F181: 4000000 | G181: Gifhorn | H181: 10000 | J181: Wesendorf | K181: 6 | L181: Groß Oesingen | N181: ----->>
A182: 9001004010007 | B182: 9000000000000 | C182: Niedersachsen | D182: 1000000000 | E182: Braunschweig | F182: 4000000 | G182: Gifhorn | H182: 10000 | J182: Wesendorf | K182: 7 | L182: Ummern | N182: ----->>
A183: 9001004010008 | B183: 9000000000000 | C183: Niedersachsen | D183: 1000000000 | E183: Braunschweig | F183: 4000000 | G183: Gifhorn | H183: 10000 | J183: Wesendorf | K183: 8 | L183: Pollhöfen | N183: ----->>
A184: 9001005001001 | B184: 9000000000000 | C184: Niedersachsen | D184: 1000000000 | E184: Braunschweig | F184: 5000000 | G184: Goslar | H184: 1000 | J184: Bad Harzburg | K184: 1 | L184: Bad Harzburg | N184: ----->>
A185: 9001005001002 | B185: 9000000000000 | C185: Niedersachsen | D185: 1000000000 | E185: Braunschweig | F185: 5000000 | G185: Goslar | H185: 1000 | J185: Bad Harzburg | K185: 2 | L185: Bettingerode | N185: ----->>
A186: 9001005001003 | B186: 9000000000000 | C186: Niedersachsen | D186: 1000000000 | E186: Braunschweig | F186: 5000000 | G186: Goslar | H186: 1000 | J186: Bad Harzburg | K186: 3 | L186: Bündheim/Schlewecke | N186: ----->>
A187: 9001005001004 | B187: 9000000000000 | C187: Niedersachsen | D187: 1000000000 | E187: Braunschweig | F187: 5000000 | G187: Goslar | H187: 1000 | J187: Bad Harzburg | K187: 4 | L187: Harlingerode | N187: ----->>
A188: 9001005001005 | B188: 9000000000000 | C188: Niedersachsen | D188: 1000000000 | E188: Braunschweig | F188: 5000000 | G188: Goslar | H188: 1000 | J188: Bad Harzburg | K188: 5 | L188: Westerode | N188: ----->>
A189: 9001005002001 | B189: 9000000000000 | C189: Niedersachsen | D189: 1000000000 | E189: Braunschweig | F189: 5000000 | G189: Goslar | H189: 2000 | J189: Langelsheim | K189: 1 | L189: Langelsheim | N189: ----->>
A190: 9001005002002 | B190: 9000000000000 | C190: Niedersachsen | D190: 1000000000 | E190: Braunschweig | F190: 5000000 | G190: Goslar | H190: 2000 | J190: Langelsheim | K190: 2 | L190: Astfeld | N190: ----->>
A191: 9001005002003 | B191: 9000000000000 | C191: Niedersachsen | D191: 1000000000 | E191: Braunschweig | F191: 5000000 | G191: Goslar | H191: 2000 | J191: Langelsheim | K191: 3 | L191: Bredelem | N191: ----->>
A192: 9001005002004 | B192: 9000000000000 | C192: Niedersachsen | D192: 1000000000 | E192: Braunschweig | F192: 5000000 | G192: Goslar | H192: 2000 | J192: Langelsheim | K192: 4 | L192: Lautenthal | N192: ----->>
A193: 9001005002005 | B193: 9000000000000 | C193: Niedersachsen | D193: 1000000000 | E193: Braunschweig | F193: 5000000 | G193: Goslar | H193: 2000 | J193: Langelsheim | K193: 5 | L193: Wolfshagen | N193: ----->>
A194: 9001005003001 | B194: 9000000000000 | C194: Niedersachsen | D194: 1000000000 | E194: Braunschweig | F194: 5000000 | G194: Goslar | H194: 3000 | J194: Liebenburg | K194: 1 | L194: Dörnten | N194: ----->>
A195: =IF(L195="","",B195+D195+F195+H195+K195) -> 9001005003002 | B195: 9000000000000 | C195: Niedersachsen | D195: 1000000000 | E195: Braunschweig | F195: 5000000 | G195: Goslar | H195: 3000 | J195: Liebenburg | K195: 2 | L195: Gross Döhren | N195: ----->>
A196: 9001005003003 | B196: 9000000000000 | C196: Niedersachsen | D196: 1000000000 | E196: Braunschweig | F196: 5000000 | G196: Goslar | H196: 3000 | J196: Liebenburg | K196: 3 | L196: Klein Döhren | N196: ----->>
A197: 9001005003004 | B197: 9000000000000 | C197: Niedersachsen | D197: 1000000000 | E197: Braunschweig | F197: 5000000 | G197: Goslar | H197: 3000 | J197: Liebenburg | K197: 4 | L197: Kleine Mahner | N197: ----->>
A198: 9001005003005 | B198: 9000000000000 | C198: Niedersachsen | D198: 1000000000 | E198: Braunschweig | F198: 5000000 | G198: Goslar | H198: 3000 | J198: Liebenburg | K198: 5 | L198: Liebenburg | N198: ----->>
A199: 9001005003006 | B199: 9000000000000 | C199: Niedersachsen | D199: 1000000000 | E199: Braunschweig | F199: 5000000 | G199: Goslar | H199: 3000 | J199: Liebenburg | K199: 6 | L199: Neuenkirchen | N199: ----->>
A200: 9001005003007 | B200: 9000000000000 | C200: Niedersachsen | D200: 1000000000 | E200: Braunschweig | F200: 5000000 | G200: Goslar | H200: 3000 | J200: Liebenburg | K200: 7 | L200: Ostharingen | N200: ----->>
... 3074 more rows

Sheet Startliste
A1: ="Startliste "&Auswertung!B5&" in "&Auswertung!B4&" am "&TEXT(Auswertung!B3,"TT.MM.JJJJ") -> Startliste Musterentscheid in Musterstadt am 08.09.2024 | G1: Daten aus der Tabelle "Einheiten" oder importierte Daten | O1: Farbumschlag Spalte B alle: | P1: 3 | Q1: Einheiten
A2: mit den Angaben zum Format, Gemeinde/Stadt und Landkreis/Stadt/Region | G2: "Doppelklick" auf Zellen in Spalte G: Transfer H-> B | N2: Farbe 1: | P2: Farbe 2:
A3: Start Nr | B3: Einheit Name | C3: Format | D3: Gemeinde/Stadt | E3: Landkreis/Stadt/Region | G3: <==== | H3: Name der Einheit | I3: Format | J3: Gemeinde | K3: Landkreis
A4: =IF(LEFT(B4,1)="#","",IF(B4="","",MAX(A$3:A3)+1)) -> 
A5: =IF(LEFT(B5,1)="#","",IF(B5="","",MAX(A$3:A4)+1)) -> 
A6: =IF(LEFT(B6,1)="#","",IF(B6="","",MAX(A$4:A5)+1)) -> 
A7: =IF(LEFT(B7,1)="#","",IF(B7="","",MAX(A$4:A6)+1)) -> 
A8: =IF(LEFT(B8,1)="#","",IF(B8="","",MAX(A$4:A7)+1)) -> 
A9: =IF(LEFT(B9,1)="#","",IF(B9="","",MAX(A$4:A8)+1)) -> 
A10: =IF(LEFT(B10,1)="#","",IF(B10="","",MAX(A$4:A9)+1)) -> 
A11: =IF(LEFT(B11,1)="#","",IF(B11="","",MAX(A$4:A10)+1)) -> 
A12: =IF(LEFT(B12,1)="#","",IF(B12="","",MAX(A$4:A11)+1)) -> 
A13: =IF(LEFT(B13,1)="#","",IF(B13="","",MAX(A$4:A12)+1)) -> 
A14: =IF(LEFT(B14,1)="#","",IF(B14="","",MAX(A$4:A13)+1)) -> 
A15: =IF(LEFT(B15,1)="#","",IF(B15="","",MAX(A$4:A14)+1)) -> 
A16: =IF(LEFT(B16,1)="#","",IF(B16="","",MAX(A$4:A15)+1)) -> 
A17: =IF(LEFT(B17,1)="#","",IF(B17="","",MAX(A$4:A16)+1)) -> 
A18: =IF(LEFT(B18,1)="#","",IF(B18="","",MAX(A$4:A17)+1)) -> 
A19: =IF(LEFT(B19,1)="#","",IF(B19="","",MAX(A$4:A18)+1)) -> 
A20: =IF(LEFT(B20,1)="#","",IF(B20="","",MAX(A$4:A19)+1)) -> 
A21: =IF(LEFT(B21,1)="#","",IF(B21="","",MAX(A$4:A20)+1)) -> 
A22: =IF(LEFT(B22,1)="#","",IF(B22="","",MAX(A$4:A21)+1)) -> 
A23: =IF(LEFT(B23,1)="#","",IF(B23="","",MAX(A$4:A22)+1)) ->  | N23: Zusammenstellung einer Startliste:
A24: =IF(LEFT(B24,1)="#","",IF(B24="","",MAX(A$4:A23)+1)) -> 
A25: =IF(LEFT(B25,1)="#","",IF(B25="","",MAX(A$4:A24)+1)) ->  | N25: In den Spalten H - K (H4 … K203) werden per Button
A26: =IF(LEFT(B26,1)="#","",IF(B26="","",MAX(A$4:A25)+1)) ->  | N26: [Teilnehmer aus Tabelle Einheiten neu laden]
A27: =IF(LEFT(B27,1)="#","",IF(B27="","",MAX(A$4:A26)+1)) ->  | N27: die Namen und Daten aus der Tabelle "Einheiten"
A28: =IF(LEFT(B28,1)="#","",IF(B28="","",MAX(A$4:A27)+1)) ->  | N28: in diese Tabelle kopiert.
A29: =IF(LEFT(B29,1)="#","",IF(B29="","",MAX(A$4:A28)+1)) -> 
A30: =IF(LEFT(B30,1)="#","",IF(B30="","",MAX(A$4:A29)+1)) ->  | N30: Alternativ können aus einer anderen Liste
A31: =IF(LEFT(B31,1)="#","",IF(B31="","",MAX(A$4:A30)+1)) ->  | N31: Daten (nur "Werte"!!) hineinkopiert werden.
A32: =IF(LEFT(B32,1)="#","",IF(B32="","",MAX(A$4:A31)+1)) -> 
A33: =IF(LEFT(B33,1)="#","",IF(B33="","",MAX(A$4:A32)+1)) ->  | N33: In den Spalten B - E (B4….E203) werden die Einträge
A34: =IF(LEFT(B34,1)="#","",IF(B34="","",MAX(A$4:A33)+1)) ->  | N34: gelöscht. (alle markieren, Taste [Entf])
A35: =IF(LEFT(B35,1)="#","",IF(B35="","",MAX(A$4:A34)+1)) ->  | N35: Alternativ wird bei der Übernahme der Daten aus
A36: =IF(LEFT(B36,1)="#","",IF(B36="","",MAX(A$4:A35)+1)) ->  | N36: Tabelle "Einheiten" abgefragt, ob die Spalten B-E
A37: =IF(LEFT(B37,1)="#","",IF(B37="","",MAX(A$4:A36)+1)) ->  | N37: gelöscht werden sollen.
A38: =IF(LEFT(B38,1)="#","",IF(B38="","",MAX(A$4:A37)+1)) -> 
A39: =IF(LEFT(B39,1)="#","",IF(B39="","",MAX(A$4:A38)+1)) ->  | N39: Mittels Doppelklick auf die Zellen in der
A40: =IF(LEFT(B40,1)="#","",IF(B40="","",MAX(A$4:A39)+1)) ->  | N40: Spalte G ("Transferpfeile") werden die Daten
A41: =IF(LEFT(B41,1)="#","",IF(B41="","",MAX(A$4:A40)+1)) ->  | N41: der Einheiten aus Spalten H-K in die erste freie
A42: =IF(LEFT(B42,1)="#","",IF(B42="","",MAX(A$4:A41)+1)) ->  | N42: Zelle in der Spalte B kopiert und der
A43: =IF(LEFT(B43,1)="#","",IF(B43="","",MAX(A$4:A42)+1)) ->  | N43: "Transferpfeil" in Spalte G gelöscht.
A44: =IF(LEFT(B44,1)="#","",IF(B44="","",MAX(A$4:A43)+1)) -> 
A45: =IF(LEFT(B45,1)="#","",IF(B45="","",MAX(A$4:A44)+1)) ->  | N45: Soll der Name an einer bestimmten Stelle
A46: =IF(LEFT(B46,1)="#","",IF(B46="","",MAX(A$4:A45)+1)) ->  | N46: der Tabelle eingefügt werden, so kann
A47: =IF(LEFT(B47,1)="#","",IF(B47="","",MAX(A$4:A46)+1)) ->  | N47: in der Zelle in Spalte B ein "x" eingetragen werden.
A48: =IF(LEFT(B48,1)="#","",IF(B48="","",MAX(A$4:A47)+1)) ->  | N48: Der Transfer erfolgt dann in diese Zelle.
A49: =IF(LEFT(B49,1)="#","",IF(B49="","",MAX(A$4:A48)+1)) -> 
A50: =IF(LEFT(B50,1)="#","",IF(B50="","",MAX(A$4:A49)+1)) ->  | N50: Wenn versucht wird, eine Einheit "doppelt"
A51: =IF(LEFT(B51,1)="#","",IF(B51="","",MAX(A$4:A50)+1)) ->  | N51: in die Spalte B einzutragen, wird eine
A52: =IF(LEFT(B52,1)="#","",IF(B52="","",MAX(A$4:A51)+1)) ->  | N52: entsprechende Meldung ausgegeben und
A53: =IF(LEFT(B53,1)="#","",IF(B53="","",MAX(A$4:A52)+1)) ->  | N53: der Transfer nicht ausgeführt.
A54: =IF(LEFT(B54,1)="#","",IF(B54="","",MAX(A$4:A53)+1)) -> 
A55: =IF(LEFT(B55,1)="#","",IF(B55="","",MAX(A$4:A54)+1)) ->  | N55: Die Spalten A und G sind mit Formeln
A56: =IF(LEFT(B56,1)="#","",IF(B56="","",MAX(A$4:A55)+1)) ->  | N56: gefüll und sollten nicht verändert werden.
A57: =IF(LEFT(B57,1)="#","",IF(B57="","",MAX(A$4:A56)+1)) -> 
A58: =IF(LEFT(B58,1)="#","",IF(B58="","",MAX(A$4:A57)+1)) ->  | N58: Beim Ausdrucken der "Startliste" werden
A59: =IF(LEFT(B59,1)="#","",IF(B59="","",MAX(A$4:A58)+1)) ->  | N59: nur die Spalten A - E gedruckt.
A60: =IF(LEFT(B60,1)="#","",IF(B60="","",MAX(A$4:A59)+1)) -> 
A61: =IF(LEFT(B61,1)="#","",IF(B61="","",MAX(A$4:A60)+1)) ->  | N61: Einheiten aus Spalte B können mit einem
A62: =IF(LEFT(B62,1)="#","",IF(B62="","",MAX(A$4:A61)+1)) ->  | N62: Doppelklick (In die Zelle Spalte B) wieder
A63: =IF(LEFT(B63,1)="#","",IF(B63="","",MAX(A$4:A62)+1)) ->  | N63: "entfernt" werden. Der "Transferpfeil" für
A64: =IF(LEFT(B64,1)="#","",IF(B64="","",MAX(A$4:A63)+1)) ->  | N64: diese Einheit wird dann wieder hergestellt.
A65: =IF(LEFT(B65,1)="#","",IF(B65="","",MAX(A$4:A64)+1)) ->  | N65: Sinnvoll beim "Tauschen" von zwei Einheiten.
A66: =IF(LEFT(B66,1)="#","",IF(B66="","",MAX(A$4:A65)+1)) -> 
A67: =IF(LEFT(B67,1)="#","",IF(B67="","",MAX(A$4:A66)+1)) -> 
A68: =IF(LEFT(B68,1)="#","",IF(B68="","",MAX(A$4:A67)+1)) ->  | N68: Mit dem Button "Startliste überprüfen" wird
A69: =IF(LEFT(B69,1)="#","",IF(B69="","",MAX(A$4:A68)+1)) ->  | N69: überall dort, wo in Spalte H ein Eintrag
A70: =IF(LEFT(B70,1)="#","",IF(B70="","",MAX(A$4:A69)+1)) ->  | N70: vorhanden ist, in der Spalte G ein
A71: =IF(LEFT(B71,1)="#","",IF(B71="","",MAX(A$4:A70)+1)) ->  | N71: (neuer) Transferpfeil erzeugt. Dann wird geprüft,
A72: =IF(LEFT(B72,1)="#","",IF(B72="","",MAX(A$4:A71)+1)) ->  | N72: ob der in der Spalte H eingetragene Name
A73: =IF(LEFT(B73,1)="#","",IF(B73="","",MAX(A$4:A72)+1)) ->  | N73: bereits in der Spalte B vorhanden ist.
A74: =IF(LEFT(B74,1)="#","",IF(B74="","",MAX(A$4:A73)+1)) ->  | N74: Wenn dem so ist, wird in der Spalte G der "lange"
A75: =IF(LEFT(B75,1)="#","",IF(B75="","",MAX(A$4:A74)+1)) ->  | N75: gegen einen "kurzen" Transferpfeil ausgetauscht.
A76: =IF(LEFT(B76,1)="#","",IF(B76="","",MAX(A$4:A75)+1)) -> 
A77: =IF(LEFT(B77,1)="#","",IF(B77="","",MAX(A$4:A76)+1)) ->  | N77: Danach wird überprüft, ob in der Spalte B noch
A78: =IF(LEFT(B78,1)="#","",IF(B78="","",MAX(A$4:A77)+1)) ->  | N78: Einheiten gelistet sind, die in der Spalte H
A79: =IF(LEFT(B79,1)="#","",IF(B79="","",MAX(A$4:A78)+1)) ->  | N79: nicht (mehr) vorhanden sind, z.B. in der
A80: =IF(LEFT(B80,1)="#","",IF(B80="","",MAX(A$4:A79)+1)) ->  | N80: Tabelle "Einheiten" gelöscht wurden.
A81: =IF(LEFT(B81,1)="#","",IF(B81="","",MAX(A$4:A80)+1)) ->  | N81: Falls in Spalte B eine "verwaiste" Einheit
A82: =IF(LEFT(B82,1)="#","",IF(B82="","",MAX(A$4:A81)+1)) ->  | N82: gefunden wird, kann diese Einheit in der
A83: =IF(LEFT(B83,1)="#","",IF(B83="","",MAX(A$4:A82)+1)) ->  | N83: Startliste gelöscht werden.
A84: =IF(LEFT(B84,1)="#","",IF(B84="","",MAX(A$4:A83)+1)) -> 
A85: =IF(LEFT(B85,1)="#","",IF(B85="","",MAX(A$4:A84)+1)) ->  | N85: Die Spalte B kann mit einer Hintergrundfarbe
A86: =IF(LEFT(B86,1)="#","",IF(B86="","",MAX(A$4:A85)+1)) ->  | N86: versehen werden, um z.B. den Start zweier Einheiten
A87: =IF(LEFT(B87,1)="#","",IF(B87="","",MAX(A$4:A86)+1)) ->  | N87: aus einer Ortswehr im "gleichen Block"
A88: =IF(LEFT(B88,1)="#","",IF(B88="","",MAX(A$4:A87)+1)) ->  | N88: zu verhindern. Der Standardeintrag auf Gemeinde-
A89: =IF(LEFT(B89,1)="#","",IF(B89="","",MAX(A$4:A88)+1)) ->  | N89: bzw. Stadtebene ist "3" oder "4" Einheiten,
A90: =IF(LEFT(B90,1)="#","",IF(B90="","",MAX(A$4:A89)+1)) ->  | N90: je nachdem wiie viele Startbahnen für die
A91: =IF(LEFT(B91,1)="#","",IF(B91="","",MAX(A$4:A90)+1)) ->  | N91: Veranstaltung geplant sind.
A92: =IF(LEFT(B92,1)="#","",IF(B92="","",MAX(A$4:A91)+1)) ->  | N92: Es stehen zwei Farben
A93: =IF(LEFT(B93,1)="#","",IF(B93="","",MAX(A$4:A92)+1)) ->  | N93: zur Verfügung, die in den Zellen O2 und Q2
A94: =IF(LEFT(B94,1)="#","",IF(B94="","",MAX(A$4:A93)+1)) ->  | N94: eingestellt werden können.
A95: =IF(LEFT(B95,1)="#","",IF(B95="","",MAX(A$4:A94)+1)) ->  | N95: Die Anzahl der Zeilen mit "gleicher Farbe" wird
A96: =IF(LEFT(B96,1)="#","",IF(B96="","",MAX(A$4:A95)+1)) ->  | N96: in der Zelle P1 eingestellt. Mit dem Button
A97: =IF(LEFT(B97,1)="#","",IF(B97="","",MAX(A$4:A96)+1)) ->  | N97: [Farbumschlag in Spalte B aktualisieren]
A98: =IF(LEFT(B98,1)="#","",IF(B98="","",MAX(A$4:A97)+1)) ->  | N98: wird ein Makro gestartet, welches die
A99: =IF(LEFT(B99,1)="#","",IF(B99="","",MAX(A$4:A98)+1)) ->  | N99: Hintergrundfarbe in der Spalt B entsprechend setzt.
A100: =IF(LEFT(B100,1)="#","",IF(B100="","",MAX(A$4:A99)+1)) -> 
A101: =IF(LEFT(B101,1)="#","",IF(B101="","",MAX(A$4:A100)+1)) ->  | N101: Die fertig zusammengestellte Startliste kann
A102: =IF(LEFT(B102,1)="#","",IF(B102="","",MAX(A$4:A101)+1)) ->  | N102: in eine Excel - csv - Datei exportiert werden und
A103: =IF(LEFT(B103,1)="#","",IF(B103="","",MAX(A$4:A102)+1)) ->  | N103: dort weiterverarbeitet werden, z.B. für die
A104: =IF(LEFT(B104,1)="#","",IF(B104="","",MAX(A$4:A103)+1)) ->  | N104: Erstellung einer eigenen Startliste oder für die
A105: =IF(LEFT(B105,1)="#","",IF(B105="","",MAX(A$4:A104)+1)) ->  | N105: Übernahme der Startliste auf einen anderen PC.
A106: =IF(LEFT(B106,1)="#","",IF(B106="","",MAX(A$4:A105)+1)) ->  | N106: Auf dem zweiten PC wird dann ein "Import" gestartet.
A107: =IF(LEFT(B107,1)="#","",IF(B107="","",MAX(A$4:A106)+1)) -> 
A108: =IF(LEFT(B108,1)="#","",IF(B108="","",MAX(A$4:A107)+1)) -> 
A109: =IF(LEFT(B109,1)="#","",IF(B109="","",MAX(A$4:A108)+1)) -> 
A110: =IF(LEFT(B110,1)="#","",IF(B110="","",MAX(A$4:A109)+1)) -> 
A111: =IF(LEFT(B111,1)="#","",IF(B111="","",MAX(A$4:A110)+1)) -> 
A112: =IF(LEFT(B112,1)="#","",IF(B112="","",MAX(A$4:A111)+1)) -> 
A113: =IF(LEFT(B113,1)="#","",IF(B113="","",MAX(A$4:A112)+1)) -> 
A114: =IF(LEFT(B114,1)="#","",IF(B114="","",MAX(A$4:A113)+1)) -> 
A115: =IF(LEFT(B115,1)="#","",IF(B115="","",MAX(A$4:A114)+1)) -> 
A116: =IF(LEFT(B116,1)="#","",IF(B116="","",MAX(A$4:A115)+1)) -> 
A117: =IF(LEFT(B117,1)="#","",IF(B117="","",MAX(A$4:A116)+1)) -> 
A118: =IF(LEFT(B118,1)="#","",IF(B118="","",MAX(A$4:A117)+1)) -> 
A119: =IF(LEFT(B119,1)="#","",IF(B119="","",MAX(A$4:A118)+1)) -> 
A120: =IF(LEFT(B120,1)="#","",IF(B120="","",MAX(A$4:A119)+1)) -> 
A121: =IF(LEFT(B121,1)="#","",IF(B121="","",MAX(A$4:A120)+1)) -> 
A122: =IF(LEFT(B122,1)="#","",IF(B122="","",MAX(A$4:A121)+1)) -> 
A123: =IF(LEFT(B123,1)="#","",IF(B123="","",MAX(A$4:A122)+1)) -> 
A124: =IF(LEFT(B124,1)="#","",IF(B124="","",MAX(A$4:A123)+1)) -> 
A125: =IF(LEFT(B125,1)="#","",IF(B125="","",MAX(A$4:A124)+1)) -> 
A126: =IF(LEFT(B126,1)="#","",IF(B126="","",MAX(A$4:A125)+1)) -> 
A127: =IF(LEFT(B127,1)="#","",IF(B127="","",MAX(A$4:A126)+1)) -> 
A128: =IF(LEFT(B128,1)="#","",IF(B128="","",MAX(A$4:A127)+1)) -> 
A129: =IF(LEFT(B129,1)="#","",IF(B129="","",MAX(A$4:A128)+1)) -> 
A130: =IF(LEFT(B130,1)="#","",IF(B130="","",MAX(A$4:A129)+1)) -> 
A131: =IF(LEFT(B131,1)="#","",IF(B131="","",MAX(A$4:A130)+1)) -> 
A132: =IF(LEFT(B132,1)="#","",IF(B132="","",MAX(A$4:A131)+1)) -> 
A133: =IF(LEFT(B133,1)="#","",IF(B133="","",MAX(A$4:A132)+1)) -> 
A134: =IF(LEFT(B134,1)="#","",IF(B134="","",MAX(A$4:A133)+1)) -> 
A135: =IF(LEFT(B135,1)="#","",IF(B135="","",MAX(A$4:A134)+1)) -> 
A136: =IF(LEFT(B136,1)="#","",IF(B136="","",MAX(A$4:A135)+1)) -> 
A137: =IF(LEFT(B137,1)="#","",IF(B137="","",MAX(A$4:A136)+1)) -> 
A138: =IF(LEFT(B138,1)="#","",IF(B138="","",MAX(A$4:A137)+1)) -> 
A139: =IF(LEFT(B139,1)="#","",IF(B139="","",MAX(A$4:A138)+1)) -> 
A140: =IF(LEFT(B140,1)="#","",IF(B140="","",MAX(A$4:A139)+1)) -> 
A141: =IF(LEFT(B141,1)="#","",IF(B141="","",MAX(A$4:A140)+1)) -> 
A142: =IF(LEFT(B142,1)="#","",IF(B142="","",MAX(A$4:A141)+1)) -> 
A143: =IF(LEFT(B143,1)="#","",IF(B143="","",MAX(A$4:A142)+1)) -> 
A144: =IF(LEFT(B144,1)="#","",IF(B144="","",MAX(A$4:A143)+1)) -> 
A145: =IF(LEFT(B145,1)="#","",IF(B145="","",MAX(A$4:A144)+1)) -> 
A146: =IF(LEFT(B146,1)="#","",IF(B146="","",MAX(A$4:A145)+1)) -> 
A147: =IF(LEFT(B147,1)="#","",IF(B147="","",MAX(A$4:A146)+1)) -> 
A148: =IF(LEFT(B148,1)="#","",IF(B148="","",MAX(A$4:A147)+1)) -> 
A149: =IF(LEFT(B149,1)="#","",IF(B149="","",MAX(A$4:A148)+1)) -> 
A150: =IF(LEFT(B150,1)="#","",IF(B150="","",MAX(A$4:A149)+1)) -> 
A151: =IF(LEFT(B151,1)="#","",IF(B151="","",MAX(A$4:A150)+1)) -> 
A152: =IF(LEFT(B152,1)="#","",IF(B152="","",MAX(A$4:A151)+1)) -> 
A153: =IF(LEFT(B153,1)="#","",IF(B153="","",MAX(A$4:A152)+1)) -> 
A154: =IF(LEFT(B154,1)="#","",IF(B154="","",MAX(A$4:A153)+1)) -> 
A155: =IF(LEFT(B155,1)="#","",IF(B155="","",MAX(A$4:A154)+1)) -> 
A156: =IF(LEFT(B156,1)="#","",IF(B156="","",MAX(A$4:A155)+1)) -> 
A157: =IF(LEFT(B157,1)="#","",IF(B157="","",MAX(A$4:A156)+1)) -> 
A158: =IF(LEFT(B158,1)="#","",IF(B158="","",MAX(A$4:A157)+1)) -> 
A159: =IF(LEFT(B159,1)="#","",IF(B159="","",MAX(A$4:A158)+1)) -> 
A160: =IF(LEFT(B160,1)="#","",IF(B160="","",MAX(A$4:A159)+1)) -> 
A161: =IF(LEFT(B161,1)="#","",IF(B161="","",MAX(A$4:A160)+1)) -> 
A162: =IF(LEFT(B162,1)="#","",IF(B162="","",MAX(A$4:A161)+1)) -> 
A163: =IF(LEFT(B163,1)="#","",IF(B163="","",MAX(A$4:A162)+1)) -> 
A164: =IF(LEFT(B164,1)="#","",IF(B164="","",MAX(A$4:A163)+1)) -> 
A165: =IF(LEFT(B165,1)="#","",IF(B165="","",MAX(A$4:A164)+1)) -> 
A166: =IF(LEFT(B166,1)="#","",IF(B166="","",MAX(A$4:A165)+1)) -> 
A167: =IF(LEFT(B167,1)="#","",IF(B167="","",MAX(A$4:A166)+1)) -> 
A168: =IF(LEFT(B168,1)="#","",IF(B168="","",MAX(A$4:A167)+1)) -> 
A169: =IF(LEFT(B169,1)="#","",IF(B169="","",MAX(A$4:A168)+1)) -> 
A170: =IF(LEFT(B170,1)="#","",IF(B170="","",MAX(A$4:A169)+1)) -> 
A171: =IF(LEFT(B171,1)="#","",IF(B171="","",MAX(A$4:A170)+1)) -> 
A172: =IF(LEFT(B172,1)="#","",IF(B172="","",MAX(A$4:A171)+1)) -> 
A173: =IF(LEFT(B173,1)="#","",IF(B173="","",MAX(A$4:A172)+1)) -> 
A174: =IF(LEFT(B174,1)="#","",IF(B174="","",MAX(A$4:A173)+1)) -> 
A175: =IF(LEFT(B175,1)="#","",IF(B175="","",MAX(A$4:A174)+1)) -> 
A176: =IF(LEFT(B176,1)="#","",IF(B176="","",MAX(A$4:A175)+1)) -> 
A177: =IF(LEFT(B177,1)="#","",IF(B177="","",MAX(A$4:A176)+1)) -> 
A178: =IF(LEFT(B178,1)="#","",IF(B178="","",MAX(A$4:A177)+1)) -> 
A179: =IF(LEFT(B179,1)="#","",IF(B179="","",MAX(A$4:A178)+1)) -> 
A180: =IF(LEFT(B180,1)="#","",IF(B180="","",MAX(A$4:A179)+1)) -> 
A181: =IF(LEFT(B181,1)="#","",IF(B181="","",MAX(A$4:A180)+1)) -> 
A182: =IF(LEFT(B182,1)="#","",IF(B182="","",MAX(A$4:A181)+1)) -> 
A183: =IF(LEFT(B183,1)="#","",IF(B183="","",MAX(A$4:A182)+1)) -> 
A184: =IF(LEFT(B184,1)="#","",IF(B184="","",MAX(A$4:A183)+1)) -> 
A185: =IF(LEFT(B185,1)="#","",IF(B185="","",MAX(A$4:A184)+1)) -> 
A186: =IF(LEFT(B186,1)="#","",IF(B186="","",MAX(A$4:A185)+1)) -> 
A187: =IF(LEFT(B187,1)="#","",IF(B187="","",MAX(A$4:A186)+1)) -> 
A188: =IF(LEFT(B188,1)="#","",IF(B188="","",MAX(A$4:A187)+1)) -> 
A189: =IF(LEFT(B189,1)="#","",IF(B189="","",MAX(A$4:A188)+1)) -> 
A190: =IF(LEFT(B190,1)="#","",IF(B190="","",MAX(A$4:A189)+1)) -> 
A191: =IF(LEFT(B191,1)="#","",IF(B191="","",MAX(A$4:A190)+1)) -> 
A192: =IF(LEFT(B192,1)="#","",IF(B192="","",MAX(A$4:A191)+1)) -> 
A193: =IF(LEFT(B193,1)="#","",IF(B193="","",MAX(A$4:A192)+1)) -> 
A194: =IF(LEFT(B194,1)="#","",IF(B194="","",MAX(A$4:A193)+1)) -> 
A195: =IF(LEFT(B195,1)="#","",IF(B195="","",MAX(A$4:A194)+1)) -> 
A196: =IF(LEFT(B196,1)="#","",IF(B196="","",MAX(A$4:A195)+1)) -> 
A197: =IF(LEFT(B197,1)="#","",IF(B197="","",MAX(A$4:A196)+1)) -> 
A198: =IF(LEFT(B198,1)="#","",IF(B198="","",MAX(A$4:A197)+1)) -> 
A199: =IF(LEFT(B199,1)="#","",IF(B199="","",MAX(A$4:A198)+1)) -> 
A200: =IF(LEFT(B200,1)="#","",IF(B200="","",MAX(A$4:A199)+1)) -> 
... 4 more rows

Sheet Startliste 3
A1: ="Startliste "&Auswertung!B5&" in "&Auswertung!B4&" am "&TEXT(Auswertung!B3,"TT.MM.JJJJ") -> Startliste Musterentscheid in Musterstadt am 08.09.2024 | F1: Verfahren für die Erstellung der "Startliste 3": | L1: Startzeit: | M1: Zeitintervall: | AA1: Vorgabe für Berechnung der Formeln | AE1: Vorgabe Zahlen und Formate für "parallel" | AI1: Vorgabe Zahlen und Formate für "seriell" | AN1: VorgabeFormate für "parallel" | AP1: VorgabeFormate für "seriell"
B2: Hinweis: Alle Zeitangaben sind "ohne Gewähr"!!! | E2: Starten parallel | G2: StartNr / Uhrzeit | H2: Daten für Tabelle "Startliste 3" | I2: Transfer H <- J | J2: Daten aus Tabelle "Einheiten" | K2: LfdNr | L2: (Uhrzeit) | M2: (Minuten) | O2: Aktive Module | AA2: Spalte C | AB2: Spalte D | AC2: Spalte E | AE2: Spalte C | AF2: Spalte D | AG2: Spalte E | AI2: Spalte C | AJ2: Spalte D | AK2: Spalte E | AN2: Spalte H | AP2: Spalte H
A3: Lfd Nr | B3: Zeit | C3: Fahrübung | D3: Löschangriff | E3: Saugleitung | F3: Zusammenstellung einer Startliste 3: | H3: für die Erstellung der Startliste | I3: <==== | J3: ="# # # # P a u s e # # # # # " -> # # # # P a u s e # # # # # | L3: 10:00:00 | M3: 10 | O3: =IF(Auswertung!AD16="","",Auswertung!AD16) -> Löschangriff
A4: =IF(LEFT(C4,1)="#","",IF(C4="","",MAX(A$3:A3)+1)) ->  | B4: =IF(K5=1,"",L3) -> 10:00:00 | C4: =IF(INDIRECT("H"&AA4,TRUE)="","",INDIRECT("H"&AA4,TRUE)) ->  | G4: =IF(LEFT(H4,1)="#",TEXT(B4,"hh:mm")& " Uhr",IF(H4="",TEXT(B4,"hh:mm")& " Uhr",MAX(G$3:G3)+1)) -> 10:00 Uhr | I4: <==== | J4: # # # A u s w e r t u n g # # # | O4: =IF(Auswertung!AD18="","",Auswertung!AD18) -> Saugleitung | AA4: 4 | AB4: 5 | AC4: 6 | AE4: 4 | AF4: 5 | AG4: 6 | AI4: 4 | AJ4: 1 | AK4: 1
A5: =IF(LEFT(C5,1)="#","",IF(C5="","",MAX(A$3:A4)+1)) ->  | B5: =IF($K$5=1,"",B4+($M$3/24/60)) -> 10:10:00 | F5: Die Reihenfolge der 3 Module (Zellen C3, D3, E3) | G5: =IF(LEFT(H5,1)="#",TEXT(B5,"hh:mm")& " Uhr",IF(H5="",TEXT(B5,"hh:mm")& " Uhr",MAX(G$3:G4)+1)) -> 10:10 Uhr | I5: <==== | J5: # # # S i e g e r e h r u n g # # # | K5: =IF(L5="Zeit in Spalte B nicht anzeigen",1,0) -> 0 | L5: Zeit in Spalte B anzeigen | O5: =IF(Auswertung!AD20="","",Auswertung!AD20) -> Funkübung | AA5: 6 | AB5: 4 | AC5: 5 | AE5: 6 | AF5: 4 | AG5: 5 | AI5: 5 | AJ5: 4 | AK5: 1
A6: =IF(LEFT(C6,1)="#","",IF(C6="","",MAX(A$3:A5)+1)) ->  | B6: =IF($K$5=1,"",B5+($M$3/24/60)) -> 10:20:00 | F6: kann aus den aktiven Modulen ausgewählt werden. | G6: =IF(LEFT(H6,1)="#",TEXT(B6,"hh:mm")& " Uhr",IF(H6="",TEXT(B6,"hh:mm")& " Uhr",MAX(G$3:G5)+1)) -> 10:20 Uhr | I6: <==== | J6: # Einheitsführerbesprechung # | L6: Starten parallel | AA6: 5 | AB6: 6 | AC6: 4 | AE6: 5 | AF6: 6 | AG6: 4 | AI6: 6 | AJ6: 5 | AK6: 4
A7: =IF(LEFT(C7,1)="#","",IF(C7="","",MAX(A$3:A6)+1)) ->  | B7: 10:30:00 | F7: (Siehe Tabelle "Auswertung", Zellen M16…M24) | G7: =IF(LEFT(H7,1)="#",TEXT(B7,"hh:mm")& " Uhr",IF(H7="",TEXT(B7,"hh:mm")& " Uhr",MAX(G$3:G6)+1)) -> 10:30 Uhr | I7: <==== | J7: # ( P l a t z h a l t e r ) # | AA7: 7 | AB7: 8 | AC7: 9 | AE7: 7 | AF7: 8 | AG7: 9 | AI7: 7 | AJ7: 6 | AK7: 5
A8: =IF(LEFT(C8,1)="#","",IF(C8="","",MAX(A$3:A7)+1)) ->  | B8: 10:40:00 | C8: =IF(INDIRECT("H"&AA8,TRUE)="","",INDIRECT("H"&AA8,TRUE)) ->  | D8: =IF(INDIRECT("H"&AB8,TRUE)="","",INDIRECT("H"&AB8,TRUE)) ->  | E8: =IF(INDIRECT("H"&AC8,TRUE)="","",INDIRECT("H"&AC8,TRUE)) ->  | F8: Eine "Doppelauswahl" eines Moduls wird rot markiert. | G8: =IF(LEFT(H8,1)="#",TEXT(B8,"hh:mm")& " Uhr",IF(H8="",TEXT(B8,"hh:mm")& " Uhr",MAX(G$3:G7)+1)) -> 10:40 Uhr | I8: <==== | J8: Musterort | K8: 1 | AA8: 9 | AB8: 7 | AC8: 8 | AE8: 9 | AF8: 7 | AG8: 8 | AI8: 8 | AJ8: 7 | AK8: 6
A9: =IF(LEFT(C9,1)="#","",IF(C9="","",MAX(A$3:A8)+1)) ->  | B9: 10:50:00 | G9: =IF(LEFT(H9,1)="#",TEXT(B9,"hh:mm")& " Uhr",IF(H9="",TEXT(B9,"hh:mm")& " Uhr",MAX(G$3:G8)+1)) -> 10:50 Uhr | K9: 2 | AA9: 8 | AB9: 9 | AC9: 7 | AE9: 8 | AF9: 9 | AG9: 7 | AI9: 9 | AJ9: 8 | AK9: 7
A10: =IF(LEFT(C10,1)="#","",IF(C10="","",MAX(A$3:A9)+1)) ->  | B10: 11:00:00 | F10: In der Zelle L6 kann zwischen "Starten seriell" und | G10: =IF(LEFT(H10,1)="#",TEXT(B10,"hh:mm")& " Uhr",IF(H10="",TEXT(B10,"hh:mm")& " Uhr",MAX(G$3:G9)+1)) -> 11:00 Uhr | K10: 3 | AA10: 10 | AB10: 11 | AC10: 12 | AE10: 10 | AF10: 11 | AG10: 12 | AI10: 10 | AJ10: 9 | AK10: 8
A11: =IF(LEFT(C11,1)="#","",IF(C11="","",MAX(A$3:A10)+1)) ->  | B11: 11:10:00 | F11: "Starten parallel" gewählt werden. | G11: =IF(LEFT(H11,1)="#",TEXT(B11,"hh:mm")& " Uhr",IF(H11="",TEXT(B11,"hh:mm")& " Uhr",MAX(G$3:G10)+1)) -> 11:10 Uhr | K11: 4 | AA11: 12 | AB11: 10 | AC11: 11 | AE11: 12 | AF11: 10 | AG11: 11 | AI11: 11 | AJ11: 10 | AK11: 9
A12: =IF(LEFT(C12,1)="#","",IF(C12="","",MAX(A$3:A11)+1)) ->  | B12: 11:20:00 | F12: In den Spalten C, D, E und H werden die Farbumschäge | G12: =IF(LEFT(H12,1)="#",TEXT(B12,"hh:mm")& " Uhr",IF(H12="",TEXT(B12,"hh:mm")& " Uhr",MAX(G$3:G11)+1)) -> 11:20 Uhr | K12: 5 | AA12: 11 | AB12: 12 | AC12: 10 | AE12: 11 | AF12: 12 | AG12: 10 | AI12: 12 | AJ12: 11 | AK12: 10
A13: =IF(LEFT(C13,1)="#","",IF(C13="","",MAX(A$3:A12)+1)) ->  | B13: 11:30:00 | F13: und die Trennung mit "diecken Rahmenlinien" | G13: =IF(LEFT(H13,1)="#",TEXT(B13,"hh:mm")& " Uhr",IF(H13="",TEXT(B13,"hh:mm")& " Uhr",MAX(G$3:G12)+1)) -> 11:30 Uhr | K13: 6 | AA13: 13 | AB13: 14 | AC13: 15 | AE13: 13 | AF13: 14 | AG13: 15 | AI13: 13 | AJ13: 12 | AK13: 11
A14: =IF(LEFT(C14,1)="#","",IF(C14="","",MAX(A$3:A13)+1)) ->  | B14: 11:40:00 | F14: entsprechend angepasst. | G14: =IF(LEFT(H14,1)="#",TEXT(B14,"hh:mm")& " Uhr",IF(H14="",TEXT(B14,"hh:mm")& " Uhr",MAX(G$3:G13)+1)) -> 11:40 Uhr | K14: 7 | AA14: 15 | AB14: 13 | AC14: 14 | AE14: 15 | AF14: 13 | AG14: 14 | AI14: 14 | AJ14: 13 | AK14: 12
A15: =IF(LEFT(C15,1)="#","",IF(C15="","",MAX(A$3:A14)+1)) ->  | B15: 11:50:00 | F15: Die aktuelle Startart wird in Zelle E2 angezeigt. | G15: =IF(LEFT(H15,1)="#",TEXT(B15,"hh:mm")& " Uhr",IF(H15="",TEXT(B15,"hh:mm")& " Uhr",MAX(G$3:G14)+1)) -> 11:50 Uhr | K15: 8 | AA15: 14 | AB15: 15 | AC15: 13 | AE15: 14 | AF15: 15 | AG15: 13 | AI15: 15 | AJ15: 14 | AK15: 13
A16: =IF(LEFT(C16,1)="#","",IF(C16="","",MAX(A$3:A15)+1)) ->  | B16: 12:00:00 | D16: =IF(INDIRECT("H"&AB16,TRUE)="","",INDIRECT("H"&AB16,TRUE)) ->  | E16: =IF(INDIRECT("H"&AC16,TRUE)="","",INDIRECT("H"&AC16,TRUE)) ->  | F16: Eine Aktualisierung der Darstellung ist mit der | G16: =IF(LEFT(H16,1)="#",TEXT(B16,"hh:mm")& " Uhr",IF(H16="",TEXT(B16,"hh:mm")& " Uhr",MAX(G$3:G15)+1)) -> 12:00 Uhr | K16: 9 | AA16: 16 | AB16: 17 | AC16: 18 | AE16: 16 | AF16: 17 | AG16: 18 | AI16: 16 | AJ16: 15 | AK16: 14
A17: =IF(LEFT(C17,1)="#","",IF(C17="","",MAX(A$3:A16)+1)) ->  | B17: 12:10:00 | F17: Auswahl in Zelle L6 oder mit dem Makro | G17: =IF(LEFT(H17,1)="#",TEXT(B17,"hh:mm")& " Uhr",IF(H17="",TEXT(B17,"hh:mm")& " Uhr",MAX(G$3:G16)+1)) -> 12:10 Uhr | K17: 10 | AA17: 18 | AB17: 16 | AC17: 17 | AE17: 18 | AF17: 16 | AG17: 17 | AI17: 17 | AJ17: 16 | AK17: 15
A18: =IF(LEFT(C18,1)="#","",IF(C18="","",MAX(A$3:A17)+1)) ->  | B18: 12:20:00 | F18: (Button [Starten Seriell / Starten Parallel umschalten]) | G18: =IF(LEFT(H18,1)="#",TEXT(B18,"hh:mm")& " Uhr",IF(H18="",TEXT(B18,"hh:mm")& " Uhr",MAX(G$3:G17)+1)) -> 12:20 Uhr | K18: 11 | AA18: 17 | AB18: 18 | AC18: 16 | AE18: 17 | AF18: 18 | AG18: 16 | AI18: 18 | AJ18: 17 | AK18: 16
A19: =IF(LEFT(C19,1)="#","",IF(C19="","",MAX(A$3:A18)+1)) ->  | B19: 12:30:00 | C19: =IF(INDIRECT("H"&AA19,TRUE)="","",INDIRECT("H"&AA19,TRUE)) ->  | F19: möglich. | G19: =IF(LEFT(H19,1)="#",TEXT(B19,"hh:mm")& " Uhr",IF(H19="",TEXT(B19,"hh:mm")& " Uhr",MAX(G$3:G18)+1)) -> 12:30 Uhr | K19: 12 | AA19: 19 | AB19: 20 | AC19: 21 | AE19: 19 | AF19: 20 | AG19: 21 | AI19: 19 | AJ19: 18 | AK19: 17
A20: =IF(LEFT(C20,1)="#","",IF(C20="","",MAX(A$3:A19)+1)) ->  | B20: 12:40:00 | G20: =IF(LEFT(H20,1)="#",TEXT(B20,"hh:mm")& " Uhr",IF(H20="",TEXT(B20,"hh:mm")& " Uhr",MAX(G$3:G19)+1)) -> 12:40 Uhr | K20: 13 | AA20: 21 | AB20: 19 | AC20: 20 | AE20: 21 | AF20: 19 | AG20: 20 | AI20: 20 | AJ20: 19 | AK20: 18
A21: =IF(LEFT(C21,1)="#","",IF(C21="","",MAX(A$3:A20)+1)) ->  | B21: 12:50:00 | C21: =IF(INDIRECT("H"&AA21,TRUE)="","",INDIRECT("H"&AA21,TRUE)) ->  | F21: Wenn (z.B.) Pausenzeiten in Spalte H eingetragen sind, | G21: =IF(LEFT(H21,1)="#",TEXT(B21,"hh:mm")& " Uhr",IF(H21="",TEXT(B21,"hh:mm")& " Uhr",MAX(G$3:G20)+1)) -> 12:50 Uhr | K21: 14 | AA21: 20 | AB21: 21 | AC21: 19 | AE21: 20 | AF21: 21 | AG21: 19 | AI21: 21 | AJ21: 20 | AK21: 19
A22: =IF(LEFT(C22,1)="#","",IF(C22="","",MAX(A$3:A21)+1)) ->  | B22: 13:00:00 | F22: werden die Pausen in gleicher Weise (parallel oder | G22: =IF(LEFT(H22,1)="#",TEXT(B22,"hh:mm")& " Uhr",IF(H22="",TEXT(B22,"hh:mm")& " Uhr",MAX(G$3:G21)+1)) -> 13:00 Uhr | K22: 15 | AA22: 22 | AB22: 23 | AC22: 24 | AE22: 22 | AF22: 23 | AG22: 24 | AI22: 22 | AJ22: 21 | AK22: 20
A23: =IF(LEFT(C23,1)="#","",IF(C23="","",MAX(A$3:A22)+1)) ->  | B23: 13:10:00 | F23: seriell) im Bereich der Spalten C-E dargestellt. | G23: =IF(LEFT(H23,1)="#",TEXT(B23,"hh:mm")& " Uhr",IF(H23="",TEXT(B23,"hh:mm")& " Uhr",MAX(G$3:G22)+1)) -> 13:10 Uhr | K23: 16 | AA23: 24 | AB23: 22 | AC23: 23 | AE23: 24 | AF23: 22 | AG23: 23 | AI23: 23 | AJ23: 22 | AK23: 21
A24: =IF(LEFT(C24,1)="#","",IF(C24="","",MAX(A$3:A23)+1)) ->  | B24: 13:20:00 | G24: =IF(LEFT(H24,1)="#",TEXT(B24,"hh:mm")& " Uhr",IF(H24="",TEXT(B24,"hh:mm")& " Uhr",MAX(G$3:G23)+1)) -> 13:20 Uhr | K24: 17 | AA24: 23 | AB24: 24 | AC24: 22 | AE24: 23 | AF24: 24 | AG24: 22 | AI24: 24 | AJ24: 23 | AK24: 22
A25: =IF(LEFT(C25,1)="#","",IF(C25="","",MAX(A$3:A24)+1)) ->  | B25: 13:30:00 | F25: In der Spalte J (J8 … J207) werden per Button | G25: =IF(LEFT(H25,1)="#",TEXT(B25,"hh:mm")& " Uhr",IF(H25="",TEXT(B25,"hh:mm")& " Uhr",MAX(G$3:G24)+1)) -> 13:30 Uhr | K25: 18 | AA25: 25 | AB25: 26 | AC25: 27 | AE25: 25 | AF25: 26 | AG25: 27 | AI25: 25 | AJ25: 24 | AK25: 23
A26: =IF(LEFT(C26,1)="#","",IF(C26="","",MAX(A$3:A25)+1)) ->  | B26: 13:40:00 | F26: [Teilnehmer aus Tabelle Einheiten neu laden] | G26: =IF(LEFT(H26,1)="#",TEXT(B26,"hh:mm")& " Uhr",IF(H26="",TEXT(B26,"hh:mm")& " Uhr",MAX(G$3:G25)+1)) -> 13:40 Uhr | K26: 19 | AA26: 27 | AB26: 25 | AC26: 26 | AE26: 27 | AF26: 25 | AG26: 26 | AI26: 26 | AJ26: 25 | AK26: 24
A27: =IF(LEFT(C27,1)="#","",IF(C27="","",MAX(A$3:A26)+1)) ->  | B27: 13:50:00 | F27: die Namen aus der Tabelle "Einheiten" | G27: =IF(LEFT(H27,1)="#",TEXT(B27,"hh:mm")& " Uhr",IF(H27="",TEXT(B27,"hh:mm")& " Uhr",MAX(G$3:G26)+1)) -> 13:50 Uhr | K27: 20 | AA27: 26 | AB27: 27 | AC27: 25 | AE27: 26 | AF27: 27 | AG27: 25 | AI27: 27 | AJ27: 26 | AK27: 25
A28: =IF(LEFT(C28,1)="#","",IF(C28="","",MAX(A$3:A27)+1)) ->  | B28: 14:00:00 | F28: in diese Tabelle (Spalte J) kopiert. | G28: =IF(LEFT(H28,1)="#",TEXT(B28,"hh:mm")& " Uhr",IF(H28="",TEXT(B28,"hh:mm")& " Uhr",MAX(G$3:G27)+1)) -> 14:00 Uhr | K28: 21 | AA28: 28 | AB28: 29 | AC28: 30 | AE28: 28 | AF28: 29 | AG28: 30 | AI28: 28 | AJ28: 27 | AK28: 26
A29: =IF(LEFT(C29,1)="#","",IF(C29="","",MAX(A$3:A28)+1)) ->  | B29: 14:10:00 | F29: Alternativ können aus einer anderen Liste | G29: =IF(LEFT(H29,1)="#",TEXT(B29,"hh:mm")& " Uhr",IF(H29="",TEXT(B29,"hh:mm")& " Uhr",MAX(G$3:G28)+1)) -> 14:10 Uhr | K29: 22 | AA29: 30 | AB29: 28 | AC29: 29 | AE29: 30 | AF29: 28 | AG29: 29 | AI29: 29 | AJ29: 28 | AK29: 27
A30: =IF(LEFT(C30,1)="#","",IF(C30="","",MAX(A$3:A29)+1)) ->  | B30: 14:20:00 | F30: Namen (nur "Werte"!!) hineinkopiert werden. | G30: =IF(LEFT(H30,1)="#",TEXT(B30,"hh:mm")& " Uhr",IF(H30="",TEXT(B30,"hh:mm")& " Uhr",MAX(G$3:G29)+1)) -> 14:20 Uhr | K30: 23 | AA30: 29 | AB30: 30 | AC30: 28 | AE30: 29 | AF30: 30 | AG30: 28 | AI30: 30 | AJ30: 29 | AK30: 28
A31: =IF(LEFT(C31,1)="#","",IF(C31="","",MAX(A$3:A30)+1)) ->  | B31: 14:30:00 | G31: =IF(LEFT(H31,1)="#",TEXT(B31,"hh:mm")& " Uhr",IF(H31="",TEXT(B31,"hh:mm")& " Uhr",MAX(G$3:G30)+1)) -> 14:30 Uhr | K31: 24 | AA31: 31 | AB31: 32 | AC31: 33 | AE31: 31 | AF31: 32 | AG31: 33 | AI31: 31 | AJ31: 30 | AK31: 29
A32: =IF(LEFT(C32,1)="#","",IF(C32="","",MAX(A$3:A31)+1)) ->  | B32: 14:40:00 | F32: In der Spalte H (H4….H203) werden die Einträge | G32: =IF(LEFT(H32,1)="#",TEXT(B32,"hh:mm")& " Uhr",IF(H32="",TEXT(B32,"hh:mm")& " Uhr",MAX(G$3:G31)+1)) -> 14:40 Uhr | K32: 25 | AA32: 33 | AB32: 31 | AC32: 32 | AE32: 33 | AF32: 31 | AG32: 32 | AI32: 32 | AJ32: 31 | AK32: 30
A33: =IF(LEFT(C33,1)="#","",IF(C33="","",MAX(A$3:A32)+1)) ->  | B33: 14:50:00 | F33: gelöscht. (H4….H203 markieren, Taste [Entf] ). | G33: =IF(LEFT(H33,1)="#",TEXT(B33,"hh:mm")& " Uhr",IF(H33="",TEXT(B33,"hh:mm")& " Uhr",MAX(G$3:G32)+1)) -> 14:50 Uhr | K33: 26 | AA33: 32 | AB33: 33 | AC33: 31 | AE33: 32 | AF33: 33 | AG33: 31 | AI33: 33 | AJ33: 32 | AK33: 31
A34: =IF(LEFT(C34,1)="#","",IF(C34="","",MAX(A$3:A33)+1)) ->  | B34: 15:00:00 | F34: Alternativ wird bei der Übernahme der Daten aus | G34: =IF(LEFT(H34,1)="#",TEXT(B34,"hh:mm")& " Uhr",IF(H34="",TEXT(B34,"hh:mm")& " Uhr",MAX(G$3:G33)+1)) -> 15:00 Uhr | K34: 27 | AA34: 34 | AB34: 35 | AC34: 36 | AE34: 34 | AF34: 35 | AG34: 36 | AI34: 34 | AJ34: 33 | AK34: 32
A35: =IF(LEFT(C35,1)="#","",IF(C35="","",MAX(A$3:A34)+1)) ->  | B35: 15:10:00 | F35: Tabelle "Einheiten" abgefragt, ob die Daten in | G35: =IF(LEFT(H35,1)="#",TEXT(B35,"hh:mm")& " Uhr",IF(H35="",TEXT(B35,"hh:mm")& " Uhr",MAX(G$3:G34)+1)) -> 15:10 Uhr | K35: 28 | AA35: 36 | AB35: 34 | AC35: 35 | AE35: 36 | AF35: 34 | AG35: 35 | AI35: 35 | AJ35: 34 | AK35: 33
A36: =IF(LEFT(C36,1)="#","",IF(C36="","",MAX(A$3:A35)+1)) ->  | B36: 15:20:00 | F36: der Spalte H gelöscht werden sollen. | G36: =IF(LEFT(H36,1)="#",TEXT(B36,"hh:mm")& " Uhr",IF(H36="",TEXT(B36,"hh:mm")& " Uhr",MAX(G$3:G35)+1)) -> 15:20 Uhr | K36: 29 | AA36: 35 | AB36: 36 | AC36: 34 | AE36: 35 | AF36: 36 | AG36: 34 | AI36: 36 | AJ36: 35 | AK36: 34
A37: =IF(LEFT(C37,1)="#","",IF(C37="","",MAX(A$3:A36)+1)) ->  | B37: 15:30:00 | G37: =IF(LEFT(H37,1)="#",TEXT(B37,"hh:mm")& " Uhr",IF(H37="",TEXT(B37,"hh:mm")& " Uhr",MAX(G$3:G36)+1)) -> 15:30 Uhr | K37: 30 | AA37: 37 | AB37: 38 | AC37: 39 | AE37: 37 | AF37: 38 | AG37: 39 | AI37: 37 | AJ37: 36 | AK37: 35
A38: =IF(LEFT(C38,1)="#","",IF(C38="","",MAX(A$3:A37)+1)) ->  | B38: 15:40:00 | F38: Mittels Doppelklick auf die Zellen in der | G38: =IF(LEFT(H38,1)="#",TEXT(B38,"hh:mm")& " Uhr",IF(H38="",TEXT(B38,"hh:mm")& " Uhr",MAX(G$3:G37)+1)) -> 15:40 Uhr | K38: 31 | AA38: 39 | AB38: 37 | AC38: 38 | AE38: 39 | AF38: 37 | AG38: 38 | AI38: 38 | AJ38: 37 | AK38: 36
A39: =IF(LEFT(C39,1)="#","",IF(C39="","",MAX(A$3:A38)+1)) ->  | B39: 15:50:00 | F39: Spalte I ("Transferpfeile") werden die Namen | G39: =IF(LEFT(H39,1)="#",TEXT(B39,"hh:mm")& " Uhr",IF(H39="",TEXT(B39,"hh:mm")& " Uhr",MAX(G$3:G38)+1)) -> 15:50 Uhr | K39: 32 | AA39: 38 | AB39: 39 | AC39: 37 | AE39: 38 | AF39: 39 | AG39: 37 | AI39: 39 | AJ39: 38 | AK39: 37
A40: =IF(LEFT(C40,1)="#","",IF(C40="","",MAX(A$3:A39)+1)) ->  | B40: 16:00:00 | F40: der Einheiten aus Spalte J in die erste freie | G40: =IF(LEFT(H40,1)="#",TEXT(B40,"hh:mm")& " Uhr",IF(H40="",TEXT(B40,"hh:mm")& " Uhr",MAX(G$3:G39)+1)) -> 16:00 Uhr | K40: 33 | AA40: 40 | AB40: 41 | AC40: 42 | AE40: 40 | AF40: 41 | AG40: 42 | AI40: 40 | AJ40: 39 | AK40: 38
A41: =IF(LEFT(C41,1)="#","",IF(C41="","",MAX(A$3:A40)+1)) ->  | B41: 16:10:00 | F41: Zelle in der Spalte H kopiert und der | G41: =IF(LEFT(H41,1)="#",TEXT(B41,"hh:mm")& " Uhr",IF(H41="",TEXT(B41,"hh:mm")& " Uhr",MAX(G$3:G40)+1)) -> 16:10 Uhr | K41: 34 | AA41: 42 | AB41: 40 | AC41: 41 | AE41: 42 | AF41: 40 | AG41: 41 | AI41: 41 | AJ41: 40 | AK41: 39
A42: =IF(LEFT(C42,1)="#","",IF(C42="","",MAX(A$3:A41)+1)) ->  | B42: 16:20:00 | F42: "Transferpfeil" in Spalte I gelöscht. | G42: =IF(LEFT(H42,1)="#",TEXT(B42,"hh:mm")& " Uhr",IF(H42="",TEXT(B42,"hh:mm")& " Uhr",MAX(G$3:G41)+1)) -> 16:20 Uhr | K42: 35 | AA42: 41 | AB42: 42 | AC42: 40 | AE42: 41 | AF42: 42 | AG42: 40 | AI42: 42 | AJ42: 41 | AK42: 40
A43: =IF(LEFT(C43,1)="#","",IF(C43="","",MAX(A$3:A42)+1)) ->  | B43: 16:30:00 | G43: =IF(LEFT(H43,1)="#",TEXT(B43,"hh:mm")& " Uhr",IF(H43="",TEXT(B43,"hh:mm")& " Uhr",MAX(G$3:G42)+1)) -> 16:30 Uhr | K43: 36 | AA43: 43 | AB43: 44 | AC43: 45 | AE43: 43 | AF43: 44 | AG43: 45 | AI43: 43 | AJ43: 42 | AK43: 41
A44: =IF(LEFT(C44,1)="#","",IF(C44="","",MAX(A$3:A43)+1)) ->  | B44: 16:40:00 | F44: Soll der Name an einer bestimmten Stelle | G44: =IF(LEFT(H44,1)="#",TEXT(B44,"hh:mm")& " Uhr",IF(H44="",TEXT(B44,"hh:mm")& " Uhr",MAX(G$3:G43)+1)) -> 16:40 Uhr | K44: 37 | AA44: 45 | AB44: 43 | AC44: 44 | AE44: 45 | AF44: 43 | AG44: 44 | AI44: 44 | AJ44: 43 | AK44: 42
A45: =IF(LEFT(C45,1)="#","",IF(C45="","",MAX(A$3:A44)+1)) ->  | B45: 16:50:00 | F45: der Tabelle eingefügt werden, so kann in der | G45: =IF(LEFT(H45,1)="#",TEXT(B45,"hh:mm")& " Uhr",IF(H45="",TEXT(B45,"hh:mm")& " Uhr",MAX(G$3:G44)+1)) -> 16:50 Uhr | K45: 38 | AA45: 44 | AB45: 45 | AC45: 43 | AE45: 44 | AF45: 45 | AG45: 43 | AI45: 45 | AJ45: 44 | AK45: 43
A46: =IF(LEFT(C46,1)="#","",IF(C46="","",MAX(A$3:A45)+1)) ->  | B46: 17:00:00 | F46: Zelle in Spalte H vorher ein "x" eingetragen werden. | G46: =IF(LEFT(H46,1)="#",TEXT(B46,"hh:mm")& " Uhr",IF(H46="",TEXT(B46,"hh:mm")& " Uhr",MAX(G$3:G45)+1)) -> 17:00 Uhr | K46: 39 | AA46: 46 | AB46: 47 | AC46: 48 | AE46: 46 | AF46: 47 | AG46: 48 | AI46: 46 | AJ46: 45 | AK46: 44
A47: =IF(LEFT(C47,1)="#","",IF(C47="","",MAX(A$3:A46)+1)) ->  | B47: 17:10:00 | F47: Der Transfer erfolgt dann in diese Zelle. | G47: =IF(LEFT(H47,1)="#",TEXT(B47,"hh:mm")& " Uhr",IF(H47="",TEXT(B47,"hh:mm")& " Uhr",MAX(G$3:G46)+1)) -> 17:10 Uhr | K47: 40 | AA47: 48 | AB47: 46 | AC47: 47 | AE47: 48 | AF47: 46 | AG47: 47 | AI47: 47 | AJ47: 46 | AK47: 45
A48: =IF(LEFT(C48,1)="#","",IF(C48="","",MAX(A$3:A47)+1)) ->  | B48: 17:20:00 | G48: =IF(LEFT(H48,1)="#",TEXT(B48,"hh:mm")& " Uhr",IF(H48="",TEXT(B48,"hh:mm")& " Uhr",MAX(G$3:G47)+1)) -> 17:20 Uhr | K48: 41 | AA48: 47 | AB48: 48 | AC48: 46 | AE48: 47 | AF48: 48 | AG48: 46 | AI48: 48 | AJ48: 47 | AK48: 46
A49: =IF(LEFT(C49,1)="#","",IF(C49="","",MAX(A$3:A48)+1)) ->  | B49: 17:30:00 | F49: Wenn versucht wird, eine Einheit "doppelt" | G49: =IF(LEFT(H49,1)="#",TEXT(B49,"hh:mm")& " Uhr",IF(H49="",TEXT(B49,"hh:mm")& " Uhr",MAX(G$3:G48)+1)) -> 17:30 Uhr | K49: 42 | AA49: 49 | AB49: 50 | AC49: 51 | AE49: 49 | AF49: 50 | AG49: 51 | AI49: 49 | AJ49: 48 | AK49: 47
A50: =IF(LEFT(C50,1)="#","",IF(C50="","",MAX(A$3:A49)+1)) ->  | B50: 17:40:00 | F50: in die Spalte H einzutragen, wird eine | G50: =IF(LEFT(H50,1)="#",TEXT(B50,"hh:mm")& " Uhr",IF(H50="",TEXT(B50,"hh:mm")& " Uhr",MAX(G$3:G49)+1)) -> 17:40 Uhr | K50: 43 | AA50: 51 | AB50: 49 | AC50: 50 | AE50: 51 | AF50: 49 | AG50: 50 | AI50: 50 | AJ50: 49 | AK50: 48
A51: =IF(LEFT(C51,1)="#","",IF(C51="","",MAX(A$3:A50)+1)) ->  | B51: 17:50:00 | F51: entsprechende Meldung ausgegeben, | G51: =IF(LEFT(H51,1)="#",TEXT(B51,"hh:mm")& " Uhr",IF(H51="",TEXT(B51,"hh:mm")& " Uhr",MAX(G$3:G50)+1)) -> 17:50 Uhr | K51: 44 | AA51: 50 | AB51: 51 | AC51: 49 | AE51: 50 | AF51: 51 | AG51: 49 | AI51: 51 | AJ51: 50 | AK51: 49
A52: =IF(LEFT(C52,1)="#","",IF(C52="","",MAX(A$3:A51)+1)) ->  | B52: 18:00:00 | F52: der Transfer wird nicht ausgeführt. | G52: =IF(LEFT(H52,1)="#",TEXT(B52,"hh:mm")& " Uhr",IF(H52="",TEXT(B52,"hh:mm")& " Uhr",MAX(G$3:G51)+1)) -> 18:00 Uhr | K52: 45 | AA52: 52 | AB52: 53 | AC52: 54 | AE52: 52 | AF52: 53 | AG52: 54 | AI52: 52 | AJ52: 51 | AK52: 50
A53: =IF(LEFT(C53,1)="#","",IF(C53="","",MAX(A$3:A52)+1)) ->  | B53: 18:10:00 | C53: =IF(INDIRECT("H"&AA53,TRUE)="","",INDIRECT("H"&AA53,TRUE)) ->  | G53: =IF(LEFT(H53,1)="#",TEXT(B53,"hh:mm")& " Uhr",IF(H53="",TEXT(B53,"hh:mm")& " Uhr",MAX(G$3:G52)+1)) -> 18:10 Uhr | K53: 46 | AA53: 54 | AB53: 52 | AC53: 53 | AE53: 54 | AF53: 52 | AG53: 53 | AI53: 53 | AJ53: 52 | AK53: 51
A54: =IF(LEFT(C54,1)="#","",IF(C54="","",MAX(A$3:A53)+1)) ->  | B54: 18:20:00 | F54: Ein Doppelklick in Zelle I2 kopiert alle Einheiten | G54: =IF(LEFT(H54,1)="#",TEXT(B54,"hh:mm")& " Uhr",IF(H54="",TEXT(B54,"hh:mm")& " Uhr",MAX(G$3:G53)+1)) -> 18:20 Uhr | K54: 47 | AA54: 53 | AB54: 54 | AC54: 52 | AE54: 53 | AF54: 54 | AG54: 52 | AI54: 54 | AJ54: 53 | AK54: 52
A55: =IF(LEFT(C55,1)="#","",IF(C55="","",MAX(A$3:A54)+1)) ->  | B55: 18:30:00 | F55: aus Spalte J in Spalte H, wobei bereits | G55: =IF(LEFT(H55,1)="#",TEXT(B55,"hh:mm")& " Uhr",IF(H55="",TEXT(B55,"hh:mm")& " Uhr",MAX(G$3:G54)+1)) -> 18:30 Uhr | K55: 48 | AA55: 55 | AB55: 56 | AC55: 57 | AE55: 55 | AF55: 56 | AG55: 57 | AI55: 55 | AJ55: 54 | AK55: 53
A56: =IF(LEFT(C56,1)="#","",IF(C56="","",MAX(A$3:A55)+1)) ->  | B56: 18:40:00 | F56: vorhandene Einträge von Einheitsnamen | G56: =IF(LEFT(H56,1)="#",TEXT(B56,"hh:mm")& " Uhr",IF(H56="",TEXT(B56,"hh:mm")& " Uhr",MAX(G$3:G55)+1)) -> 18:40 Uhr | K56: 49 | AA56: 57 | AB56: 55 | AC56: 56 | AE56: 57 | AF56: 55 | AG56: 56 | AI56: 56 | AJ56: 55 | AK56: 54
A57: =IF(LEFT(C57,1)="#","",IF(C57="","",MAX(A$3:A56)+1)) ->  | B57: 18:50:00 | F57: in Spalte H ohne weitere Nachfrage überschrieben | G57: =IF(LEFT(H57,1)="#",TEXT(B57,"hh:mm")& " Uhr",IF(H57="",TEXT(B57,"hh:mm")& " Uhr",MAX(G$3:G56)+1)) -> 18:50 Uhr | K57: 50 | AA57: 56 | AB57: 57 | AC57: 55 | AE57: 56 | AF57: 57 | AG57: 55 | AI57: 57 | AJ57: 56 | AK57: 55
A58: =IF(LEFT(C58,1)="#","",IF(C58="","",MAX(A$3:A57)+1)) ->  | B58: 19:00:00 | F58: werden. Bereits vorhandene Einträge, die mit "#" | G58: =IF(LEFT(H58,1)="#",TEXT(B58,"hh:mm")& " Uhr",IF(H58="",TEXT(B58,"hh:mm")& " Uhr",MAX(G$3:G57)+1)) -> 19:00 Uhr | K58: 51 | AA58: 58 | AB58: 59 | AC58: 60 | AE58: 58 | AF58: 59 | AG58: 60 | AI58: 58 | AJ58: 57 | AK58: 56
A59: =IF(LEFT(C59,1)="#","",IF(C59="","",MAX(A$3:A58)+1)) ->  | B59: 19:10:00 | F59: beginnen (z.B. "##### Pause ###"), werden aber | G59: =IF(LEFT(H59,1)="#",TEXT(B59,"hh:mm")& " Uhr",IF(H59="",TEXT(B59,"hh:mm")& " Uhr",MAX(G$3:G58)+1)) -> 19:10 Uhr | K59: 52 | AA59: 60 | AB59: 58 | AC59: 59 | AE59: 60 | AF59: 58 | AG59: 59 | AI59: 59 | AJ59: 58 | AK59: 57
A60: =IF(LEFT(C60,1)="#","",IF(C60="","",MAX(A$3:A59)+1)) ->  | B60: 19:20:00 | F60: nicht überschrieben. | G60: =IF(LEFT(H60,1)="#",TEXT(B60,"hh:mm")& " Uhr",IF(H60="",TEXT(B60,"hh:mm")& " Uhr",MAX(G$3:G59)+1)) -> 19:20 Uhr | K60: 53 | AA60: 59 | AB60: 60 | AC60: 58 | AE60: 59 | AF60: 60 | AG60: 58 | AI60: 60 | AJ60: 59 | AK60: 58
A61: =IF(LEFT(C61,1)="#","",IF(C61="","",MAX(A$3:A60)+1)) ->  | B61: 19:30:00 | G61: =IF(LEFT(H61,1)="#",TEXT(B61,"hh:mm")& " Uhr",IF(H61="",TEXT(B61,"hh:mm")& " Uhr",MAX(G$3:G60)+1)) -> 19:30 Uhr | K61: 54 | AA61: 61 | AB61: 62 | AC61: 63 | AE61: 61 | AF61: 62 | AG61: 63 | AI61: 61 | AJ61: 60 | AK61: 59
A62: =IF(LEFT(C62,1)="#","",IF(C62="","",MAX(A$3:A61)+1)) ->  | B62: 19:40:00 | F62: Beim Ausdrucken der "Startliste 3" werden | G62: =IF(LEFT(H62,1)="#",TEXT(B62,"hh:mm")& " Uhr",IF(H62="",TEXT(B62,"hh:mm")& " Uhr",MAX(G$3:G61)+1)) -> 19:40 Uhr | K62: 55 | AA62: 63 | AB62: 61 | AC62: 62 | AE62: 63 | AF62: 61 | AG62: 62 | AI62: 62 | AJ62: 61 | AK62: 60
A63: =IF(LEFT(C63,1)="#","",IF(C63="","",MAX(A$3:A62)+1)) ->  | B63: 19:50:00 | F63: nur die Spalten A - E gedruckt. | G63: =IF(LEFT(H63,1)="#",TEXT(B63,"hh:mm")& " Uhr",IF(H63="",TEXT(B63,"hh:mm")& " Uhr",MAX(G$3:G62)+1)) -> 19:50 Uhr | K63: 56 | AA63: 62 | AB63: 63 | AC63: 61 | AE63: 62 | AF63: 63 | AG63: 61 | AI63: 63 | AJ63: 62 | AK63: 61
A64: =IF(LEFT(C64,1)="#","",IF(C64="","",MAX(A$3:A63)+1)) ->  | B64: 20:00:00 | F64: Der Ausdruck auf Papier im Querformat | G64: =IF(LEFT(H64,1)="#",TEXT(B64,"hh:mm")& " Uhr",IF(H64="",TEXT(B64,"hh:mm")& " Uhr",MAX(G$3:G63)+1)) -> 20:00 Uhr | K64: 57 | AA64: 64 | AB64: 65 | AC64: 66 | AE64: 64 | AF64: 65 | AG64: 66 | AI64: 64 | AJ64: 63 | AK64: 62
A65: =IF(LEFT(C65,1)="#","",IF(C65="","",MAX(A$3:A64)+1)) ->  | B65: 20:10:00 | F65: dient der Lesbarkeit und kann gewählt werden. | G65: =IF(LEFT(H65,1)="#",TEXT(B65,"hh:mm")& " Uhr",IF(H65="",TEXT(B65,"hh:mm")& " Uhr",MAX(G$3:G64)+1)) -> 20:10 Uhr | K65: 58 | AA65: 66 | AB65: 64 | AC65: 65 | AE65: 66 | AF65: 64 | AG65: 65 | AI65: 65 | AJ65: 64 | AK65: 63
A66: =IF(LEFT(C66,1)="#","",IF(C66="","",MAX(A$3:A65)+1)) ->  | B66: 20:20:00 | G66: =IF(LEFT(H66,1)="#",TEXT(B66,"hh:mm")& " Uhr",IF(H66="",TEXT(B66,"hh:mm")& " Uhr",MAX(G$3:G65)+1)) -> 20:20 Uhr | K66: 59 | AA66: 65 | AB66: 66 | AC66: 64 | AE66: 65 | AF66: 66 | AG66: 64 | AI66: 66 | AJ66: 65 | AK66: 64
A67: =IF(LEFT(C67,1)="#","",IF(C67="","",MAX(A$3:A66)+1)) ->  | B67: 20:30:00 | F67: Die Zeiten für "Pause" können ebenfalls | G67: =IF(LEFT(H67,1)="#",TEXT(B67,"hh:mm")& " Uhr",IF(H67="",TEXT(B67,"hh:mm")& " Uhr",MAX(G$3:G66)+1)) -> 20:30 Uhr | K67: 60 | AA67: 67 | AB67: 68 | AC67: 69 | AE67: 67 | AF67: 68 | AG67: 69 | AI67: 67 | AJ67: 66 | AK67: 65
A68: =IF(LEFT(C68,1)="#","",IF(C68="","",MAX(A$3:A67)+1)) ->  | B68: 20:40:00 | F68: "hinzugeklickt" werden. | G68: =IF(LEFT(H68,1)="#",TEXT(B68,"hh:mm")& " Uhr",IF(H68="",TEXT(B68,"hh:mm")& " Uhr",MAX(G$3:G67)+1)) -> 20:40 Uhr | K68: 61 | AA68: 69 | AB68: 67 | AC68: 68 | AE68: 69 | AF68: 67 | AG68: 68 | AI68: 68 | AJ68: 67 | AK68: 66
A69: =IF(LEFT(C69,1)="#","",IF(C69="","",MAX(A$3:A68)+1)) ->  | B69: 20:50:00 | G69: =IF(LEFT(H69,1)="#",TEXT(B69,"hh:mm")& " Uhr",IF(H69="",TEXT(B69,"hh:mm")& " Uhr",MAX(G$3:G68)+1)) -> 20:50 Uhr | K69: 62 | AA69: 68 | AB69: 69 | AC69: 67 | AE69: 68 | AF69: 69 | AG69: 67 | AI69: 69 | AJ69: 68 | AK69: 67
A70: =IF(LEFT(C70,1)="#","",IF(C70="","",MAX(A$3:A69)+1)) ->  | B70: =IF($K$5=1,"",B69+($M$3/24/60)) -> 21:00:00 | F70: Eigene Kommentare (z.B. "# # # # Vorführung # # # ") | G70: =IF(LEFT(H70,1)="#",TEXT(B70,"hh:mm")& " Uhr",IF(H70="",TEXT(B70,"hh:mm")& " Uhr",MAX(G$3:G69)+1)) -> 21:00 Uhr | K70: 63 | AA70: 70 | AB70: 71 | AC70: 72 | AE70: 70 | AF70: 71 | AG70: 72 | AI70: 70 | AJ70: 69 | AK70: 68
A71: =IF(LEFT(C71,1)="#","",IF(C71="","",MAX(A$3:A70)+1)) ->  | B71: 21:10:00 | F71: sind möglich. Der Text muss immer mit | G71: =IF(LEFT(H71,1)="#",TEXT(B71,"hh:mm")& " Uhr",IF(H71="",TEXT(B71,"hh:mm")& " Uhr",MAX(G$3:G70)+1)) -> 21:10 Uhr | K71: 64 | AA71: 72 | AB71: 70 | AC71: 71 | AE71: 72 | AF71: 70 | AG71: 71 | AI71: 71 | AJ71: 70 | AK71: 69
A72: =IF(LEFT(C72,1)="#","",IF(C72="","",MAX(A$3:A71)+1)) ->  | B72: 21:20:00 | F72: einem "#" beginnen, dann wird kein StartNr. | G72: =IF(LEFT(H72,1)="#",TEXT(B72,"hh:mm")& " Uhr",IF(H72="",TEXT(B72,"hh:mm")& " Uhr",MAX(G$3:G71)+1)) -> 21:20 Uhr | K72: 65 | AA72: 71 | AB72: 72 | AC72: 70 | AE72: 71 | AF72: 72 | AG72: 70 | AI72: 72 | AJ72: 71 | AK72: 70
A73: =IF(LEFT(C73,1)="#","",IF(C73="","",MAX(A$3:A72)+1)) ->  | B73: 21:30:00 | F73: für diesen Eintrag vergeben! | G73: =IF(LEFT(H73,1)="#",TEXT(B73,"hh:mm")& " Uhr",IF(H73="",TEXT(B73,"hh:mm")& " Uhr",MAX(G$3:G72)+1)) -> 21:30 Uhr | K73: 66 | AA73: 73 | AB73: 74 | AC73: 75 | AE73: 73 | AF73: 74 | AG73: 75 | AI73: 73 | AJ73: 72 | AK73: 71
A74: =IF(LEFT(C74,1)="#","",IF(C74="","",MAX(A$3:A73)+1)) ->  | B74: 21:40:00 | G74: =IF(LEFT(H74,1)="#",TEXT(B74,"hh:mm")& " Uhr",IF(H74="",TEXT(B74,"hh:mm")& " Uhr",MAX(G$3:G73)+1)) -> 21:40 Uhr | K74: 67 | AA74: 75 | AB74: 73 | AC74: 74 | AE74: 75 | AF74: 73 | AG74: 74 | AI74: 74 | AJ74: 73 | AK74: 72
A75: =IF(LEFT(C75,1)="#","",IF(C75="","",MAX(A$3:A74)+1)) ->  | B75: 21:50:00 | F75: Auf die Einhaltung von "3er Blöcken" muss | G75: =IF(LEFT(H75,1)="#",TEXT(B75,"hh:mm")& " Uhr",IF(H75="",TEXT(B75,"hh:mm")& " Uhr",MAX(G$3:G74)+1)) -> 21:50 Uhr | K75: 68 | AA75: 74 | AB75: 75 | AC75: 73 | AE75: 74 | AF75: 75 | AG75: 73 | AI75: 75 | AJ75: 74 | AK75: 73
A76: =IF(LEFT(C76,1)="#","",IF(C76="","",MAX(A$3:A75)+1)) ->  | B76: 22:00:00 | F76: der Bediener selbst achten!!!!! | G76: =IF(LEFT(H76,1)="#",TEXT(B76,"hh:mm")& " Uhr",IF(H76="",TEXT(B76,"hh:mm")& " Uhr",MAX(G$3:G75)+1)) -> 22:00 Uhr | K76: 69 | AA76: 76 | AB76: 77 | AC76: 78 | AE76: 76 | AF76: 77 | AG76: 78 | AI76: 76 | AJ76: 75 | AK76: 74
A77: =IF(LEFT(C77,1)="#","",IF(C77="","",MAX(A$3:A76)+1)) ->  | B77: 22:10:00 | G77: =IF(LEFT(H77,1)="#",TEXT(B77,"hh:mm")& " Uhr",IF(H77="",TEXT(B77,"hh:mm")& " Uhr",MAX(G$3:G76)+1)) -> 22:10 Uhr | K77: 70 | AA77: 78 | AB77: 76 | AC77: 77 | AE77: 78 | AF77: 76 | AG77: 77 | AI77: 77 | AJ77: 76 | AK77: 75
A78: =IF(LEFT(C78,1)="#","",IF(C78="","",MAX(A$3:A77)+1)) ->  | B78: 22:20:00 | F78: Einheiten aus Spalte H können mit einem | G78: =IF(LEFT(H78,1)="#",TEXT(B78,"hh:mm")& " Uhr",IF(H78="",TEXT(B78,"hh:mm")& " Uhr",MAX(G$3:G77)+1)) -> 22:20 Uhr | K78: 71 | AA78: 77 | AB78: 78 | AC78: 76 | AE78: 77 | AF78: 78 | AG78: 76 | AI78: 78 | AJ78: 77 | AK78: 76
A79: =IF(LEFT(C79,1)="#","",IF(C79="","",MAX(A$3:A78)+1)) ->  | B79: 22:30:00 | F79: Doppelklick (in die Zelle Spalte H) wieder | G79: =IF(LEFT(H79,1)="#",TEXT(B79,"hh:mm")& " Uhr",IF(H79="",TEXT(B79,"hh:mm")& " Uhr",MAX(G$3:G78)+1)) -> 22:30 Uhr | K79: 72 | AA79: 79 | AB79: 80 | AC79: 81 | AE79: 79 | AF79: 80 | AG79: 81 | AI79: 79 | AJ79: 78 | AK79: 77
A80: =IF(LEFT(C80,1)="#","",IF(C80="","",MAX(A$3:A79)+1)) ->  | B80: 22:40:00 | D80: =IF(INDIRECT("H"&AB80,TRUE)="","",INDIRECT("H"&AB80,TRUE)) ->  | E80: =IF(INDIRECT("H"&AC80,TRUE)="","",INDIRECT("H"&AC80,TRUE)) ->  | F80: "entfernt" werden. Der "Transferpfeil" für diese | G80: =IF(LEFT(H80,1)="#",TEXT(B80,"hh:mm")& " Uhr",IF(H80="",TEXT(B80,"hh:mm")& " Uhr",MAX(G$3:G79)+1)) -> 22:40 Uhr | K80: 73 | AA80: 81 | AB80: 79 | AC80: 80 | AE80: 81 | AF80: 79 | AG80: 80 | AI80: 80 | AJ80: 79 | AK80: 78
A81: =IF(LEFT(C81,1)="#","",IF(C81="","",MAX(A$3:A80)+1)) ->  | B81: 22:50:00 | F81: Einheit wird dann wieder hergestellt. | G81: =IF(LEFT(H81,1)="#",TEXT(B81,"hh:mm")& " Uhr",IF(H81="",TEXT(B81,"hh:mm")& " Uhr",MAX(G$3:G80)+1)) -> 22:50 Uhr | K81: 74 | AA81: 80 | AB81: 81 | AC81: 79 | AE81: 80 | AF81: 81 | AG81: 79 | AI81: 81 | AJ81: 80 | AK81: 79
A82: =IF(LEFT(C82,1)="#","",IF(C82="","",MAX(A$3:A81)+1)) ->  | B82: 23:00:00 | F82: Sinnvoll beim "Tauschen" von zwei Einheiten. | G82: =IF(LEFT(H82,1)="#",TEXT(B82,"hh:mm")& " Uhr",IF(H82="",TEXT(B82,"hh:mm")& " Uhr",MAX(G$3:G81)+1)) -> 23:00 Uhr | K82: 75 | AA82: 82 | AB82: 83 | AC82: 84 | AE82: 82 | AF82: 83 | AG82: 84 | AI82: 82 | AJ82: 81 | AK82: 80
A83: =IF(LEFT(C83,1)="#","",IF(C83="","",MAX(A$3:A82)+1)) ->  | B83: 23:10:00 | G83: =IF(LEFT(H83,1)="#",TEXT(B83,"hh:mm")& " Uhr",IF(H83="",TEXT(B83,"hh:mm")& " Uhr",MAX(G$3:G82)+1)) -> 23:10 Uhr | K83: 76 | AA83: 84 | AB83: 82 | AC83: 83 | AE83: 84 | AF83: 82 | AG83: 83 | AI83: 83 | AJ83: 82 | AK83: 81
A84: =IF(LEFT(C84,1)="#","",IF(C84="","",MAX(A$3:A83)+1)) ->  | B84: 23:20:00 | F84: Mit dem Button "Startliste überprüfen" wird | G84: =IF(LEFT(H84,1)="#",TEXT(B84,"hh:mm")& " Uhr",IF(H84="",TEXT(B84,"hh:mm")& " Uhr",MAX(G$3:G83)+1)) -> 23:20 Uhr | K84: 77 | AA84: 83 | AB84: 84 | AC84: 82 | AE84: 83 | AF84: 84 | AG84: 82 | AI84: 84 | AJ84: 83 | AK84: 82
A85: =IF(LEFT(C85,1)="#","",IF(C85="","",MAX(A$3:A84)+1)) ->  | B85: 23:30:00 | C85: =IF(INDIRECT("H"&AA85,TRUE)="","",INDIRECT("H"&AA85,TRUE)) ->  | F85: überall dort, wo in Spalte H ein Eintrag | G85: =IF(LEFT(H85,1)="#",TEXT(B85,"hh:mm")& " Uhr",IF(H85="",TEXT(B85,"hh:mm")& " Uhr",MAX(G$3:G84)+1)) -> 23:30 Uhr | K85: 78 | AA85: 85 | AB85: 86 | AC85: 87 | AE85: 85 | AF85: 86 | AG85: 87 | AI85: 85 | AJ85: 84 | AK85: 83
A86: =IF(LEFT(C86,1)="#","",IF(C86="","",MAX(A$3:A85)+1)) ->  | B86: 23:40:00 | F86: vorhanden ist, in der Spalte I ein | G86: =IF(LEFT(H86,1)="#",TEXT(B86,"hh:mm")& " Uhr",IF(H86="",TEXT(B86,"hh:mm")& " Uhr",MAX(G$3:G85)+1)) -> 23:40 Uhr | K86: 79 | AA86: 87 | AB86: 85 | AC86: 86 | AE86: 87 | AF86: 85 | AG86: 86 | AI86: 86 | AJ86: 85 | AK86: 84
A87: =IF(LEFT(C87,1)="#","",IF(C87="","",MAX(A$3:A86)+1)) ->  | B87: 23:50:00 | F87: (neuer) Transferpfeil erzeugt. Dann wird geprüft, | G87: =IF(LEFT(H87,1)="#",TEXT(B87,"hh:mm")& " Uhr",IF(H87="",TEXT(B87,"hh:mm")& " Uhr",MAX(G$3:G86)+1)) -> 23:50 Uhr | K87: 80 | AA87: 86 | AB87: 87 | AC87: 85 | AE87: 86 | AF87: 87 | AG87: 85 | AI87: 87 | AJ87: 86 | AK87: 85
A88: =IF(LEFT(C88,1)="#","",IF(C88="","",MAX(A$3:A87)+1)) ->  | B88: 1 | F88: ob der in der Spalte J eingetragene Name | G88: =IF(LEFT(H88,1)="#",TEXT(B88,"hh:mm")& " Uhr",IF(H88="",TEXT(B88,"hh:mm")& " Uhr",MAX(G$3:G87)+1)) -> 00:00 Uhr | K88: 81 | AA88: 88 | AB88: 89 | AC88: 90 | AE88: 88 | AF88: 89 | AG88: 90 | AI88: 88 | AJ88: 87 | AK88: 86
A89: =IF(LEFT(C89,1)="#","",IF(C89="","",MAX(A$3:A88)+1)) ->  | B89: 1.006944444 | F89: bereits in der Spalte H vorhanden ist. | G89: =IF(LEFT(H89,1)="#",TEXT(B89,"hh:mm")& " Uhr",IF(H89="",TEXT(B89,"hh:mm")& " Uhr",MAX(G$3:G88)+1)) -> 00:10 Uhr | K89: 82 | AA89: 90 | AB89: 88 | AC89: 89 | AE89: 90 | AF89: 88 | AG89: 89 | AI89: 89 | AJ89: 88 | AK89: 87
A90: =IF(LEFT(C90,1)="#","",IF(C90="","",MAX(A$3:A89)+1)) ->  | B90: 1.013888889 | F90: Wenn dem so ist, wird in der Spalte I der "lange" | G90: =IF(LEFT(H90,1)="#",TEXT(B90,"hh:mm")& " Uhr",IF(H90="",TEXT(B90,"hh:mm")& " Uhr",MAX(G$3:G89)+1)) -> 00:20 Uhr | K90: 83 | AA90: 89 | AB90: 90 | AC90: 88 | AE90: 89 | AF90: 90 | AG90: 88 | AI90: 90 | AJ90: 89 | AK90: 88
A91: =IF(LEFT(C91,1)="#","",IF(C91="","",MAX(A$3:A90)+1)) ->  | B91: 1.020833333 | F91: gegen einen "kurzen" Transferpfeil ausgetauscht. | G91: =IF(LEFT(H91,1)="#",TEXT(B91,"hh:mm")& " Uhr",IF(H91="",TEXT(B91,"hh:mm")& " Uhr",MAX(G$3:G90)+1)) -> 00:30 Uhr | K91: 84 | AA91: 91 | AB91: 92 | AC91: 93 | AE91: 91 | AF91: 92 | AG91: 93 | AI91: 91 | AJ91: 90 | AK91: 89
A92: =IF(LEFT(C92,1)="#","",IF(C92="","",MAX(A$3:A91)+1)) ->  | B92: 1.027777778 | G92: =IF(LEFT(H92,1)="#",TEXT(B92,"hh:mm")& " Uhr",IF(H92="",TEXT(B92,"hh:mm")& " Uhr",MAX(G$3:G91)+1)) -> 00:40 Uhr | K92: 85 | AA92: 93 | AB92: 91 | AC92: 92 | AE92: 93 | AF92: 91 | AG92: 92 | AI92: 92 | AJ92: 91 | AK92: 90
A93: =IF(LEFT(C93,1)="#","",IF(C93="","",MAX(A$3:A92)+1)) ->  | B93: 1.034722222 | F93: Danach wird überprüft, ob in der Spalte H noch | G93: =IF(LEFT(H93,1)="#",TEXT(B93,"hh:mm")& " Uhr",IF(H93="",TEXT(B93,"hh:mm")& " Uhr",MAX(G$3:G92)+1)) -> 00:50 Uhr | K93: 86 | AA93: 92 | AB93: 93 | AC93: 91 | AE93: 92 | AF93: 93 | AG93: 91 | AI93: 93 | AJ93: 92 | AK93: 91
A94: =IF(LEFT(C94,1)="#","",IF(C94="","",MAX(A$3:A93)+1)) ->  | B94: 1.041666667 | F94: Einheiten gelistet sind, die in der Spalte J | G94: =IF(LEFT(H94,1)="#",TEXT(B94,"hh:mm")& " Uhr",IF(H94="",TEXT(B94,"hh:mm")& " Uhr",MAX(G$3:G93)+1)) -> 01:00 Uhr | K94: 87 | AA94: 94 | AB94: 95 | AC94: 96 | AE94: 94 | AF94: 95 | AG94: 96 | AI94: 94 | AJ94: 93 | AK94: 92
A95: =IF(LEFT(C95,1)="#","",IF(C95="","",MAX(A$3:A94)+1)) ->  | B95: 1.048611111 | F95: nicht (mehr) vorhanden sind, z.B. in der | G95: =IF(LEFT(H95,1)="#",TEXT(B95,"hh:mm")& " Uhr",IF(H95="",TEXT(B95,"hh:mm")& " Uhr",MAX(G$3:G94)+1)) -> 01:10 Uhr | K95: 88 | AA95: 96 | AB95: 94 | AC95: 95 | AE95: 96 | AF95: 94 | AG95: 95 | AI95: 95 | AJ95: 94 | AK95: 93
A96: =IF(LEFT(C96,1)="#","",IF(C96="","",MAX(A$3:A95)+1)) ->  | B96: 1.055555556 | F96: Tabelle "Einheiten" gelöscht wurden. | G96: =IF(LEFT(H96,1)="#",TEXT(B96,"hh:mm")& " Uhr",IF(H96="",TEXT(B96,"hh:mm")& " Uhr",MAX(G$3:G95)+1)) -> 01:20 Uhr | K96: 89 | AA96: 95 | AB96: 96 | AC96: 94 | AE96: 95 | AF96: 96 | AG96: 94 | AI96: 96 | AJ96: 95 | AK96: 94
A97: =IF(LEFT(C97,1)="#","",IF(C97="","",MAX(A$3:A96)+1)) ->  | B97: 1.0625 | F97: Falls in Spalte H eine "verwaiste" Einheit | G97: =IF(LEFT(H97,1)="#",TEXT(B97,"hh:mm")& " Uhr",IF(H97="",TEXT(B97,"hh:mm")& " Uhr",MAX(G$3:G96)+1)) -> 01:30 Uhr | K97: 90 | AA97: 97 | AB97: 98 | AC97: 99 | AE97: 97 | AF97: 98 | AG97: 99 | AI97: 97 | AJ97: 96 | AK97: 95
A98: =IF(LEFT(C98,1)="#","",IF(C98="","",MAX(A$3:A97)+1)) ->  | B98: 1.069444444 | F98: gefunden wird, kann diese Einheit in der | G98: =IF(LEFT(H98,1)="#",TEXT(B98,"hh:mm")& " Uhr",IF(H98="",TEXT(B98,"hh:mm")& " Uhr",MAX(G$3:G97)+1)) -> 01:40 Uhr | K98: 91 | AA98: 99 | AB98: 97 | AC98: 98 | AE98: 99 | AF98: 97 | AG98: 98 | AI98: 98 | AJ98: 97 | AK98: 96
A99: =IF(LEFT(C99,1)="#","",IF(C99="","",MAX(A$3:A98)+1)) ->  | B99: 1.076388889 | F99: Startliste gelöscht werden. | G99: =IF(LEFT(H99,1)="#",TEXT(B99,"hh:mm")& " Uhr",IF(H99="",TEXT(B99,"hh:mm")& " Uhr",MAX(G$3:G98)+1)) -> 01:50 Uhr | K99: 92 | AA99: 98 | AB99: 99 | AC99: 97 | AE99: 98 | AF99: 99 | AG99: 97 | AI99: 99 | AJ99: 98 | AK99: 97
A100: =IF(LEFT(C100,1)="#","",IF(C100="","",MAX(A$3:A99)+1)) ->  | B100: 1.083333333 | G100: =IF(LEFT(H100,1)="#",TEXT(B100,"hh:mm")& " Uhr",IF(H100="",TEXT(B100,"hh:mm")& " Uhr",MAX(G$3:G99)+1)) -> 02:00 Uhr | K100: 93 | AA100: 100 | AB100: 101 | AC100: 102 | AE100: 100 | AF100: 101 | AG100: 102 | AI100: 100 | AJ100: 99 | AK100: 98
A101: =IF(LEFT(C101,1)="#","",IF(C101="","",MAX(A$3:A100)+1)) ->  | B101: 1.090277778 | F101: Mit der Wahlmöglichkeit in Zelle L5 (Zeiten in Spalte B | G101: =IF(LEFT(H101,1)="#",TEXT(B101,"hh:mm")& " Uhr",IF(H101="",TEXT(B101,"hh:mm")& " Uhr",MAX(G$3:G100)+1)) -> 02:10 Uhr | K101: 94 | AA101: 102 | AB101: 100 | AC101: 101 | AE101: 102 | AF101: 100 | AG101: 101 | AI101: 101 | AJ101: 100 | AK101: 99
A102: =IF(LEFT(C102,1)="#","",IF(C102="","",MAX(A$3:A101)+1)) ->  | B102: 1.097222222 | F102: anzeigen / Zeiten in Spalte B nicht anzeigen) können die | G102: =IF(LEFT(H102,1)="#",TEXT(B102,"hh:mm")& " Uhr",IF(H102="",TEXT(B102,"hh:mm")& " Uhr",MAX(G$3:G101)+1)) -> 02:20 Uhr | K102: 95 | AA102: 101 | AB102: 102 | AC102: 100 | AE102: 101 | AF102: 102 | AG102: 100 | AI102: 102 | AJ102: 101 | AK102: 100
A103: =IF(LEFT(C103,1)="#","",IF(C103="","",MAX(A$3:A102)+1)) ->  | B103: 1.104166667 | F103: Startzeiten in der Spalte B ausgeblendet werden, | G103: =IF(LEFT(H103,1)="#",TEXT(B103,"hh:mm")& " Uhr",IF(H103="",TEXT(B103,"hh:mm")& " Uhr",MAX(G$3:G102)+1)) -> 02:30 Uhr | K103: 96 | AA103: 103 | AB103: 104 | AC103: 105 | AE103: 103 | AF103: 104 | AG103: 105 | AI103: 103 | AJ103: 102 | AK103: 101
A104: =IF(LEFT(C104,1)="#","",IF(C104="","",MAX(A$3:A103)+1)) ->  | B104: 1.111111111 | F104: wenn z.B. vom Veranstalters kein zeitlicher Ablauf | G104: =IF(LEFT(H104,1)="#",TEXT(B104,"hh:mm")& " Uhr",IF(H104="",TEXT(B104,"hh:mm")& " Uhr",MAX(G$3:G103)+1)) -> 02:40 Uhr | K104: 97 | AA104: 105 | AB104: 103 | AC104: 104 | AE104: 105 | AF104: 103 | AG104: 104 | AI104: 104 | AJ104: 103 | AK104: 102
A105: =IF(LEFT(C105,1)="#","",IF(C105="","",MAX(A$3:A104)+1)) ->  | B105: 1.118055556 | F105: vorgegeben wird. | G105: =IF(LEFT(H105,1)="#",TEXT(B105,"hh:mm")& " Uhr",IF(H105="",TEXT(B105,"hh:mm")& " Uhr",MAX(G$3:G104)+1)) -> 02:50 Uhr | K105: 98 | AA105: 104 | AB105: 105 | AC105: 103 | AE105: 104 | AF105: 105 | AG105: 103 | AI105: 105 | AJ105: 104 | AK105: 103
A106: =IF(LEFT(C106,1)="#","",IF(C106="","",MAX(A$3:A105)+1)) ->  | B106: 1.125 | G106: =IF(LEFT(H106,1)="#",TEXT(B106,"hh:mm")& " Uhr",IF(H106="",TEXT(B106,"hh:mm")& " Uhr",MAX(G$3:G105)+1)) -> 03:00 Uhr | K106: 99 | AA106: 106 | AB106: 107 | AC106: 108 | AE106: 106 | AF106: 107 | AG106: 108 | AI106: 106 | AJ106: 105 | AK106: 104
A107: =IF(LEFT(C107,1)="#","",IF(C107="","",MAX(A$3:A106)+1)) ->  | B107: 1.131944444 | G107: =IF(LEFT(H107,1)="#",TEXT(B107,"hh:mm")& " Uhr",IF(H107="",TEXT(B107,"hh:mm")& " Uhr",MAX(G$3:G106)+1)) -> 03:10 Uhr | K107: 100 | AA107: 108 | AB107: 106 | AC107: 107 | AE107: 108 | AF107: 106 | AG107: 107 | AI107: 107 | AJ107: 106 | AK107: 105
A108: =IF(LEFT(C108,1)="#","",IF(C108="","",MAX(A$3:A107)+1)) ->  | B108: 1.138888889 | G108: =IF(LEFT(H108,1)="#",TEXT(B108,"hh:mm")& " Uhr",IF(H108="",TEXT(B108,"hh:mm")& " Uhr",MAX(G$3:G107)+1)) -> 03:20 Uhr | K108: 101 | AA108: 107 | AB108: 108 | AC108: 106 | AE108: 107 | AF108: 108 | AG108: 106 | AI108: 108 | AJ108: 107 | AK108: 106
A109: =IF(LEFT(C109,1)="#","",IF(C109="","",MAX(A$3:A108)+1)) ->  | B109: 1.145833333 | G109: =IF(LEFT(H109,1)="#",TEXT(B109,"hh:mm")& " Uhr",IF(H109="",TEXT(B109,"hh:mm")& " Uhr",MAX(G$3:G108)+1)) -> 03:30 Uhr | K109: 102 | AA109: 109 | AB109: 110 | AC109: 111 | AE109: 109 | AF109: 110 | AG109: 111 | AI109: 109 | AJ109: 108 | AK109: 107
A110: =IF(LEFT(C110,1)="#","",IF(C110="","",MAX(A$3:A109)+1)) ->  | B110: 1.152777778 | G110: =IF(LEFT(H110,1)="#",TEXT(B110,"hh:mm")& " Uhr",IF(H110="",TEXT(B110,"hh:mm")& " Uhr",MAX(G$3:G109)+1)) -> 03:40 Uhr | K110: 103 | AA110: 111 | AB110: 109 | AC110: 110 | AE110: 111 | AF110: 109 | AG110: 110 | AI110: 110 | AJ110: 109 | AK110: 108
A111: =IF(LEFT(C111,1)="#","",IF(C111="","",MAX(A$3:A110)+1)) ->  | B111: 1.159722222 | G111: =IF(LEFT(H111,1)="#",TEXT(B111,"hh:mm")& " Uhr",IF(H111="",TEXT(B111,"hh:mm")& " Uhr",MAX(G$3:G110)+1)) -> 03:50 Uhr | K111: 104 | AA111: 110 | AB111: 111 | AC111: 109 | AE111: 110 | AF111: 111 | AG111: 109 | AI111: 111 | AJ111: 110 | AK111: 109
A112: =IF(LEFT(C112,1)="#","",IF(C112="","",MAX(A$3:A111)+1)) ->  | B112: 1.166666667 | G112: =IF(LEFT(H112,1)="#",TEXT(B112,"hh:mm")& " Uhr",IF(H112="",TEXT(B112,"hh:mm")& " Uhr",MAX(G$3:G111)+1)) -> 04:00 Uhr | K112: 105 | AA112: 112 | AB112: 113 | AC112: 114 | AE112: 112 | AF112: 113 | AG112: 114 | AI112: 112 | AJ112: 111 | AK112: 110
A113: =IF(LEFT(C113,1)="#","",IF(C113="","",MAX(A$3:A112)+1)) ->  | B113: 1.173611111 | G113: =IF(LEFT(H113,1)="#",TEXT(B113,"hh:mm")& " Uhr",IF(H113="",TEXT(B113,"hh:mm")& " Uhr",MAX(G$3:G112)+1)) -> 04:10 Uhr | K113: 106 | AA113: 114 | AB113: 112 | AC113: 113 | AE113: 114 | AF113: 112 | AG113: 113 | AI113: 113 | AJ113: 112 | AK113: 111
A114: =IF(LEFT(C114,1)="#","",IF(C114="","",MAX(A$3:A113)+1)) ->  | B114: 1.180555556 | G114: =IF(LEFT(H114,1)="#",TEXT(B114,"hh:mm")& " Uhr",IF(H114="",TEXT(B114,"hh:mm")& " Uhr",MAX(G$3:G113)+1)) -> 04:20 Uhr | K114: 107 | AA114: 113 | AB114: 114 | AC114: 112 | AE114: 113 | AF114: 114 | AG114: 112 | AI114: 114 | AJ114: 113 | AK114: 112
A115: =IF(LEFT(C115,1)="#","",IF(C115="","",MAX(A$3:A114)+1)) ->  | B115: 1.1875 | G115: =IF(LEFT(H115,1)="#",TEXT(B115,"hh:mm")& " Uhr",IF(H115="",TEXT(B115,"hh:mm")& " Uhr",MAX(G$3:G114)+1)) -> 04:30 Uhr | K115: 108 | AA115: 115 | AB115: 116 | AC115: 117 | AE115: 115 | AF115: 116 | AG115: 117 | AI115: 115 | AJ115: 114 | AK115: 113
A116: =IF(LEFT(C116,1)="#","",IF(C116="","",MAX(A$3:A115)+1)) ->  | B116: 1.194444444 | G116: =IF(LEFT(H116,1)="#",TEXT(B116,"hh:mm")& " Uhr",IF(H116="",TEXT(B116,"hh:mm")& " Uhr",MAX(G$3:G115)+1)) -> 04:40 Uhr | K116: 109 | AA116: 117 | AB116: 115 | AC116: 116 | AE116: 117 | AF116: 115 | AG116: 116 | AI116: 116 | AJ116: 115 | AK116: 114
A117: =IF(LEFT(C117,1)="#","",IF(C117="","",MAX(A$3:A116)+1)) ->  | B117: 1.201388889 | C117: =IF(INDIRECT("H"&AA117,TRUE)="","",INDIRECT("H"&AA117,TRUE)) ->  | G117: =IF(LEFT(H117,1)="#",TEXT(B117,"hh:mm")& " Uhr",IF(H117="",TEXT(B117,"hh:mm")& " Uhr",MAX(G$3:G116)+1)) -> 04:50 Uhr | K117: 110 | AA117: 116 | AB117: 117 | AC117: 115 | AE117: 116 | AF117: 117 | AG117: 115 | AI117: 117 | AJ117: 116 | AK117: 115
A118: =IF(LEFT(C118,1)="#","",IF(C118="","",MAX(A$3:A117)+1)) ->  | B118: 1.208333333 | G118: =IF(LEFT(H118,1)="#",TEXT(B118,"hh:mm")& " Uhr",IF(H118="",TEXT(B118,"hh:mm")& " Uhr",MAX(G$3:G117)+1)) -> 05:00 Uhr | K118: 111 | AA118: 118 | AB118: 119 | AC118: 120 | AE118: 118 | AF118: 119 | AG118: 120 | AI118: 118 | AJ118: 117 | AK118: 116
A119: =IF(LEFT(C119,1)="#","",IF(C119="","",MAX(A$3:A118)+1)) ->  | B119: 1.215277778 | G119: =IF(LEFT(H119,1)="#",TEXT(B119,"hh:mm")& " Uhr",IF(H119="",TEXT(B119,"hh:mm")& " Uhr",MAX(G$3:G118)+1)) -> 05:10 Uhr | K119: 112 | AA119: 120 | AB119: 118 | AC119: 119 | AE119: 120 | AF119: 118 | AG119: 119 | AI119: 119 | AJ119: 118 | AK119: 117
A120: =IF(LEFT(C120,1)="#","",IF(C120="","",MAX(A$3:A119)+1)) ->  | B120: 1.222222222 | G120: =IF(LEFT(H120,1)="#",TEXT(B120,"hh:mm")& " Uhr",IF(H120="",TEXT(B120,"hh:mm")& " Uhr",MAX(G$3:G119)+1)) -> 05:20 Uhr | K120: 113 | AA120: 119 | AB120: 120 | AC120: 118 | AE120: 119 | AF120: 120 | AG120: 118 | AI120: 120 | AJ120: 119 | AK120: 118
A121: =IF(LEFT(C121,1)="#","",IF(C121="","",MAX(A$3:A120)+1)) ->  | B121: 1.229166667 | G121: =IF(LEFT(H121,1)="#",TEXT(B121,"hh:mm")& " Uhr",IF(H121="",TEXT(B121,"hh:mm")& " Uhr",MAX(G$3:G120)+1)) -> 05:30 Uhr | K121: 114 | AA121: 121 | AB121: 122 | AC121: 123 | AE121: 121 | AF121: 122 | AG121: 123 | AI121: 121 | AJ121: 120 | AK121: 119
A122: =IF(LEFT(C122,1)="#","",IF(C122="","",MAX(A$3:A121)+1)) ->  | B122: 1.236111111 | G122: =IF(LEFT(H122,1)="#",TEXT(B122,"hh:mm")& " Uhr",IF(H122="",TEXT(B122,"hh:mm")& " Uhr",MAX(G$3:G121)+1)) -> 05:40 Uhr | K122: 115 | AA122: 123 | AB122: 121 | AC122: 122 | AE122: 123 | AF122: 121 | AG122: 122 | AI122: 122 | AJ122: 121 | AK122: 120
A123: =IF(LEFT(C123,1)="#","",IF(C123="","",MAX(A$3:A122)+1)) ->  | B123: 1.243055556 | G123: =IF(LEFT(H123,1)="#",TEXT(B123,"hh:mm")& " Uhr",IF(H123="",TEXT(B123,"hh:mm")& " Uhr",MAX(G$3:G122)+1)) -> 05:50 Uhr | K123: 116 | AA123: 122 | AB123: 123 | AC123: 121 | AE123: 122 | AF123: 123 | AG123: 121 | AI123: 123 | AJ123: 122 | AK123: 121
A124: =IF(LEFT(C124,1)="#","",IF(C124="","",MAX(A$3:A123)+1)) ->  | B124: 1.25 | G124: =IF(LEFT(H124,1)="#",TEXT(B124,"hh:mm")& " Uhr",IF(H124="",TEXT(B124,"hh:mm")& " Uhr",MAX(G$3:G123)+1)) -> 06:00 Uhr | K124: 117 | AA124: 124 | AB124: 125 | AC124: 126 | AE124: 124 | AF124: 125 | AG124: 126 | AI124: 124 | AJ124: 123 | AK124: 122
A125: =IF(LEFT(C125,1)="#","",IF(C125="","",MAX(A$3:A124)+1)) ->  | B125: 1.256944444 | G125: =IF(LEFT(H125,1)="#",TEXT(B125,"hh:mm")& " Uhr",IF(H125="",TEXT(B125,"hh:mm")& " Uhr",MAX(G$3:G124)+1)) -> 06:10 Uhr | K125: 118 | AA125: 126 | AB125: 124 | AC125: 125 | AE125: 126 | AF125: 124 | AG125: 125 | AI125: 125 | AJ125: 124 | AK125: 123
A126: =IF(LEFT(C126,1)="#","",IF(C126="","",MAX(A$3:A125)+1)) ->  | B126: 1.263888889 | G126: =IF(LEFT(H126,1)="#",TEXT(B126,"hh:mm")& " Uhr",IF(H126="",TEXT(B126,"hh:mm")& " Uhr",MAX(G$3:G125)+1)) -> 06:20 Uhr | K126: 119 | AA126: 125 | AB126: 126 | AC126: 124 | AE126: 125 | AF126: 126 | AG126: 124 | AI126: 126 | AJ126: 125 | AK126: 124
A127: =IF(LEFT(C127,1)="#","",IF(C127="","",MAX(A$3:A126)+1)) ->  | B127: 1.270833333 | G127: =IF(LEFT(H127,1)="#",TEXT(B127,"hh:mm")& " Uhr",IF(H127="",TEXT(B127,"hh:mm")& " Uhr",MAX(G$3:G126)+1)) -> 06:30 Uhr | K127: 120 | AA127: 127 | AB127: 128 | AC127: 129 | AE127: 127 | AF127: 128 | AG127: 129 | AI127: 127 | AJ127: 126 | AK127: 125
A128: =IF(LEFT(C128,1)="#","",IF(C128="","",MAX(A$3:A127)+1)) ->  | B128: 1.277777778 | G128: =IF(LEFT(H128,1)="#",TEXT(B128,"hh:mm")& " Uhr",IF(H128="",TEXT(B128,"hh:mm")& " Uhr",MAX(G$3:G127)+1)) -> 06:40 Uhr | K128: 121 | AA128: 129 | AB128: 127 | AC128: 128 | AE128: 129 | AF128: 127 | AG128: 128 | AI128: 128 | AJ128: 127 | AK128: 126
A129: =IF(LEFT(C129,1)="#","",IF(C129="","",MAX(A$3:A128)+1)) ->  | B129: 1.284722222 | G129: =IF(LEFT(H129,1)="#",TEXT(B129,"hh:mm")& " Uhr",IF(H129="",TEXT(B129,"hh:mm")& " Uhr",MAX(G$3:G128)+1)) -> 06:50 Uhr | K129: 122 | AA129: 128 | AB129: 129 | AC129: 127 | AE129: 128 | AF129: 129 | AG129: 127 | AI129: 129 | AJ129: 128 | AK129: 127
A130: =IF(LEFT(C130,1)="#","",IF(C130="","",MAX(A$3:A129)+1)) ->  | B130: 1.291666667 | G130: =IF(LEFT(H130,1)="#",TEXT(B130,"hh:mm")& " Uhr",IF(H130="",TEXT(B130,"hh:mm")& " Uhr",MAX(G$3:G129)+1)) -> 07:00 Uhr | K130: 123 | AA130: 130 | AB130: 131 | AC130: 132 | AE130: 130 | AF130: 131 | AG130: 132 | AI130: 130 | AJ130: 129 | AK130: 128
A131: =IF(LEFT(C131,1)="#","",IF(C131="","",MAX(A$3:A130)+1)) ->  | B131: 1.298611111 | G131: =IF(LEFT(H131,1)="#",TEXT(B131,"hh:mm")& " Uhr",IF(H131="",TEXT(B131,"hh:mm")& " Uhr",MAX(G$3:G130)+1)) -> 07:10 Uhr | K131: 124 | AA131: 132 | AB131: 130 | AC131: 131 | AE131: 132 | AF131: 130 | AG131: 131 | AI131: 131 | AJ131: 130 | AK131: 129
A132: =IF(LEFT(C132,1)="#","",IF(C132="","",MAX(A$3:A131)+1)) ->  | B132: 1.305555556 | G132: =IF(LEFT(H132,1)="#",TEXT(B132,"hh:mm")& " Uhr",IF(H132="",TEXT(B132,"hh:mm")& " Uhr",MAX(G$3:G131)+1)) -> 07:20 Uhr | K132: 125 | AA132: 131 | AB132: 132 | AC132: 130 | AE132: 131 | AF132: 132 | AG132: 130 | AI132: 132 | AJ132: 131 | AK132: 130
A133: =IF(LEFT(C133,1)="#","",IF(C133="","",MAX(A$3:A132)+1)) ->  | B133: 1.3125 | G133: =IF(LEFT(H133,1)="#",TEXT(B133,"hh:mm")& " Uhr",IF(H133="",TEXT(B133,"hh:mm")& " Uhr",MAX(G$3:G132)+1)) -> 07:30 Uhr | K133: 126 | AA133: 133 | AB133: 134 | AC133: 135 | AE133: 133 | AF133: 134 | AG133: 135 | AI133: 133 | AJ133: 132 | AK133: 131
A134: =IF(LEFT(C134,1)="#","",IF(C134="","",MAX(A$3:A133)+1)) ->  | B134: =IF($K$5=1,"",B133+($M$3/24/60)) -> 1.319444444 | G134: =IF(LEFT(H134,1)="#",TEXT(B134,"hh:mm")& " Uhr",IF(H134="",TEXT(B134,"hh:mm")& " Uhr",MAX(G$3:G133)+1)) -> 07:40 Uhr | K134: 127 | AA134: 135 | AB134: 133 | AC134: 134 | AE134: 135 | AF134: 133 | AG134: 134 | AI134: 134 | AJ134: 133 | AK134: 132
A135: =IF(LEFT(C135,1)="#","",IF(C135="","",MAX(A$3:A134)+1)) ->  | B135: 1.326388889 | G135: =IF(LEFT(H135,1)="#",TEXT(B135,"hh:mm")& " Uhr",IF(H135="",TEXT(B135,"hh:mm")& " Uhr",MAX(G$3:G134)+1)) -> 07:50 Uhr | K135: 128 | AA135: 134 | AB135: 135 | AC135: 133 | AE135: 134 | AF135: 135 | AG135: 133 | AI135: 135 | AJ135: 134 | AK135: 133
A136: =IF(LEFT(C136,1)="#","",IF(C136="","",MAX(A$3:A135)+1)) ->  | B136: 1.333333333 | G136: =IF(LEFT(H136,1)="#",TEXT(B136,"hh:mm")& " Uhr",IF(H136="",TEXT(B136,"hh:mm")& " Uhr",MAX(G$3:G135)+1)) -> 08:00 Uhr | K136: 129 | AA136: 136 | AB136: 137 | AC136: 138 | AE136: 136 | AF136: 137 | AG136: 138 | AI136: 136 | AJ136: 135 | AK136: 134
A137: =IF(LEFT(C137,1)="#","",IF(C137="","",MAX(A$3:A136)+1)) ->  | B137: 1.340277778 | G137: =IF(LEFT(H137,1)="#",TEXT(B137,"hh:mm")& " Uhr",IF(H137="",TEXT(B137,"hh:mm")& " Uhr",MAX(G$3:G136)+1)) -> 08:10 Uhr | K137: 130 | AA137: 138 | AB137: 136 | AC137: 137 | AE137: 138 | AF137: 136 | AG137: 137 | AI137: 137 | AJ137: 136 | AK137: 135
A138: =IF(LEFT(C138,1)="#","",IF(C138="","",MAX(A$3:A137)+1)) ->  | B138: 1.347222222 | G138: =IF(LEFT(H138,1)="#",TEXT(B138,"hh:mm")& " Uhr",IF(H138="",TEXT(B138,"hh:mm")& " Uhr",MAX(G$3:G137)+1)) -> 08:20 Uhr | K138: 131 | AA138: 137 | AB138: 138 | AC138: 136 | AE138: 137 | AF138: 138 | AG138: 136 | AI138: 138 | AJ138: 137 | AK138: 136
A139: =IF(LEFT(C139,1)="#","",IF(C139="","",MAX(A$3:A138)+1)) ->  | B139: 1.354166667 | G139: =IF(LEFT(H139,1)="#",TEXT(B139,"hh:mm")& " Uhr",IF(H139="",TEXT(B139,"hh:mm")& " Uhr",MAX(G$3:G138)+1)) -> 08:30 Uhr | K139: 132 | AA139: 139 | AB139: 140 | AC139: 141 | AE139: 139 | AF139: 140 | AG139: 141 | AI139: 139 | AJ139: 138 | AK139: 137
A140: =IF(LEFT(C140,1)="#","",IF(C140="","",MAX(A$3:A139)+1)) ->  | B140: 1.361111111 | G140: =IF(LEFT(H140,1)="#",TEXT(B140,"hh:mm")& " Uhr",IF(H140="",TEXT(B140,"hh:mm")& " Uhr",MAX(G$3:G139)+1)) -> 08:40 Uhr | K140: 133 | AA140: 141 | AB140: 139 | AC140: 140 | AE140: 141 | AF140: 139 | AG140: 140 | AI140: 140 | AJ140: 139 | AK140: 138
A141: =IF(LEFT(C141,1)="#","",IF(C141="","",MAX(A$3:A140)+1)) ->  | B141: 1.368055556 | G141: =IF(LEFT(H141,1)="#",TEXT(B141,"hh:mm")& " Uhr",IF(H141="",TEXT(B141,"hh:mm")& " Uhr",MAX(G$3:G140)+1)) -> 08:50 Uhr | K141: 134 | AA141: 140 | AB141: 141 | AC141: 139 | AE141: 140 | AF141: 141 | AG141: 139 | AI141: 141 | AJ141: 140 | AK141: 139
A142: =IF(LEFT(C142,1)="#","",IF(C142="","",MAX(A$3:A141)+1)) ->  | B142: 1.375 | G142: =IF(LEFT(H142,1)="#",TEXT(B142,"hh:mm")& " Uhr",IF(H142="",TEXT(B142,"hh:mm")& " Uhr",MAX(G$3:G141)+1)) -> 09:00 Uhr | K142: 135 | AA142: 142 | AB142: 143 | AC142: 144 | AE142: 142 | AF142: 143 | AG142: 144 | AI142: 142 | AJ142: 141 | AK142: 140
A143: =IF(LEFT(C143,1)="#","",IF(C143="","",MAX(A$3:A142)+1)) ->  | B143: 1.381944444 | G143: =IF(LEFT(H143,1)="#",TEXT(B143,"hh:mm")& " Uhr",IF(H143="",TEXT(B143,"hh:mm")& " Uhr",MAX(G$3:G142)+1)) -> 09:10 Uhr | K143: 136 | AA143: 144 | AB143: 142 | AC143: 143 | AE143: 144 | AF143: 142 | AG143: 143 | AI143: 143 | AJ143: 142 | AK143: 141
A144: =IF(LEFT(C144,1)="#","",IF(C144="","",MAX(A$3:A143)+1)) ->  | B144: 1.388888889 | D144: =IF(INDIRECT("H"&AB144,TRUE)="","",INDIRECT("H"&AB144,TRUE)) ->  | E144: =IF(INDIRECT("H"&AC144,TRUE)="","",INDIRECT("H"&AC144,TRUE)) ->  | G144: =IF(LEFT(H144,1)="#",TEXT(B144,"hh:mm")& " Uhr",IF(H144="",TEXT(B144,"hh:mm")& " Uhr",MAX(G$3:G143)+1)) -> 09:20 Uhr | K144: 137 | AA144: 143 | AB144: 144 | AC144: 142 | AE144: 143 | AF144: 144 | AG144: 142 | AI144: 144 | AJ144: 143 | AK144: 142
A145: =IF(LEFT(C145,1)="#","",IF(C145="","",MAX(A$3:A144)+1)) ->  | B145: 1.395833333 | G145: =IF(LEFT(H145,1)="#",TEXT(B145,"hh:mm")& " Uhr",IF(H145="",TEXT(B145,"hh:mm")& " Uhr",MAX(G$3:G144)+1)) -> 09:30 Uhr | K145: 138 | AA145: 145 | AB145: 146 | AC145: 147 | AE145: 145 | AF145: 146 | AG145: 147 | AI145: 145 | AJ145: 144 | AK145: 143
A146: =IF(LEFT(C146,1)="#","",IF(C146="","",MAX(A$3:A145)+1)) ->  | B146: 1.402777778 | G146: =IF(LEFT(H146,1)="#",TEXT(B146,"hh:mm")& " Uhr",IF(H146="",TEXT(B146,"hh:mm")& " Uhr",MAX(G$3:G145)+1)) -> 09:40 Uhr | K146: 139 | AA146: 147 | AB146: 145 | AC146: 146 | AE146: 147 | AF146: 145 | AG146: 146 | AI146: 146 | AJ146: 145 | AK146: 144
A147: =IF(LEFT(C147,1)="#","",IF(C147="","",MAX(A$3:A146)+1)) ->  | B147: 1.409722222 | G147: =IF(LEFT(H147,1)="#",TEXT(B147,"hh:mm")& " Uhr",IF(H147="",TEXT(B147,"hh:mm")& " Uhr",MAX(G$3:G146)+1)) -> 09:50 Uhr | K147: 140 | AA147: 146 | AB147: 147 | AC147: 145 | AE147: 146 | AF147: 147 | AG147: 145 | AI147: 147 | AJ147: 146 | AK147: 145
A148: =IF(LEFT(C148,1)="#","",IF(C148="","",MAX(A$3:A147)+1)) ->  | B148: 1.416666667 | G148: =IF(LEFT(H148,1)="#",TEXT(B148,"hh:mm")& " Uhr",IF(H148="",TEXT(B148,"hh:mm")& " Uhr",MAX(G$3:G147)+1)) -> 10:00 Uhr | K148: 141 | AA148: 148 | AB148: 149 | AC148: 150 | AE148: 148 | AF148: 149 | AG148: 150 | AI148: 148 | AJ148: 147 | AK148: 146
A149: =IF(LEFT(C149,1)="#","",IF(C149="","",MAX(A$3:A148)+1)) ->  | B149: 1.423611111 | C149: =IF(INDIRECT("H"&AA149,TRUE)="","",INDIRECT("H"&AA149,TRUE)) ->  | G149: =IF(LEFT(H149,1)="#",TEXT(B149,"hh:mm")& " Uhr",IF(H149="",TEXT(B149,"hh:mm")& " Uhr",MAX(G$3:G148)+1)) -> 10:10 Uhr | K149: 142 | AA149: 150 | AB149: 148 | AC149: 149 | AE149: 150 | AF149: 148 | AG149: 149 | AI149: 149 | AJ149: 148 | AK149: 147
A150: =IF(LEFT(C150,1)="#","",IF(C150="","",MAX(A$3:A149)+1)) ->  | B150: 1.430555556 | G150: =IF(LEFT(H150,1)="#",TEXT(B150,"hh:mm")& " Uhr",IF(H150="",TEXT(B150,"hh:mm")& " Uhr",MAX(G$3:G149)+1)) -> 10:20 Uhr | K150: 143 | AA150: 149 | AB150: 150 | AC150: 148 | AE150: 149 | AF150: 150 | AG150: 148 | AI150: 150 | AJ150: 149 | AK150: 148
A151: =IF(LEFT(C151,1)="#","",IF(C151="","",MAX(A$3:A150)+1)) ->  | B151: 1.4375 | G151: =IF(LEFT(H151,1)="#",TEXT(B151,"hh:mm")& " Uhr",IF(H151="",TEXT(B151,"hh:mm")& " Uhr",MAX(G$3:G150)+1)) -> 10:30 Uhr | K151: 144 | AA151: 151 | AB151: 152 | AC151: 153 | AE151: 151 | AF151: 152 | AG151: 153 | AI151: 151 | AJ151: 150 | AK151: 149
A152: =IF(LEFT(C152,1)="#","",IF(C152="","",MAX(A$3:A151)+1)) ->  | B152: 1.444444444 | G152: =IF(LEFT(H152,1)="#",TEXT(B152,"hh:mm")& " Uhr",IF(H152="",TEXT(B152,"hh:mm")& " Uhr",MAX(G$3:G151)+1)) -> 10:40 Uhr | K152: 145 | AA152: 153 | AB152: 151 | AC152: 152 | AE152: 153 | AF152: 151 | AG152: 152 | AI152: 152 | AJ152: 151 | AK152: 150
A153: =IF(LEFT(C153,1)="#","",IF(C153="","",MAX(A$3:A152)+1)) ->  | B153: 1.451388889 | G153: =IF(LEFT(H153,1)="#",TEXT(B153,"hh:mm")& " Uhr",IF(H153="",TEXT(B153,"hh:mm")& " Uhr",MAX(G$3:G152)+1)) -> 10:50 Uhr | K153: 146 | AA153: 152 | AB153: 153 | AC153: 151 | AE153: 152 | AF153: 153 | AG153: 151 | AI153: 153 | AJ153: 152 | AK153: 151
A154: =IF(LEFT(C154,1)="#","",IF(C154="","",MAX(A$3:A153)+1)) ->  | B154: 1.458333333 | G154: =IF(LEFT(H154,1)="#",TEXT(B154,"hh:mm")& " Uhr",IF(H154="",TEXT(B154,"hh:mm")& " Uhr",MAX(G$3:G153)+1)) -> 11:00 Uhr | K154: 147 | AA154: 154 | AB154: 155 | AC154: 156 | AE154: 154 | AF154: 155 | AG154: 156 | AI154: 154 | AJ154: 153 | AK154: 152
A155: =IF(LEFT(C155,1)="#","",IF(C155="","",MAX(A$3:A154)+1)) ->  | B155: 1.465277778 | G155: =IF(LEFT(H155,1)="#",TEXT(B155,"hh:mm")& " Uhr",IF(H155="",TEXT(B155,"hh:mm")& " Uhr",MAX(G$3:G154)+1)) -> 11:10 Uhr | K155: 148 | AA155: 156 | AB155: 154 | AC155: 155 | AE155: 156 | AF155: 154 | AG155: 155 | AI155: 155 | AJ155: 154 | AK155: 153
A156: =IF(LEFT(C156,1)="#","",IF(C156="","",MAX(A$3:A155)+1)) ->  | B156: 1.472222222 | G156: =IF(LEFT(H156,1)="#",TEXT(B156,"hh:mm")& " Uhr",IF(H156="",TEXT(B156,"hh:mm")& " Uhr",MAX(G$3:G155)+1)) -> 11:20 Uhr | K156: 149 | AA156: 155 | AB156: 156 | AC156: 154 | AE156: 155 | AF156: 156 | AG156: 154 | AI156: 156 | AJ156: 155 | AK156: 154
A157: =IF(LEFT(C157,1)="#","",IF(C157="","",MAX(A$3:A156)+1)) ->  | B157: 1.479166667 | G157: =IF(LEFT(H157,1)="#",TEXT(B157,"hh:mm")& " Uhr",IF(H157="",TEXT(B157,"hh:mm")& " Uhr",MAX(G$3:G156)+1)) -> 11:30 Uhr | K157: 150 | AA157: 157 | AB157: 158 | AC157: 159 | AE157: 157 | AF157: 158 | AG157: 159 | AI157: 157 | AJ157: 156 | AK157: 155
A158: =IF(LEFT(C158,1)="#","",IF(C158="","",MAX(A$3:A157)+1)) ->  | B158: 1.486111111 | G158: =IF(LEFT(H158,1)="#",TEXT(B158,"hh:mm")& " Uhr",IF(H158="",TEXT(B158,"hh:mm")& " Uhr",MAX(G$3:G157)+1)) -> 11:40 Uhr | K158: 151 | AA158: 159 | AB158: 157 | AC158: 158 | AE158: 159 | AF158: 157 | AG158: 158 | AI158: 158 | AJ158: 157 | AK158: 156
A159: =IF(LEFT(C159,1)="#","",IF(C159="","",MAX(A$3:A158)+1)) ->  | B159: 1.493055556 | G159: =IF(LEFT(H159,1)="#",TEXT(B159,"hh:mm")& " Uhr",IF(H159="",TEXT(B159,"hh:mm")& " Uhr",MAX(G$3:G158)+1)) -> 11:50 Uhr | K159: 152 | AA159: 158 | AB159: 159 | AC159: 157 | AE159: 158 | AF159: 159 | AG159: 157 | AI159: 159 | AJ159: 158 | AK159: 157
A160: =IF(LEFT(C160,1)="#","",IF(C160="","",MAX(A$3:A159)+1)) ->  | B160: 1.5 | G160: =IF(LEFT(H160,1)="#",TEXT(B160,"hh:mm")& " Uhr",IF(H160="",TEXT(B160,"hh:mm")& " Uhr",MAX(G$3:G159)+1)) -> 12:00 Uhr | K160: 153 | AA160: 160 | AB160: 161 | AC160: 162 | AE160: 160 | AF160: 161 | AG160: 162 | AI160: 160 | AJ160: 159 | AK160: 158
A161: =IF(LEFT(C161,1)="#","",IF(C161="","",MAX(A$3:A160)+1)) ->  | B161: 1.506944444 | G161: =IF(LEFT(H161,1)="#",TEXT(B161,"hh:mm")& " Uhr",IF(H161="",TEXT(B161,"hh:mm")& " Uhr",MAX(G$3:G160)+1)) -> 12:10 Uhr | K161: 154 | AA161: 162 | AB161: 160 | AC161: 161 | AE161: 162 | AF161: 160 | AG161: 161 | AI161: 161 | AJ161: 160 | AK161: 159
A162: =IF(LEFT(C162,1)="#","",IF(C162="","",MAX(A$3:A161)+1)) ->  | B162: 1.513888889 | G162: =IF(LEFT(H162,1)="#",TEXT(B162,"hh:mm")& " Uhr",IF(H162="",TEXT(B162,"hh:mm")& " Uhr",MAX(G$3:G161)+1)) -> 12:20 Uhr | K162: 155 | AA162: 161 | AB162: 162 | AC162: 160 | AE162: 161 | AF162: 162 | AG162: 160 | AI162: 162 | AJ162: 161 | AK162: 160
A163: =IF(LEFT(C163,1)="#","",IF(C163="","",MAX(A$3:A162)+1)) ->  | B163: 1.520833333 | G163: =IF(LEFT(H163,1)="#",TEXT(B163,"hh:mm")& " Uhr",IF(H163="",TEXT(B163,"hh:mm")& " Uhr",MAX(G$3:G162)+1)) -> 12:30 Uhr | K163: 156 | AA163: 163 | AB163: 164 | AC163: 165 | AE163: 163 | AF163: 164 | AG163: 165 | AI163: 163 | AJ163: 162 | AK163: 161
A164: =IF(LEFT(C164,1)="#","",IF(C164="","",MAX(A$3:A163)+1)) ->  | B164: 1.527777778 | G164: =IF(LEFT(H164,1)="#",TEXT(B164,"hh:mm")& " Uhr",IF(H164="",TEXT(B164,"hh:mm")& " Uhr",MAX(G$3:G163)+1)) -> 12:40 Uhr | K164: 157 | AA164: 165 | AB164: 163 | AC164: 164 | AE164: 165 | AF164: 163 | AG164: 164 | AI164: 164 | AJ164: 163 | AK164: 162
A165: =IF(LEFT(C165,1)="#","",IF(C165="","",MAX(A$3:A164)+1)) ->  | B165: 1.534722222 | G165: =IF(LEFT(H165,1)="#",TEXT(B165,"hh:mm")& " Uhr",IF(H165="",TEXT(B165,"hh:mm")& " Uhr",MAX(G$3:G164)+1)) -> 12:50 Uhr | K165: 158 | AA165: 164 | AB165: 165 | AC165: 163 | AE165: 164 | AF165: 165 | AG165: 163 | AI165: 165 | AJ165: 164 | AK165: 163
A166: =IF(LEFT(C166,1)="#","",IF(C166="","",MAX(A$3:A165)+1)) ->  | B166: 1.541666667 | G166: =IF(LEFT(H166,1)="#",TEXT(B166,"hh:mm")& " Uhr",IF(H166="",TEXT(B166,"hh:mm")& " Uhr",MAX(G$3:G165)+1)) -> 13:00 Uhr | K166: 159 | AA166: 166 | AB166: 167 | AC166: 168 | AE166: 166 | AF166: 167 | AG166: 168 | AI166: 166 | AJ166: 165 | AK166: 164
A167: =IF(LEFT(C167,1)="#","",IF(C167="","",MAX(A$3:A166)+1)) ->  | B167: 1.548611111 | G167: =IF(LEFT(H167,1)="#",TEXT(B167,"hh:mm")& " Uhr",IF(H167="",TEXT(B167,"hh:mm")& " Uhr",MAX(G$3:G166)+1)) -> 13:10 Uhr | K167: 160 | AA167: 168 | AB167: 166 | AC167: 167 | AE167: 168 | AF167: 166 | AG167: 167 | AI167: 167 | AJ167: 166 | AK167: 165
A168: =IF(LEFT(C168,1)="#","",IF(C168="","",MAX(A$3:A167)+1)) ->  | B168: 1.555555556 | G168: =IF(LEFT(H168,1)="#",TEXT(B168,"hh:mm")& " Uhr",IF(H168="",TEXT(B168,"hh:mm")& " Uhr",MAX(G$3:G167)+1)) -> 13:20 Uhr | K168: 161 | AA168: 167 | AB168: 168 | AC168: 166 | AE168: 167 | AF168: 168 | AG168: 166 | AI168: 168 | AJ168: 167 | AK168: 166
A169: =IF(LEFT(C169,1)="#","",IF(C169="","",MAX(A$3:A168)+1)) ->  | B169: 1.5625 | G169: =IF(LEFT(H169,1)="#",TEXT(B169,"hh:mm")& " Uhr",IF(H169="",TEXT(B169,"hh:mm")& " Uhr",MAX(G$3:G168)+1)) -> 13:30 Uhr | K169: 162 | AA169: 169 | AB169: 170 | AC169: 171 | AE169: 169 | AF169: 170 | AG169: 171 | AI169: 169 | AJ169: 168 | AK169: 167
A170: =IF(LEFT(C170,1)="#","",IF(C170="","",MAX(A$3:A169)+1)) ->  | B170: 1.569444444 | G170: =IF(LEFT(H170,1)="#",TEXT(B170,"hh:mm")& " Uhr",IF(H170="",TEXT(B170,"hh:mm")& " Uhr",MAX(G$3:G169)+1)) -> 13:40 Uhr | K170: 163 | AA170: 171 | AB170: 169 | AC170: 170 | AE170: 171 | AF170: 169 | AG170: 170 | AI170: 170 | AJ170: 169 | AK170: 168
A171: =IF(LEFT(C171,1)="#","",IF(C171="","",MAX(A$3:A170)+1)) ->  | B171: 1.576388889 | G171: =IF(LEFT(H171,1)="#",TEXT(B171,"hh:mm")& " Uhr",IF(H171="",TEXT(B171,"hh:mm")& " Uhr",MAX(G$3:G170)+1)) -> 13:50 Uhr | K171: 164 | AA171: 170 | AB171: 171 | AC171: 169 | AE171: 170 | AF171: 171 | AG171: 169 | AI171: 171 | AJ171: 170 | AK171: 169
A172: =IF(LEFT(C172,1)="#","",IF(C172="","",MAX(A$3:A171)+1)) ->  | B172: 1.583333333 | G172: =IF(LEFT(H172,1)="#",TEXT(B172,"hh:mm")& " Uhr",IF(H172="",TEXT(B172,"hh:mm")& " Uhr",MAX(G$3:G171)+1)) -> 14:00 Uhr | K172: 165 | AA172: 172 | AB172: 173 | AC172: 174 | AE172: 172 | AF172: 173 | AG172: 174 | AI172: 172 | AJ172: 171 | AK172: 170
A173: =IF(LEFT(C173,1)="#","",IF(C173="","",MAX(A$3:A172)+1)) ->  | B173: 1.590277778 | G173: =IF(LEFT(H173,1)="#",TEXT(B173,"hh:mm")& " Uhr",IF(H173="",TEXT(B173,"hh:mm")& " Uhr",MAX(G$3:G172)+1)) -> 14:10 Uhr | K173: 166 | AA173: 174 | AB173: 172 | AC173: 173 | AE173: 174 | AF173: 172 | AG173: 173 | AI173: 173 | AJ173: 172 | AK173: 171
A174: =IF(LEFT(C174,1)="#","",IF(C174="","",MAX(A$3:A173)+1)) ->  | B174: 1.597222222 | G174: =IF(LEFT(H174,1)="#",TEXT(B174,"hh:mm")& " Uhr",IF(H174="",TEXT(B174,"hh:mm")& " Uhr",MAX(G$3:G173)+1)) -> 14:20 Uhr | K174: 167 | AA174: 173 | AB174: 174 | AC174: 172 | AE174: 173 | AF174: 174 | AG174: 172 | AI174: 174 | AJ174: 173 | AK174: 172
A175: =IF(LEFT(C175,1)="#","",IF(C175="","",MAX(A$3:A174)+1)) ->  | B175: 1.604166667 | G175: =IF(LEFT(H175,1)="#",TEXT(B175,"hh:mm")& " Uhr",IF(H175="",TEXT(B175,"hh:mm")& " Uhr",MAX(G$3:G174)+1)) -> 14:30 Uhr | K175: 168 | AA175: 175 | AB175: 176 | AC175: 177 | AE175: 175 | AF175: 176 | AG175: 177 | AI175: 175 | AJ175: 174 | AK175: 173
A176: =IF(LEFT(C176,1)="#","",IF(C176="","",MAX(A$3:A175)+1)) ->  | B176: 1.611111111 | G176: =IF(LEFT(H176,1)="#",TEXT(B176,"hh:mm")& " Uhr",IF(H176="",TEXT(B176,"hh:mm")& " Uhr",MAX(G$3:G175)+1)) -> 14:40 Uhr | K176: 169 | AA176: 177 | AB176: 175 | AC176: 176 | AE176: 177 | AF176: 175 | AG176: 176 | AI176: 176 | AJ176: 175 | AK176: 174
A177: =IF(LEFT(C177,1)="#","",IF(C177="","",MAX(A$3:A176)+1)) ->  | B177: 1.618055556 | G177: =IF(LEFT(H177,1)="#",TEXT(B177,"hh:mm")& " Uhr",IF(H177="",TEXT(B177,"hh:mm")& " Uhr",MAX(G$3:G176)+1)) -> 14:50 Uhr | K177: 170 | AA177: 176 | AB177: 177 | AC177: 175 | AE177: 176 | AF177: 177 | AG177: 175 | AI177: 177 | AJ177: 176 | AK177: 175
A178: =IF(LEFT(C178,1)="#","",IF(C178="","",MAX(A$3:A177)+1)) ->  | B178: 1.625 | G178: =IF(LEFT(H178,1)="#",TEXT(B178,"hh:mm")& " Uhr",IF(H178="",TEXT(B178,"hh:mm")& " Uhr",MAX(G$3:G177)+1)) -> 15:00 Uhr | K178: 171 | AA178: 178 | AB178: 179 | AC178: 180 | AE178: 178 | AF178: 179 | AG178: 180 | AI178: 178 | AJ178: 177 | AK178: 176
A179: =IF(LEFT(C179,1)="#","",IF(C179="","",MAX(A$3:A178)+1)) ->  | B179: 1.631944444 | G179: =IF(LEFT(H179,1)="#",TEXT(B179,"hh:mm")& " Uhr",IF(H179="",TEXT(B179,"hh:mm")& " Uhr",MAX(G$3:G178)+1)) -> 15:10 Uhr | K179: 172 | AA179: 180 | AB179: 178 | AC179: 179 | AE179: 180 | AF179: 178 | AG179: 179 | AI179: 179 | AJ179: 178 | AK179: 177
A180: =IF(LEFT(C180,1)="#","",IF(C180="","",MAX(A$3:A179)+1)) ->  | B180: 1.638888889 | G180: =IF(LEFT(H180,1)="#",TEXT(B180,"hh:mm")& " Uhr",IF(H180="",TEXT(B180,"hh:mm")& " Uhr",MAX(G$3:G179)+1)) -> 15:20 Uhr | K180: 173 | AA180: 179 | AB180: 180 | AC180: 178 | AE180: 179 | AF180: 180 | AG180: 178 | AI180: 180 | AJ180: 179 | AK180: 178
A181: =IF(LEFT(C181,1)="#","",IF(C181="","",MAX(A$3:A180)+1)) ->  | B181: 1.645833333 | C181: =IF(INDIRECT("H"&AA181,TRUE)="","",INDIRECT("H"&AA181,TRUE)) ->  | G181: =IF(LEFT(H181,1)="#",TEXT(B181,"hh:mm")& " Uhr",IF(H181="",TEXT(B181,"hh:mm")& " Uhr",MAX(G$3:G180)+1)) -> 15:30 Uhr | K181: 174 | AA181: 181 | AB181: 182 | AC181: 183 | AE181: 181 | AF181: 182 | AG181: 183 | AI181: 181 | AJ181: 180 | AK181: 179
A182: =IF(LEFT(C182,1)="#","",IF(C182="","",MAX(A$3:A181)+1)) ->  | B182: 1.652777778 | G182: =IF(LEFT(H182,1)="#",TEXT(B182,"hh:mm")& " Uhr",IF(H182="",TEXT(B182,"hh:mm")& " Uhr",MAX(G$3:G181)+1)) -> 15:40 Uhr | K182: 175 | AA182: 183 | AB182: 181 | AC182: 182 | AE182: 183 | AF182: 181 | AG182: 182 | AI182: 182 | AJ182: 181 | AK182: 180
A183: =IF(LEFT(C183,1)="#","",IF(C183="","",MAX(A$3:A182)+1)) ->  | B183: 1.659722222 | G183: =IF(LEFT(H183,1)="#",TEXT(B183,"hh:mm")& " Uhr",IF(H183="",TEXT(B183,"hh:mm")& " Uhr",MAX(G$3:G182)+1)) -> 15:50 Uhr | K183: 176 | AA183: 182 | AB183: 183 | AC183: 181 | AE183: 182 | AF183: 183 | AG183: 181 | AI183: 183 | AJ183: 182 | AK183: 181
A184: =IF(LEFT(C184,1)="#","",IF(C184="","",MAX(A$3:A183)+1)) ->  | B184: 1.666666667 | G184: =IF(LEFT(H184,1)="#",TEXT(B184,"hh:mm")& " Uhr",IF(H184="",TEXT(B184,"hh:mm")& " Uhr",MAX(G$3:G183)+1)) -> 16:00 Uhr | K184: 177 | AA184: 184 | AB184: 185 | AC184: 186 | AE184: 184 | AF184: 185 | AG184: 186 | AI184: 184 | AJ184: 183 | AK184: 182
A185: =IF(LEFT(C185,1)="#","",IF(C185="","",MAX(A$3:A184)+1)) ->  | B185: 1.673611111 | G185: =IF(LEFT(H185,1)="#",TEXT(B185,"hh:mm")& " Uhr",IF(H185="",TEXT(B185,"hh:mm")& " Uhr",MAX(G$3:G184)+1)) -> 16:10 Uhr | K185: 178 | AA185: 186 | AB185: 184 | AC185: 185 | AE185: 186 | AF185: 184 | AG185: 185 | AI185: 185 | AJ185: 184 | AK185: 183
A186: =IF(LEFT(C186,1)="#","",IF(C186="","",MAX(A$3:A185)+1)) ->  | B186: 1.680555556 | G186: =IF(LEFT(H186,1)="#",TEXT(B186,"hh:mm")& " Uhr",IF(H186="",TEXT(B186,"hh:mm")& " Uhr",MAX(G$3:G185)+1)) -> 16:20 Uhr | K186: 179 | AA186: 185 | AB186: 186 | AC186: 184 | AE186: 185 | AF186: 186 | AG186: 184 | AI186: 186 | AJ186: 185 | AK186: 184
A187: =IF(LEFT(C187,1)="#","",IF(C187="","",MAX(A$3:A186)+1)) ->  | B187: 1.6875 | G187: =IF(LEFT(H187,1)="#",TEXT(B187,"hh:mm")& " Uhr",IF(H187="",TEXT(B187,"hh:mm")& " Uhr",MAX(G$3:G186)+1)) -> 16:30 Uhr | K187: 180 | AA187: 187 | AB187: 188 | AC187: 189 | AE187: 187 | AF187: 188 | AG187: 189 | AI187: 187 | AJ187: 186 | AK187: 185
A188: =IF(LEFT(C188,1)="#","",IF(C188="","",MAX(A$3:A187)+1)) ->  | B188: 1.694444444 | G188: =IF(LEFT(H188,1)="#",TEXT(B188,"hh:mm")& " Uhr",IF(H188="",TEXT(B188,"hh:mm")& " Uhr",MAX(G$3:G187)+1)) -> 16:40 Uhr | K188: 181 | AA188: 189 | AB188: 187 | AC188: 188 | AE188: 189 | AF188: 187 | AG188: 188 | AI188: 188 | AJ188: 187 | AK188: 186
A189: =IF(LEFT(C189,1)="#","",IF(C189="","",MAX(A$3:A188)+1)) ->  | B189: 1.701388889 | G189: =IF(LEFT(H189,1)="#",TEXT(B189,"hh:mm")& " Uhr",IF(H189="",TEXT(B189,"hh:mm")& " Uhr",MAX(G$3:G188)+1)) -> 16:50 Uhr | K189: 182 | AA189: 188 | AB189: 189 | AC189: 187 | AE189: 188 | AF189: 189 | AG189: 187 | AI189: 189 | AJ189: 188 | AK189: 187
A190: =IF(LEFT(C190,1)="#","",IF(C190="","",MAX(A$3:A189)+1)) ->  | B190: 1.708333333 | G190: =IF(LEFT(H190,1)="#",TEXT(B190,"hh:mm")& " Uhr",IF(H190="",TEXT(B190,"hh:mm")& " Uhr",MAX(G$3:G189)+1)) -> 17:00 Uhr | K190: 183 | AA190: 190 | AB190: 191 | AC190: 192 | AE190: 190 | AF190: 191 | AG190: 192 | AI190: 190 | AJ190: 189 | AK190: 188
A191: =IF(LEFT(C191,1)="#","",IF(C191="","",MAX(A$3:A190)+1)) ->  | B191: 1.715277778 | G191: =IF(LEFT(H191,1)="#",TEXT(B191,"hh:mm")& " Uhr",IF(H191="",TEXT(B191,"hh:mm")& " Uhr",MAX(G$3:G190)+1)) -> 17:10 Uhr | K191: 184 | AA191: 192 | AB191: 190 | AC191: 191 | AE191: 192 | AF191: 190 | AG191: 191 | AI191: 191 | AJ191: 190 | AK191: 189
A192: =IF(LEFT(C192,1)="#","",IF(C192="","",MAX(A$3:A191)+1)) ->  | B192: 1.722222222 | G192: =IF(LEFT(H192,1)="#",TEXT(B192,"hh:mm")& " Uhr",IF(H192="",TEXT(B192,"hh:mm")& " Uhr",MAX(G$3:G191)+1)) -> 17:20 Uhr | K192: 185 | AA192: 191 | AB192: 192 | AC192: 190 | AE192: 191 | AF192: 192 | AG192: 190 | AI192: 192 | AJ192: 191 | AK192: 190
A193: =IF(LEFT(C193,1)="#","",IF(C193="","",MAX(A$3:A192)+1)) ->  | B193: 1.729166667 | G193: =IF(LEFT(H193,1)="#",TEXT(B193,"hh:mm")& " Uhr",IF(H193="",TEXT(B193,"hh:mm")& " Uhr",MAX(G$3:G192)+1)) -> 17:30 Uhr | K193: 186 | AA193: 193 | AB193: 194 | AC193: 195 | AE193: 193 | AF193: 194 | AG193: 195 | AI193: 193 | AJ193: 192 | AK193: 191
A194: =IF(LEFT(C194,1)="#","",IF(C194="","",MAX(A$3:A193)+1)) ->  | B194: 1.736111111 | G194: =IF(LEFT(H194,1)="#",TEXT(B194,"hh:mm")& " Uhr",IF(H194="",TEXT(B194,"hh:mm")& " Uhr",MAX(G$3:G193)+1)) -> 17:40 Uhr | K194: 187 | AA194: 195 | AB194: 193 | AC194: 194 | AE194: 195 | AF194: 193 | AG194: 194 | AI194: 194 | AJ194: 193 | AK194: 192
A195: =IF(LEFT(C195,1)="#","",IF(C195="","",MAX(A$3:A194)+1)) ->  | B195: 1.743055556 | G195: =IF(LEFT(H195,1)="#",TEXT(B195,"hh:mm")& " Uhr",IF(H195="",TEXT(B195,"hh:mm")& " Uhr",MAX(G$3:G194)+1)) -> 17:50 Uhr | K195: 188 | AA195: 194 | AB195: 195 | AC195: 193 | AE195: 194 | AF195: 195 | AG195: 193 | AI195: 195 | AJ195: 194 | AK195: 193
A196: =IF(LEFT(C196,1)="#","",IF(C196="","",MAX(A$3:A195)+1)) ->  | B196: 1.75 | G196: =IF(LEFT(H196,1)="#",TEXT(B196,"hh:mm")& " Uhr",IF(H196="",TEXT(B196,"hh:mm")& " Uhr",MAX(G$3:G195)+1)) -> 18:00 Uhr | K196: 189 | AA196: 196 | AB196: 197 | AC196: 198 | AE196: 196 | AF196: 197 | AG196: 198 | AI196: 196 | AJ196: 195 | AK196: 194
A197: =IF(LEFT(C197,1)="#","",IF(C197="","",MAX(A$3:A196)+1)) ->  | B197: 1.756944444 | G197: =IF(LEFT(H197,1)="#",TEXT(B197,"hh:mm")& " Uhr",IF(H197="",TEXT(B197,"hh:mm")& " Uhr",MAX(G$3:G196)+1)) -> 18:10 Uhr | K197: 190 | AA197: 198 | AB197: 196 | AC197: 197 | AE197: 198 | AF197: 196 | AG197: 197 | AI197: 197 | AJ197: 196 | AK197: 195
A198: =IF(LEFT(C198,1)="#","",IF(C198="","",MAX(A$3:A197)+1)) ->  | B198: =IF($K$5=1,"",B197+($M$3/24/60)) -> 1.763888889 | G198: =IF(LEFT(H198,1)="#",TEXT(B198,"hh:mm")& " Uhr",IF(H198="",TEXT(B198,"hh:mm")& " Uhr",MAX(G$3:G197)+1)) -> 18:20 Uhr | K198: 191 | AA198: 197 | AB198: 198 | AC198: 196 | AE198: 197 | AF198: 198 | AG198: 196 | AI198: 198 | AJ198: 197 | AK198: 196
A199: =IF(LEFT(C199,1)="#","",IF(C199="","",MAX(A$3:A198)+1)) ->  | B199: 1.770833333 | G199: =IF(LEFT(H199,1)="#",TEXT(B199,"hh:mm")& " Uhr",IF(H199="",TEXT(B199,"hh:mm")& " Uhr",MAX(G$3:G198)+1)) -> 18:30 Uhr | K199: 192 | AA199: 199 | AB199: 200 | AC199: 201 | AE199: 199 | AF199: 200 | AG199: 201 | AI199: 199 | AJ199: 198 | AK199: 197
A200: =IF(LEFT(C200,1)="#","",IF(C200="","",MAX(A$3:A199)+1)) ->  | B200: 1.777777778 | G200: =IF(LEFT(H200,1)="#",TEXT(B200,"hh:mm")& " Uhr",IF(H200="",TEXT(B200,"hh:mm")& " Uhr",MAX(G$3:G199)+1)) -> 18:40 Uhr | K200: 193 | AA200: 201 | AB200: 199 | AC200: 200 | AE200: 201 | AF200: 199 | AG200: 200 | AI200: 200 | AJ200: 199 | AK200: 198
... 8 more rows

Sheet Startliste 3-2
A1: ="Startliste "&Auswertung!B5&" in "&Auswertung!B4&" am "&TEXT(Auswertung!B3,"TT.MM.JJJJ") -> Startliste Musterentscheid in Musterstadt am 08.09.2024 | F1: Starten parallel | H1: Verfahren für die Erstellung der "Startliste 3-2": | N1: Startzeit: | O1: Zeitintervall: | T1: Pause : | U1: Pause: | V1: Pause: | Y1: Fehler in Pausenzeiten: | AA1: =SUM(Y3:Z7) -> 0 | AC1: Vorgabe für Berechnung der Formeln | AK1: Start | AL1: Pause: | AM1: Pause: | AO1: Aktiver Start = | AP1: =IF(CA1=1,"Parallel","Seriell") -> Parallel | AQ1: Liste Auswahl Pause Beginn und Pause Ende für die Drop-Down-Auswahlfelder in T3-T7 und U3-U7 | BC1: Format und Berechnung der Formeln "parallel" | BI1: Formate und Berechnung der Formeln "seriell 1 (Löschangriff zuerst)" | BO1: Formate und Berechnung der Formeln "seriell 2 (Löschangriff zuletzt)" | BU1: VorgabeFormate für "parallel" | BW1: VorgabeFormate für "seriell" | BZ1: Block aktiv: | CA1: =IF(T9="Pausen parallel (gemeinsam)",1,0) -> 1 | CB1: Liste "Parallel" - Auswahl Pause Beginn und Pause Ende für die Drop-Down-Auswahlfelder in T3-T7 und U3-U7 | CL1: Block aktiv: | CM1: =IF(T9="Pausen seriell (nacheinander)",1,0) -> 0 | CN1: Liste "Seriell" - Auswahl Pause Beginn und Pause Ende für die Drop-Down-Auswahlfelder in T3-T7 und U3-U7
B2: Hinweis: Alle Zeitangaben sind "ohne Gewähr"!!! | F2: =IF(N5="Zeit in Spalte B nicht anzeigen","","gepl.Pausen: " & IF(T3<>"",T3&"-"&U3&" Uhr","")& IF(T4<>""," # "&T4&"-"&U4&" Uhr","")& IF(T5<>""," # "&T5&"-"&U5&" Uhr","")& IF(T6<>""," # "&T6&"-"&U6&" Uhr","")& IF(T7<>""," # "&T7&"-"&U7&" Uhr","")) -> gepl.Pausen: 10:36-11:06 Uhr # 12:18-12:38 Uhr | I2: StartNr / Uhrzeit | J2: Daten für Tabelle "Startliste 3-2" | K2: Transfer J <- L | L2: Daten aus Tabelle "Einheiten" | M2: LfdNr | N2: (Uhrzeit) | O2: (Minuten) | T2: Beginn | U2: Ende | V2: Länge [Std] | X2: Aktive Module | Y2: Spalte T | Z2: Spalte U | AC2: Spalte C | AD2: Spalte D | AE2: Spalte E | AF2: Spalte F | AK2: UhrzDez | AL2: BegDez | AM2: EndeDez | AO2: für Zelle T3 | AP2: für Zelle U3 | AQ2: für Zelle T4 | AR2: für Zelle U4 | AS2: für Zelle T5 | AT2: für Zelle U5 | AU2: für Zelle T6 | AV2: für Zelle U6 | AW2: für Zelle T7 | AX2: für Zelle U7 | BC2: Spalte C | BD2: Spalte D | BE2: Spalte E | BF2: Spalte F | BI2: Spalte C | BJ2: Spalte D | BK2: Spalte E | BL2: Spalte F | BO2: Spalte C | BP2: Spalte D | BQ2: Spalte E | BR2: Spalte F | BU2: Spalte J | BW2: Spalte J | CA2: für Zelle T3 | CB2: für Zelle U3 | CC2: für Zelle T4 | CD2: für Zelle U4 | CE2: für Zelle T5 | CF2: für Zelle U5 | CG2: für Zelle T6 | CH2: für Zelle U6 | CI2: für Zelle T7 | CJ2: für Zelle U7 | CM2: für Zelle T3 | CN2: für Zelle U3 | CO2: für Zelle T4 | CP2: für Zelle U4 | CQ2: für Zelle T5 | CR2: für Zelle U5 | CS2: für Zelle T6 | CT2: für Zelle U6 | CU2: für Zelle T7 | CV2: für Zelle U7
A3: Lfd Nr | B3: Zeit | C3: Löschangriff 1 | D3: Löschangriff 2 | E3: Fahrübung | F3: Saugleitung | H3: Zusammenstellung einer Startliste 3-2: | I3: (ohne Pausen!) | J3: für die Erstellung der Startliste | L3: oder manuelle Daten | N3: 10:00:00 | O3: 6 | T3: 10:36 | U3: 11:06 | V3: =IF(T3="","",U3-T3) -> 00:30:00 | X3: =IF(Auswertung!AD18="","",Auswertung!AD18) -> Saugleitung | Y3: =IF(T3<>"",IF(ISERROR(VLOOKUP(T3,AO3:AO36,1,FALSE)),1,0),0) -> 0 | Z3: =IF(U3<>"",IF(ISERROR(VLOOKUP(U3,AP3:AP36,1,FALSE)),1,0),0) -> 0 | AC3: Aktiver Block: | AD3: Starten Parallel (Quelle = Spalten BC - BF) | AK3: =ROUND(VALUE(N3),6) -> 0.416667 | AL3: =ROUND(VALUE(T3),6) -> 0.441667 | AM3: 0.4625 | AO3: =IF($CA$1=1,CA3,CM3) -> 10:00 | AP3: =IF($CA$1=1,CB3,CN3) -> 10:41 | AQ3: 11:42 | AR3: 12:23 | AS3: 13:14 | AT3: 00:05 | AU3: 00:36 | AV3: 00:05 | AW3: 00:36 | AX3: 00:05 | BC3: Block aktiv: | BD3: =IF(N6="Starten parallel",1,0) -> 1 | BI3: Block aktiv: | BJ3: =IF(N6="Starten seriell 1 (Löschangriff zuerst)",1,0) -> 0 | BO3: Block aktiv: | BP3: =IF(N6="Starten seriell 2 (Löschangriff zuletzt)",1,0) -> 0 | CA3: =TEXT($N$3 + (ROW(CA3)-3)*6*($O$3/24/60),"hh:mm") -> 10:00 | CB3: =TEXT($T$3+(5/24/60) + (ROW(CB3)-3)*(5/24/60),"hh:mm") -> 10:41 | CC3: =TEXT($U$3 + (ROW(CC3)-2)*6*($O$3/24/60),"hh:mm") -> 11:42 | CD3: =TEXT($T$4+(5/24/60) + (ROW(CD3)-3)*(5/24/60),"hh:mm") -> 12:23 | CE3: =TEXT($U$4 + (ROW(CC3)-2)*6*($O$3/24/60),"hh:mm") -> 13:14 | CF3: =TEXT($T$5+(5/24/60) + (ROW(CF3)-3)*(5/24/60),"hh:mm") -> 00:05 | CG3: =TEXT($U$5 + (ROW(CC3)-2)*6*($O$3/24/60),"hh:mm") -> 00:36 | CH3: =TEXT($T$6+(5/24/60) + (ROW(CH3)-3)*(5/24/60),"hh:mm") -> 00:05 | CI3: =TEXT($U$6 + (ROW(CC3)-2)*6*($O$3/24/60),"hh:mm") -> 00:36 | CJ3: =TEXT($T$7+(5/24/60) + (ROW(CJ3)-3)*(5/24/60),"hh:mm") -> 00:05 | CM3: =TEXT($N$3 + (ROW(CM3)-3)*2*($O$3/24/60),"hh:mm") -> 10:00 | CN3: =TEXT($T$3+(5/24/60) + (ROW(CN3)-3)*(5/24/60),"hh:mm") -> 10:41 | CO3: =TEXT($U$3 + (ROW(CO3)-2)*2*($O$3/24/60),"hh:mm") -> 11:18 | CP3: =TEXT($T$4+(5/24/60) + (ROW(CP3)-3)*(5/24/60),"hh:mm") -> 12:23 | CQ3: =TEXT($U$4 + (ROW(CO3)-2)*2*($O$3/24/60),"hh:mm") -> 12:50 | CR3: =TEXT($T$5+(5/24/60) + (ROW(CR3)-3)*(5/24/60),"hh:mm") -> 00:05 | CS3: =TEXT($U$5 + (ROW(CO3)-2)*2*($O$3/24/60),"hh:mm") -> 00:12 | CT3: =TEXT($T$6+(5/24/60) + (ROW(CT3)-3)*(5/24/60),"hh:mm") -> 00:05 | CU3: =TEXT($U$6 + (ROW(CO3)-2)*2*($O$3/24/60),"hh:mm") -> 00:12 | CV3: =TEXT($T$7+(5/24/60) + (ROW(CV3)-3)*(5/24/60),"hh:mm") -> 00:05
A4: =IF(LEFT(J4,1)="#","",IF(J4="","",MAX(A$3:A3)+1)) ->  | B4: 10:00:00.029 | C4: =IF(INDIRECT("J"&AC4,TRUE)="","",INDIRECT("J"&AC4,TRUE)) ->  | D4: =IF(INDIRECT("J"&AD4,TRUE)="","",INDIRECT("J"&AD4,TRUE)) ->  | E4: =IF(INDIRECT("J"&AE4,TRUE)="","",INDIRECT("J"&AE4,TRUE)) ->  | F4: =IF(INDIRECT("J"&AF4,TRUE)="","",INDIRECT("J"&AF4,TRUE)) ->  | I4: =IF(LEFT(J4,1)="#",TEXT($N$3 + (ROW(K4)-4)*($O$3/24/60),"hh:mm")& " Uhr",IF(J4="",TEXT($N$3 + (ROW(K4)-4)*($O$3/24/60),"hh:mm")& " Uhr",MAX(I$3:I3)+1)) -> 10:00 Uhr | K4: <==== | L4: Musterort | M4: 1 | T4: 12:18 | U4: 12:38 | V4: =IF(T4="","",U4-T4) -> 00:20:00 | X4: =IF(Auswertung!AD20="","",Auswertung!AD20) -> Funkübung | Y4: =IF(T4<>"",IF(ISERROR(VLOOKUP(T4,AQ3:AQ36,1,FALSE)),1,0),0) -> 0 | Z4: =IF(U4<>"",IF(ISERROR(VLOOKUP(U4,AR3:AR36,1,FALSE)),1,0),0) -> 0 | AC4: 4 | AD4: 5 | AE4: 6 | AF4: 8 | AL4: 0.5125 | AM4: 0.526389 | AO4: =IF($CA$1=1,CA4,CM4) -> 10:36 | AP4: 10:46 | AQ4: 12:18 | AR4: 12:28 | AS4: 13:50 | AT4: 00:10 | AU4: 01:12 | AV4: 00:10 | AW4: 01:12 | AX4: 00:10 | BC4: =ROW(A4) -> 4 | BD4: =ROW(A4)+1 -> 5 | BE4: 6 | BF4: 8 | BI4: 4 | BJ4: 5 | BK4: 1 | BL4: 1 | BO4: 1 | BP4: 1 | BQ4: 4 | BR4: 1 | CA4: =TEXT($N$3 + (ROW(CA4)-3)*6*($O$3/24/60),"hh:mm") -> 10:36 | CB4: =TEXT($T$3+(5/24/60) + (ROW(CB4)-3)*(5/24/60),"hh:mm") -> 10:46 | CC4: =TEXT($U$3 + (ROW(CC4)-2)*6*($O$3/24/60),"hh:mm") -> 12:18 | CD4: =TEXT($T$4+(5/24/60) + (ROW(CD4)-3)*(5/24/60),"hh:mm") -> 12:28 | CE4: =TEXT($U$4 + (ROW(CC4)-2)*6*($O$3/24/60),"hh:mm") -> 13:50 | CF4: =TEXT($T$5+(5/24/60) + (ROW(CF4)-3)*(5/24/60),"hh:mm") -> 00:10 | CG4: =TEXT($U$5 + (ROW(CC4)-2)*6*($O$3/24/60),"hh:mm") -> 01:12 | CH4: =TEXT($T$6+(5/24/60) + (ROW(CH4)-3)*(5/24/60),"hh:mm") -> 00:10 | CI4: =TEXT($U$6 + (ROW(CC4)-2)*6*($O$3/24/60),"hh:mm") -> 01:12 | CJ4: =TEXT($T$7+(5/24/60) + (ROW(CJ4)-3)*(5/24/60),"hh:mm") -> 00:10 | CM4: =TEXT($N$3 + (ROW(CM4)-3)*2*($O$3/24/60),"hh:mm") -> 10:12 | CN4: =TEXT($T$3+(5/24/60) + (ROW(CN4)-3)*(5/24/60),"hh:mm") -> 10:46 | CO4: =TEXT($U$3 + (ROW(CO4)-2)*2*($O$3/24/60),"hh:mm") -> 11:30 | CP4: =TEXT($T$4+(5/24/60) + (ROW(CP4)-3)*(5/24/60),"hh:mm") -> 12:28 | CQ4: =TEXT($U$4 + (ROW(CO4)-2)*2*($O$3/24/60),"hh:mm") -> 13:02 | CR4: =TEXT($T$5+(5/24/60) + (ROW(CR4)-3)*(5/24/60),"hh:mm") -> 00:10 | CS4: =TEXT($U$5 + (ROW(CO4)-2)*2*($O$3/24/60),"hh:mm") -> 00:24 | CT4: =TEXT($T$6+(5/24/60) + (ROW(CT4)-3)*(5/24/60),"hh:mm") -> 00:10 | CU4: =TEXT($U$6 + (ROW(CO4)-2)*2*($O$3/24/60),"hh:mm") -> 00:24 | CV4: =TEXT($T$7+(5/24/60) + (ROW(CV4)-3)*(5/24/60),"hh:mm") -> 00:10
A5: =IF(LEFT(J5,1)="#","",IF(J5="","",MAX(A$3:A4)+1)) ->  | B5: 10:06:00.297 | E5: =IF(INDIRECT("J"&AE5,TRUE)="","",INDIRECT("J"&AE5,TRUE)) ->  | F5: =IF(INDIRECT("J"&AF5,TRUE)="","",INDIRECT("J"&AF5,TRUE)) ->  | H5: Die beiden Spalten "Löschangriff 1 + 2" sind | I5: =IF(LEFT(J5,1)="#",TEXT($N$3 + (ROW(K5)-4)*($O$3/24/60),"hh:mm")& " Uhr",IF(J5="",TEXT($N$3 + (ROW(K5)-4)*($O$3/24/60),"hh:mm")& " Uhr",MAX(I$3:I4)+1)) -> 10:06 Uhr | M5: 2 | N5: Zeit in Spalte B anzeigen | V5: =IF(T5="","",U5-T5) ->  | Y5: =IF(T5<>"",IF(ISERROR(VLOOKUP(T5,AS3:AS36,1,FALSE)),1,0),0) -> 0 | Z5: =IF(U5<>"",IF(ISERROR(VLOOKUP(U5,AT3:AT36,1,FALSE)),1,0),0) -> 0 | AE5: 7 | AF5: 9 | AK5: Intervall | AL5: 0 | AM5: 0 | AO5: 11:12 | AP5: 10:51 | AQ5: 12:54 | AR5: 12:33 | AS5: 14:26 | AT5: 00:15 | AU5: 01:48 | AV5: 00:15 | AW5: 01:48 | AX5: 00:15 | BE5: 7 | BF5: 9 | BK5: 1 | BL5: 1 | BQ5: 5 | BR5: 1 | CA5: 11:12 | CB5: 10:51 | CC5: 12:54 | CD5: 12:33 | CE5: 14:26 | CF5: 00:15 | CG5: 01:48 | CH5: 00:15 | CI5: 01:48 | CJ5: 00:15 | CM5: =TEXT($N$3 + (ROW(CM5)-3)*2*($O$3/24/60),"hh:mm") -> 10:24 | CN5: 10:51 | CO5: =TEXT($U$3 + (ROW(CO5)-2)*2*($O$3/24/60),"hh:mm") -> 11:42 | CP5: 12:33 | CQ5: 13:14 | CR5: 00:15 | CS5: 00:36 | CT5: 00:15 | CU5: 00:36 | CV5: 00:15
A6: =IF(LEFT(J6,1)="#","",IF(J6="","",MAX(A$3:A5)+1)) ->  | B6: 10:12:00.565 | C6: =IF(INDIRECT("J"&AC6,TRUE)="","",INDIRECT("J"&AC6,TRUE)) ->  | D6: =IF(INDIRECT("J"&AD6,TRUE)="","",INDIRECT("J"&AD6,TRUE)) ->  | H6: mit den Begriffen vorbesetzt. | I6: =IF(LEFT(J6,1)="#",TEXT($N$3 + (ROW(K6)-4)*($O$3/24/60),"hh:mm")& " Uhr",IF(J6="",TEXT($N$3 + (ROW(K6)-4)*($O$3/24/60),"hh:mm")& " Uhr",MAX(I$3:I5)+1)) -> 10:12 Uhr | M6: 3 | N6: Starten parallel | V6: =IF(T6="","",U6-T6) ->  | Y6: =IF(T6<>"",IF(ISERROR(VLOOKUP(T6,AU3:AU36,1,FALSE)),1,0),0) -> 0 | Z6: =IF(U6<>"",IF(ISERROR(VLOOKUP(U6,AV3:AV36,1,FALSE)),1,0),0) -> 0 | AC6: 6 | AD6: 7 | AE6: 8 | AF6: 4 | AK6: Dezimal | AL6: 0 | AM6: 0 | AO6: 11:48 | AP6: 10:56 | AQ6: 13:30 | AR6: 12:38 | AS6: 15:02 | AT6: 00:20 | AU6: 02:24 | AV6: 00:20 | AW6: 02:24 | AX6: 00:20 | BC6: =ROW(A6) -> 6 | BD6: =ROW(A6)+1 -> 7 | BE6: 8 | BF6: 4 | BI6: 6 | BJ6: 7 | BK6: 4 | BL6: 1 | BO6: 1 | BP6: 1 | BQ6: 6 | BR6: 4 | CA6: 11:48 | CB6: 10:56 | CC6: 13:30 | CD6: 12:38 | CE6: 15:02 | CF6: 00:20 | CG6: 02:24 | CH6: 00:20 | CI6: 02:24 | CJ6: 00:20 | CM6: 10:36 | CN6: 10:56 | CO6: 11:54 | CP6: 12:38 | CQ6: 13:26 | CR6: 00:20 | CS6: 00:48 | CT6: 00:20 | CU6: 00:48 | CV6: 00:20
A7: =IF(LEFT(J7,1)="#","",IF(J7="","",MAX(A$3:A6)+1)) ->  | B7: 10:18:00.833 | I7: =IF(LEFT(J7,1)="#",TEXT($N$3 + (ROW(K7)-4)*($O$3/24/60),"hh:mm")& " Uhr",IF(J7="",TEXT($N$3 + (ROW(K7)-4)*($O$3/24/60),"hh:mm")& " Uhr",MAX(I$3:I6)+1)) -> 10:18 Uhr | M7: 4 | V7: =IF(T7="","",U7-T7) ->  | Y7: =IF(T7<>"",IF(ISERROR(VLOOKUP(T7,AW3:AW36,1,FALSE)),1,0),0) -> 0 | Z7: =IF(U7<>"",IF(ISERROR(VLOOKUP(U7,AX3:AX36,1,FALSE)),1,0),0) -> 0 | AE7: 9 | AF7: 5 | AK7: =ROUND((VALUE(O3)/24/60),6) -> 0.004167 | AL7: 0 | AM7: 0 | AO7: 12:24 | AP7: 11:01 | AQ7: 14:06 | AR7: 12:43 | AS7: 15:38 | AT7: 00:25 | AU7: 03:00 | AV7: 00:25 | AW7: 03:00 | AX7: 00:25 | BE7: 9 | BF7: 5 | BK7: 5 | BL7: 1 | BQ7: 7 | BR7: 5 | CA7: 12:24 | CB7: 11:01 | CC7: 14:06 | CD7: 12:43 | CE7: 15:38 | CF7: 00:25 | CG7: 03:00 | CH7: 00:25 | CI7: 03:00 | CJ7: 00:25 | CM7: 10:48 | CN7: 11:01 | CO7: 12:06 | CP7: 12:43 | CQ7: 13:38 | CR7: 00:25 | CS7: 01:00 | CT7: 00:25 | CU7: 01:00 | CV7: 00:25
A8: =IF(LEFT(J8,1)="#","",IF(J8="","",MAX(A$3:A7)+1)) ->  | B8: 10:24:01.101 | C8: =IF(INDIRECT("J"&AC8,TRUE)="","",INDIRECT("J"&AC8,TRUE)) ->  | D8: =IF(INDIRECT("J"&AD8,TRUE)="","",INDIRECT("J"&AD8,TRUE)) ->  | H8: Die Reihenfolge der 2 Module (Zellen E3, F3) | I8: =IF(LEFT(J8,1)="#",TEXT($N$3 + (ROW(K8)-4)*($O$3/24/60),"hh:mm")& " Uhr",IF(J8="",TEXT($N$3 + (ROW(K8)-4)*($O$3/24/60),"hh:mm")& " Uhr",MAX(I$3:I7)+1)) -> 10:24 Uhr | M8: 5 | AC8: 8 | AD8: 9 | AE8: 4 | AF8: 6 | AO8: 13:00 | AP8: 11:06 | AQ8: 14:42 | AR8: 12:48 | AS8: 16:14 | AT8: 00:30 | AU8: 03:36 | AV8: 00:30 | AW8: 03:36 | AX8: 00:30 | BC8: =ROW(A8) -> 8 | BD8: =ROW(A8)+1 -> 9 | BE8: 4 | BF8: 6 | BI8: 8 | BJ8: 9 | BK8: 6 | BL8: 4 | BO8: 4 | BP8: 5 | BQ8: 8 | BR8: 6 | CA8: 13:00 | CB8: 11:06 | CC8: 14:42 | CD8: 12:48 | CE8: 16:14 | CF8: 00:30 | CG8: 03:36 | CH8: 00:30 | CI8: 03:36 | CJ8: 00:30 | CM8: 11:00 | CN8: 11:06 | CO8: 12:18 | CP8: 12:48 | CQ8: 13:50 | CR8: 00:30 | CS8: 01:12 | CT8: 00:30 | CU8: 01:12 | CV8: 00:30
A9: =IF(LEFT(J9,1)="#","",IF(J9="","",MAX(A$3:A8)+1)) ->  | B9: 10:30:01.369 | H9: kann aus den aktiven Modulen ausgewählt werden. | I9: =IF(LEFT(J9,1)="#",TEXT($N$3 + (ROW(K9)-4)*($O$3/24/60),"hh:mm")& " Uhr",IF(J9="",TEXT($N$3 + (ROW(K9)-4)*($O$3/24/60),"hh:mm")& " Uhr",MAX(I$3:I8)+1)) -> 10:30 Uhr | M9: 6 | T9: Pausen parallel (gemeinsam) | AE9: 5 | AF9: 7 | AO9: 13:36 | AP9: 11:11 | AQ9: 15:18 | AR9: 12:53 | AS9: 16:50 | AT9: 00:35 | AU9: 04:12 | AV9: 00:35 | AW9: 04:12 | AX9: 00:35 | BE9: 5 | BF9: 7 | BK9: 7 | BL9: 5 | BQ9: 9 | BR9: 7 | CA9: 13:36 | CB9: 11:11 | CC9: 15:18 | CD9: 12:53 | CE9: 16:50 | CF9: 00:35 | CG9: 04:12 | CH9: 00:35 | CI9: 04:12 | CJ9: 00:35 | CM9: 11:12 | CN9: 11:11 | CO9: 12:30 | CP9: 12:53 | CQ9: 14:02 | CR9: 00:35 | CS9: 01:24 | CT9: 00:35 | CU9: 01:24 | CV9: 00:35
A10: =IF(LEFT(J10,1)="#","",IF(J10="","",MAX(A$3:A9)+1)) ->  | B10: 11:06:00 | C10: =IF(INDIRECT("J"&AC10,TRUE)="","",INDIRECT("J"&AC10,TRUE)) ->  | D10: =IF(INDIRECT("J"&AD10,TRUE)="","",INDIRECT("J"&AD10,TRUE)) ->  | H10: (Siehe Tabelle "Auswertung", Zellen M16…M24) | I10: =IF(LEFT(J10,1)="#",TEXT($N$3 + (ROW(K10)-4)*($O$3/24/60),"hh:mm")& " Uhr",IF(J10="",TEXT($N$3 + (ROW(K10)-4)*($O$3/24/60),"hh:mm")& " Uhr",MAX(I$3:I9)+1)) -> 10:36 Uhr | M10: 7 | AC10: 10 | AD10: 11 | AE10: 12 | AF10: 14 | AO10: 14:12 | AP10: 11:16 | AQ10: 15:54 | AR10: 12:58 | AS10: 17:26 | AT10: 00:40 | AU10: 04:48 | AV10: 00:40 | AW10: 04:48 | AX10: 00:40 | BC10: =ROW(A10) -> 10 | BD10: =ROW(A10)+1 -> 11 | BE10: 12 | BF10: 14 | BI10: 10 | BJ10: 11 | BK10: 8 | BL10: 6 | BO10: 6 | BP10: 7 | BQ10: 10 | BR10: 8 | CA10: 14:12 | CB10: 11:16 | CC10: 15:54 | CD10: 12:58 | CE10: 17:26 | CF10: 00:40 | CG10: 04:48 | CH10: 00:40 | CI10: 04:48 | CJ10: 00:40 | CM10: 11:24 | CN10: 11:16 | CO10: 12:42 | CP10: 12:58 | CQ10: 14:14 | CR10: 00:40 | CS10: 01:36 | CT10: 00:40 | CU10: 01:36 | CV10: 00:40
A11: =IF(LEFT(J11,1)="#","",IF(J11="","",MAX(A$3:A10)+1)) ->  | B11: 11:12:00.268 | H11: Eine "Doppelauswahl" eines Moduls wird rot markiert. | I11: =IF(LEFT(J11,1)="#",TEXT($N$3 + (ROW(K11)-4)*($O$3/24/60),"hh:mm")& " Uhr",IF(J11="",TEXT($N$3 + (ROW(K11)-4)*($O$3/24/60),"hh:mm")& " Uhr",MAX(I$3:I10)+1)) -> 10:42 Uhr | M11: 8 | AE11: 13 | AF11: 15 | AO11: 14:48 | AP11: 11:21 | AQ11: 16:30 | AR11: 13:03 | AS11: 18:02 | AT11: 00:45 | AU11: 05:24 | AV11: 00:45 | AW11: 05:24 | AX11: 00:45 | BE11: 13 | BF11: 15 | BK11: 9 | BL11: 7 | BQ11: 11 | BR11: 9 | CA11: 14:48 | CB11: 11:21 | CC11: 16:30 | CD11: 13:03 | CE11: 18:02 | CF11: 00:45 | CG11: 05:24 | CH11: 00:45 | CI11: 05:24 | CJ11: 00:45 | CM11: 11:36 | CN11: 11:21 | CO11: 12:54 | CP11: 13:03 | CQ11: 14:26 | CR11: 00:45 | CS11: 01:48 | CT11: 00:45 | CU11: 01:48 | CV11: 00:45
A12: =IF(LEFT(J12,1)="#","",IF(J12="","",MAX(A$3:A11)+1)) ->  | B12: 11:18:00.536 | C12: =IF(INDIRECT("J"&AC12,TRUE)="","",INDIRECT("J"&AC12,TRUE)) ->  | D12: =IF(INDIRECT("J"&AD12,TRUE)="","",INDIRECT("J"&AD12,TRUE)) ->  | I12: =IF(LEFT(J12,1)="#",TEXT($N$3 + (ROW(K12)-4)*($O$3/24/60),"hh:mm")& " Uhr",IF(J12="",TEXT($N$3 + (ROW(K12)-4)*($O$3/24/60),"hh:mm")& " Uhr",MAX(I$3:I11)+1)) -> 10:48 Uhr | M12: 9 | AC12: 12 | AD12: 13 | AE12: 14 | AF12: 10 | AO12: 15:24 | AP12: 11:26 | AQ12: 17:06 | AR12: 13:08 | AS12: 18:38 | AT12: 00:50 | AU12: 06:00 | AV12: 00:50 | AW12: 06:00 | AX12: 00:50 | BC12: =ROW(A12) -> 12 | BD12: =ROW(A12)+1 -> 13 | BE12: 14 | BF12: 10 | BI12: 12 | BJ12: 13 | BK12: 10 | BL12: 8 | BO12: 8 | BP12: 9 | BQ12: 12 | BR12: 10 | CA12: 15:24 | CB12: 11:26 | CC12: 17:06 | CD12: 13:08 | CE12: 18:38 | CF12: 00:50 | CG12: 06:00 | CH12: 00:50 | CI12: 06:00 | CJ12: 00:50 | CM12: 11:48 | CN12: 11:26 | CO12: 13:06 | CP12: 13:08 | CQ12: 14:38 | CR12: 00:50 | CS12: 02:00 | CT12: 00:50 | CU12: 02:00 | CV12: 00:50
A13: =IF(LEFT(J13,1)="#","",IF(J13="","",MAX(A$3:A12)+1)) ->  | B13: 11:24:00.804 | H13: In der Spalte L (L4 … L203) werden per Button | I13: =IF(LEFT(J13,1)="#",TEXT($N$3 + (ROW(K13)-4)*($O$3/24/60),"hh:mm")& " Uhr",IF(J13="",TEXT($N$3 + (ROW(K13)-4)*($O$3/24/60),"hh:mm")& " Uhr",MAX(I$3:I12)+1)) -> 10:54 Uhr | M13: 10 | AE13: 15 | AF13: 11 | AO13: 16:00 | AP13: 11:31 | AQ13: 17:42 | AR13: 13:13 | AS13: 19:14 | AT13: 00:55 | AU13: 06:36 | AV13: 00:55 | AW13: 06:36 | AX13: 00:55 | BE13: 15 | BF13: 11 | BK13: 11 | BL13: 9 | BQ13: 13 | BR13: 11 | CA13: 16:00 | CB13: 11:31 | CC13: 17:42 | CD13: 13:13 | CE13: 19:14 | CF13: 00:55 | CG13: 06:36 | CH13: 00:55 | CI13: 06:36 | CJ13: 00:55 | CM13: 12:00 | CN13: 11:31 | CO13: 13:18 | CP13: 13:13 | CQ13: 14:50 | CR13: 00:55 | CS13: 02:12 | CT13: 00:55 | CU13: 02:12 | CV13: 00:55
A14: =IF(LEFT(J14,1)="#","",IF(J14="","",MAX(A$3:A13)+1)) ->  | B14: 11:30:01.073 | C14: =IF(INDIRECT("J"&AC14,TRUE)="","",INDIRECT("J"&AC14,TRUE)) ->  | D14: =IF(INDIRECT("J"&AD14,TRUE)="","",INDIRECT("J"&AD14,TRUE)) ->  | E14: =IF(INDIRECT("J"&AE14,TRUE)="","",INDIRECT("J"&AE14,TRUE)) ->  | F14: =IF(INDIRECT("J"&AF14,TRUE)="","",INDIRECT("J"&AF14,TRUE)) ->  | H14: [Teilnehmer aus Tabelle Einheiten neu laden] | I14: =IF(LEFT(J14,1)="#",TEXT($N$3 + (ROW(K14)-4)*($O$3/24/60),"hh:mm")& " Uhr",IF(J14="",TEXT($N$3 + (ROW(K14)-4)*($O$3/24/60),"hh:mm")& " Uhr",MAX(I$3:I13)+1)) -> 11:00 Uhr | M14: 11 | AC14: 14 | AD14: 15 | AE14: 10 | AF14: 12 | AO14: 16:36 | AP14: 11:36 | AQ14: 18:18 | AR14: 13:18 | AS14: 19:50 | AT14: 01:00 | AU14: 07:12 | AV14: 01:00 | AW14: 07:12 | AX14: 01:00 | BC14: =ROW(A14) -> 14 | BD14: =ROW(A14)+1 -> 15 | BE14: 10 | BF14: 12 | BI14: 14 | BJ14: 15 | BK14: 12 | BL14: 10 | BO14: 10 | BP14: 11 | BQ14: 14 | BR14: 12 | CA14: 16:36 | CB14: 11:36 | CC14: 18:18 | CD14: 13:18 | CE14: 19:50 | CF14: 01:00 | CG14: 07:12 | CH14: 01:00 | CI14: 07:12 | CJ14: 01:00 | CM14: 12:12 | CN14: 11:36 | CO14: 13:30 | CP14: 13:18 | CQ14: 15:02 | CR14: 01:00 | CS14: 02:24 | CT14: 01:00 | CU14: 02:24 | CV14: 01:00
A15: =IF(LEFT(J15,1)="#","",IF(J15="","",MAX(A$3:A14)+1)) ->  | B15: 11:36:01.341 | H15: der Namen aus der Tabelle "Einheiten" | I15: =IF(LEFT(J15,1)="#",TEXT($N$3 + (ROW(K15)-4)*($O$3/24/60),"hh:mm")& " Uhr",IF(J15="",TEXT($N$3 + (ROW(K15)-4)*($O$3/24/60),"hh:mm")& " Uhr",MAX(I$3:I14)+1)) -> 11:06 Uhr | M15: 12 | AE15: 11 | AF15: 13 | AO15: 17:12 | AP15: 11:41 | AQ15: 18:54 | AR15: 13:23 | AS15: 20:26 | AT15: 01:05 | AU15: 07:48 | AV15: 01:05 | AW15: 07:48 | AX15: 01:05 | BE15: 11 | BF15: 13 | BK15: 13 | BL15: 11 | BQ15: 15 | BR15: 13 | CA15: 17:12 | CB15: 11:41 | CC15: 18:54 | CD15: 13:23 | CE15: 20:26 | CF15: 01:05 | CG15: 07:48 | CH15: 01:05 | CI15: 07:48 | CJ15: 01:05 | CM15: 12:24 | CN15: 11:41 | CO15: 13:42 | CP15: 13:23 | CQ15: 15:14 | CR15: 01:05 | CS15: 02:36 | CT15: 01:05 | CU15: 02:36 | CV15: 01:05
A16: =IF(LEFT(J16,1)="#","",IF(J16="","",MAX(A$3:A15)+1)) ->  | B16: 11:42:01.609 | C16: =IF(INDIRECT("J"&AC16,TRUE)="","",INDIRECT("J"&AC16,TRUE)) ->  | D16: =IF(INDIRECT("J"&AD16,TRUE)="","",INDIRECT("J"&AD16,TRUE)) ->  | H16: in diese Tabelle (Spalte L) kopiert. | I16: =IF(LEFT(J16,1)="#",TEXT($N$3 + (ROW(K16)-4)*($O$3/24/60),"hh:mm")& " Uhr",IF(J16="",TEXT($N$3 + (ROW(K16)-4)*($O$3/24/60),"hh:mm")& " Uhr",MAX(I$3:I15)+1)) -> 11:12 Uhr | M16: 13 | AC16: 16 | AD16: 17 | AE16: 18 | AF16: 20 | AO16: 17:48 | AP16: 11:46 | AQ16: 19:30 | AR16: 13:28 | AS16: 21:02 | AT16: 01:10 | AU16: 08:24 | AV16: 01:10 | AW16: 08:24 | AX16: 01:10 | BC16: =ROW(A16) -> 16 | BD16: =ROW(A16)+1 -> 17 | BE16: 18 | BF16: 20 | BI16: 16 | BJ16: 17 | BK16: 14 | BL16: 12 | BO16: 12 | BP16: 13 | BQ16: 16 | BR16: 14 | CA16: 17:48 | CB16: 11:46 | CC16: 19:30 | CD16: 13:28 | CE16: 21:02 | CF16: 01:10 | CG16: 08:24 | CH16: 01:10 | CI16: 08:24 | CJ16: 01:10 | CM16: 12:36 | CN16: 11:46 | CO16: 13:54 | CP16: 13:28 | CQ16: 15:26 | CR16: 01:10 | CS16: 02:48 | CT16: 01:10 | CU16: 02:48 | CV16: 01:10
A17: =IF(LEFT(J17,1)="#","",IF(J17="","",MAX(A$3:A16)+1)) ->  | B17: 11:48:01.877 | H17: Alternativ können aus einer anderen Liste | I17: =IF(LEFT(J17,1)="#",TEXT($N$3 + (ROW(K17)-4)*($O$3/24/60),"hh:mm")& " Uhr",IF(J17="",TEXT($N$3 + (ROW(K17)-4)*($O$3/24/60),"hh:mm")& " Uhr",MAX(I$3:I16)+1)) -> 11:18 Uhr | M17: 14 | AE17: 19 | AF17: 21 | AO17: 18:24 | AP17: 11:51 | AQ17: 20:06 | AR17: 13:33 | AS17: 21:38 | AT17: 01:15 | AU17: 09:00 | AV17: 01:15 | AW17: 09:00 | AX17: 01:15 | BE17: 19 | BF17: 21 | BK17: 15 | BL17: 13 | BQ17: 17 | BR17: 15 | CA17: 18:24 | CB17: 11:51 | CC17: 20:06 | CD17: 13:33 | CE17: 21:38 | CF17: 01:15 | CG17: 09:00 | CH17: 01:15 | CI17: 09:00 | CJ17: 01:15 | CM17: 12:48 | CN17: 11:51 | CO17: 14:06 | CP17: 13:33 | CQ17: 15:38 | CR17: 01:15 | CS17: 03:00 | CT17: 01:15 | CU17: 03:00 | CV17: 01:15
A18: =IF(LEFT(J18,1)="#","",IF(J18="","",MAX(A$3:A17)+1)) ->  | B18: 11:54:02.145 | C18: =IF(INDIRECT("J"&AC18,TRUE)="","",INDIRECT("J"&AC18,TRUE)) ->  | D18: =IF(INDIRECT("J"&AD18,TRUE)="","",INDIRECT("J"&AD18,TRUE)) ->  | H18: Namen (nur "Werte"!!) hineinkopiert werden. | I18: =IF(LEFT(J18,1)="#",TEXT($N$3 + (ROW(K18)-4)*($O$3/24/60),"hh:mm")& " Uhr",IF(J18="",TEXT($N$3 + (ROW(K18)-4)*($O$3/24/60),"hh:mm")& " Uhr",MAX(I$3:I17)+1)) -> 11:24 Uhr | M18: 15 | AC18: 18 | AD18: 19 | AE18: 20 | AF18: 16 | AO18: 19:00 | AP18: 11:56 | AQ18: 20:42 | AR18: 13:38 | AS18: 22:14 | AT18: 01:20 | AU18: 09:36 | AV18: 01:20 | AW18: 09:36 | AX18: 01:20 | BC18: =ROW(A18) -> 18 | BD18: =ROW(A18)+1 -> 19 | BE18: 20 | BF18: 16 | BI18: 18 | BJ18: 19 | BK18: 16 | BL18: 14 | BO18: 14 | BP18: 15 | BQ18: 18 | BR18: 16 | CA18: 19:00 | CB18: 11:56 | CC18: 20:42 | CD18: 13:38 | CE18: 22:14 | CF18: 01:20 | CG18: 09:36 | CH18: 01:20 | CI18: 09:36 | CJ18: 01:20 | CM18: 13:00 | CN18: 11:56 | CO18: 14:18 | CP18: 13:38 | CQ18: 15:50 | CR18: 01:20 | CS18: 03:12 | CT18: 01:20 | CU18: 03:12 | CV18: 01:20
A19: =IF(LEFT(J19,1)="#","",IF(J19="","",MAX(A$3:A18)+1)) ->  | B19: 12:00:02.413 | I19: =IF(LEFT(J19,1)="#",TEXT($N$3 + (ROW(K19)-4)*($O$3/24/60),"hh:mm")& " Uhr",IF(J19="",TEXT($N$3 + (ROW(K19)-4)*($O$3/24/60),"hh:mm")& " Uhr",MAX(I$3:I18)+1)) -> 11:30 Uhr | M19: 16 | AE19: 21 | AF19: 17 | AO19: 19:36 | AP19: =IF($CA$1=1,CB19,CN19) -> 12:01 | AQ19: =IF($CA$1=1,CC19,CO19) -> 21:18 | AR19: =IF($CA$1=1,CD19,CP19) -> 13:43 | AS19: =IF($CA$1=1,CE19,CQ19) -> 22:50 | AT19: =IF($CA$1=1,CF19,CR19) -> 01:25 | AU19: =IF($CA$1=1,CG19,CS19) -> 10:12 | AV19: =IF($CA$1=1,CH19,CT19) -> 01:25 | AW19: =IF($CA$1=1,CI19,CU19) -> 10:12 | AX19: =IF($CA$1=1,CJ19,CV19) -> 01:25 | BE19: 21 | BF19: 17 | BK19: 17 | BL19: 15 | BQ19: 19 | BR19: 17 | CA19: 19:36 | CB19: 12:01 | CC19: 21:18 | CD19: 13:43 | CE19: 22:50 | CF19: 01:25 | CG19: 10:12 | CH19: 01:25 | CI19: 10:12 | CJ19: 01:25 | CM19: 13:12 | CN19: 12:01 | CO19: 14:30 | CP19: 13:43 | CQ19: 16:02 | CR19: 01:25 | CS19: 03:24 | CT19: 01:25 | CU19: 03:24 | CV19: 01:25
A20: =IF(LEFT(J20,1)="#","",IF(J20="","",MAX(A$3:A19)+1)) ->  | B20: 12:06:02.681 | C20: =IF(INDIRECT("J"&AC20,TRUE)="","",INDIRECT("J"&AC20,TRUE)) ->  | D20: =IF(INDIRECT("J"&AD20,TRUE)="","",INDIRECT("J"&AD20,TRUE)) ->  | H20: In der Spalte J (J4….J203) werden die Einträge | I20: =IF(LEFT(J20,1)="#",TEXT($N$3 + (ROW(K20)-4)*($O$3/24/60),"hh:mm")& " Uhr",IF(J20="",TEXT($N$3 + (ROW(K20)-4)*($O$3/24/60),"hh:mm")& " Uhr",MAX(I$3:I19)+1)) -> 11:36 Uhr | M20: 17 | AC20: 20 | AD20: 21 | AE20: 16 | AF20: 18 | AO20: 20:12 | AP20: 12:06 | AQ20: 21:54 | AR20: 13:48 | AS20: 23:26 | AT20: 01:30 | AU20: 10:48 | AV20: 01:30 | AW20: 10:48 | AX20: 01:30 | BC20: =ROW(A20) -> 20 | BD20: =ROW(A20)+1 -> 21 | BE20: 16 | BF20: 18 | BI20: 20 | BJ20: 21 | BK20: 18 | BL20: 16 | BO20: 16 | BP20: 17 | BQ20: 20 | BR20: 18 | CA20: 20:12 | CB20: 12:06 | CC20: 21:54 | CD20: 13:48 | CE20: 23:26 | CF20: 01:30 | CG20: 10:48 | CH20: 01:30 | CI20: 10:48 | CJ20: 01:30 | CM20: 13:24 | CN20: 12:06 | CO20: 14:42 | CP20: 13:48 | CQ20: 16:14 | CR20: 01:30 | CS20: 03:36 | CT20: 01:30 | CU20: 03:36 | CV20: 01:30
A21: =IF(LEFT(J21,1)="#","",IF(J21="","",MAX(A$3:A20)+1)) ->  | B21: 12:12:02.949 | H21: gelöscht (alle markieren, Taste [Entf] oder Makro). | I21: =IF(LEFT(J21,1)="#",TEXT($N$3 + (ROW(K21)-4)*($O$3/24/60),"hh:mm")& " Uhr",IF(J21="",TEXT($N$3 + (ROW(K21)-4)*($O$3/24/60),"hh:mm")& " Uhr",MAX(I$3:I20)+1)) -> 11:42 Uhr | M21: 18 | AE21: 17 | AF21: 19 | AO21: 20:48 | AP21: 12:11 | AQ21: 22:30 | AR21: 13:53 | AS21: 00:02 | AT21: 01:35 | AU21: 11:24 | AV21: 01:35 | AW21: 11:24 | AX21: 01:35 | BE21: 17 | BF21: 19 | BK21: 19 | BL21: 17 | BQ21: 21 | BR21: 19 | CA21: 20:48 | CB21: 12:11 | CC21: 22:30 | CD21: 13:53 | CE21: 00:02 | CF21: 01:35 | CG21: 11:24 | CH21: 01:35 | CI21: 11:24 | CJ21: 01:35 | CM21: 13:36 | CN21: 12:11 | CO21: 14:54 | CP21: 13:53 | CQ21: 16:26 | CR21: 01:35 | CS21: 03:48 | CT21: 01:35 | CU21: 03:48 | CV21: 01:35
A22: =IF(LEFT(J22,1)="#","",IF(J22="","",MAX(A$3:A21)+1)) ->  | B22: 12:38:00.010 | C22: =IF(INDIRECT("J"&AC22,TRUE)="","",INDIRECT("J"&AC22,TRUE)) ->  | D22: =IF(INDIRECT("J"&AD22,TRUE)="","",INDIRECT("J"&AD22,TRUE)) ->  | H22: Alternativ wird bei der Übernahme der Daten aus | I22: =IF(LEFT(J22,1)="#",TEXT($N$3 + (ROW(K22)-4)*($O$3/24/60),"hh:mm")& " Uhr",IF(J22="",TEXT($N$3 + (ROW(K22)-4)*($O$3/24/60),"hh:mm")& " Uhr",MAX(I$3:I21)+1)) -> 11:48 Uhr | M22: 19 | AC22: 22 | AD22: 23 | AE22: 24 | AF22: 26 | AO22: 21:24 | AP22: 12:16 | AQ22: 23:06 | AR22: 13:58 | AS22: 00:38 | AT22: 01:40 | AU22: 12:00 | AV22: 01:40 | AW22: 12:00 | AX22: 01:40 | BC22: =ROW(A22) -> 22 | BD22: =ROW(A22)+1 -> 23 | BE22: 24 | BF22: 26 | BI22: 22 | BJ22: 23 | BK22: 20 | BL22: 18 | BO22: 18 | BP22: 19 | BQ22: 22 | BR22: 20 | CA22: 21:24 | CB22: 12:16 | CC22: 23:06 | CD22: 13:58 | CE22: 00:38 | CF22: 01:40 | CG22: 12:00 | CH22: 01:40 | CI22: 12:00 | CJ22: 01:40 | CM22: 13:48 | CN22: 12:16 | CO22: 15:06 | CP22: 13:58 | CQ22: 16:38 | CR22: 01:40 | CS22: 04:00 | CT22: 01:40 | CU22: 04:00 | CV22: 01:40
A23: =IF(LEFT(J23,1)="#","",IF(J23="","",MAX(A$3:A22)+1)) ->  | B23: 12:44:00.278 | H23: Tabelle "Einheiten" abgefragt, ob die Spalte J | I23: =IF(LEFT(J23,1)="#",TEXT($N$3 + (ROW(K23)-4)*($O$3/24/60),"hh:mm")& " Uhr",IF(J23="",TEXT($N$3 + (ROW(K23)-4)*($O$3/24/60),"hh:mm")& " Uhr",MAX(I$3:I22)+1)) -> 11:54 Uhr | M23: 20 | AE23: 25 | AF23: 27 | AO23: 22:00 | AP23: 12:21 | AQ23: 23:42 | AR23: 14:03 | AS23: 01:14 | AT23: 01:45 | AU23: 12:36 | AV23: 01:45 | AW23: 12:36 | AX23: 01:45 | BE23: 25 | BF23: 27 | BK23: 21 | BL23: 19 | BQ23: 23 | BR23: 21 | CA23: 22:00 | CB23: 12:21 | CC23: 23:42 | CD23: 14:03 | CE23: 01:14 | CF23: 01:45 | CG23: 12:36 | CH23: 01:45 | CI23: 12:36 | CJ23: 01:45 | CM23: 14:00 | CN23: 12:21 | CO23: 15:18 | CP23: 14:03 | CQ23: 16:50 | CR23: 01:45 | CS23: 04:12 | CT23: 01:45 | CU23: 04:12 | CV23: 01:45
A24: =IF(LEFT(J24,1)="#","",IF(J24="","",MAX(A$3:A23)+1)) ->  | B24: 12:50:00.546 | C24: =IF(INDIRECT("J"&AC24,TRUE)="","",INDIRECT("J"&AC24,TRUE)) ->  | D24: =IF(INDIRECT("J"&AD24,TRUE)="","",INDIRECT("J"&AD24,TRUE)) ->  | H24: gelöscht werden sollen. | I24: =IF(LEFT(J24,1)="#",TEXT($N$3 + (ROW(K24)-4)*($O$3/24/60),"hh:mm")& " Uhr",IF(J24="",TEXT($N$3 + (ROW(K24)-4)*($O$3/24/60),"hh:mm")& " Uhr",MAX(I$3:I23)+1)) -> 12:00 Uhr | M24: 21 | AC24: 24 | AD24: 25 | AE24: 26 | AF24: 22 | AO24: 22:36 | AP24: 12:26 | AQ24: 00:18 | AR24: 14:08 | AS24: 01:50 | AT24: 01:50 | AU24: 13:12 | AV24: 01:50 | AW24: 13:12 | AX24: 01:50 | BC24: =ROW(A24) -> 24 | BD24: =ROW(A24)+1 -> 25 | BE24: 26 | BF24: 22 | BI24: 24 | BJ24: 25 | BK24: 22 | BL24: 20 | BO24: 20 | BP24: 21 | BQ24: 24 | BR24: 22 | CA24: 22:36 | CB24: 12:26 | CC24: 00:18 | CD24: 14:08 | CE24: 01:50 | CF24: 01:50 | CG24: 13:12 | CH24: 01:50 | CI24: 13:12 | CJ24: 01:50 | CM24: 14:12 | CN24: 12:26 | CO24: 15:30 | CP24: 14:08 | CQ24: 17:02 | CR24: 01:50 | CS24: 04:24 | CT24: 01:50 | CU24: 04:24 | CV24: 01:50
A25: =IF(LEFT(J25,1)="#","",IF(J25="","",MAX(A$3:A24)+1)) ->  | B25: 12:56:00.814 | I25: =IF(LEFT(J25,1)="#",TEXT($N$3 + (ROW(K25)-4)*($O$3/24/60),"hh:mm")& " Uhr",IF(J25="",TEXT($N$3 + (ROW(K25)-4)*($O$3/24/60),"hh:mm")& " Uhr",MAX(I$3:I24)+1)) -> 12:06 Uhr | M25: 22 | AE25: 27 | AF25: 23 | AO25: 23:12 | AP25: 12:31 | AQ25: 00:54 | AR25: 14:13 | AS25: 02:26 | AT25: 01:55 | AU25: 13:48 | AV25: 01:55 | AW25: 13:48 | AX25: 01:55 | BE25: 27 | BF25: 23 | BK25: 23 | BL25: 21 | BQ25: 25 | BR25: 23 | CA25: 23:12 | CB25: 12:31 | CC25: 00:54 | CD25: 14:13 | CE25: 02:26 | CF25: 01:55 | CG25: 13:48 | CH25: 01:55 | CI25: 13:48 | CJ25: 01:55 | CM25: 14:24 | CN25: 12:31 | CO25: 15:42 | CP25: 14:13 | CQ25: 17:14 | CR25: 01:55 | CS25: 04:36 | CT25: 01:55 | CU25: 04:36 | CV25: 01:55
A26: =IF(LEFT(J26,1)="#","",IF(J26="","",MAX(A$3:A25)+1)) ->  | B26: 13:02:01.082 | C26: =IF(INDIRECT("J"&AC26,TRUE)="","",INDIRECT("J"&AC26,TRUE)) ->  | D26: =IF(INDIRECT("J"&AD26,TRUE)="","",INDIRECT("J"&AD26,TRUE)) ->  | E26: =IF(INDIRECT("J"&AE26,TRUE)="","",INDIRECT("J"&AE26,TRUE)) ->  | F26: =IF(INDIRECT("J"&AF26,TRUE)="","",INDIRECT("J"&AF26,TRUE)) ->  | H26: Die erste Startzeit wird in Zelle N3 eingestellt, | I26: =IF(LEFT(J26,1)="#",TEXT($N$3 + (ROW(K26)-4)*($O$3/24/60),"hh:mm")& " Uhr",IF(J26="",TEXT($N$3 + (ROW(K26)-4)*($O$3/24/60),"hh:mm")& " Uhr",MAX(I$3:I25)+1)) -> 12:12 Uhr | M26: 23 | AC26: 26 | AD26: 27 | AE26: 22 | AF26: 24 | AO26: 23:48 | AP26: 12:36 | AQ26: 01:30 | AR26: 14:18 | AS26: 03:02 | AT26: 02:00 | AU26: 14:24 | AV26: 02:00 | AW26: 14:24 | AX26: 02:00 | BC26: =ROW(A26) -> 26 | BD26: =ROW(A26)+1 -> 27 | BE26: 22 | BF26: 24 | BI26: 26 | BJ26: 27 | BK26: 24 | BL26: 22 | BO26: 22 | BP26: 23 | BQ26: 26 | BR26: 24 | CA26: 23:48 | CB26: 12:36 | CC26: 01:30 | CD26: 14:18 | CE26: 03:02 | CF26: 02:00 | CG26: 14:24 | CH26: 02:00 | CI26: 14:24 | CJ26: 02:00 | CM26: 14:36 | CN26: 12:36 | CO26: 15:54 | CP26: 14:18 | CQ26: 17:26 | CR26: 02:00 | CS26: 04:48 | CT26: 02:00 | CU26: 04:48 | CV26: 02:00
A27: =IF(LEFT(J27,1)="#","",IF(J27="","",MAX(A$3:A26)+1)) ->  | B27: 13:08:01.350 | H27: die "Intervallzeit" zwischen zwei Modulen in O3. | I27: =IF(LEFT(J27,1)="#",TEXT($N$3 + (ROW(K27)-4)*($O$3/24/60),"hh:mm")& " Uhr",IF(J27="",TEXT($N$3 + (ROW(K27)-4)*($O$3/24/60),"hh:mm")& " Uhr",MAX(I$3:I26)+1)) -> 12:18 Uhr | M27: 24 | AE27: 23 | AF27: 25 | AO27: 00:24 | AP27: 12:41 | AQ27: 02:06 | AR27: 14:23 | AS27: 03:38 | AT27: 02:05 | AU27: 15:00 | AV27: 02:05 | AW27: 15:00 | AX27: 02:05 | BE27: 23 | BF27: 25 | BK27: 25 | BL27: 23 | BQ27: 27 | BR27: 25 | CA27: 00:24 | CB27: 12:41 | CC27: 02:06 | CD27: 14:23 | CE27: 03:38 | CF27: 02:05 | CG27: 15:00 | CH27: 02:05 | CI27: 15:00 | CJ27: 02:05 | CM27: 14:48 | CN27: 12:41 | CO27: 16:06 | CP27: 14:23 | CQ27: 17:38 | CR27: 02:05 | CS27: 05:00 | CT27: 02:05 | CU27: 05:00 | CV27: 02:05
A28: =IF(LEFT(J28,1)="#","",IF(J28="","",MAX(A$3:A27)+1)) ->  | B28: 13:14:01.618 | C28: =IF(INDIRECT("J"&AC28,TRUE)="","",INDIRECT("J"&AC28,TRUE)) ->  | D28: =IF(INDIRECT("J"&AD28,TRUE)="","",INDIRECT("J"&AD28,TRUE)) ->  | H28: Eine Intervallzeit von 6 Minuten ist sinnvoll. | I28: =IF(LEFT(J28,1)="#",TEXT($N$3 + (ROW(K28)-4)*($O$3/24/60),"hh:mm")& " Uhr",IF(J28="",TEXT($N$3 + (ROW(K28)-4)*($O$3/24/60),"hh:mm")& " Uhr",MAX(I$3:I27)+1)) -> 12:24 Uhr | M28: 25 | AC28: 28 | AD28: 29 | AE28: 30 | AF28: 32 | AO28: 01:00 | AP28: 12:46 | AQ28: 02:42 | AR28: 14:28 | AS28: 04:14 | AT28: 02:10 | AU28: 15:36 | AV28: 02:10 | AW28: 15:36 | AX28: 02:10 | BC28: =ROW(A28) -> 28 | BD28: =ROW(A28)+1 -> 29 | BE28: 30 | BF28: 32 | BI28: 28 | BJ28: 29 | BK28: 26 | BL28: 24 | BO28: 24 | BP28: 25 | BQ28: 28 | BR28: 26 | CA28: 01:00 | CB28: 12:46 | CC28: 02:42 | CD28: 14:28 | CE28: 04:14 | CF28: 02:10 | CG28: 15:36 | CH28: 02:10 | CI28: 15:36 | CJ28: 02:10 | CM28: 15:00 | CN28: 12:46 | CO28: 16:18 | CP28: 14:28 | CQ28: 17:50 | CR28: 02:10 | CS28: 05:12 | CT28: 02:10 | CU28: 05:12 | CV28: 02:10
A29: =IF(LEFT(J29,1)="#","",IF(J29="","",MAX(A$3:A28)+1)) ->  | B29: 13:20:01.886 | I29: =IF(LEFT(J29,1)="#",TEXT($N$3 + (ROW(K29)-4)*($O$3/24/60),"hh:mm")& " Uhr",IF(J29="",TEXT($N$3 + (ROW(K29)-4)*($O$3/24/60),"hh:mm")& " Uhr",MAX(I$3:I28)+1)) -> 12:30 Uhr | M29: 26 | AE29: 31 | AF29: 33 | AO29: 01:36 | AP29: 12:51 | AQ29: 03:18 | AR29: 14:33 | AS29: 04:50 | AT29: 02:15 | AU29: 16:12 | AV29: 02:15 | AW29: 16:12 | AX29: 02:15 | BE29: 31 | BF29: 33 | BK29: 27 | BL29: 25 | BQ29: 29 | BR29: 27 | CA29: 01:36 | CB29: 12:51 | CC29: 03:18 | CD29: 14:33 | CE29: 04:50 | CF29: 02:15 | CG29: 16:12 | CH29: 02:15 | CI29: 16:12 | CJ29: 02:15 | CM29: 15:12 | CN29: 12:51 | CO29: 16:30 | CP29: 14:33 | CQ29: 18:02 | CR29: 02:15 | CS29: 05:24 | CT29: 02:15 | CU29: 05:24 | CV29: 02:15
A30: =IF(LEFT(J30,1)="#","",IF(J30="","",MAX(A$3:A29)+1)) ->  | B30: 13:26:02.155 | C30: =IF(INDIRECT("J"&AC30,TRUE)="","",INDIRECT("J"&AC30,TRUE)) ->  | D30: =IF(INDIRECT("J"&AD30,TRUE)="","",INDIRECT("J"&AD30,TRUE)) ->  | H30: In Zelle N6 kann die Reihenfolge der Module | I30: =IF(LEFT(J30,1)="#",TEXT($N$3 + (ROW(K30)-4)*($O$3/24/60),"hh:mm")& " Uhr",IF(J30="",TEXT($N$3 + (ROW(K30)-4)*($O$3/24/60),"hh:mm")& " Uhr",MAX(I$3:I29)+1)) -> 12:36 Uhr | M30: 27 | AC30: 30 | AD30: 31 | AE30: 32 | AF30: 28 | AO30: 02:12 | AP30: 12:56 | AQ30: 03:54 | AR30: 14:38 | AS30: 05:26 | AT30: 02:20 | AU30: 16:48 | AV30: 02:20 | AW30: 16:48 | AX30: 02:20 | BC30: =ROW(A30) -> 30 | BD30: =ROW(A30)+1 -> 31 | BE30: 32 | BF30: 28 | BI30: 30 | BJ30: 31 | BK30: 28 | BL30: 26 | BO30: 26 | BP30: 27 | BQ30: 30 | BR30: 28 | CA30: 02:12 | CB30: 12:56 | CC30: 03:54 | CD30: 14:38 | CE30: 05:26 | CF30: 02:20 | CG30: 16:48 | CH30: 02:20 | CI30: 16:48 | CJ30: 02:20 | CM30: 15:24 | CN30: 12:56 | CO30: 16:42 | CP30: 14:38 | CQ30: 18:14 | CR30: 02:20 | CS30: 05:36 | CT30: 02:20 | CU30: 05:36 | CV30: 02:20
A31: =IF(LEFT(J31,1)="#","",IF(J31="","",MAX(A$3:A30)+1)) ->  | B31: 13:32:02.423 | H31: eingestellt werden: | I31: =IF(LEFT(J31,1)="#",TEXT($N$3 + (ROW(K31)-4)*($O$3/24/60),"hh:mm")& " Uhr",IF(J31="",TEXT($N$3 + (ROW(K31)-4)*($O$3/24/60),"hh:mm")& " Uhr",MAX(I$3:I30)+1)) -> 12:42 Uhr | M31: 28 | AE31: 33 | AF31: 29 | AO31: 02:48 | AP31: 13:01 | AQ31: 04:30 | AR31: 14:43 | AS31: 06:02 | AT31: 02:25 | AU31: 17:24 | AV31: 02:25 | AW31: 17:24 | AX31: 02:25 | BE31: 33 | BF31: 29 | BK31: 29 | BL31: 27 | BQ31: 31 | BR31: 29 | CA31: 02:48 | CB31: 13:01 | CC31: 04:30 | CD31: 14:43 | CE31: 06:02 | CF31: 02:25 | CG31: 17:24 | CH31: 02:25 | CI31: 17:24 | CJ31: 02:25 | CM31: 15:36 | CN31: 13:01 | CO31: 16:54 | CP31: 14:43 | CQ31: 18:26 | CR31: 02:25 | CS31: 05:48 | CT31: 02:25 | CU31: 05:48 | CV31: 02:25
A32: =IF(LEFT(J32,1)="#","",IF(J32="","",MAX(A$3:A31)+1)) ->  | B32: 13:38:02.691 | C32: =IF(INDIRECT("J"&AC32,TRUE)="","",INDIRECT("J"&AC32,TRUE)) ->  | D32: =IF(INDIRECT("J"&AD32,TRUE)="","",INDIRECT("J"&AD32,TRUE)) ->  | H32: - Ablauffolge "parallel" = Sechs Einheiten starten | I32: =IF(LEFT(J32,1)="#",TEXT($N$3 + (ROW(K32)-4)*($O$3/24/60),"hh:mm")& " Uhr",IF(J32="",TEXT($N$3 + (ROW(K32)-4)*($O$3/24/60),"hh:mm")& " Uhr",MAX(I$3:I31)+1)) -> 12:48 Uhr | M32: 29 | AC32: 32 | AD32: 33 | AE32: 28 | AF32: 30 | AO32: 03:24 | AP32: 13:06 | AQ32: 05:06 | AR32: 14:48 | AS32: 06:38 | AT32: 02:30 | AU32: 18:00 | AV32: 02:30 | AW32: 18:00 | AX32: 02:30 | BC32: =ROW(A32) -> 32 | BD32: =ROW(A32)+1 -> 33 | BE32: 28 | BF32: 30 | BI32: 32 | BJ32: 33 | BK32: 30 | BL32: 28 | BO32: 28 | BP32: 29 | BQ32: 32 | BR32: 30 | CA32: 03:24 | CB32: 13:06 | CC32: 05:06 | CD32: 14:48 | CE32: 06:38 | CF32: 02:30 | CG32: 18:00 | CH32: 02:30 | CI32: 18:00 | CJ32: 02:30 | CM32: 15:48 | CN32: 13:06 | CO32: 17:06 | CP32: 14:48 | CQ32: 18:38 | CR32: 02:30 | CS32: 06:00 | CT32: 02:30 | CU32: 06:00 | CV32: 02:30
A33: =IF(LEFT(J33,1)="#","",IF(J33="","",MAX(A$3:A32)+1)) ->  | B33: 13:44:02.959 | H33: gemeinsam und "rotieren" zwischen den Modulen, | I33: =IF(LEFT(J33,1)="#",TEXT($N$3 + (ROW(K33)-4)*($O$3/24/60),"hh:mm")& " Uhr",IF(J33="",TEXT($N$3 + (ROW(K33)-4)*($O$3/24/60),"hh:mm")& " Uhr",MAX(I$3:I32)+1)) -> 12:54 Uhr | M33: 30 | AE33: 29 | AF33: 31 | AO33: 04:00 | AP33: 13:11 | AQ33: 05:42 | AR33: 14:53 | AS33: 07:14 | AT33: 02:35 | AU33: 18:36 | AV33: 02:35 | AW33: 18:36 | AX33: 02:35 | BE33: 29 | BF33: 31 | BK33: 31 | BL33: 29 | BQ33: 33 | BR33: 31 | CA33: 04:00 | CB33: 13:11 | CC33: 05:42 | CD33: 14:53 | CE33: 07:14 | CF33: 02:35 | CG33: 18:36 | CH33: 02:35 | CI33: 18:36 | CJ33: 02:35 | CM33: 16:00 | CN33: 13:11 | CO33: 17:18 | CP33: 14:53 | CQ33: 18:50 | CR33: 02:35 | CS33: 06:12 | CT33: 02:35 | CU33: 06:12 | CV33: 02:35
A34: =IF(LEFT(J34,1)="#","",IF(J34="","",MAX(A$3:A33)+1)) ->  | B34: 13:50:03.227 | C34: =IF(INDIRECT("J"&AC34,TRUE)="","",INDIRECT("J"&AC34,TRUE)) ->  | D34: =IF(INDIRECT("J"&AD34,TRUE)="","",INDIRECT("J"&AD34,TRUE)) ->  | H34: danach starten die nächsten 6 Einheiten. | I34: =IF(LEFT(J34,1)="#",TEXT($N$3 + (ROW(K34)-4)*($O$3/24/60),"hh:mm")& " Uhr",IF(J34="",TEXT($N$3 + (ROW(K34)-4)*($O$3/24/60),"hh:mm")& " Uhr",MAX(I$3:I33)+1)) -> 13:00 Uhr | M34: 31 | AC34: 34 | AD34: 35 | AE34: 36 | AF34: 38 | AO34: 04:36 | AP34: 13:16 | AQ34: 06:18 | AR34: 14:58 | AS34: 07:50 | AT34: 02:40 | AU34: 19:12 | AV34: 02:40 | AW34: 19:12 | AX34: 02:40 | BC34: =ROW(A34) -> 34 | BD34: =ROW(A34)+1 -> 35 | BE34: 36 | BF34: 38 | BI34: 34 | BJ34: 35 | BK34: 32 | BL34: 30 | BO34: 30 | BP34: 31 | BQ34: 34 | BR34: 32 | CA34: 04:36 | CB34: 13:16 | CC34: 06:18 | CD34: 14:58 | CE34: 07:50 | CF34: 02:40 | CG34: 19:12 | CH34: 02:40 | CI34: 19:12 | CJ34: 02:40 | CM34: 16:12 | CN34: 13:16 | CO34: 17:30 | CP34: 14:58 | CQ34: 19:02 | CR34: 02:40 | CS34: 06:24 | CT34: 02:40 | CU34: 06:24 | CV34: 02:40
A35: =IF(LEFT(J35,1)="#","",IF(J35="","",MAX(A$3:A34)+1)) ->  | B35: 13:56:03.495 | H35: - Ablauffolge "Seriell 1 (Löschangriff zuerst)" = | I35: =IF(LEFT(J35,1)="#",TEXT($N$3 + (ROW(K35)-4)*($O$3/24/60),"hh:mm")& " Uhr",IF(J35="",TEXT($N$3 + (ROW(K35)-4)*($O$3/24/60),"hh:mm")& " Uhr",MAX(I$3:I34)+1)) -> 13:06 Uhr | M35: 32 | AE35: 37 | AF35: 39 | AO35: 05:12 | AP35: 13:21 | AQ35: 06:54 | AR35: 15:03 | AS35: 08:26 | AT35: 02:45 | AU35: 19:48 | AV35: 02:45 | AW35: 19:48 | AX35: 02:45 | BE35: 37 | BF35: 39 | BK35: 33 | BL35: 31 | BQ35: 35 | BR35: 33 | CA35: 05:12 | CB35: 13:21 | CC35: 06:54 | CD35: 15:03 | CE35: 08:26 | CF35: 02:45 | CG35: 19:48 | CH35: 02:45 | CI35: 19:48 | CJ35: 02:45 | CM35: 16:24 | CN35: 13:21 | CO35: 17:42 | CP35: 15:03 | CQ35: 19:14 | CR35: 02:45 | CS35: 06:36 | CT35: 02:45 | CU35: 06:36 | CV35: 02:45
A36: =IF(LEFT(J36,1)="#","",IF(J36="","",MAX(A$3:A35)+1)) ->  | B36: 14:02:03.763 | C36: =IF(INDIRECT("J"&AC36,TRUE)="","",INDIRECT("J"&AC36,TRUE)) ->  | D36: =IF(INDIRECT("J"&AD36,TRUE)="","",INDIRECT("J"&AD36,TRUE)) ->  | H36: Eine Einheit durchläuft die drei Module | I36: =IF(LEFT(J36,1)="#",TEXT($N$3 + (ROW(K36)-4)*($O$3/24/60),"hh:mm")& " Uhr",IF(J36="",TEXT($N$3 + (ROW(K36)-4)*($O$3/24/60),"hh:mm")& " Uhr",MAX(I$3:I35)+1)) -> 13:12 Uhr | M36: 33 | AC36: 36 | AD36: 37 | AE36: 38 | AF36: 34 | AO36: 05:48 | AP36: 13:26 | AQ36: 07:30 | AR36: 15:08 | AS36: 09:02 | AT36: 02:50 | AU36: 20:24 | AV36: 02:50 | AW36: 20:24 | AX36: 02:50 | BC36: =ROW(A36) -> 36 | BD36: =ROW(A36)+1 -> 37 | BE36: 38 | BF36: 34 | BI36: 36 | BJ36: 37 | BK36: 34 | BL36: 32 | BO36: 32 | BP36: 33 | BQ36: 36 | BR36: 34 | CA36: 05:48 | CB36: 13:26 | CC36: 07:30 | CD36: 15:08 | CE36: 09:02 | CF36: 02:50 | CG36: 20:24 | CH36: 02:50 | CI36: 20:24 | CJ36: 02:50 | CM36: 16:36 | CN36: 13:26 | CO36: 17:54 | CP36: 15:08 | CQ36: 19:26 | CR36: 02:50 | CS36: 06:48 | CT36: 02:50 | CU36: 06:48 | CV36: 02:50
A37: =IF(LEFT(J37,1)="#","",IF(J37="","",MAX(A$3:A36)+1)) ->  | B37: 14:08:04.032 | H37: nacheinander. Begonnen wird mit "Löschangriff" | I37: =IF(LEFT(J37,1)="#",TEXT($N$3 + (ROW(K37)-4)*($O$3/24/60),"hh:mm")& " Uhr",IF(J37="",TEXT($N$3 + (ROW(K37)-4)*($O$3/24/60),"hh:mm")& " Uhr",MAX(I$3:I36)+1)) -> 13:18 Uhr | M37: 34 | AE37: 39 | AF37: 35 | BE37: 39 | BF37: 35 | BK37: 35 | BL37: 33 | BQ37: 37 | BR37: 35
A38: =IF(LEFT(J38,1)="#","",IF(J38="","",MAX(A$3:A37)+1)) ->  | B38: 14:14:04.300 | C38: =IF(INDIRECT("J"&AC38,TRUE)="","",INDIRECT("J"&AC38,TRUE)) ->  | D38: =IF(INDIRECT("J"&AD38,TRUE)="","",INDIRECT("J"&AD38,TRUE)) ->  | H38: - Ablauffolge "Seriell 2 (Löschangriff zuletzt) = | I38: =IF(LEFT(J38,1)="#",TEXT($N$3 + (ROW(K38)-4)*($O$3/24/60),"hh:mm")& " Uhr",IF(J38="",TEXT($N$3 + (ROW(K38)-4)*($O$3/24/60),"hh:mm")& " Uhr",MAX(I$3:I37)+1)) -> 13:24 Uhr | M38: 35 | AC38: 38 | AD38: 39 | AE38: 34 | AF38: 36 | BC38: =ROW(A38) -> 38 | BD38: =ROW(A38)+1 -> 39 | BE38: 34 | BF38: 36 | BI38: 38 | BJ38: 39 | BK38: 36 | BL38: 34 | BO38: 34 | BP38: 35 | BQ38: 38 | BR38: 36
A39: =IF(LEFT(J39,1)="#","",IF(J39="","",MAX(A$3:A38)+1)) ->  | B39: 14:20:04.568 | H39: Eine Einheit durchläuft die drei Module | I39: =IF(LEFT(J39,1)="#",TEXT($N$3 + (ROW(K39)-4)*($O$3/24/60),"hh:mm")& " Uhr",IF(J39="",TEXT($N$3 + (ROW(K39)-4)*($O$3/24/60),"hh:mm")& " Uhr",MAX(I$3:I38)+1)) -> 13:30 Uhr | M39: 36 | AE39: 35 | AF39: 37 | BE39: 35 | BF39: 37 | BK39: 37 | BL39: 35 | BQ39: 39 | BR39: 37
A40: =IF(LEFT(J40,1)="#","",IF(J40="","",MAX(A$3:A39)+1)) ->  | B40: 14:26:04.836 | C40: =IF(INDIRECT("J"&AC40,TRUE)="","",INDIRECT("J"&AC40,TRUE)) ->  | D40: =IF(INDIRECT("J"&AD40,TRUE)="","",INDIRECT("J"&AD40,TRUE)) ->  | H40: nacheinander. Begonnen wird mit "Fahrübung" | I40: =IF(LEFT(J40,1)="#",TEXT($N$3 + (ROW(K40)-4)*($O$3/24/60),"hh:mm")& " Uhr",IF(J40="",TEXT($N$3 + (ROW(K40)-4)*($O$3/24/60),"hh:mm")& " Uhr",MAX(I$3:I39)+1)) -> 13:36 Uhr | M40: 37 | AC40: 40 | AD40: 41 | AE40: 42 | AF40: 44 | BC40: =ROW(A40) -> 40 | BD40: =ROW(A40)+1 -> 41 | BE40: 42 | BF40: 44 | BI40: 40 | BJ40: 41 | BK40: 38 | BL40: 36 | BO40: 36 | BP40: 37 | BQ40: 40 | BR40: 38
A41: =IF(LEFT(J41,1)="#","",IF(J41="","",MAX(A$3:A40)+1)) ->  | B41: 14:32:05.104 | H41: oder "Saugleitung" (einstellbar in Zelle E3 und F3) | I41: =IF(LEFT(J41,1)="#",TEXT($N$3 + (ROW(K41)-4)*($O$3/24/60),"hh:mm")& " Uhr",IF(J41="",TEXT($N$3 + (ROW(K41)-4)*($O$3/24/60),"hh:mm")& " Uhr",MAX(I$3:I40)+1)) -> 13:42 Uhr | M41: 38 | AE41: 43 | AF41: 45 | BE41: 43 | BF41: 45 | BK41: 39 | BL41: 37 | BQ41: 41 | BR41: 39
A42: =IF(LEFT(J42,1)="#","",IF(J42="","",MAX(A$3:A41)+1)) ->  | B42: 14:38:05.372 | C42: =IF(INDIRECT("J"&AC42,TRUE)="","",INDIRECT("J"&AC42,TRUE)) ->  | D42: =IF(INDIRECT("J"&AD42,TRUE)="","",INDIRECT("J"&AD42,TRUE)) ->  | H42: Die Darstelllung der Startliste wird nach der Auswahl | I42: =IF(LEFT(J42,1)="#",TEXT($N$3 + (ROW(K42)-4)*($O$3/24/60),"hh:mm")& " Uhr",IF(J42="",TEXT($N$3 + (ROW(K42)-4)*($O$3/24/60),"hh:mm")& " Uhr",MAX(I$3:I41)+1)) -> 13:48 Uhr | M42: 39 | AC42: 42 | AD42: 43 | AE42: 44 | AF42: 40 | BC42: =ROW(A42) -> 42 | BD42: =ROW(A42)+1 -> 43 | BE42: 44 | BF42: 40 | BI42: 42 | BJ42: 43 | BK42: 40 | BL42: 38 | BO42: 38 | BP42: 39 | BQ42: 42 | BR42: 40
A43: =IF(LEFT(J43,1)="#","",IF(J43="","",MAX(A$3:A42)+1)) ->  | B43: 14:44:05.640 | H43: in der Zelle N6 oder mit dem Button | I43: =IF(LEFT(J43,1)="#",TEXT($N$3 + (ROW(K43)-4)*($O$3/24/60),"hh:mm")& " Uhr",IF(J43="",TEXT($N$3 + (ROW(K43)-4)*($O$3/24/60),"hh:mm")& " Uhr",MAX(I$3:I42)+1)) -> 13:54 Uhr | M43: 40 | AE43: 45 | AF43: 41 | BE43: 45 | BF43: 41 | BK43: 41 | BL43: 39 | BQ43: 43 | BR43: 41
A44: =IF(LEFT(J44,1)="#","",IF(J44="","",MAX(A$3:A43)+1)) ->  | B44: 14:50:05.908 | C44: =IF(INDIRECT("J"&AC44,TRUE)="","",INDIRECT("J"&AC44,TRUE)) ->  | D44: =IF(INDIRECT("J"&AD44,TRUE)="","",INDIRECT("J"&AD44,TRUE)) ->  | H44: [Starten Parallel / Starten Seriell umschalten] | I44: =IF(LEFT(J44,1)="#",TEXT($N$3 + (ROW(K44)-4)*($O$3/24/60),"hh:mm")& " Uhr",IF(J44="",TEXT($N$3 + (ROW(K44)-4)*($O$3/24/60),"hh:mm")& " Uhr",MAX(I$3:I43)+1)) -> 14:00 Uhr | M44: 41 | AC44: 44 | AD44: 45 | AE44: 40 | AF44: 42 | BC44: =ROW(A44) -> 44 | BD44: =ROW(A44)+1 -> 45 | BE44: 40 | BF44: 42 | BI44: 44 | BJ44: 45 | BK44: 42 | BL44: 40 | BO44: 40 | BP44: 41 | BQ44: 44 | BR44: 42
A45: =IF(LEFT(J45,1)="#","",IF(J45="","",MAX(A$3:A44)+1)) ->  | B45: 14:56:06.177 | H45: dem Ablauf der Module angepasst. | I45: =IF(LEFT(J45,1)="#",TEXT($N$3 + (ROW(K45)-4)*($O$3/24/60),"hh:mm")& " Uhr",IF(J45="",TEXT($N$3 + (ROW(K45)-4)*($O$3/24/60),"hh:mm")& " Uhr",MAX(I$3:I44)+1)) -> 14:06 Uhr | M45: 42 | AE45: 41 | AF45: 43 | BE45: 41 | BF45: 43 | BK45: 43 | BL45: 41 | BQ45: 45 | BR45: 43
A46: =IF(LEFT(J46,1)="#","",IF(J46="","",MAX(A$3:A45)+1)) ->  | B46: 15:02:06.445 | C46: =IF(INDIRECT("J"&AC46,TRUE)="","",INDIRECT("J"&AC46,TRUE)) ->  | D46: =IF(INDIRECT("J"&AD46,TRUE)="","",INDIRECT("J"&AD46,TRUE)) ->  | I46: =IF(LEFT(J46,1)="#",TEXT($N$3 + (ROW(K46)-4)*($O$3/24/60),"hh:mm")& " Uhr",IF(J46="",TEXT($N$3 + (ROW(K46)-4)*($O$3/24/60),"hh:mm")& " Uhr",MAX(I$3:I45)+1)) -> 14:12 Uhr | M46: 43 | AC46: 46 | AD46: 47 | AE46: 48 | AF46: 50 | BC46: =ROW(A46) -> 46 | BD46: =ROW(A46)+1 -> 47 | BE46: 48 | BF46: 50 | BI46: 46 | BJ46: 47 | BK46: 44 | BL46: 42 | BO46: 42 | BP46: 43 | BQ46: 46 | BR46: 44
A47: =IF(LEFT(J47,1)="#","",IF(J47="","",MAX(A$3:A46)+1)) ->  | B47: 15:08:06.713 | H47: In Zelle T9 kann bei serieller Startreihenfolge | I47: =IF(LEFT(J47,1)="#",TEXT($N$3 + (ROW(K47)-4)*($O$3/24/60),"hh:mm")& " Uhr",IF(J47="",TEXT($N$3 + (ROW(K47)-4)*($O$3/24/60),"hh:mm")& " Uhr",MAX(I$3:I46)+1)) -> 14:18 Uhr | M47: 44 | AE47: 49 | AF47: 51 | BE47: 49 | BF47: 51 | BK47: 45 | BL47: 43 | BQ47: 47 | BR47: 45
A48: =IF(LEFT(J48,1)="#","",IF(J48="","",MAX(A$3:A47)+1)) ->  | B48: 15:14:06.981 | C48: =IF(INDIRECT("J"&AC48,TRUE)="","",INDIRECT("J"&AC48,TRUE)) ->  | D48: =IF(INDIRECT("J"&AD48,TRUE)="","",INDIRECT("J"&AD48,TRUE)) ->  | H48: zwischen "Pausen parallel" bzw,. "Pausen seriell" | I48: =IF(LEFT(J48,1)="#",TEXT($N$3 + (ROW(K48)-4)*($O$3/24/60),"hh:mm")& " Uhr",IF(J48="",TEXT($N$3 + (ROW(K48)-4)*($O$3/24/60),"hh:mm")& " Uhr",MAX(I$3:I47)+1)) -> 14:24 Uhr | M48: 45 | AC48: 48 | AD48: 49 | AE48: 50 | AF48: 46 | BC48: =ROW(A48) -> 48 | BD48: =ROW(A48)+1 -> 49 | BE48: 50 | BF48: 46 | BI48: 48 | BJ48: 49 | BK48: 46 | BL48: 44 | BO48: 44 | BP48: 45 | BQ48: 48 | BR48: 46
A49: =IF(LEFT(J49,1)="#","",IF(J49="","",MAX(A$3:A48)+1)) ->  | B49: 15:20:07.249 | H49: ausgewählt werden. Die Darstellung der Pausen | I49: =IF(LEFT(J49,1)="#",TEXT($N$3 + (ROW(K49)-4)*($O$3/24/60),"hh:mm")& " Uhr",IF(J49="",TEXT($N$3 + (ROW(K49)-4)*($O$3/24/60),"hh:mm")& " Uhr",MAX(I$3:I48)+1)) -> 14:30 Uhr | M49: 46 | AE49: 51 | AF49: 47 | BE49: 51 | BF49: 47 | BK49: 47 | BL49: 45 | BQ49: 49 | BR49: 47
A50: =IF(LEFT(J50,1)="#","",IF(J50="","",MAX(A$3:A49)+1)) ->  | B50: 15:26:07.517 | C50: =IF(INDIRECT("J"&AC50,TRUE)="","",INDIRECT("J"&AC50,TRUE)) ->  | D50: =IF(INDIRECT("J"&AD50,TRUE)="","",INDIRECT("J"&AD50,TRUE)) ->  | H50: in der Startliste (dicke Rahmenlinie oberhalb | I50: =IF(LEFT(J50,1)="#",TEXT($N$3 + (ROW(K50)-4)*($O$3/24/60),"hh:mm")& " Uhr",IF(J50="",TEXT($N$3 + (ROW(K50)-4)*($O$3/24/60),"hh:mm")& " Uhr",MAX(I$3:I49)+1)) -> 14:36 Uhr | M50: 47 | AC50: 50 | AD50: 51 | AE50: 46 | AF50: 48 | BC50: =ROW(A50) -> 50 | BD50: =ROW(A50)+1 -> 51 | BE50: 46 | BF50: 48 | BI50: 50 | BJ50: 51 | BK50: 48 | BL50: 46 | BO50: 46 | BP50: 47 | BQ50: 50 | BR50: 48
A51: =IF(LEFT(J51,1)="#","",IF(J51="","",MAX(A$3:A50)+1)) ->  | B51: 15:32:07.785 | H51: der Einheit nach der Pause) wird damit angepasst. | I51: =IF(LEFT(J51,1)="#",TEXT($N$3 + (ROW(K51)-4)*($O$3/24/60),"hh:mm")& " Uhr",IF(J51="",TEXT($N$3 + (ROW(K51)-4)*($O$3/24/60),"hh:mm")& " Uhr",MAX(I$3:I50)+1)) -> 14:42 Uhr | M51: 48 | AE51: 47 | AF51: 49 | BE51: 47 | BF51: 49 | BK51: 49 | BL51: 47 | BQ51: 51 | BR51: 49
A52: =IF(LEFT(J52,1)="#","",IF(J52="","",MAX(A$3:A51)+1)) ->  | B52: 15:38:08.053 | C52: =IF(INDIRECT("J"&AC52,TRUE)="","",INDIRECT("J"&AC52,TRUE)) ->  | D52: =IF(INDIRECT("J"&AD52,TRUE)="","",INDIRECT("J"&AD52,TRUE)) ->  | I52: =IF(LEFT(J52,1)="#",TEXT($N$3 + (ROW(K52)-4)*($O$3/24/60),"hh:mm")& " Uhr",IF(J52="",TEXT($N$3 + (ROW(K52)-4)*($O$3/24/60),"hh:mm")& " Uhr",MAX(I$3:I51)+1)) -> 14:48 Uhr | M52: 49 | AC52: 52 | AD52: 53 | AE52: 54 | AF52: 56 | BC52: =ROW(A52) -> 52 | BD52: =ROW(A52)+1 -> 53 | BE52: 54 | BF52: 56 | BI52: 52 | BJ52: 53 | BK52: 50 | BL52: 48 | BO52: 48 | BP52: 49 | BQ52: 52 | BR52: 50
A53: =IF(LEFT(J53,1)="#","",IF(J53="","",MAX(A$3:A52)+1)) ->  | B53: 15:44:08.322 | H53: Die Pausenzeiten werden in den Zellen T3…U7 | I53: =IF(LEFT(J53,1)="#",TEXT($N$3 + (ROW(K53)-4)*($O$3/24/60),"hh:mm")& " Uhr",IF(J53="",TEXT($N$3 + (ROW(K53)-4)*($O$3/24/60),"hh:mm")& " Uhr",MAX(I$3:I52)+1)) -> 14:54 Uhr | M53: 50 | AE53: 55 | AF53: 57 | BE53: 55 | BF53: 57 | BK53: 51 | BL53: 49 | BQ53: 53 | BR53: 51
A54: =IF(LEFT(J54,1)="#","",IF(J54="","",MAX(A$3:A53)+1)) ->  | B54: 15:50:08.590 | C54: =IF(INDIRECT("J"&AC54,TRUE)="","",INDIRECT("J"&AC54,TRUE)) ->  | D54: =IF(INDIRECT("J"&AD54,TRUE)="","",INDIRECT("J"&AD54,TRUE)) ->  | H54: eingetragen. Auf die Einhaltung von sinnvollen Zeiten | I54: =IF(LEFT(J54,1)="#",TEXT($N$3 + (ROW(K54)-4)*($O$3/24/60),"hh:mm")& " Uhr",IF(J54="",TEXT($N$3 + (ROW(K54)-4)*($O$3/24/60),"hh:mm")& " Uhr",MAX(I$3:I53)+1)) -> 15:00 Uhr | M54: 51 | AC54: 54 | AD54: 55 | AE54: 56 | AF54: 52 | BC54: =ROW(A54) -> 54 | BD54: =ROW(A54)+1 -> 55 | BE54: 56 | BF54: 52 | BI54: 54 | BJ54: 55 | BK54: 52 | BL54: 50 | BO54: 50 | BP54: 51 | BQ54: 54 | BR54: 52
A55: =IF(LEFT(J55,1)="#","",IF(J55="","",MAX(A$3:A54)+1)) ->  | B55: 15:56:08.858 | H55: (also immer zwischen zwei 8er Blöcken beginnend) | I55: =IF(LEFT(J55,1)="#",TEXT($N$3 + (ROW(K55)-4)*($O$3/24/60),"hh:mm")& " Uhr",IF(J55="",TEXT($N$3 + (ROW(K55)-4)*($O$3/24/60),"hh:mm")& " Uhr",MAX(I$3:I54)+1)) -> 15:06 Uhr | M55: 52 | AE55: 57 | AF55: 53 | BE55: 57 | BF55: 53 | BK55: 53 | BL55: 51 | BQ55: 55 | BR55: 53
A56: =IF(LEFT(J56,1)="#","",IF(J56="","",MAX(A$3:A55)+1)) ->  | B56: 16:02:09.126 | C56: =IF(INDIRECT("J"&AC56,TRUE)="","",INDIRECT("J"&AC56,TRUE)) ->  | D56: =IF(INDIRECT("J"&AD56,TRUE)="","",INDIRECT("J"&AD56,TRUE)) ->  | H56: wird durch eine Vorgabe der Zeitauswahl geachtet. | I56: =IF(LEFT(J56,1)="#",TEXT($N$3 + (ROW(K56)-4)*($O$3/24/60),"hh:mm")& " Uhr",IF(J56="",TEXT($N$3 + (ROW(K56)-4)*($O$3/24/60),"hh:mm")& " Uhr",MAX(I$3:I55)+1)) -> 15:12 Uhr | M56: 53 | AC56: 56 | AD56: 57 | AE56: 52 | AF56: 54 | BC56: =ROW(A56) -> 56 | BD56: =ROW(A56)+1 -> 57 | BE56: 52 | BF56: 54 | BI56: 56 | BJ56: 57 | BK56: 54 | BL56: 52 | BO56: 52 | BP56: 53 | BQ56: 56 | BR56: 54
A57: =IF(LEFT(J57,1)="#","",IF(J57="","",MAX(A$3:A56)+1)) ->  | B57: 16:08:09.394 | H57: Ungültige Zeiten werden im Bereich T3…U7 rötlich | I57: =IF(LEFT(J57,1)="#",TEXT($N$3 + (ROW(K57)-4)*($O$3/24/60),"hh:mm")& " Uhr",IF(J57="",TEXT($N$3 + (ROW(K57)-4)*($O$3/24/60),"hh:mm")& " Uhr",MAX(I$3:I56)+1)) -> 15:18 Uhr | M57: 54 | AE57: 53 | AF57: 55 | BE57: 53 | BF57: 55 | BK57: 55 | BL57: 53 | BQ57: 57 | BR57: 55
A58: =IF(LEFT(J58,1)="#","",IF(J58="","",MAX(A$3:A57)+1)) ->  | B58: 16:14:09.662 | C58: =IF(INDIRECT("J"&AC58,TRUE)="","",INDIRECT("J"&AC58,TRUE)) ->  | D58: =IF(INDIRECT("J"&AD58,TRUE)="","",INDIRECT("J"&AD58,TRUE)) ->  | H58: markiert. | I58: =IF(LEFT(J58,1)="#",TEXT($N$3 + (ROW(K58)-4)*($O$3/24/60),"hh:mm")& " Uhr",IF(J58="",TEXT($N$3 + (ROW(K58)-4)*($O$3/24/60),"hh:mm")& " Uhr",MAX(I$3:I57)+1)) -> 15:24 Uhr | M58: 55 | AC58: 58 | AD58: 59 | AE58: 60 | AF58: 62 | BC58: =ROW(A58) -> 58 | BD58: =ROW(A58)+1 -> 59 | BE58: 60 | BF58: 62 | BI58: 58 | BJ58: 59 | BK58: 56 | BL58: 54 | BO58: 54 | BP58: 55 | BQ58: 58 | BR58: 56
A59: =IF(LEFT(J59,1)="#","",IF(J59="","",MAX(A$3:A58)+1)) ->  | B59: 16:20:09.930 | H59: Die Pausen (bzw. die erste Einheit nach der Pause) | I59: =IF(LEFT(J59,1)="#",TEXT($N$3 + (ROW(K59)-4)*($O$3/24/60),"hh:mm")& " Uhr",IF(J59="",TEXT($N$3 + (ROW(K59)-4)*($O$3/24/60),"hh:mm")& " Uhr",MAX(I$3:I58)+1)) -> 15:30 Uhr | M59: 56 | AE59: 61 | AF59: 63 | BE59: 61 | BF59: 63 | BK59: 57 | BL59: 55 | BQ59: 59 | BR59: 57
A60: =IF(LEFT(J60,1)="#","",IF(J60="","",MAX(A$3:A59)+1)) ->  | B60: 16:26:10.198 | C60: =IF(INDIRECT("J"&AC60,TRUE)="","",INDIRECT("J"&AC60,TRUE)) ->  | D60: =IF(INDIRECT("J"&AD60,TRUE)="","",INDIRECT("J"&AD60,TRUE)) ->  | H60: werden nach Ablauf des Makros | I60: =IF(LEFT(J60,1)="#",TEXT($N$3 + (ROW(K60)-4)*($O$3/24/60),"hh:mm")& " Uhr",IF(J60="",TEXT($N$3 + (ROW(K60)-4)*($O$3/24/60),"hh:mm")& " Uhr",MAX(I$3:I59)+1)) -> 15:36 Uhr | M60: 57 | AC60: 60 | AD60: 61 | AE60: 62 | AF60: 58 | BC60: =ROW(A60) -> 60 | BD60: =ROW(A60)+1 -> 61 | BE60: 62 | BF60: 58 | BI60: 60 | BJ60: 61 | BK60: 58 | BL60: 56 | BO60: 56 | BP60: 57 | BQ60: 60 | BR60: 58
A61: =IF(LEFT(J61,1)="#","",IF(J61="","",MAX(A$3:A60)+1)) ->  | B61: 16:32:10.467 | H61: "Startzeiten eintragen (mit Pausen) durch eine | I61: =IF(LEFT(J61,1)="#",TEXT($N$3 + (ROW(K61)-4)*($O$3/24/60),"hh:mm")& " Uhr",IF(J61="",TEXT($N$3 + (ROW(K61)-4)*($O$3/24/60),"hh:mm")& " Uhr",MAX(I$3:I60)+1)) -> 15:42 Uhr | M61: 58 | AE61: 63 | AF61: 59 | BE61: 63 | BF61: 59 | BK61: 59 | BL61: 57 | BQ61: 61 | BR61: 59
A62: =IF(LEFT(J62,1)="#","",IF(J62="","",MAX(A$3:A61)+1)) ->  | B62: 16:38:10.735 | C62: =IF(INDIRECT("J"&AC62,TRUE)="","",INDIRECT("J"&AC62,TRUE)) ->  | D62: =IF(INDIRECT("J"&AD62,TRUE)="","",INDIRECT("J"&AD62,TRUE)) ->  | H62: farbliche Markierung in den Spalten A und B | I62: =IF(LEFT(J62,1)="#",TEXT($N$3 + (ROW(K62)-4)*($O$3/24/60),"hh:mm")& " Uhr",IF(J62="",TEXT($N$3 + (ROW(K62)-4)*($O$3/24/60),"hh:mm")& " Uhr",MAX(I$3:I61)+1)) -> 15:48 Uhr | M62: 59 | AC62: 62 | AD62: 63 | AE62: 58 | AF62: 60 | BC62: =ROW(A62) -> 62 | BD62: =ROW(A62)+1 -> 63 | BE62: 58 | BF62: 60 | BI62: 62 | BJ62: 63 | BK62: 60 | BL62: 58 | BO62: 58 | BP62: 59 | BQ62: 62 | BR62: 60
A63: =IF(LEFT(J63,1)="#","",IF(J63="","",MAX(A$3:A62)+1)) ->  | B63: 16:44:11.003 | H63: dargestellt und in Zelle E2/F2 gelistet. | I63: =IF(LEFT(J63,1)="#",TEXT($N$3 + (ROW(K63)-4)*($O$3/24/60),"hh:mm")& " Uhr",IF(J63="",TEXT($N$3 + (ROW(K63)-4)*($O$3/24/60),"hh:mm")& " Uhr",MAX(I$3:I62)+1)) -> 15:54 Uhr | M63: 60 | AE63: 59 | AF63: 61 | BE63: 59 | BF63: 61 | BK63: 61 | BL63: 59 | BQ63: 63 | BR63: 61
A64: =IF(LEFT(J64,1)="#","",IF(J64="","",MAX(A$3:A63)+1)) ->  | C64: =IF(INDIRECT("J"&AC64,TRUE)="","",INDIRECT("J"&AC64,TRUE)) ->  | D64: =IF(INDIRECT("J"&AD64,TRUE)="","",INDIRECT("J"&AD64,TRUE)) ->  | I64: =IF(LEFT(J64,1)="#",TEXT($N$3 + (ROW(K64)-4)*($O$3/24/60),"hh:mm")& " Uhr",IF(J64="",TEXT($N$3 + (ROW(K64)-4)*($O$3/24/60),"hh:mm")& " Uhr",MAX(I$3:I63)+1)) -> 16:00 Uhr | M64: 61 | AC64: 64 | AD64: 65 | AE64: 66 | AF64: 68 | BC64: =ROW(A64) -> 64 | BD64: =ROW(A64)+1 -> 65 | BE64: 66 | BF64: 68 | BI64: 64 | BJ64: 65 | BK64: 62 | BL64: 60 | BO64: 60 | BP64: 61 | BQ64: 64 | BR64: 62
A65: =IF(LEFT(J65,1)="#","",IF(J65="","",MAX(A$3:A64)+1)) ->  | H65: Mittels Doppelklick auf die Zellen in der | I65: =IF(LEFT(J65,1)="#",TEXT($N$3 + (ROW(K65)-4)*($O$3/24/60),"hh:mm")& " Uhr",IF(J65="",TEXT($N$3 + (ROW(K65)-4)*($O$3/24/60),"hh:mm")& " Uhr",MAX(I$3:I64)+1)) -> 16:06 Uhr | M65: 62 | AE65: 67 | AF65: 69 | BE65: 67 | BF65: 69 | BK65: 63 | BL65: 61 | BQ65: 65 | BR65: 63
A66: =IF(LEFT(J66,1)="#","",IF(J66="","",MAX(A$3:A65)+1)) ->  | C66: =IF(INDIRECT("J"&AC66,TRUE)="","",INDIRECT("J"&AC66,TRUE)) ->  | D66: =IF(INDIRECT("J"&AD66,TRUE)="","",INDIRECT("J"&AD66,TRUE)) ->  | H66: Spalte K ("Transferpfeile") werden die Namen | I66: =IF(LEFT(J66,1)="#",TEXT($N$3 + (ROW(K66)-4)*($O$3/24/60),"hh:mm")& " Uhr",IF(J66="",TEXT($N$3 + (ROW(K66)-4)*($O$3/24/60),"hh:mm")& " Uhr",MAX(I$3:I65)+1)) -> 16:12 Uhr | M66: 63 | AC66: 66 | AD66: 67 | AE66: 68 | AF66: 64 | BC66: =ROW(A66) -> 66 | BD66: =ROW(A66)+1 -> 67 | BE66: 68 | BF66: 64 | BI66: 66 | BJ66: 67 | BK66: 64 | BL66: 62 | BO66: 62 | BP66: 63 | BQ66: 66 | BR66: 64
A67: =IF(LEFT(J67,1)="#","",IF(J67="","",MAX(A$3:A66)+1)) ->  | H67: der Einheiten aus Spalte L in die erste freie | I67: =IF(LEFT(J67,1)="#",TEXT($N$3 + (ROW(K67)-4)*($O$3/24/60),"hh:mm")& " Uhr",IF(J67="",TEXT($N$3 + (ROW(K67)-4)*($O$3/24/60),"hh:mm")& " Uhr",MAX(I$3:I66)+1)) -> 16:18 Uhr | M67: 64 | AE67: 69 | AF67: 65 | BE67: 69 | BF67: 65 | BK67: 65 | BL67: 63 | BQ67: 67 | BR67: 65
A68: =IF(LEFT(J68,1)="#","",IF(J68="","",MAX(A$3:A67)+1)) ->  | C68: =IF(INDIRECT("J"&AC68,TRUE)="","",INDIRECT("J"&AC68,TRUE)) ->  | D68: =IF(INDIRECT("J"&AD68,TRUE)="","",INDIRECT("J"&AD68,TRUE)) ->  | H68: Zelle in der Spalte J kopiert und der | I68: =IF(LEFT(J68,1)="#",TEXT($N$3 + (ROW(K68)-4)*($O$3/24/60),"hh:mm")& " Uhr",IF(J68="",TEXT($N$3 + (ROW(K68)-4)*($O$3/24/60),"hh:mm")& " Uhr",MAX(I$3:I67)+1)) -> 16:24 Uhr | M68: 65 | AC68: 68 | AD68: 69 | AE68: 64 | AF68: 66 | BC68: =ROW(A68) -> 68 | BD68: =ROW(A68)+1 -> 69 | BE68: 64 | BF68: 66 | BI68: 68 | BJ68: 69 | BK68: 66 | BL68: 64 | BO68: 64 | BP68: 65 | BQ68: 68 | BR68: 66
A69: =IF(LEFT(J69,1)="#","",IF(J69="","",MAX(A$3:A68)+1)) ->  | H69: "Transferpfeil" in Spalte K gelöscht. | I69: =IF(LEFT(J69,1)="#",TEXT($N$3 + (ROW(K69)-4)*($O$3/24/60),"hh:mm")& " Uhr",IF(J69="",TEXT($N$3 + (ROW(K69)-4)*($O$3/24/60),"hh:mm")& " Uhr",MAX(I$3:I68)+1)) -> 16:30 Uhr | M69: 66 | AE69: 65 | AF69: 67 | BE69: 65 | BF69: 67 | BK69: 67 | BL69: 65 | BQ69: 69 | BR69: 67
A70: =IF(LEFT(J70,1)="#","",IF(J70="","",MAX(A$3:A69)+1)) ->  | C70: =IF(INDIRECT("J"&AC70,TRUE)="","",INDIRECT("J"&AC70,TRUE)) ->  | D70: =IF(INDIRECT("J"&AD70,TRUE)="","",INDIRECT("J"&AD70,TRUE)) ->  | I70: =IF(LEFT(J70,1)="#",TEXT($N$3 + (ROW(K70)-4)*($O$3/24/60),"hh:mm")& " Uhr",IF(J70="",TEXT($N$3 + (ROW(K70)-4)*($O$3/24/60),"hh:mm")& " Uhr",MAX(I$3:I69)+1)) -> 16:36 Uhr | M70: 67 | AC70: 70 | AD70: 71 | AE70: 72 | AF70: 74 | BC70: =ROW(A70) -> 70 | BD70: =ROW(A70)+1 -> 71 | BE70: 72 | BF70: 74 | BI70: 70 | BJ70: 71 | BK70: 68 | BL70: 66 | BO70: 66 | BP70: 67 | BQ70: 70 | BR70: 68
A71: =IF(LEFT(J71,1)="#","",IF(J71="","",MAX(A$3:A70)+1)) ->  | H71: Soll der Name an einer bestimmten Stelle | I71: =IF(LEFT(J71,1)="#",TEXT($N$3 + (ROW(K71)-4)*($O$3/24/60),"hh:mm")& " Uhr",IF(J71="",TEXT($N$3 + (ROW(K71)-4)*($O$3/24/60),"hh:mm")& " Uhr",MAX(I$3:I70)+1)) -> 16:42 Uhr | M71: 68 | AE71: 73 | AF71: 75 | BE71: 73 | BF71: 75 | BK71: 69 | BL71: 67 | BQ71: 71 | BR71: 69
A72: =IF(LEFT(J72,1)="#","",IF(J72="","",MAX(A$3:A71)+1)) ->  | C72: =IF(INDIRECT("J"&AC72,TRUE)="","",INDIRECT("J"&AC72,TRUE)) ->  | D72: =IF(INDIRECT("J"&AD72,TRUE)="","",INDIRECT("J"&AD72,TRUE)) ->  | H72: der Tabelle eingefügt werden, so kann in der | I72: =IF(LEFT(J72,1)="#",TEXT($N$3 + (ROW(K72)-4)*($O$3/24/60),"hh:mm")& " Uhr",IF(J72="",TEXT($N$3 + (ROW(K72)-4)*($O$3/24/60),"hh:mm")& " Uhr",MAX(I$3:I71)+1)) -> 16:48 Uhr | M72: 69 | AC72: 72 | AD72: 73 | AE72: 74 | AF72: 70 | BC72: =ROW(A72) -> 72 | BD72: =ROW(A72)+1 -> 73 | BE72: 74 | BF72: 70 | BI72: 72 | BJ72: 73 | BK72: 70 | BL72: 68 | BO72: 68 | BP72: 69 | BQ72: 72 | BR72: 70
A73: =IF(LEFT(J73,1)="#","",IF(J73="","",MAX(A$3:A72)+1)) ->  | H73: Zelle in Spalte J ein "x" eingetragen werden. | I73: =IF(LEFT(J73,1)="#",TEXT($N$3 + (ROW(K73)-4)*($O$3/24/60),"hh:mm")& " Uhr",IF(J73="",TEXT($N$3 + (ROW(K73)-4)*($O$3/24/60),"hh:mm")& " Uhr",MAX(I$3:I72)+1)) -> 16:54 Uhr | M73: 70 | AE73: 75 | AF73: 71 | BE73: 75 | BF73: 71 | BK73: 71 | BL73: 69 | BQ73: 73 | BR73: 71
A74: =IF(LEFT(J74,1)="#","",IF(J74="","",MAX(A$3:A73)+1)) ->  | C74: =IF(INDIRECT("J"&AC74,TRUE)="","",INDIRECT("J"&AC74,TRUE)) ->  | D74: =IF(INDIRECT("J"&AD74,TRUE)="","",INDIRECT("J"&AD74,TRUE)) ->  | H74: Der Transfer erfolgt dann in diese Zelle. | I74: =IF(LEFT(J74,1)="#",TEXT($N$3 + (ROW(K74)-4)*($O$3/24/60),"hh:mm")& " Uhr",IF(J74="",TEXT($N$3 + (ROW(K74)-4)*($O$3/24/60),"hh:mm")& " Uhr",MAX(I$3:I73)+1)) -> 17:00 Uhr | M74: 71 | AC74: 74 | AD74: 75 | AE74: 70 | AF74: 72 | BC74: =ROW(A74) -> 74 | BD74: =ROW(A74)+1 -> 75 | BE74: 70 | BF74: 72 | BI74: 74 | BJ74: 75 | BK74: 72 | BL74: 70 | BO74: 70 | BP74: 71 | BQ74: 74 | BR74: 72
A75: =IF(LEFT(J75,1)="#","",IF(J75="","",MAX(A$3:A74)+1)) ->  | I75: =IF(LEFT(J75,1)="#",TEXT($N$3 + (ROW(K75)-4)*($O$3/24/60),"hh:mm")& " Uhr",IF(J75="",TEXT($N$3 + (ROW(K75)-4)*($O$3/24/60),"hh:mm")& " Uhr",MAX(I$3:I74)+1)) -> 17:06 Uhr | M75: 72 | AE75: 71 | AF75: 73 | BE75: 71 | BF75: 73 | BK75: 73 | BL75: 71 | BQ75: 75 | BR75: 73
A76: =IF(LEFT(J76,1)="#","",IF(J76="","",MAX(A$3:A75)+1)) ->  | C76: =IF(INDIRECT("J"&AC76,TRUE)="","",INDIRECT("J"&AC76,TRUE)) ->  | D76: =IF(INDIRECT("J"&AD76,TRUE)="","",INDIRECT("J"&AD76,TRUE)) ->  | H76: Wenn versucht wird, eine Einheit "doppelt" | I76: =IF(LEFT(J76,1)="#",TEXT($N$3 + (ROW(K76)-4)*($O$3/24/60),"hh:mm")& " Uhr",IF(J76="",TEXT($N$3 + (ROW(K76)-4)*($O$3/24/60),"hh:mm")& " Uhr",MAX(I$3:I75)+1)) -> 17:12 Uhr | M76: 73 | AC76: 76 | AD76: 77 | AE76: 78 | AF76: 80 | BC76: =ROW(A76) -> 76 | BD76: =ROW(A76)+1 -> 77 | BE76: 78 | BF76: 80 | BI76: 76 | BJ76: 77 | BK76: 74 | BL76: 72 | BO76: 72 | BP76: 73 | BQ76: 76 | BR76: 74
A77: =IF(LEFT(J77,1)="#","",IF(J77="","",MAX(A$3:A76)+1)) ->  | H77: in die Spalte J einzutragen, wird eine | I77: =IF(LEFT(J77,1)="#",TEXT($N$3 + (ROW(K77)-4)*($O$3/24/60),"hh:mm")& " Uhr",IF(J77="",TEXT($N$3 + (ROW(K77)-4)*($O$3/24/60),"hh:mm")& " Uhr",MAX(I$3:I76)+1)) -> 17:18 Uhr | M77: 74 | AE77: 79 | AF77: 81 | BE77: 79 | BF77: 81 | BK77: 75 | BL77: 73 | BQ77: 77 | BR77: 75
A78: =IF(LEFT(J78,1)="#","",IF(J78="","",MAX(A$3:A77)+1)) ->  | C78: =IF(INDIRECT("J"&AC78,TRUE)="","",INDIRECT("J"&AC78,TRUE)) ->  | D78: =IF(INDIRECT("J"&AD78,TRUE)="","",INDIRECT("J"&AD78,TRUE)) ->  | H78: entsprechende Meldung ausgegeben und | I78: =IF(LEFT(J78,1)="#",TEXT($N$3 + (ROW(K78)-4)*($O$3/24/60),"hh:mm")& " Uhr",IF(J78="",TEXT($N$3 + (ROW(K78)-4)*($O$3/24/60),"hh:mm")& " Uhr",MAX(I$3:I77)+1)) -> 17:24 Uhr | M78: 75 | AC78: 78 | AD78: 79 | AE78: 80 | AF78: 76 | BC78: =ROW(A78) -> 78 | BD78: =ROW(A78)+1 -> 79 | BE78: 80 | BF78: 76 | BI78: 78 | BJ78: 79 | BK78: 76 | BL78: 74 | BO78: 74 | BP78: 75 | BQ78: 78 | BR78: 76
A79: =IF(LEFT(J79,1)="#","",IF(J79="","",MAX(A$3:A78)+1)) ->  | H79: der Transfer nicht ausgeführt. | I79: =IF(LEFT(J79,1)="#",TEXT($N$3 + (ROW(K79)-4)*($O$3/24/60),"hh:mm")& " Uhr",IF(J79="",TEXT($N$3 + (ROW(K79)-4)*($O$3/24/60),"hh:mm")& " Uhr",MAX(I$3:I78)+1)) -> 17:30 Uhr | M79: 76 | AE79: 81 | AF79: 77 | BE79: 81 | BF79: 77 | BK79: 77 | BL79: 75 | BQ79: 79 | BR79: 77
A80: =IF(LEFT(J80,1)="#","",IF(J80="","",MAX(A$3:A79)+1)) ->  | C80: =IF(INDIRECT("J"&AC80,TRUE)="","",INDIRECT("J"&AC80,TRUE)) ->  | D80: =IF(INDIRECT("J"&AD80,TRUE)="","",INDIRECT("J"&AD80,TRUE)) ->  | I80: =IF(LEFT(J80,1)="#",TEXT($N$3 + (ROW(K80)-4)*($O$3/24/60),"hh:mm")& " Uhr",IF(J80="",TEXT($N$3 + (ROW(K80)-4)*($O$3/24/60),"hh:mm")& " Uhr",MAX(I$3:I79)+1)) -> 17:36 Uhr | M80: 77 | AC80: 80 | AD80: 81 | AE80: 76 | AF80: 78 | BC80: =ROW(A80) -> 80 | BD80: =ROW(A80)+1 -> 81 | BE80: 76 | BF80: 78 | BI80: 80 | BJ80: 81 | BK80: 78 | BL80: 76 | BO80: 76 | BP80: 77 | BQ80: 80 | BR80: 78
A81: =IF(LEFT(J81,1)="#","",IF(J81="","",MAX(A$3:A80)+1)) ->  | H81: Ein Doppelklick in Zelle K3 kopiert alle Einheiten | I81: =IF(LEFT(J81,1)="#",TEXT($N$3 + (ROW(K81)-4)*($O$3/24/60),"hh:mm")& " Uhr",IF(J81="",TEXT($N$3 + (ROW(K81)-4)*($O$3/24/60),"hh:mm")& " Uhr",MAX(I$3:I80)+1)) -> 17:42 Uhr | M81: 78 | AE81: 77 | AF81: 79 | BE81: 77 | BF81: 79 | BK81: 79 | BL81: 77 | BQ81: 81 | BR81: 79
A82: =IF(LEFT(J82,1)="#","",IF(J82="","",MAX(A$3:A81)+1)) ->  | C82: =IF(INDIRECT("J"&AC82,TRUE)="","",INDIRECT("J"&AC82,TRUE)) ->  | D82: =IF(INDIRECT("J"&AD82,TRUE)="","",INDIRECT("J"&AD82,TRUE)) ->  | H82: aus Spalte J in Spalte H, wobei bereits | I82: =IF(LEFT(J82,1)="#",TEXT($N$3 + (ROW(K82)-4)*($O$3/24/60),"hh:mm")& " Uhr",IF(J82="",TEXT($N$3 + (ROW(K82)-4)*($O$3/24/60),"hh:mm")& " Uhr",MAX(I$3:I81)+1)) -> 17:48 Uhr | M82: 79 | AC82: 82 | AD82: 83 | AE82: 84 | AF82: 86 | BC82: =ROW(A82) -> 82 | BD82: =ROW(A82)+1 -> 83 | BE82: 84 | BF82: 86 | BI82: 82 | BJ82: 83 | BK82: 80 | BL82: 78 | BO82: 78 | BP82: 79 | BQ82: 82 | BR82: 80
A83: =IF(LEFT(J83,1)="#","",IF(J83="","",MAX(A$3:A82)+1)) ->  | H83: vorhandene Einträge in Spalte H ohne weitere | I83: =IF(LEFT(J83,1)="#",TEXT($N$3 + (ROW(K83)-4)*($O$3/24/60),"hh:mm")& " Uhr",IF(J83="",TEXT($N$3 + (ROW(K83)-4)*($O$3/24/60),"hh:mm")& " Uhr",MAX(I$3:I82)+1)) -> 17:54 Uhr | M83: 80 | AE83: 85 | AF83: 87 | BE83: 85 | BF83: 87 | BK83: 81 | BL83: 79 | BQ83: 83 | BR83: 81
A84: =IF(LEFT(J84,1)="#","",IF(J84="","",MAX(A$3:A83)+1)) ->  | C84: =IF(INDIRECT("J"&AC84,TRUE)="","",INDIRECT("J"&AC84,TRUE)) ->  | D84: =IF(INDIRECT("J"&AD84,TRUE)="","",INDIRECT("J"&AD84,TRUE)) ->  | H84: Nachfrage überschrieben werden! | I84: =IF(LEFT(J84,1)="#",TEXT($N$3 + (ROW(K84)-4)*($O$3/24/60),"hh:mm")& " Uhr",IF(J84="",TEXT($N$3 + (ROW(K84)-4)*($O$3/24/60),"hh:mm")& " Uhr",MAX(I$3:I83)+1)) -> 18:00 Uhr | M84: 81 | AC84: 84 | AD84: 85 | AE84: 86 | AF84: 82 | BC84: =ROW(A84) -> 84 | BD84: =ROW(A84)+1 -> 85 | BE84: 86 | BF84: 82 | BI84: 84 | BJ84: 85 | BK84: 82 | BL84: 80 | BO84: 80 | BP84: 81 | BQ84: 84 | BR84: 82
A85: =IF(LEFT(J85,1)="#","",IF(J85="","",MAX(A$3:A84)+1)) ->  | I85: =IF(LEFT(J85,1)="#",TEXT($N$3 + (ROW(K85)-4)*($O$3/24/60),"hh:mm")& " Uhr",IF(J85="",TEXT($N$3 + (ROW(K85)-4)*($O$3/24/60),"hh:mm")& " Uhr",MAX(I$3:I84)+1)) -> 18:06 Uhr | M85: 82 | AE85: 87 | AF85: 83 | BE85: 87 | BF85: 83 | BK85: 83 | BL85: 81 | BQ85: 85 | BR85: 83
A86: =IF(LEFT(J86,1)="#","",IF(J86="","",MAX(A$3:A85)+1)) ->  | C86: =IF(INDIRECT("J"&AC86,TRUE)="","",INDIRECT("J"&AC86,TRUE)) ->  | D86: =IF(INDIRECT("J"&AD86,TRUE)="","",INDIRECT("J"&AD86,TRUE)) ->  | H86: Die Spalten A, C - I sind sind mit Formeln | I86: =IF(LEFT(J86,1)="#",TEXT($N$3 + (ROW(K86)-4)*($O$3/24/60),"hh:mm")& " Uhr",IF(J86="",TEXT($N$3 + (ROW(K86)-4)*($O$3/24/60),"hh:mm")& " Uhr",MAX(I$3:I85)+1)) -> 18:12 Uhr | M86: 83 | AC86: 86 | AD86: 87 | AE86: 82 | AF86: 84 | BC86: =ROW(A86) -> 86 | BD86: =ROW(A86)+1 -> 87 | BE86: 82 | BF86: 84 | BI86: 86 | BJ86: 87 | BK86: 84 | BL86: 82 | BO86: 82 | BP86: 83 | BQ86: 86 | BR86: 84
A87: =IF(LEFT(J87,1)="#","",IF(J87="","",MAX(A$3:A86)+1)) ->  | H87: gefüll und sollten nicht verändert werden. | I87: =IF(LEFT(J87,1)="#",TEXT($N$3 + (ROW(K87)-4)*($O$3/24/60),"hh:mm")& " Uhr",IF(J87="",TEXT($N$3 + (ROW(K87)-4)*($O$3/24/60),"hh:mm")& " Uhr",MAX(I$3:I86)+1)) -> 18:18 Uhr | M87: 84 | AE87: 83 | AF87: 85 | BE87: 83 | BF87: 85 | BK87: 85 | BL87: 83 | BQ87: 87 | BR87: 85
A88: =IF(LEFT(J88,1)="#","",IF(J88="","",MAX(A$3:A87)+1)) ->  | C88: =IF(INDIRECT("J"&AC88,TRUE)="","",INDIRECT("J"&AC88,TRUE)) ->  | D88: =IF(INDIRECT("J"&AD88,TRUE)="","",INDIRECT("J"&AD88,TRUE)) ->  | I88: =IF(LEFT(J88,1)="#",TEXT($N$3 + (ROW(K88)-4)*($O$3/24/60),"hh:mm")& " Uhr",IF(J88="",TEXT($N$3 + (ROW(K88)-4)*($O$3/24/60),"hh:mm")& " Uhr",MAX(I$3:I87)+1)) -> 18:24 Uhr | M88: 85 | AC88: 88 | AD88: 89 | AE88: 90 | AF88: 92 | BC88: =ROW(A88) -> 88 | BD88: =ROW(A88)+1 -> 89 | BE88: 90 | BF88: 92 | BI88: 88 | BJ88: 89 | BK88: 86 | BL88: 84 | BO88: 84 | BP88: 85 | BQ88: 88 | BR88: 86
A89: =IF(LEFT(J89,1)="#","",IF(J89="","",MAX(A$3:A88)+1)) ->  | H89: Beim Ausdrucken der "Startliste 3-2" werden | I89: =IF(LEFT(J89,1)="#",TEXT($N$3 + (ROW(K89)-4)*($O$3/24/60),"hh:mm")& " Uhr",IF(J89="",TEXT($N$3 + (ROW(K89)-4)*($O$3/24/60),"hh:mm")& " Uhr",MAX(I$3:I88)+1)) -> 18:30 Uhr | M89: 86 | AE89: 91 | AF89: 93 | BE89: 91 | BF89: 93 | BK89: 87 | BL89: 85 | BQ89: 89 | BR89: 87
A90: =IF(LEFT(J90,1)="#","",IF(J90="","",MAX(A$3:A89)+1)) ->  | C90: =IF(INDIRECT("J"&AC90,TRUE)="","",INDIRECT("J"&AC90,TRUE)) ->  | D90: =IF(INDIRECT("J"&AD90,TRUE)="","",INDIRECT("J"&AD90,TRUE)) ->  | E90: =IF(INDIRECT("J"&AE90,TRUE)="","",INDIRECT("J"&AE90,TRUE)) ->  | F90: =IF(INDIRECT("J"&AF90,TRUE)="","",INDIRECT("J"&AF90,TRUE)) ->  | H90: nur die Spalten A - F gedruckt. | I90: =IF(LEFT(J90,1)="#",TEXT($N$3 + (ROW(K90)-4)*($O$3/24/60),"hh:mm")& " Uhr",IF(J90="",TEXT($N$3 + (ROW(K90)-4)*($O$3/24/60),"hh:mm")& " Uhr",MAX(I$3:I89)+1)) -> 18:36 Uhr | M90: 87 | AC90: 90 | AD90: 91 | AE90: 92 | AF90: 88 | BC90: =ROW(A90) -> 90 | BD90: =ROW(A90)+1 -> 91 | BE90: 92 | BF90: 88 | BI90: 90 | BJ90: 91 | BK90: 88 | BL90: 86 | BO90: 86 | BP90: 87 | BQ90: 90 | BR90: 88
A91: =IF(LEFT(J91,1)="#","",IF(J91="","",MAX(A$3:A90)+1)) ->  | H91: Der Ausdruck auf im Querformat dient der | I91: =IF(LEFT(J91,1)="#",TEXT($N$3 + (ROW(K91)-4)*($O$3/24/60),"hh:mm")& " Uhr",IF(J91="",TEXT($N$3 + (ROW(K91)-4)*($O$3/24/60),"hh:mm")& " Uhr",MAX(I$3:I90)+1)) -> 18:42 Uhr | M91: 88 | AE91: 93 | AF91: 89 | BE91: 93 | BF91: 89 | BK91: 89 | BL91: 87 | BQ91: 91 | BR91: 89
A92: =IF(LEFT(J92,1)="#","",IF(J92="","",MAX(A$3:A91)+1)) ->  | C92: =IF(INDIRECT("J"&AC92,TRUE)="","",INDIRECT("J"&AC92,TRUE)) ->  | D92: =IF(INDIRECT("J"&AD92,TRUE)="","",INDIRECT("J"&AD92,TRUE)) ->  | H92: besseren Lesbarkeit und kann gewählt werden. | I92: =IF(LEFT(J92,1)="#",TEXT($N$3 + (ROW(K92)-4)*($O$3/24/60),"hh:mm")& " Uhr",IF(J92="",TEXT($N$3 + (ROW(K92)-4)*($O$3/24/60),"hh:mm")& " Uhr",MAX(I$3:I91)+1)) -> 18:48 Uhr | M92: 89 | AC92: 92 | AD92: 93 | AE92: 88 | AF92: 90 | BC92: =ROW(A92) -> 92 | BD92: =ROW(A92)+1 -> 93 | BE92: 88 | BF92: 90 | BI92: 92 | BJ92: 93 | BK92: 90 | BL92: 88 | BO92: 88 | BP92: 89 | BQ92: 92 | BR92: 90
A93: =IF(LEFT(J93,1)="#","",IF(J93="","",MAX(A$3:A92)+1)) ->  | I93: =IF(LEFT(J93,1)="#",TEXT($N$3 + (ROW(K93)-4)*($O$3/24/60),"hh:mm")& " Uhr",IF(J93="",TEXT($N$3 + (ROW(K93)-4)*($O$3/24/60),"hh:mm")& " Uhr",MAX(I$3:I92)+1)) -> 18:54 Uhr | M93: 90 | AE93: 89 | AF93: 91 | BE93: 89 | BF93: 91 | BK93: 91 | BL93: 89 | BQ93: 93 | BR93: 91
A94: =IF(LEFT(J94,1)="#","",IF(J94="","",MAX(A$3:A93)+1)) ->  | C94: =IF(INDIRECT("J"&AC94,TRUE)="","",INDIRECT("J"&AC94,TRUE)) ->  | D94: =IF(INDIRECT("J"&AD94,TRUE)="","",INDIRECT("J"&AD94,TRUE)) ->  | H94: Auf die Einhaltung von "6er Blöcken" muss | I94: =IF(LEFT(J94,1)="#",TEXT($N$3 + (ROW(K94)-4)*($O$3/24/60),"hh:mm")& " Uhr",IF(J94="",TEXT($N$3 + (ROW(K94)-4)*($O$3/24/60),"hh:mm")& " Uhr",MAX(I$3:I93)+1)) -> 19:00 Uhr | M94: 91 | AC94: 94 | AD94: 95 | AE94: 96 | AF94: 98 | BC94: =ROW(A94) -> 94 | BD94: =ROW(A94)+1 -> 95 | BE94: 96 | BF94: 98 | BI94: 94 | BJ94: 95 | BK94: 92 | BL94: 90 | BO94: 90 | BP94: 91 | BQ94: 94 | BR94: 92
A95: =IF(LEFT(J95,1)="#","",IF(J95="","",MAX(A$3:A94)+1)) ->  | H95: der Bediener selbst achten!!!!! | I95: =IF(LEFT(J95,1)="#",TEXT($N$3 + (ROW(K95)-4)*($O$3/24/60),"hh:mm")& " Uhr",IF(J95="",TEXT($N$3 + (ROW(K95)-4)*($O$3/24/60),"hh:mm")& " Uhr",MAX(I$3:I94)+1)) -> 19:06 Uhr | M95: 92 | AE95: 97 | AF95: 99 | BE95: 97 | BF95: 99 | BK95: 93 | BL95: 91 | BQ95: 95 | BR95: 93
A96: =IF(LEFT(J96,1)="#","",IF(J96="","",MAX(A$3:A95)+1)) ->  | C96: =IF(INDIRECT("J"&AC96,TRUE)="","",INDIRECT("J"&AC96,TRUE)) ->  | D96: =IF(INDIRECT("J"&AD96,TRUE)="","",INDIRECT("J"&AD96,TRUE)) ->  | I96: =IF(LEFT(J96,1)="#",TEXT($N$3 + (ROW(K96)-4)*($O$3/24/60),"hh:mm")& " Uhr",IF(J96="",TEXT($N$3 + (ROW(K96)-4)*($O$3/24/60),"hh:mm")& " Uhr",MAX(I$3:I95)+1)) -> 19:12 Uhr | M96: 93 | AC96: 96 | AD96: 97 | AE96: 98 | AF96: 94 | BC96: =ROW(A96) -> 96 | BD96: =ROW(A96)+1 -> 97 | BE96: 98 | BF96: 94 | BI96: 96 | BJ96: 97 | BK96: 94 | BL96: 92 | BO96: 92 | BP96: 93 | BQ96: 96 | BR96: 94
A97: =IF(LEFT(J97,1)="#","",IF(J97="","",MAX(A$3:A96)+1)) ->  | H97: Einheiten aus Spalte J können mit einem | I97: =IF(LEFT(J97,1)="#",TEXT($N$3 + (ROW(K97)-4)*($O$3/24/60),"hh:mm")& " Uhr",IF(J97="",TEXT($N$3 + (ROW(K97)-4)*($O$3/24/60),"hh:mm")& " Uhr",MAX(I$3:I96)+1)) -> 19:18 Uhr | M97: 94 | AE97: 99 | AF97: 95 | BE97: 99 | BF97: 95 | BK97: 95 | BL97: 93 | BQ97: 97 | BR97: 95
A98: =IF(LEFT(J98,1)="#","",IF(J98="","",MAX(A$3:A97)+1)) ->  | C98: =IF(INDIRECT("J"&AC98,TRUE)="","",INDIRECT("J"&AC98,TRUE)) ->  | D98: =IF(INDIRECT("J"&AD98,TRUE)="","",INDIRECT("J"&AD98,TRUE)) ->  | H98: Doppelklick (in die Zelle in Spalte J) wieder | I98: =IF(LEFT(J98,1)="#",TEXT($N$3 + (ROW(K98)-4)*($O$3/24/60),"hh:mm")& " Uhr",IF(J98="",TEXT($N$3 + (ROW(K98)-4)*($O$3/24/60),"hh:mm")& " Uhr",MAX(I$3:I97)+1)) -> 19:24 Uhr | M98: 95 | AC98: 98 | AD98: 99 | AE98: 94 | AF98: 96 | BC98: =ROW(A98) -> 98 | BD98: =ROW(A98)+1 -> 99 | BE98: 94 | BF98: 96 | BI98: 98 | BJ98: 99 | BK98: 96 | BL98: 94 | BO98: 94 | BP98: 95 | BQ98: 98 | BR98: 96
A99: =IF(LEFT(J99,1)="#","",IF(J99="","",MAX(A$3:A98)+1)) ->  | H99: "entfernt" werden. Der "Transferpfeil" für diese | I99: =IF(LEFT(J99,1)="#",TEXT($N$3 + (ROW(K99)-4)*($O$3/24/60),"hh:mm")& " Uhr",IF(J99="",TEXT($N$3 + (ROW(K99)-4)*($O$3/24/60),"hh:mm")& " Uhr",MAX(I$3:I98)+1)) -> 19:30 Uhr | M99: 96 | AE99: 95 | AF99: 97 | BE99: 95 | BF99: 97 | BK99: 97 | BL99: 95 | BQ99: 99 | BR99: 97
A100: =IF(LEFT(J100,1)="#","",IF(J100="","",MAX(A$3:A99)+1)) ->  | C100: =IF(INDIRECT("J"&AC100,TRUE)="","",INDIRECT("J"&AC100,TRUE)) ->  | D100: =IF(INDIRECT("J"&AD100,TRUE)="","",INDIRECT("J"&AD100,TRUE)) ->  | H100: Einheit wird dann wieder hergestellt. | I100: =IF(LEFT(J100,1)="#",TEXT($N$3 + (ROW(K100)-4)*($O$3/24/60),"hh:mm")& " Uhr",IF(J100="",TEXT($N$3 + (ROW(K100)-4)*($O$3/24/60),"hh:mm")& " Uhr",MAX(I$3:I99)+1)) -> 19:36 Uhr | M100: 97 | AC100: 100 | AD100: 101 | AE100: 102 | AF100: 104 | BC100: =ROW(A100) -> 100 | BD100: =ROW(A100)+1 -> 101 | BE100: 102 | BF100: 104 | BI100: 100 | BJ100: 101 | BK100: 98 | BL100: 96 | BO100: 96 | BP100: 97 | BQ100: 100 | BR100: 98
A101: =IF(LEFT(J101,1)="#","",IF(J101="","",MAX(A$3:A100)+1)) ->  | H101: Sinnvoll beim "Tauschen" von zwei Einheiten. | I101: =IF(LEFT(J101,1)="#",TEXT($N$3 + (ROW(K101)-4)*($O$3/24/60),"hh:mm")& " Uhr",IF(J101="",TEXT($N$3 + (ROW(K101)-4)*($O$3/24/60),"hh:mm")& " Uhr",MAX(I$3:I100)+1)) -> 19:42 Uhr | M101: 98 | AE101: 103 | AF101: 105 | BE101: 103 | BF101: 105 | BK101: 99 | BL101: 97 | BQ101: 101 | BR101: 99
A102: =IF(LEFT(J102,1)="#","",IF(J102="","",MAX(A$3:A101)+1)) ->  | C102: =IF(INDIRECT("J"&AC102,TRUE)="","",INDIRECT("J"&AC102,TRUE)) ->  | D102: =IF(INDIRECT("J"&AD102,TRUE)="","",INDIRECT("J"&AD102,TRUE)) ->  | I102: =IF(LEFT(J102,1)="#",TEXT($N$3 + (ROW(K102)-4)*($O$3/24/60),"hh:mm")& " Uhr",IF(J102="",TEXT($N$3 + (ROW(K102)-4)*($O$3/24/60),"hh:mm")& " Uhr",MAX(I$3:I101)+1)) -> 19:48 Uhr | M102: 99 | AC102: 102 | AD102: 103 | AE102: 104 | AF102: 100 | BC102: =ROW(A102) -> 102 | BD102: =ROW(A102)+1 -> 103 | BE102: 104 | BF102: 100 | BI102: 102 | BJ102: 103 | BK102: 100 | BL102: 98 | BO102: 98 | BP102: 99 | BQ102: 102 | BR102: 100
A103: =IF(LEFT(J103,1)="#","",IF(J103="","",MAX(A$3:A102)+1)) ->  | H103: Mit dem Button "Startliste überprüfen" wird | I103: =IF(LEFT(J103,1)="#",TEXT($N$3 + (ROW(K103)-4)*($O$3/24/60),"hh:mm")& " Uhr",IF(J103="",TEXT($N$3 + (ROW(K103)-4)*($O$3/24/60),"hh:mm")& " Uhr",MAX(I$3:I102)+1)) -> 19:54 Uhr | M103: 100 | AE103: 105 | AF103: 101 | BE103: 105 | BF103: 101 | BK103: 101 | BL103: 99 | BQ103: 103 | BR103: 101
A104: =IF(LEFT(J104,1)="#","",IF(J104="","",MAX(A$3:A103)+1)) ->  | C104: =IF(INDIRECT("J"&AC104,TRUE)="","",INDIRECT("J"&AC104,TRUE)) ->  | D104: =IF(INDIRECT("J"&AD104,TRUE)="","",INDIRECT("J"&AD104,TRUE)) ->  | H104: überall dort, wo in Spalte L ein Eintrag | I104: =IF(LEFT(J104,1)="#",TEXT($N$3 + (ROW(K104)-4)*($O$3/24/60),"hh:mm")& " Uhr",IF(J104="",TEXT($N$3 + (ROW(K104)-4)*($O$3/24/60),"hh:mm")& " Uhr",MAX(I$3:I103)+1)) -> 20:00 Uhr | M104: 101 | AC104: 104 | AD104: 105 | AE104: 100 | AF104: 102 | BC104: =ROW(A104) -> 104 | BD104: =ROW(A104)+1 -> 105 | BE104: 100 | BF104: 102 | BI104: 104 | BJ104: 105 | BK104: 102 | BL104: 100 | BO104: 100 | BP104: 101 | BQ104: 104 | BR104: 102
A105: =IF(LEFT(J105,1)="#","",IF(J105="","",MAX(A$3:A104)+1)) ->  | H105: vorhanden ist, in der Spalte K ein | I105: =IF(LEFT(J105,1)="#",TEXT($N$3 + (ROW(K105)-4)*($O$3/24/60),"hh:mm")& " Uhr",IF(J105="",TEXT($N$3 + (ROW(K105)-4)*($O$3/24/60),"hh:mm")& " Uhr",MAX(I$3:I104)+1)) -> 20:06 Uhr | M105: 102 | AE105: 101 | AF105: 103 | BE105: 101 | BF105: 103 | BK105: 103 | BL105: 101 | BQ105: 105 | BR105: 103
A106: =IF(LEFT(J106,1)="#","",IF(J106="","",MAX(A$3:A105)+1)) ->  | C106: =IF(INDIRECT("J"&AC106,TRUE)="","",INDIRECT("J"&AC106,TRUE)) ->  | D106: =IF(INDIRECT("J"&AD106,TRUE)="","",INDIRECT("J"&AD106,TRUE)) ->  | H106: (neuer) Transferpfeil erzeugt. Dann wird geprüft, | I106: =IF(LEFT(J106,1)="#",TEXT($N$3 + (ROW(K106)-4)*($O$3/24/60),"hh:mm")& " Uhr",IF(J106="",TEXT($N$3 + (ROW(K106)-4)*($O$3/24/60),"hh:mm")& " Uhr",MAX(I$3:I105)+1)) -> 20:12 Uhr | M106: 103 | AC106: 106 | AD106: 107 | AE106: 108 | AF106: 110 | BC106: =ROW(A106) -> 106 | BD106: =ROW(A106)+1 -> 107 | BE106: 108 | BF106: 110 | BI106: 106 | BJ106: 107 | BK106: 104 | BL106: 102 | BO106: 102 | BP106: 103 | BQ106: 106 | BR106: 104
A107: =IF(LEFT(J107,1)="#","",IF(J107="","",MAX(A$3:A106)+1)) ->  | H107: ob der in der Spalte L eingetragene Name | I107: =IF(LEFT(J107,1)="#",TEXT($N$3 + (ROW(K107)-4)*($O$3/24/60),"hh:mm")& " Uhr",IF(J107="",TEXT($N$3 + (ROW(K107)-4)*($O$3/24/60),"hh:mm")& " Uhr",MAX(I$3:I106)+1)) -> 20:18 Uhr | M107: 104 | AE107: 109 | AF107: 111 | BE107: 109 | BF107: 111 | BK107: 105 | BL107: 103 | BQ107: 107 | BR107: 105
A108: =IF(LEFT(J108,1)="#","",IF(J108="","",MAX(A$3:A107)+1)) ->  | C108: =IF(INDIRECT("J"&AC108,TRUE)="","",INDIRECT("J"&AC108,TRUE)) ->  | D108: =IF(INDIRECT("J"&AD108,TRUE)="","",INDIRECT("J"&AD108,TRUE)) ->  | H108: bereits in der Spalte J vorhanden ist. | I108: =IF(LEFT(J108,1)="#",TEXT($N$3 + (ROW(K108)-4)*($O$3/24/60),"hh:mm")& " Uhr",IF(J108="",TEXT($N$3 + (ROW(K108)-4)*($O$3/24/60),"hh:mm")& " Uhr",MAX(I$3:I107)+1)) -> 20:24 Uhr | M108: 105 | AC108: 108 | AD108: 109 | AE108: 110 | AF108: 106 | BC108: =ROW(A108) -> 108 | BD108: =ROW(A108)+1 -> 109 | BE108: 110 | BF108: 106 | BI108: 108 | BJ108: 109 | BK108: 106 | BL108: 104 | BO108: 104 | BP108: 105 | BQ108: 108 | BR108: 106
A109: =IF(LEFT(J109,1)="#","",IF(J109="","",MAX(A$3:A108)+1)) ->  | H109: Wenn dem so ist, wird in der Spalte K der "lange" | I109: =IF(LEFT(J109,1)="#",TEXT($N$3 + (ROW(K109)-4)*($O$3/24/60),"hh:mm")& " Uhr",IF(J109="",TEXT($N$3 + (ROW(K109)-4)*($O$3/24/60),"hh:mm")& " Uhr",MAX(I$3:I108)+1)) -> 20:30 Uhr | M109: 106 | AE109: 111 | AF109: 107 | BE109: 111 | BF109: 107 | BK109: 107 | BL109: 105 | BQ109: 109 | BR109: 107
A110: =IF(LEFT(J110,1)="#","",IF(J110="","",MAX(A$3:A109)+1)) ->  | C110: =IF(INDIRECT("J"&AC110,TRUE)="","",INDIRECT("J"&AC110,TRUE)) ->  | D110: =IF(INDIRECT("J"&AD110,TRUE)="","",INDIRECT("J"&AD110,TRUE)) ->  | H110: gegen einen "kurzen" Transferpfeil ausgetauscht. | I110: =IF(LEFT(J110,1)="#",TEXT($N$3 + (ROW(K110)-4)*($O$3/24/60),"hh:mm")& " Uhr",IF(J110="",TEXT($N$3 + (ROW(K110)-4)*($O$3/24/60),"hh:mm")& " Uhr",MAX(I$3:I109)+1)) -> 20:36 Uhr | M110: 107 | AC110: 110 | AD110: 111 | AE110: 106 | AF110: 108 | BC110: =ROW(A110) -> 110 | BD110: =ROW(A110)+1 -> 111 | BE110: 106 | BF110: 108 | BI110: 110 | BJ110: 111 | BK110: 108 | BL110: 106 | BO110: 106 | BP110: 107 | BQ110: 110 | BR110: 108
